Workbook

Sheet Summary
K1: Graph End
C2: Valuation Assumptions
D3: WACC | F3: ='Model Parameters'!G42 -> 0.075
D4: Terminal Growth | F4: ='Model Parameters'!G43 -> 0.005
D5: Long-term ROIC | F5: ='Model Parameters'!G44 -> 0.06
D6: EV/EBITDA | F6: ='Model Parameters'!$G$45 -> 6.5
D7: Explicit Period (Years) | F7: ='Master Scenario'!$K$18 -> 10
C9: Assumptions
D10: Demand Reduction and Rebound
D12: Base Capital Expenditures/Depreciation | F12: ='Model Parameters'!$G$24 -> 1.2
D13: Cost of Goods Sold Percent | F13: ='Model Parameters'!G15 -> 0.592
D14: Price Increase Percent | F14: ='Model Parameters'!$I$14 -> 0
D15: Fixed SG&A Percent | F15: ='Model Parameters'!$G$20 -> 0.43
D16: SG&A Fixed Increase | F16: ='Model Parameters'!$G$21 -> 0.01
D17: Minimum Purchase Percent | F17: ='Model Parameters'!G17 -> 0.3
D18: Reduced Capital Expenditure | F18: ='Model Parameters'!$G$27 -> 0.15
C20: Valuation | F20: Value/Share | H20: Base Case | I20: Difference
C21: Terminal Growth | F21: =Valuation!H85 ->  | H21: =TRANSPOSE('Master Scenario'!G22:J22) -> 15.61200024 | I21: =H21-F21 -> 
C22: EV/EBITDA | F22: =Valuation!H95 ->  | H22: 15.07823677 | I22: =H22-F22 -> 
C23: Value Driver Basic | F23: =Valuation!H105 ->  | H23: 25.30843053
C24: Value Driver Inv Cap | F24: =Valuation!H115 ->  | H24: 17.80589758
C26: Pre-Crisis Share Price | F26: ='M Stock Price (2)'!F1459 -> 17.100603
C27: Post-Crisis Share Price | F27: ='M Stock Price (2)'!F1471 -> 4.81

Sheet Model Parameters
B2: Time Parameters
C3: First Historic Period | G3: =Historical!E4 -> 2016-02-29
C4: Last Historic Period | G4: 5
C5: Months Per Period Forecast | G5: 1
C6: Months Per Period Historic | G6: 12
C7: Terminal Period | G7: 20
C8: Fiscal Year End Month | G8: 3
C9: Shock Period | G9: 2020-03-31
C10: Post Crisis Start | G10: 2023-01-31
B12: General Price and Expense Assumptions
C13: Year | G13: 2016 | H13: 2017 | I13: 2020
C14: Price Increase | G14: 0.01 | H14: 0 | I14: ='Master Scenario'!O18/10000 -> 0
C15: Cost of Goods Sold Percent | G15: ='Master Scenario'!N18/10000 -> 0.592
C17: Minimum Purchase Percent | G17: ='Master Scenario'!R18/10000 -> 0.3
C18: Traditional Inventory Method (False is Units) | G18: FALSE
C20: Percent of SG&A Fixed | G20: ='Master Scenario'!P18/10000 -> 0.43
C21: Growth in Administrative Costs | G21: ='Master Scenario'!Q18/10000 -> 0.01
B23: Capital Expenditures
C24: Capital Expenditure Percent of Depreciation - Base | G24: ='Master Scenario'!L18/10000 -> 1.2
C25: Crisis Scenario | G25: =Scenarios!E2 -> 2
C26: Apply Reduced Capital Expenditures | G26: =G25>1 -> TRUE
C27: Capital Expenditure Percent of Revenue - Crisis | G27: ='Master Scenario'!M18/10000 -> 0.15
C28: Capital Expenditure Percent of Revenue - Applied | G28: =IF(G26,G27,G24) -> 0.15
C29: Include Make-up Capital Expenditures | G29: TRUE
C31: Start of Make-up Period | G31: =G10 -> 2023-01-31
C32: Months of Make-up Period | G32: =I32 -> 24 | I32: 24
C33: End of Make-up Period | G33: =EOMONTH(G31,G32) -> 2025-01-31
B35: Valuation Assumptions
C36: Valuation Period | G36: 2020-02-29
C37: Explicit Period | G37: ='Master Scenario'!K18 -> 10
C38: Explicit Period Start | G38: =EOMONTH(G36,1) -> 2020-03-31
C39: Terminal Valuation | G39: =EOMONTH(G36,'Master Scenario'!K18*12) -> 2030-02-28
C41: Valuation Parameters
C42: WACC | G42: ='Master Scenario'!G18/10000 -> 0.075
C43: Growth Rate | G43: ='Master Scenario'!H18/10000 -> 0.005
C44: Long-term ROIC | G44: ='Master Scenario'!I18/10000 -> 0.06
C45: Terminal EV/EBITDA Ratio | G45: ='Master Scenario'!J18/10 -> 6.5
G48: =Scenarios!G8 -> 2016-02-29 | H48: =Scenarios!K8 -> 2020-03-31 | I48: =Scenarios!L8 -> 2020-04-30 | J48: =Scenarios!M8 -> 2020-05-31 | K48: =Scenarios!N8 -> 2020-07-31 | L48: =Scenarios!P8 -> 2021-02-28 | M48: =Scenarios!Q8 -> 2021-07-31
C49: Periods for Using Annual Growth Rates | G49: 1 | H49: 1 | I49: 1 | J49: 1 | K49: 1 | L49: 1 | M49: 0
C64: Start of the Model | G64: =G48 -> 2016-02-29

Sheet Scenarios
B2: Virus Scenario Number | E2: 2
K3: Shock Period
C4: Year | G4: =Historical!E85 -> 2016 | H4: 2017 | I4: 2018 | J4: 2019 | K4: 2020 | L4: 2020 | M4: 2020 | N4: 2020 | O4: 2020 | P4: 2021 | Q4: 2021 | R4: 2022 | S4: 2025 | T4: 2027 | U4: 2028 | V4: 2032 | W4: 2033 | X4: 2034 | Y4: 2035 | Z4: 2036 | AA4: 2037 | AB4: 2038 | AC4: 2039 | AD4: 2040 | AE4: 2041
C5: Month | K5: 3 | L5: 4 | M5: 5 | N5: 8 | O5: 8 | P5: 3 | Q5: 8 | R5: 12 | S5: 12 | T5: 12 | U5: 12 | V5: 12 | W5: 12 | X5: 12 | Y5: 12 | Z5: 12 | AA5: 12 | AB5: 12 | AC5: 12 | AD5: 12 | AE5: 12
C7: Start of Month | K7: =DATE(K4,K5,1) -> 2020-03-01 | L7: 2020-04-01 | M7: 2020-05-01 | N7: 2020-08-01 | O7: 2020-08-01 | P7: 2021-03-01 | Q7: 2021-08-01 | R7: 2022-12-01 | S7: 2025-12-01 | T7: 2027-12-01 | U7: =DATE(U4,U5,1) -> 2028-12-01 | V7: =DATE(V4,V5,1) -> 2032-12-01 | W7: =DATE(W4,W5,1) -> 2033-12-01 | X7: =DATE(X4,X5,1) -> 2034-12-01 | Y7: =DATE(Y4,Y5,1) -> 2035-12-01 | Z7: =DATE(Z4,Z5,1) -> 2036-12-01 | AA7: =DATE(AA4,AA5,1) -> 2037-12-01 | AB7: =DATE(AB4,AB5,1) -> 2038-12-01 | AC7: =DATE(AC4,AC5,1) -> 2039-12-01 | AD7: =DATE(AD4,AD5,1) -> 2040-12-01 | AE7: =DATE(AE4,AE5,1) -> 2041-12-01
C8: End of Month | G8: ='Model Parameters'!G3 -> 2016-02-29 | K8: =EOMONTH(K7,0) -> 2020-03-31 | L8: =EOMONTH(L7,0) -> 2020-04-30 | M8: =EOMONTH(M7,0) -> 2020-05-31 | N8: =N7-1 -> 2020-07-31 | O8: 2020-07-31 | P8: 2021-02-28 | Q8: 2021-07-31 | R8: 2022-11-30 | S8: 2025-11-30 | T8: 2027-11-30 | U8: =U7-1 -> 2028-11-30 | V8: 2032-11-30 | W8: 2033-11-30 | X8: 2034-11-30 | Y8: 2035-11-30 | Z8: 2036-11-30 | AA8: 2037-11-30 | AB8: 2038-11-30 | AC8: 2039-11-30 | AD8: 2040-11-30 | AE8: 2041-11-30
K9: =LOOKUP(K8,Forecast!5:5,Forecast!131:131) -> 0 | L9: =LOOKUP(L8,Forecast!5:5,Forecast!131:131) -> 0 | M9: =LOOKUP(M8,Forecast!5:5,Forecast!131:131) -> 0 | N9: =LOOKUP(N8,Forecast!5:5,Forecast!131:131) -> 0 | O9: =LOOKUP(O8,Forecast!5:5,Forecast!131:131) -> 0 | P9: =LOOKUP(P8,Forecast!5:5,Forecast!131:131) -> 0 | Q9: =LOOKUP(Q8,Forecast!5:5,Forecast!131:131) -> 0 | R9: =LOOKUP(R8,Forecast!5:5,Forecast!131:131) -> 0 | S9: =LOOKUP(S8,Forecast!5:5,Forecast!131:131) -> 0 | T9: =LOOKUP(T8,Forecast!5:5,Forecast!131:131) -> 0 | U9: =LOOKUP(U8,Forecast!5:5,Forecast!131:131) -> 0 | V9: =LOOKUP(V8,Forecast!5:5,Forecast!131:131) -> 0 | W9: =LOOKUP(W8,Forecast!5:5,Forecast!131:131) -> 0 | X9: =LOOKUP(X8,Forecast!5:5,Forecast!131:131) -> 0 | Y9: =LOOKUP(Y8,Forecast!5:5,Forecast!131:131) -> 0 | Z9: =LOOKUP(Z8,Forecast!5:5,Forecast!131:131) -> 0 | AA9: =LOOKUP(AA8,Forecast!5:5,Forecast!131:131) -> 0 | AB9: =LOOKUP(AB8,Forecast!5:5,Forecast!131:131) -> 0 | AC9: =LOOKUP(AC8,Forecast!5:5,Forecast!131:131) -> 0 | AD9: =LOOKUP(AD8,Forecast!5:5,Forecast!131:131) -> 0 | AE9: =LOOKUP(AE8,Forecast!5:5,Forecast!131:131) -> 0
C11: Annual Unit Sales Growth
D12: No Virus Case | K12: -0.015 | L12: -0.000833 | M12: -0.000833 | N12: -0.000833 | O12: -0.000833 | P12: -0.000833 | Q12: -0.01 | R12: -0.01 | S12: 0.015 | T12: 0.015 | U12: 0.015 | V12: 0.015 | W12: -0.005 | X12: -0.005 | Y12: -0.005 | Z12: -0.005 | AA12: -0.005 | AB12: -0.005 | AC12: -0.005 | AD12: -0.005 | AE12: -0.005
D13: Base Rebound Case | K13: -0.7 | L13: -0.2 | M13: 0 | N13: 0.8 | O13: 0.2 | P13: 0.04 | Q13: 0.02 | R13: 0.01 | S13: 0.015 | T13: 0.018 | U13: 0.015 | V13: 0.015 | W13: -0.005 | X13: -0.005 | Y13: -0.005 | Z13: -0.005 | AA13: -0.005 | AB13: -0.005 | AC13: -0.005 | AD13: -0.005 | AE13: -0.005
D14: Slow Rebound Case | K14: -0.7 | L14: -0.2 | M14: 0 | N14: 0.4 | O14: 0.1 | P14: 0.05 | Q14: 0.07 | R14: 0.06 | S14: 0.06 | T14: 0.05 | U14: 0.0065 | V14: 0.011 | W14: -0.005 | X14: -0.005 | Y14: -0.005 | Z14: -0.005 | AA14: -0.005 | AB14: -0.005 | AC14: -0.005 | AD14: -0.005 | AE14: -0.005
D15: Fast Rebound Case | K15: -0.7 | L15: -0.2 | M15: 0 | N15: 2.6 | O15: 0.05 | P15: 0.005 | Q15: -0.01 | R15: -0.006883516896 | S15: 0.003 | T15: 0.001 | U15: 0.015 | V15: 0.015 | W15: -0.005 | X15: -0.005 | Y15: -0.005 | Z15: -0.005 | AA15: -0.005 | AB15: -0.005 | AC15: -0.005 | AD15: -0.005 | AE15: -0.005
D16: Base Recovery without Full Rebound | K16: -0.7 | L16: -0.2 | M16: 0 | N16: 0.8 | O16: 0.2 | P16: 0.03 | Q16: 0.01 | R16: 0.01 | S16: 0.02 | T16: 0.018 | U16: 0.015 | V16: 0.015 | W16: -0.005 | X16: -0.005 | Y16: -0.005 | Z16: -0.005 | AA16: -0.005 | AB16: -0.005 | AC16: -0.005 | AD16: -0.005 | AE16: -0.005
D17: Slow Recovery without Full Rebound | K17: -0.7 | L17: -0.2 | M17: 0 | N17: 0.4 | O17: 0.1 | P17: 0.05 | Q17: 0.07 | R17: 0.06 | S17: 0.04 | T17: 0.03 | U17: 0.0065 | V17: 0.011 | W17: -0.005 | X17: -0.005 | Y17: -0.005 | Z17: -0.005 | AA17: -0.005 | AB17: -0.005 | AC17: -0.005 | AD17: -0.005 | AE17: -0.005
D18: More Extreme Decline with Rebound | K18: -0.85 | L18: -0.2 | M18: 0 | N18: 0.4 | O18: 0.2 | P18: 0.16 | Q18: 0.03 | R18: 0.15 | S18: 0.03 | T18: 0.018 | U18: 0.015 | V18: 0.015 | W18: -0.005 | X18: -0.005 | Y18: -0.005 | Z18: -0.005 | AA18: -0.005 | AB18: -0.005 | AC18: -0.005 | AD18: -0.005 | AE18: -0.005 | AH18: =AF27 -> 0
D19: More Extreme Decline without Rebound | K19: -0.85 | L19: -0.2 | M19: 0 | N19: 0.4 | O19: 0.2 | P19: 0.14 | Q19: 0.02 | R19: 0.12 | S19: 0.03 | T19: 0.018 | U19: 0.015 | V19: 0.015 | W19: -0.005 | X19: -0.005 | Y19: -0.005 | Z19: -0.005 | AA19: -0.005 | AB19: -0.005 | AC19: -0.005 | AD19: -0.005 | AE19: -0.005 | AH19: =AF28 -> 0
D20: Less Extreme Decline | K20: -0.6 | L20: -0.2 | M20: 0 | N20: 0.36 | O20: 0.2 | P20: 0.04 | Q20: 0.02 | R20: 0.01 | S20: 0.015 | T20: 0.018 | U20: 0.015 | V20: 0.015 | W20: -0.005 | X20: -0.005 | Y20: -0.005 | Z20: -0.005 | AA20: -0.005 | AB20: -0.005 | AC20: -0.005 | AD20: -0.005 | AE20: -0.005 | AH20: =AF29 -> 0
D22: =INDEX(D12:D15,$E$2) -> Base Rebound Case | K22: =INDEX(K12:K21,$E$2) -> -0.7 | L22: =INDEX(L12:L21,$E$2) -> -0.2 | M22: =INDEX(M12:M21,$E$2) -> 0 | N22: =INDEX(N12:N21,$E$2) -> 0.8 | O22: =INDEX(O12:O21,$E$2) -> 0.2 | P22: =INDEX(P12:P21,$E$2) -> 0.04 | Q22: =INDEX(Q12:Q21,$E$2) -> 0.02 | R22: =INDEX(R12:R21,$E$2) -> 0.01 | S22: =INDEX(S12:S21,$E$2) -> 0.015 | T22: =INDEX(T12:T21,$E$2) -> 0.018 | U22: =INDEX(U12:U21,$E$2) -> 0.015 | V22: =INDEX(V12:V21,$E$2) -> 0.015 | W22: =INDEX(W12:W21,$E$2) -> -0.005 | X22: =INDEX(X12:X21,$E$2) -> -0.005 | Y22: =INDEX(Y12:Y21,$E$2) -> -0.005 | Z22: =INDEX(Z12:Z21,$E$2) -> -0.005 | AA22: =INDEX(AA12:AA21,$E$2) -> -0.005 | AB22: =INDEX(AB12:AB21,$E$2) -> -0.005 | AC22: =INDEX(AC12:AC21,$E$2) -> -0.005 | AD22: =INDEX(AD12:AD21,$E$2) -> -0.005 | AE22: =INDEX(AE12:AE21,$E$2) -> -0.005
C25: Revenues | H25: 2016 | I25: 2017 | J25: 2018 | K25: 2019 | L25: 2020 | M25: 2021 | N25: 2022 | O25: 2023 | P25: 2024 | Q25: 2025 | R25: 2026 | S25: 2027 | T25: 2028 | U25: 2029 | V25: 2030 | W25: 2031 | X25: 2032 | Y25: 2033 | Z25: 2034 | AA25: 2035 | AB25: 2036 | AC25: 2037 | AD25: 2038 | AE25: 2039 | AF25: 2040
C26: Revenues | H26: =SUMIF(Forecast!8:8,Scenarios!H25,Forecast!139:139) -> 0 | I26: =SUMIF(Forecast!8:8,Scenarios!I25,Forecast!139:139) -> 0 | J26: =SUMIF(Forecast!8:8,Scenarios!J25,Forecast!139:139) -> 0 | K26: =SUMIF(Forecast!8:8,Scenarios!K25,Forecast!139:139) -> 0 | L26: =SUMIF(Forecast!8:8,Scenarios!L25,Forecast!139:139) -> 0 | M26: =SUMIF(Forecast!8:8,Scenarios!M25,Forecast!139:139) -> 0 | N26: =SUMIF(Forecast!8:8,Scenarios!N25,Forecast!139:139) -> 0 | O26: =SUMIF(Forecast!8:8,Scenarios!O25,Forecast!139:139) -> 0 | P26: =SUMIF(Forecast!8:8,Scenarios!P25,Forecast!139:139) -> 0 | Q26: =SUMIF(Forecast!8:8,Scenarios!Q25,Forecast!139:139) -> 0 | R26: =SUMIF(Forecast!8:8,Scenarios!R25,Forecast!139:139) -> 0 | S26: =SUMIF(Forecast!8:8,Scenarios!S25,Forecast!139:139) -> 0 | T26: =SUMIF(Forecast!8:8,Scenarios!T25,Forecast!139:139) -> 0 | U26: =SUMIF(Forecast!8:8,Scenarios!U25,Forecast!139:139) -> 0 | V26: =SUMIF(Forecast!8:8,Scenarios!V25,Forecast!139:139) -> 0 | W26: =SUMIF(Forecast!8:8,Scenarios!W25,Forecast!139:139) -> 0 | X26: =SUMIF(Forecast!8:8,Scenarios!X25,Forecast!139:139) -> 0 | Y26: =SUMIF(Forecast!8:8,Scenarios!Y25,Forecast!139:139) -> 0 | Z26: =SUMIF(Forecast!8:8,Scenarios!Z25,Forecast!139:139) -> 0 | AA26: =SUMIF(Forecast!8:8,Scenarios!AA25,Forecast!139:139) -> 0 | AB26: =SUMIF(Forecast!8:8,Scenarios!AB25,Forecast!139:139) -> 0 | AC26: =SUMIF(Forecast!8:8,Scenarios!AC25,Forecast!139:139) -> 0 | AD26: =SUMIF(Forecast!8:8,Scenarios!AD25,Forecast!139:139) -> 0 | AE26: =SUMIF(Forecast!8:8,Scenarios!AE25,Forecast!139:139) -> 0 | AF26: =SUMIF(Forecast!8:8,Scenarios!AF25,Forecast!139:139) -> 0
D27: =D12 -> No Virus Case | G27: 1 | H27: 0 | I27: 0 | J27: 0 | K27: 0 | L27: 0 | M27: 0 | N27: 0 | O27: 0 | P27: 0 | Q27: 0 | R27: 0 | S27: 0 | T27: 0 | U27: 0 | V27: 0 | W27: 0 | X27: 0 | Y27: 0 | Z27: 0 | AA27: 0 | AB27: 0 | AC27: 0 | AD27: 0 | AE27: 0 | AF27: 0
D28: =D13 -> Base Rebound Case | G28: 2 | H28: 0 | I28: 0 | J28: 0 | K28: 0 | L28: 0 | M28: 0 | N28: 0 | O28: 0 | P28: 0 | Q28: 0 | R28: 0 | S28: 0 | T28: 0 | U28: 0 | V28: 0 | W28: 0 | X28: 0 | Y28: 0 | Z28: 0 | AA28: 0 | AB28: 0 | AC28: 0 | AD28: 0 | AE28: 0 | AF28: 0
D29: Slow Rebound Case | G29: 3 | H29: 0 | I29: 0 | J29: 0 | K29: 0 | L29: 0 | M29: 0 | N29: 0 | O29: 0 | P29: 0 | Q29: 0 | R29: 0 | S29: 0 | T29: 0 | U29: 0 | V29: 0 | W29: 0 | X29: 0 | Y29: 0 | Z29: 0 | AA29: 0 | AB29: 0 | AC29: 0 | AD29: 0 | AE29: 0 | AF29: 0
D30: Fast Rebound Case | G30: 4 | H30: 0 | I30: 0 | J30: 0 | K30: 0 | L30: 0 | M30: 0 | N30: 0 | O30: 0 | P30: 0 | Q30: 0 | R30: 0 | S30: 0 | T30: 0 | U30: 0 | V30: 0 | W30: 0 | X30: 0 | Y30: 0 | Z30: 0 | AA30: 0 | AB30: 0 | AC30: 0 | AD30: 0 | AE30: 0 | AF30: 0
D31: Base Recovery without Full Rebound | G31: 5 | H31: 0 | I31: 0 | J31: 0 | K31: 0 | L31: 0 | M31: 0 | N31: 0 | O31: 0 | P31: 0 | Q31: 0 | R31: 0 | S31: 0 | T31: 0 | U31: 0 | V31: 0 | W31: 0 | X31: 0 | Y31: 0 | Z31: 0 | AA31: 0 | AB31: 0 | AC31: 0 | AD31: 0 | AE31: 0 | AF31: 0
D32: Slow Recovery without Full Rebound | G32: 6 | H32: 0 | I32: 0 | J32: 0 | K32: 0 | L32: 0 | M32: 0 | N32: 0 | O32: 0 | P32: 0 | Q32: 0 | R32: 0 | S32: 0 | T32: 0 | U32: 0 | V32: 0 | W32: 0 | X32: 0 | Y32: 0 | Z32: 0 | AA32: 0 | AB32: 0 | AC32: 0 | AD32: 0 | AE32: 0 | AF32: 0
D33: More Extreme Decline with Rebound | G33: 7 | H33: 0 | I33: 0 | J33: 0 | K33: 0 | L33: 0 | M33: 0 | N33: 0 | O33: 0 | P33: 0 | Q33: 0 | R33: 0 | S33: 0 | T33: 0 | U33: 0 | V33: 0 | W33: 0 | X33: 0 | Y33: 0 | Z33: 0 | AA33: 0 | AB33: 0 | AC33: 0 | AD33: 0 | AE33: 0 | AF33: 0
D34: More Extreme Decline without Rebound | G34: 8 | H34: 0 | I34: 0 | J34: 0 | K34: 0 | L34: 0 | M34: 0 | N34: 0 | O34: 0 | P34: 0 | Q34: 0 | R34: 0 | S34: 0 | T34: 0 | U34: 0 | V34: 0 | W34: 0 | X34: 0 | Y34: 0 | Z34: 0 | AA34: 0 | AB34: 0 | AC34: 0 | AD34: 0 | AE34: 0 | AF34: 0
D35: Less Extreme Decline | G35: 9 | H35: 0 | I35: 0 | J35: 0 | K35: 0 | L35: 0 | M35: 0 | N35: 0 | O35: 0 | P35: 0 | Q35: 0 | R35: 0 | S35: 0 | T35: 0 | U35: 0 | V35: 0 | W35: 0 | X35: 0 | Y35: 0 | Z35: 0 | AA35: 0 | AB35: 0 | AC35: 0 | AD35: 0 | AE35: 0 | AF35: 0
H38: 2016 | I38: 2017 | J38: 2018 | K38: 2019 | L38: 2020 | M38: 2021 | N38: 2022 | O38: 2023 | P38: 2024 | Q38: 2025 | R38: 2026 | S38: 2027 | T38: 2028 | U38: 2029 | V38: 2030 | W38: 2031 | X38: 2032 | Y38: 2033 | Z38: 2034 | AA38: 2035 | AB38: 2036 | AC38: 2037 | AD38: 2038 | AE38: 2039 | AF38: 2040
C39: Capital Expenditures without Make-up | H39: =SUMIF(Forecast!8:8,Scenarios!H38,Forecast!235:235) -> 0 | I39: =SUMIF(Forecast!8:8,Scenarios!I38,Forecast!235:235) -> 0 | J39: =SUMIF(Forecast!8:8,Scenarios!J38,Forecast!235:235) -> 0 | K39: =SUMIF(Forecast!8:8,Scenarios!K38,Forecast!235:235) -> 0 | L39: =SUMIF(Forecast!8:8,Scenarios!L38,Forecast!235:235) -> 0 | M39: =SUMIF(Forecast!8:8,Scenarios!M38,Forecast!235:235) -> 0 | N39: =SUMIF(Forecast!8:8,Scenarios!N38,Forecast!235:235) -> 0 | O39: =SUMIF(Forecast!8:8,Scenarios!O38,Forecast!235:235) -> 0 | P39: =SUMIF(Forecast!8:8,Scenarios!P38,Forecast!235:235) -> 0 | Q39: =SUMIF(Forecast!8:8,Scenarios!Q38,Forecast!235:235) -> 0 | R39: =SUMIF(Forecast!8:8,Scenarios!R38,Forecast!235:235) -> 0 | S39: =SUMIF(Forecast!8:8,Scenarios!S38,Forecast!235:235) -> 0 | T39: =SUMIF(Forecast!8:8,Scenarios!T38,Forecast!235:235) -> 0 | U39: =SUMIF(Forecast!8:8,Scenarios!U38,Forecast!235:235) -> 0 | V39: =SUMIF(Forecast!8:8,Scenarios!V38,Forecast!235:235) -> 0 | W39: =SUMIF(Forecast!8:8,Scenarios!W38,Forecast!235:235) -> 0 | X39: =SUMIF(Forecast!8:8,Scenarios!X38,Forecast!235:235) -> 0 | Y39: =SUMIF(Forecast!8:8,Scenarios!Y38,Forecast!235:235) -> 0 | Z39: =SUMIF(Forecast!8:8,Scenarios!Z38,Forecast!235:235) -> 0 | AA39: =SUMIF(Forecast!8:8,Scenarios!AA38,Forecast!235:235) -> 0 | AB39: =SUMIF(Forecast!8:8,Scenarios!AB38,Forecast!235:235) -> 0 | AC39: =SUMIF(Forecast!8:8,Scenarios!AC38,Forecast!235:235) -> 0 | AD39: =SUMIF(Forecast!8:8,Scenarios!AD38,Forecast!235:235) -> 0 | AE39: =SUMIF(Forecast!8:8,Scenarios!AE38,Forecast!235:235) -> 0 | AF39: =SUMIF(Forecast!8:8,Scenarios!AF38,Forecast!235:235) -> 0
D40: No Virus Case | G40: 1 | H40: 0 | I40: 0 | J40: 0 | K40: 0 | L40: 0 | M40: 0 | N40: 0 | O40: 0 | P40: 0 | Q40: 0 | R40: 0 | S40: 0 | T40: 0 | U40: 0 | V40: 0 | W40: 0 | X40: 0 | Y40: 0 | Z40: 0 | AA40: 0 | AB40: 0 | AC40: 0 | AD40: 0 | AE40: 0 | AF40: 0
D41: Base Rebound Case | G41: 2 | H41: 0 | I41: 0 | J41: 0 | K41: 0 | L41: 0 | M41: 0 | N41: 0 | O41: 0 | P41: 0 | Q41: 0 | R41: 0 | S41: 0 | T41: 0 | U41: 0 | V41: 0 | W41: 0 | X41: 0 | Y41: 0 | Z41: 0 | AA41: 0 | AB41: 0 | AC41: 0 | AD41: 0 | AE41: 0 | AF41: 0
D42: Slow Rebound Case | G42: 3 | H42: 0 | I42: 0 | J42: 0 | K42: 0 | L42: 0 | M42: 0 | N42: 0 | O42: 0 | P42: 0 | Q42: 0 | R42: 0 | S42: 0 | T42: 0 | U42: 0 | V42: 0 | W42: 0 | X42: 0 | Y42: 0 | Z42: 0 | AA42: 0 | AB42: 0 | AC42: 0 | AD42: 0 | AE42: 0 | AF42: 0
D43: Fast Rebound Case | G43: 4 | H43: 0 | I43: 0 | J43: 0 | K43: 0 | L43: 0 | M43: 0 | N43: 0 | O43: 0 | P43: 0 | Q43: 0 | R43: 0 | S43: 0 | T43: 0 | U43: 0 | V43: 0 | W43: 0 | X43: 0 | Y43: 0 | Z43: 0 | AA43: 0 | AB43: 0 | AC43: 0 | AD43: 0 | AE43: 0 | AF43: 0
C45: Capital Expenditure versus Base Case | G45: ='Model Parameters'!G32 -> 24
D46: No Virus Case | H46: =H40-H$40 -> 0 | I46: =I40-I$40 -> 0 | J46: 0 | K46: 0 | L46: 0 | M46: 0 | N46: 0 | O46: 0 | P46: 0 | Q46: 0 | R46: 0 | S46: 0 | T46: 0 | U46: 0 | V46: 0 | W46: 0 | X46: 0 | Y46: 0 | Z46: 0 | AA46: 0 | AB46: 0 | AC46: 0 | AD46: 0 | AE46: 0 | AF46: 0
D47: Base Rebound Case | F47: =-SUM(H47:O47) -> 0 | G47: =F47/$G$45 -> 0 | H47: =H41-H$40 -> 0 | I47: 0 | J47: 0 | K47: 0 | L47: 0 | M47: 0 | N47: 0 | O47: 0 | P47: 0 | Q47: 0 | R47: 0 | S47: 0 | T47: 0 | U47: 0 | V47: 0 | W47: 0 | X47: 0 | Y47: 0 | Z47: 0 | AA47: 0 | AB47: 0 | AC47: 0 | AD47: 0 | AE47: 0 | AF47: 0
D48: Slow Rebound Case | F48: =-SUM(H48:O48) -> 0 | G48: =F48/$G$45 -> 0 | H48: 0 | I48: 0 | J48: 0 | K48: 0 | L48: 0 | M48: 0 | N48: 0 | O48: 0 | P48: 0 | Q48: 0 | R48: 0 | S48: 0 | T48: 0 | U48: 0 | V48: 0 | W48: 0 | X48: 0 | Y48: 0 | Z48: 0 | AA48: 0 | AB48: 0 | AC48: 0 | AD48: 0 | AE48: 0 | AF48: 0
D49: Fast Rebound Case | F49: 0 | G49: 0 | H49: 0 | I49: 0 | J49: 0 | K49: 0 | L49: 0 | M49: 0 | N49: 0 | O49: 0 | P49: 0 | Q49: 0 | R49: 0 | S49: 0 | T49: 0 | U49: 0 | V49: 0 | W49: 0 | X49: 0 | Y49: 0 | Z49: 0 | AA49: 0 | AB49: 0 | AC49: 0 | AD49: 0 | AE49: 0 | AF49: 0
B56: General Assumptions Other Than Volumes
C57: Minimum Purchases to Meet Sales
C58: Administrative Expense Fixed Percent
B77: Price Increase Scenario | G77: 1
C79: Price Increase | G79: =G8 -> 2016-02-29 | H79: =EOMONTH(G79,12) -> 2017-02-28 | I79: =EOMONTH(H79,12) -> 2018-02-28 | J79: 2019-02-28 | K79: =K8 -> 2020-03-31 | L79: =L8 -> 2020-04-30 | M79: 2020-05-31 | N79: 2020-07-31 | O79: 2020-07-31 | P79: 2021-02-28 | Q79: 2021-07-31 | R79: 2022-11-30 | S79: 2025-11-30 | T79: 2027-11-30 | U79: 2028-11-30 | V79: 2032-11-30 | W79: 2033-11-30 | X79: 2034-11-30 | Y79: 2035-11-30 | Z79: 2036-11-30 | AA79: 2037-11-30 | AB79: 2038-11-30 | AC79: 2039-11-30 | AD79: 2040-11-30 | AE79: 2041-11-30
D80: No Virus Case | G80: 0.01 | H80: 0 | I80: 0 | J80: 0 | K80: 0.0005 | L80: 0.0005 | M80: 0.0005 | N80: 0.0005 | O80: 0.0005 | P80: 0.0005 | Q80: 0.0005 | R80: 0.0005 | S80: 0.0005 | T80: 0.0005 | U80: 0.0005 | V80: 0.0005 | W80: 0.0005 | X80: 0.0005 | Y80: 0.0005 | Z80: 0.0005 | AA80: 0.0005 | AB80: 0.0005 | AC80: 0.0005 | AD80: 0.0005 | AE80: 0.0005
D81: Base | G81: 0.01 | H81: 0 | I81: 0 | J81: 0 | K81: 0 | L81: 0 | M81: 0 | N81: 0 | O81: 0 | P81: 0 | Q81: 0 | R81: 0 | S81: 0 | T81: 0 | U81: 0 | V81: 0 | W81: 0 | X81: 0 | Y81: 0 | Z81: 0 | AA81: 0 | AB81: 0 | AC81: 0 | AD81: 0 | AE81: 0
D82: Base Rebound Case | G82: 0.01 | H82: 0 | I82: 0 | J82: 0 | K82: 0 | L82: 0 | M82: 0 | N82: -0.05 | O82: -0.05 | P82: 0.025 | Q82: 0 | R82: 0.03 | S82: 0.03 | T82: 0.03 | U82: 0.03 | V82: 0.03 | W82: 0.03 | X82: 0.03 | Y82: 0.03 | Z82: 0.03 | AA82: 0.03 | AB82: 0.03 | AC82: 0.03 | AD82: 0.03 | AE82: 0.03
D83: Slow Rebound Case | G83: 0.01 | H83: 0 | I83: 0 | J83: 0 | K83: 0 | L83: 0 | M83: 0 | N83: -0.05 | O83: -0.05 | P83: 0.025 | Q83: 0 | R83: 0.03 | S83: 0.03 | T83: 0.03 | U83: 0.03 | V83: 0.03 | W83: 0.03 | X83: 0.03 | Y83: 0.03 | Z83: 0.03 | AA83: 0.03 | AB83: 0.03 | AC83: 0.03 | AD83: 0.03 | AE83: 0.03
D84: Fast Rebound Case | G84: 0.01 | H84: 0 | I84: 0 | J84: 0 | K84: 0 | L84: 0 | M84: 0 | N84: -0.05 | O84: -0.05 | P84: 0 | Q84: 0.01 | R84: 0.02 | S84: 0.03 | T84: 0.03 | U84: 0.03 | V84: 0.03 | W84: 0.03 | X84: 0.03 | Y84: 0.03 | Z84: 0.03 | AA84: 0.03 | AB84: 0.03 | AC84: 0.03 | AD84: 0.03 | AE84: 0.03
C86: Cost of Goods Sold Margin | G86: 2016 | K86: 2017 | L86: 2018 | M86: 2019 | N86: 2020 | O86: 2021 | P86: 2022 | Q86: 2023 | R86: 2024 | S86: 2025
D87: No Virus Case | G87: =Forecast!I146 -> 0.592
D88: Short-term Reduced Margin
D89: Long-term Reduced Margin
C98: Months of Inventory
D99: No Virus Case | K99: 4 | L99: 4 | M99: 4 | N99: 4 | O99: 4 | P99: 4 | Q99: 4 | R99: 4 | S99: 4 | T99: 4 | U99: 4 | V99: 4 | W99: 4 | X99: 4 | Y99: 4 | Z99: 4 | AA99: 4 | AB99: 4 | AC99: 4 | AD99: 4 | AE99: 4
D100: Base Rebound Case | K100: 4 | L100: 4 | M100: 4 | N100: 4 | O100: 4 | P100: 4 | Q100: 4 | R100: 4 | S100: 4 | T100: 4 | U100: 4 | V100: 4 | W100: 4 | X100: 4 | Y100: 4 | Z100: 4 | AA100: 4 | AB100: 4 | AC100: 4 | AD100: 4 | AE100: 4
D101: Slow Rebound Case | K101: 4 | L101: 4 | M101: 4 | N101: 4 | O101: 4 | P101: 4 | Q101: 4 | R101: 4 | S101: 4 | T101: 4 | U101: 4 | V101: 4 | W101: 4 | X101: 4 | Y101: 4 | Z101: 4 | AA101: 4 | AB101: 4 | AC101: 4 | AD101: 4 | AE101: 4
D102: Fast Rebound Case | K102: 4 | L102: 4 | M102: 4 | N102: 4 | O102: 4 | P102: 4 | Q102: 4 | R102: 4 | S102: 4 | T102: 4 | U102: 4 | V102: 4 | W102: 4 | X102: 4 | Y102: 4 | Z102: 4 | AA102: 4 | AB102: 4 | AC102: 4 | AD102: 4 | AE102: 4
D104: =INDEX(D99:D102,$E$2) -> Base Rebound Case | K104: =INDEX(K99:K102,$E$2) -> 4 | L104: =INDEX(L99:L102,$E$2) -> 4 | M104: =INDEX(M99:M102,$E$2) -> 4 | N104: =INDEX(N99:N102,$E$2) -> 4 | O104: =INDEX(O99:O102,$E$2) -> 4 | P104: =INDEX(P99:P102,$E$2) -> 4 | Q104: =INDEX(Q99:Q102,$E$2) -> 4 | R104: =INDEX(R99:R102,$E$2) -> 4 | S104: =INDEX(S99:S102,$E$2) -> 4 | T104: =INDEX(T99:T102,$E$2) -> 4 | U104: =INDEX(U99:U102,$E$2) -> 4 | V104: =INDEX(V99:V102,$E$2) -> 4 | W104: =INDEX(W99:W102,$E$2) -> 4 | X104: =INDEX(X99:X102,$E$2) -> 4 | Y104: =INDEX(Y99:Y102,$E$2) -> 4 | Z104: =INDEX(Z99:Z102,$E$2) -> 4 | AA104: =INDEX(AA99:AA102,$E$2) -> 4 | AB104: =INDEX(AB99:AB102,$E$2) -> 4 | AC104: =INDEX(AC99:AC102,$E$2) -> 4 | AD104: =INDEX(AD99:AD102,$E$2) -> 4 | AE104: =INDEX(AE99:AE102,$E$2) -> 4
D112: Graph Year End | G112: 2020 | H112: =DATE(G112,1,1) -> 2020-01-01
G113: 2021 | H113: =DATE(G113,1,1) -> 2021-01-01 | K113: 10
G114: 2022 | H114: 2022-01-01
G115: 2023 | H115: 2023-01-01 | K115: =INDEX(H112:H225,K113) -> 2029-01-01
G116: 2024 | H116: 2024-01-01
G117: 2025 | H117: 2025-01-01
G118: 2026 | H118: 2026-01-01
G119: 2027 | H119: 2027-01-01
G120: 2028 | H120: 2028-01-01
G121: 2029 | H121: 2029-01-01
G122: 2030 | H122: 2030-01-01
G123: 2031 | H123: 2031-01-01
G124: 2032 | H124: 2032-01-01
G125: 2033 | H125: 2033-01-01
G126: 2034 | H126: 2034-01-01
G127: 2035 | H127: 2035-01-01
G128: 2036 | H128: 2036-01-01
G129: 2037 | H129: 2037-01-01
G130: 2038 | H130: 2038-01-01
G131: 2039 | H131: 2039-01-01
G132: 2040 | H132: 2040-01-01
G133: 2041 | H133: 2041-01-01
G134: 2042 | H134: 2042-01-01
G135: 2043 | H135: 2043-01-01
G136: 2044 | H136: 2044-01-01
G137: 2045 | H137: 2045-01-01
G138: 2046 | H138: 2046-01-01
G139: 2047 | H139: 2047-01-01
G140: 2048 | H140: 2048-01-01
G141: 2049 | H141: 2049-01-01
G142: 2050 | H142: 2050-01-01

Sheet Master Scenario
E2: Scenario Number | F2: 1
B3: Scenario Definition
E4: Demand Scenario | G4: WACC | H4: Terminal Growth | I4: Long-term ROIC | J4: EV/EBITDA | K4: Explicit Period (Years) | L4: Base Cap Exp/Dep | M4: Reduced Cap Exp/Dep | N4: COGS Percent | O4: Price Increase Percent | P4: Fixed SG&A Percent | Q4: SG&A Fixed Increase | R4: Min Purchase %
C5: 1 | D5: Base Case | E5: 1 | F5: =INDEX(Scenarios!$D$12:$D$20,'Master Scenario'!E5) -> No Virus Case | G5: 0.075 | H5: 0.005 | I5: 0.06 | J5: 6.5 | K5: 10 | L5: 1.2 | M5: 0.15 | N5: 0.592 | O5: 0 | P5: 0.43 | Q5: 0.01 | R5: 0.3
C6: 2 | D6: Low WACC Case | E6: 1 | F6: =INDEX(Scenarios!$D$12:$D$20,'Master Scenario'!E6) -> No Virus Case | G6: 0.06 | H6: 0 | I6: 0.065 | J6: 8 | K6: 10 | L6: 1.2 | M6: 0.15 | N6: 0.592 | O6: 0 | P6: 0.43 | Q6: 0.01 | R6: 0.3
C7: 3 | D7: Higher Income | E7: 1 | F7: =INDEX(Scenarios!$D$12:$D$20,'Master Scenario'!E7) -> No Virus Case | G7: 0.075 | H7: 0.005 | I7: 0.06 | J7: 6.5 | K7: 10 | L7: 1.2 | M7: 0.15 | N7: 0.59 | O7: 0.01 | P7: 0.43 | Q7: 0.01 | R7: 0.3
C8: 4 | D8: Lower Income | E8: 1 | F8: =INDEX(Scenarios!$D$12:$D$20,'Master Scenario'!E8) -> No Virus Case | G8: 0.075 | H8: 0.005 | I8: 0.06 | J8: 6.5 | K8: 10 | L8: 1.35 | M8: 0.15 | N8: 0.59 | O8: 0 | P8: 0.43 | Q8: 0.01 | R8: 0.3
C9: 5 | D9: Higher Price | E9: 1 | F9: =INDEX(Scenarios!$D$12:$D$20,'Master Scenario'!E9) -> No Virus Case | G9: 0.075 | H9: 0.005 | I9: 0.06 | J9: 6.5 | K9: 10 | L9: 1.2 | M9: 0.15 | N9: 0.592 | O9: 0.005 | P9: 0.43 | Q9: 0.01 | R9: 0.3
C10: 6 | D10: Higher Capital Expenditures | E10: 1 | F10: =INDEX(Scenarios!$D$12:$D$20,'Master Scenario'!E10) -> No Virus Case | G10: 0.075 | H10: 0.005 | I10: 0.06 | J10: 6.5 | K10: 10 | L10: 1.2 | M10: 0.15 | N10: 0.592 | O10: 0 | P10: 0.43 | Q10: 0.01 | R10: 0.3
C11: 7 | D11: Virus Case with Higher Variable Percent | E11: 2 | F11: =INDEX(Scenarios!$D$12:$D$20,'Master Scenario'!E11) -> Base Rebound Case | G11: 0.075 | H11: 0.005 | I11: 0.06 | J11: 6.5 | K11: 10 | L11: 1.2 | M11: 0.15 | N11: 0.592 | O11: 0 | P11: 0.2 | Q11: 0.01 | R11: 0.3
C12: 8 | D12: Virus Case with Lower Purchase Percent | E12: 2 | F12: =INDEX(Scenarios!$D$12:$D$20,'Master Scenario'!E12) -> Base Rebound Case | G12: 0.075 | H12: 0.005 | I12: 0.06 | J12: 6.5 | K12: 10 | L12: 1.2 | M12: 0.15 | N12: 0.592 | O12: 0 | P12: 0.43 | Q12: 0.01 | R12: 0.15
C13: 9 | D13: Virus Case with Lower Capital Exp | E13: 2 | F13: =INDEX(Scenarios!$D$12:$D$20,'Master Scenario'!E13) -> Base Rebound Case | G13: 0.075 | H13: 0.005 | I13: 0.06 | J13: 6.5 | K13: 10 | L13: 1.2 | M13: 0.05 | N13: 0.592 | O13: 0 | P13: 0.43 | Q13: 0.01 | R13: 0.3
C14: 10 | D14: Mitigated Virus Case | E14: 2 | F14: =INDEX(Scenarios!$D$12:$D$20,'Master Scenario'!E14) -> Base Rebound Case | G14: 0.075 | H14: 0.005 | I14: 0.06 | J14: 6.5 | K14: 10 | L14: 1.2 | M14: 0.05 | N14: 0.592 | O14: 0 | P14: 0.2 | Q14: 0.01 | R14: 0.15
D16: =INDEX(D5:D14,$F$2) -> Base Case | E16: =INDEX(E5:E14,$F$2) -> 1 | F16: =INDEX(F5:F14,$F$2) -> No Virus Case | G16: =INDEX(G5:G14,$F$2) -> 0.075 | H16: =INDEX(H5:H14,$F$2) -> 0.005 | I16: =INDEX(I5:I14,$F$2) -> 0.06 | J16: =INDEX(J5:J14,$F$2) -> 6.5 | K16: =INDEX(K5:K14,$F$2) -> 10 | L16: =INDEX(L5:L14,$F$2) -> 1.2 | M16: =INDEX(M5:M14,$F$2) -> 0.15 | N16: =INDEX(N5:N14,$F$2) -> 0.592 | O16: =INDEX(O5:O14,$F$2) -> 0 | P16: =INDEX(P5:P14,$F$2) -> 0.43 | Q16: =INDEX(Q5:Q14,$F$2) -> 0.01 | R16: =INDEX(R5:R14,$F$2) -> 0.3
G18: 750 | H18: 50 | I18: 600 | J18: 65 | K18: 10 | L18: 12000 | M18: 1500 | N18: 5920 | O18: 0 | P18: 4300 | Q18: 100 | R18: 3000
B19: Summary of Cases
F20: Terminal Value | G20: Growth | H20: EV/EBITDA | I20: Driver 1 | J20: Driver 2
E22: 1 | F22: =D5 -> Base Case | G22: 15.61200024 | H22: 15.07823677 | I22: 25.30843053 | J22: 17.80589758
E23: 2 | F23: =D6 -> Low WACC Case | G23: 23.38298913 | H23: 24.18347868 | I23: 39.8660685 | J23: 31.71703826
E24: 3 | F24: Higher Income | G24: 33.88247518 | H24: 27.78287716 | I24: 44.73536842 | J24: 23.48597053
E25: 4 | F25: Lower Income | G25: 11.8120958 | H25: 14.05163017 | I25: 24.02834827 | J25: 17.37702235
E26: 5 | F26: Higher Price | G26: 23.66783108 | H26: 20.61819451 | I26: 33.85523915 | J26: 20.1785976
E27: 6 | F27: Higher Capital Expenditures | G27: 15.61200024 | H27: 15.07823677 | I27: 25.30843053 | J27: 17.80589758
E28: 7 | F28: Virus Case with Higher Variable Percent | G28: 22.52033379 | H28: 20.38149184 | I28: 32.93104047 | J28: 20.84576077
E29: 8 | F29: Virus Case with Lower Purchase Percent | G29: 15.61200024 | H29: 15.07823677 | I29: 25.30843053 | J29: 17.80589758
E30: 9 | F30: Virus Case with Lower Capital Exp | G30: 15.61200024 | H30: 15.07823677 | I30: 25.30843053 | J30: 17.80589758
E31: 10 | F31: Mitigated Virus Case | G31: 22.52033379 | H31: 20.38149184 | I31: 32.93104047 | J31: 20.84576077
G43: =Valuation!M10 ->  | H43: =Valuation!M11 ->  | I43: =Valuation!M12 ->  | J43: =Valuation!M13 -> 

Sheet Historical
A1: Profit and Loss | E1: Macys
C2: All values USD millions.
C3: Fiscal Year | E3: 2016 | F3: 2017 | G3: 2018 | H3: 2019 | I3: 2020
C4: Income Statement | E4: 2016-02-29 | F4: 2017-02-28 | G4: 2018-02-28 | H4: 2019-02-28 | I4: 2020-02-29
D5: Sales/Revenue | E5: 27080000 | F5: 25780000 | G5: 25640000 | H5: 25740000 | I5: 25330000
D6: COGS excluding D&A | E6: 16500000 | F6: 15620000 | G6: 15180000 | H6: 15220000 | I6: 15170000
D7: Cash Gross Margin | E7: 10580000 | F7: 10160000 | G7: 10460000 | H7: 10520000 | I7: 10160000
D8: Research & Development | E8: 0 | F8: 0 | G8: 0 | H8: 0 | I8: 0
D9: Other SG&A | E9: 7200000 | F9: 7270000 | G9: 7820000 | H9: 7950000 | I9: 7900000
D10: Other Operating Expense | E10: 0 | F10: 145000 | G10: 144000 | H10: 130000 | I10: 120000
D11: EBITDA Calculated | E11: 3380000 | F11: 2745000 | G11: 2496000 | H11: 2440000 | I11: 2140000
D12: Unusual Expense | E12: 288000 | F12: 577000 | G12: 176000 | H12: 169000 | I12: 384000
D13: Depreciation | E13: 1039999.938 | F13: 1050000 | G13: 981000 | H13: 952000 | I13: 693000
D14: Amortization of Intangibles | E14: 23000 | F14: 10000 | G14: 10000 | H14: 10000 | I14: 288000
D15: EBIT Computed | E15: 2029000.062 | F15: 1108000 | G15: 1329000 | H15: 1309000 | I15: 775000
D16: Non Operating Income/Expense | E16: 0 | F16: 209000 | G16: 496000 | H16: 340000 | I16: 135000
D17: Non-Operating Interest Income | E17: 2000 | F17: 4000 | G17: 11000 | H17: 25000 | I17: 20000
D18: Equity in Affiliates (Pretax) | E18: 0 | F18: 0 | G18: 0 | H18: 0 | I18: 0
D19: Interest Expense | E19: 363000 | F19: 367000 | G19: 321000 | H19: 261000 | I19: 205000
D20: Pretax Income Computed | E20: 1668000.062 | F20: 954000 | G20: 1515000 | H20: 1413000 | I20: 725000
D21: Income Tax | E21: 608000 | F21: 341000 | G21: -39000 | H21: 322000 | I21: 164000
D22: Equity in Affiliates | E22: 0 | F22: 0 | G22: 0 | H22: 0 | I22: 0
D23: Other After Tax Income (Expense) | E23: 0 | F23: 0 | G23: 0 | H23: 0 | I23: 0
D24: Consolidated Net Income | E24: 1070000 | F24: 611000 | G24: 1560000 | H24: 1100000 | I24: 564000
D25: Other Reconciling Item (Income) | E25: 9999.9375 | F25: -2000 | G25: 6000 | H25: 9000 | I25: 3000
D26: Net Income Computed | E26: 1070000 | F26: 611000 | G26: 1560000 | H26: 1100000 | I26: 564000
D27: Minority Interest Expense | E27: -2000 | F27: -8000 | G27: -11000 | H27: -10000 | I27: 0
D28: Net Income | E28: 1070000 | F28: 619000 | G28: 1570000 | H28: 1110000 | I28: 564000
D29: Extraordinaries & Discontinued Operations | E29: 0 | F29: 0 | G29: 0 | H29: 0 | I29: 0
D30: Net Income After Extraordinaries | E30: 1070000 | F30: 619000 | G30: 1570000 | H30: 1110000 | I30: 564000
D31: Preferred Dividends | E31: 0 | F31: 0 | G31: 0 | H31: 0 | I31: 0
D32: Net Income Available to Common | E32: 1070000 | F32: 619000 | G32: 1570000 | H32: 1110000 | I32: 564000
D34: EPS (Basic) | E34: 3.26 | F34: 2.01 | G34: 5.13 | H34: 3.6 | I34: 1.82
D35: Basic Shares Outstanding | E35: 328400 | F35: 308500 | G35: 305400 | H35: 307700 | I35: 309700
D36: EPS (Diluted) | E36: 3.22 | F36: 1.99 | G36: 5.1 | H36: 3.56 | I36: 1.81
D37: Diluted Shares Outstanding | E37: 333000 | F37: 310800 | G37: 306800 | H37: 311400 | I37: 311400
A39: Cash Flow
B40: View Ratios
B41: All values USD millions.
B42: Fiscal Year | E42: 2016 | F42: 2017 | G42: 2018 | H42: 2019 | I42: 2020
D43: Net Income before Extraordinaries | E43: 1070000 | F43: 611000 | G43: 1560000 | H43: 1100000 | I43: 564000
D44: Depreciation, Depletion & Amortization | E44: 1060000 | F44: 1060000 | G44: 991000 | H44: 962000 | I44: 981000
D45: Deferred Taxes & Investment Tax Credit | E45: -1000 | F45: -139000 | G45: -421000 | H45: 112000 | I45: -6000
D46: Other Funds | E46: 335000 | F46: 415000 | G46: -240000 | H46: -117000 | I46: 320000
D47: Funds from Operations | E47: =SUM(E43:E46) -> 2464000 | F47: =SUM(F43:F46) -> 1947000 | G47: 1890000 | H47: 2057000 | I47: 1859000
D48: Extraordinaries | E48: 0 | F48: 0 | G48: 0 | H48: 0 | I48: 0
D49: Changes in Working Capital | E49: -485000 | F49: -144000 | G49: 91000 | H49: -320000 | I49: -254000
D50: Net Operating Cash Flow | E50: =E47+E49 -> 1979000 | F50: =F47+F49 -> 1803000 | G50: 1981000 | H50: 1737000 | I50: 1605000
D51: Investing Activities
D52: Capital Expenditures (Fixed Assets) | E52: -777000 | F52: -596000 | G52: -487000 | H52: -657000 | I52: -902000
D53: Capital Expenditures (Other Assets) | E53: -336000 | F53: -316000 | G53: -273000 | H53: -275000 | I53: -255000
D54: Net Assets from Acquisitions | E54: -212000 | F54: 0 | G54: 0 | H54: 0 | I54: 0
D55: Sale of Fixed Assets & Businesses | E55: 209000 | F55: 677000 | G55: 424000 | H55: 481000 | I55: 185000
E56: FALSE | F56: FALSE | G56: FALSE | H56: FALSE | I56: FALSE
D57: Purchase/Sale of Investments | E57: 0 | F57: 0 | G57: 0 | H57: 0 | I57: 0
D58: Other Uses | E58: 0 | F58: 0 | G58: -2000 | H58: 0 | I58: -30000
D59: Other Sources | E59: 29000 | F59: 52000 | G59: 0 | H59: 2000 | I59: 0
D60: Net Investing Cash Flow | E60: -1087000 | F60: -183000 | G60: -338000 | H60: -449000 | I60: -1002000
D61: Financing Activities
D62: Common Dividends | E62: -456000 | F62: -459000 | G62: -461000 | H62: -463000 | I62: -466000
D63: Preferred Dividends | E63: 0 | F63: 0 | G63: 0 | H63: 0 | I63: 0
D64: Change in Capital Stock | E64: -1840000 | F64: -280000 | G64: 5000 | H64: 45000 | I64: 5000
D65: Repurchase of Common & Preferred Stk. | E65: -2000000 | F65: -316000 | G65: -1000 | H65: 0 | I65: -1000
D66: Sale of Common & Preferred Stock | E66: 163000 | F66: 36000 | G66: 6000 | H66: 45000 | I66: 6000
D67: Issuance/Reduction of Debt, Net | E67: 260000 | F67: -691000 | G67: -1000000 | H67: -1130000 | I67: -659000
D68: Change in Current Debt | E68: 0 | F68: 0 | G68: 0 | H68: 0 | I68: 0
D69: Change in Long-Term Debt | E69: 343000 | F69: -752000 | G69: -988000 | H69: -1150000 | I69: -597000
D70: Issuance of Long-Term Debt | E70: 495000 | F70: -1000 | G70: 0 | H70: 0 | I70: 0
D71: Reduction in Long-Term Debt | E71: -152000 | F71: -751000 | G71: -988000 | H71: -1150000 | I71: -597000
D72: Other Funds | E72: 335000 | F72: 415000 | G72: -240000 | H72: -117000 | I72: 320000
D73: Other Uses | E73: 0 | F73: 0 | G73: -2000 | H73: 0 | I73: -30000
D74: Other Sources | E74: 29000 | F74: 52000 | G74: 0 | H74: 2000 | I74: 0
D75: Net Financing Cash Flow | E75: 0 | F75: 0 | G75: 0 | H75: 0 | I75: 0
D77: Exchange Rate Effect | E77: 0 | F77: 0 | G77: 0 | H77: 0 | I77: 0
D78: Miscellaneous Funds | E78: 0 | F78: 0 | G78: 0 | H78: 0 | I78: 0
D79: Net Change in Cash | E79: -1140000 | F79: 188000 | G79: 179000 | H79: -265000 | I79: -517000
D80: Free Cash Flow | E80: 1210000 | F80: 1210000 | G80: 1490000 | H80: 1080000 | I80: 703000
A82: Balance Sheet
B83: View Ratios
B84: All values USD millions.
B85: Fiscal Year | E85: 2016 | F85: 2017 | G85: 2018 | H85: 2019 | I85: 2020
C86: Assets
D87: Cash & Short Term Investments | E87: 1150000 | F87: 1330000 | G87: 1490000 | H87: 1200000 | I87: 722000
D88: Total Accounts Receivable | E88: 558000 | F88: 522000 | G88: 363000 | H88: 400000 | I88: 556000
D89: Inventories | E89: 5510000 | F89: 5400000 | G89: 5180000 | H89: 5260000 | I89: 5190000
D90: Progress Payments & Other | E90: 0 | F90: 0 | G90: 0 | H90: 0 | I90: 0
D91: Other Current Assets | E91: 442000 | F91: 371000 | G91: 613000 | H91: 583000 | I91: 344000
D92: Total Current Assets | E92: 7660000 | F92: 7623000 | G92: 7646000 | H92: 7443000 | I92: 6812000
D93: Property, Plant & Equipment - Gross | E93: 12940000 | F93: 11870000 | G93: 11280000 | H93: 11130000 | I93: 13710000
D94: Accumulated Depreciation | E94: 5320000 | F94: 4860000 | G94: 4610000 | H94: 4500000 | I94: 4400000
D95: Net Property, Plant & Equipment | E95: 7620000 | F95: 7020000 | G95: 6670000 | H95: 6640000 | I95: 9300000
D96: Total Investments and Advances | E96: 0 | F96: 0 | G96: 0 | H96: 0 | I96: 0
D97: Intangible Assets | E97: 4410000 | F97: 4400000 | G97: 4390000 | H97: 4390000 | I97: 4990000
D98: Other Assets | E98: 897000 | F98: 813000 | G98: 880000 | H98: 726000 | I98: 72000
D99: Total Assets | E99: 20587000 | F99: 19856000 | G99: 19586000 | H99: 19199000 | I99: 21174000
C101: Liabilities & Shareholders' Equity
D102: ST Debt & Current Portion LT Debt | E102: 642000 | F102: 309000 | G102: 22000 | H102: 43000 | I102: 872000
D103: Accounts Payable | E103: 2340000 | F103: 2180000 | G103: 2330000 | H103: 2640000 | I103: 2660000
D104: Income Tax Payable | E104: 227000 | F104: 352000 | G104: 296000 | H104: 168000 | I104: 81000
D105: Other Current Liabilities | E105: 2520000 | F105: 2810000 | G105: 2540000 | H105: 2380000 | I105: 2140000
D106: Total Current Liabilities | E106: 5729000 | F106: 5651000 | G106: 5188000 | H106: 5231000 | I106: 5753000
D107: Long-Term Debt | E107: 7000000 | F107: 6560000 | G107: 5860000 | H107: 4710000 | I107: 6540000
D108: Provision for Risks & Charges | E108: 1630000 | F108: 1350000 | G108: 1180000 | H108: 1090000 | I108: 1100000
D109: Deferred Taxes | E109: 1480000 | F109: 1440000 | G109: 1150000 | H109: 1240000 | I109: 1170000
D110: Other Liabilities | E110: 497000 | F110: 532000 | G110: 483000 | H110: 492000 | I110: 240000
D111: Reconciling Liabilities | E111: 1000 | F111: 3000 | G111: -5000 | H111: -4000 | I111: -9000
D112: Total Liabilities | E112: 16337000 | F112: 15536000 | G112: 13856000 | H112: 12759000 | I112: 14794000
D113: Total Shareholders' Equity | E113: 4250000 | F113: 4320000 | G113: 5750000 | H113: 6440000 | I113: 6380000
D114: Accumulated Minority Interest | E114: 3000 | F114: -1000 | G114: -12000 | H114: 0 | I114: 0
D115: Total Equity | E115: 4250000 | F115: 4320000 | G115: 5730000 | H115: 6440000 | I115: 6380000
D116: Liabilities & Shareholders' Equity | E116: 20587000 | F116: 19856000 | G116: 19586000 | H116: 19199000 | I116: 21174000

Sheet Forecast
B1: Profit and Loss | F1: Units | G1: Driver | H1: Sum | I1: 2016-02-29 | J1: 2017-02-28 | K1: 2018-02-28 | L1: 2019-02-28 | M1: 2020-02-29
D2: Period | I2: 1 | J2: 2 | K2: 3 | L2: 4 | M2: 5 | N2: 6 | O2: 7 | P2: 8 | Q2: 9 | R2: 10 | S2: 11 | T2: 12 | U2: 13 | V2: 14 | W2: 15 | X2: 16 | Y2: 17 | Z2: 18 | AA2: 19 | AB2: 20 | AC2: 21 | AD2: 22 | AE2: 23 | AF2: 24 | AG2: 25 | AH2: 26 | AI2: 27 | AJ2: 28 | AK2: 29 | AL2: 30 | AM2: 31 | AN2: 32 | AO2: 33 | AP2: 34 | AQ2: 35 | AR2: 36 | AS2: 37 | AT2: 38 | AU2: 39 | AV2: 40 | AW2: 41 | AX2: 42 | AY2: 43 | AZ2: 44 | BA2: 45 | BB2: 46 | BC2: 47 | BD2: 48 | BE2: 49 | BF2: 50 | BG2: 51 | BH2: 52 | BI2: 53 | BJ2: 54 | BK2: 55 | BL2: 56 | BM2: 57 | BN2: 58 | BO2: 59 | BP2: 60 | BQ2: 61 | BR2: 62 | BS2: 63 | BT2: 64 | BU2: 65 | BV2: 66 | BW2: 67 | BX2: 68 | BY2: 69 | BZ2: 70 | CA2: 71 | CB2: 72 | CC2: 73 | CD2: 74 | CE2: 75 | CF2: 76 | CG2: 77 | CH2: 78 | CI2: 79 | CJ2: 80 | CK2: 81 | CL2: 82 | CM2: 83 | CN2: 84 | CO2: 85 | CP2: 86 | CQ2: 87 | CR2: 88 | CS2: 89 | CT2: 90 | CU2: 91 | CV2: 92 | CW2: 93 | CX2: 94 | CY2: 95 | CZ2: 96 | DA2: 97 | DB2: 98 | DC2: 99 | DD2: 100 | DE2: 101 | DF2: 102 | DG2: 103 | DH2: 104 | DI2: 105 | DJ2: 106 | DK2: 107 | DL2: 108 | DM2: 109 | DN2: 110 | DO2: 111 | DP2: 112 | DQ2: 113 | DR2: 114 | DS2: 115 | DT2: 116 | DU2: 117 | DV2: 118 | DW2: 119 | DX2: 120 | DY2: 121 | DZ2: 122 | EA2: 123 | EB2: 124 | EC2: 125 | ED2: 126 | EE2: 127 | EF2: 128 | EG2: 129 | EH2: 130 | EI2: 131 | EJ2: 132 | EK2: 133 | EL2: 134 | EM2: 135 | EN2: 136 | EO2: 137 | EP2: 138 | EQ2: 139 | ER2: 140 | ES2: 141 | ET2: 142 | EU2: 143 | EV2: 144 | EW2: 145 | EX2: 146 | EY2: 147 | EZ2: 148 | FA2: 149 | FB2: 150 | FC2: 151 | FD2: 152 | FE2: 153 | FF2: 154 | FG2: 155 | FH2: 156 | FI2: 157 | FJ2: 158 | FK2: 159 | FL2: 160 | FM2: 161 | FN2: 162 | FO2: 163 | FP2: 164 | FQ2: 165 | FR2: 166 | FS2: 167 | FT2: 168 | FU2: 169 | FV2: 170 | FW2: 171 | FX2: 172 | FY2: 173 | FZ2: 174 | GA2: 175 | GB2: 176 | GC2: 177 | GD2: 178 | GE2: 179 | GF2: 180 | GG2: 181 | GH2: 182 | GI2: 183 | GJ2: 184 | GK2: 185 | GL2: 186 | GM2: 187 | GN2: 188 | GO2: 189 | GP2: 190 | GQ2: 191 | GR2: 192 | GS2: 193 | GT2: 194 | GU2: 195 | GV2: 196 | GW2: 197 | GX2: 198 | GY2: 199 | GZ2: 200 | HA2: 201 | HB2: 202 | HC2: 203 | HD2: 204 | HE2: 205 | HF2: 206 | HG2: 207 | HH2: 208 | HI2: 209 | HJ2: 210 | HK2: 211 | HL2: 212 | HM2: 213 | HN2: 214 | HO2: 215 | HP2: 216 | HQ2: 217 | HR2: 218 | HS2: 219 | HT2: 220 | HU2: 221 | HV2: 222 | HW2: 223 | HX2: 224 | HY2: 225 | HZ2: 226 | IA2: 227 | IB2: 228 | IC2: 229 | ID2: 230 | IE2: 231 | IF2: 232 | IG2: 233 | IH2: 234 | II2: 235 | IJ2: 236 | IK2: 237 | IL2: 238 | IM2: 239 | IN2: 240 | IO2: 241 | IP2: 242 | IQ2: 243 | IR2: 244 | IS2: 245
D3: Historic Flag
D4: Periods per Year
D5: Model Dates | G5: ='Model Parameters'!G5 -> 1
D6: Calander Year | I6: =IF(I3,Historical!E3,YEAR(I5)) -> 1900 | J6: =IF(J3,Historical!F3,YEAR(J5)) -> 1900 | K6: =IF(K3,Historical!G3,YEAR(K5)) -> 1900 | L6: =IF(L3,Historical!H3,YEAR(L5)) -> 1900 | M6: =IF(M3,Historical!I3,YEAR(M5)) -> 1900 | N6: =IF(N3,Historical!J3,YEAR(N5)) -> 1900 | O6: =IF(O3,Historical!K3,YEAR(O5)) -> 1900 | P6: =IF(P3,Historical!L3,YEAR(P5)) -> 1900 | Q6: =IF(Q3,Historical!M3,YEAR(Q5)) -> 1900 | R6: =IF(R3,Historical!N3,YEAR(R5)) -> 1900 | S6: =IF(S3,Historical!O3,YEAR(S5)) -> 1900 | T6: =IF(T3,Historical!P3,YEAR(T5)) -> 1900 | U6: =IF(U3,Historical!Q3,YEAR(U5)) -> 1900 | V6: =IF(V3,Historical!R3,YEAR(V5)) -> 1900 | W6: =IF(W3,Historical!S3,YEAR(W5)) -> 1900 | X6: =IF(X3,Historical!T3,YEAR(X5)) -> 1900 | Y6: =IF(Y3,Historical!U3,YEAR(Y5)) -> 1900 | Z6: =IF(Z3,Historical!V3,YEAR(Z5)) -> 1900 | AA6: =IF(AA3,Historical!W3,YEAR(AA5)) -> 1900 | AB6: =IF(AB3,Historical!X3,YEAR(AB5)) -> 1900 | AC6: =IF(AC3,Historical!Y3,YEAR(AC5)) -> 1900 | AD6: =IF(AD3,Historical!Z3,YEAR(AD5)) -> 1900 | AE6: =IF(AE3,Historical!AA3,YEAR(AE5)) -> 1900 | AF6: =IF(AF3,Historical!AB3,YEAR(AF5)) -> 1900 | AG6: =IF(AG3,Historical!AC3,YEAR(AG5)) -> 1900 | AH6: =IF(AH3,Historical!AD3,YEAR(AH5)) -> 1900 | AI6: =IF(AI3,Historical!AE3,YEAR(AI5)) -> 1900 | AJ6: =IF(AJ3,Historical!AF3,YEAR(AJ5)) -> 1900 | AK6: =IF(AK3,Historical!AG3,YEAR(AK5)) -> 1900 | AL6: =IF(AL3,Historical!AH3,YEAR(AL5)) -> 1900 | AM6: =IF(AM3,Historical!AI3,YEAR(AM5)) -> 1900 | AN6: =IF(AN3,Historical!AJ3,YEAR(AN5)) -> 1900 | AO6: =IF(AO3,Historical!AK3,YEAR(AO5)) -> 1900 | AP6: =IF(AP3,Historical!AL3,YEAR(AP5)) -> 1900 | AQ6: =IF(AQ3,Historical!AM3,YEAR(AQ5)) -> 1900 | AR6: =IF(AR3,Historical!AN3,YEAR(AR5)) -> 1900 | AS6: =IF(AS3,Historical!AO3,YEAR(AS5)) -> 1900 | AT6: =IF(AT3,Historical!AP3,YEAR(AT5)) -> 1900 | AU6: =IF(AU3,Historical!AQ3,YEAR(AU5)) -> 1900 | AV6: =IF(AV3,Historical!AR3,YEAR(AV5)) -> 1900 | AW6: =IF(AW3,Historical!AS3,YEAR(AW5)) -> 1900 | AX6: =IF(AX3,Historical!AT3,YEAR(AX5)) -> 1900 | AY6: =IF(AY3,Historical!AU3,YEAR(AY5)) -> 1900 | AZ6: =IF(AZ3,Historical!AV3,YEAR(AZ5)) -> 1900 | BA6: =IF(BA3,Historical!AW3,YEAR(BA5)) -> 1900 | BB6: =IF(BB3,Historical!AX3,YEAR(BB5)) -> 1900 | BC6: =IF(BC3,Historical!AY3,YEAR(BC5)) -> 1900 | BD6: =IF(BD3,Historical!AZ3,YEAR(BD5)) -> 1900 | BE6: =IF(BE3,Historical!BA3,YEAR(BE5)) -> 1900 | BF6: =IF(BF3,Historical!BB3,YEAR(BF5)) -> 1900 | BG6: =IF(BG3,Historical!BC3,YEAR(BG5)) -> 1900 | BH6: =IF(BH3,Historical!BD3,YEAR(BH5)) -> 1900 | BI6: =IF(BI3,Historical!BE3,YEAR(BI5)) -> 1900 | BJ6: =IF(BJ3,Historical!BF3,YEAR(BJ5)) -> 1900 | BK6: =IF(BK3,Historical!BG3,YEAR(BK5)) -> 1900 | BL6: =IF(BL3,Historical!BH3,YEAR(BL5)) -> 1900 | BM6: =IF(BM3,Historical!BI3,YEAR(BM5)) -> 1900 | BN6: =IF(BN3,Historical!BJ3,YEAR(BN5)) -> 1900 | BO6: =IF(BO3,Historical!BK3,YEAR(BO5)) -> 1900 | BP6: =IF(BP3,Historical!BL3,YEAR(BP5)) -> 1900 | BQ6: =IF(BQ3,Historical!BM3,YEAR(BQ5)) -> 1900 | BR6: =IF(BR3,Historical!BN3,YEAR(BR5)) -> 1900 | BS6: =IF(BS3,Historical!BO3,YEAR(BS5)) -> 1900 | BT6: =IF(BT3,Historical!BP3,YEAR(BT5)) -> 1900 | BU6: =IF(BU3,Historical!BQ3,YEAR(BU5)) -> 1900 | BV6: =IF(BV3,Historical!BR3,YEAR(BV5)) -> 1900 | BW6: =IF(BW3,Historical!BS3,YEAR(BW5)) -> 1900 | BX6: =IF(BX3,Historical!BT3,YEAR(BX5)) -> 1900 | BY6: =IF(BY3,Historical!BU3,YEAR(BY5)) -> 1900 | BZ6: =IF(BZ3,Historical!BV3,YEAR(BZ5)) -> 1900 | CA6: =IF(CA3,Historical!BW3,YEAR(CA5)) -> 1900 | CB6: =IF(CB3,Historical!BX3,YEAR(CB5)) -> 1900 | CC6: =IF(CC3,Historical!BY3,YEAR(CC5)) -> 1900 | CD6: =IF(CD3,Historical!BZ3,YEAR(CD5)) -> 1900 | CE6: =IF(CE3,Historical!CA3,YEAR(CE5)) -> 1900 | CF6: =IF(CF3,Historical!CB3,YEAR(CF5)) -> 1900 | CG6: =IF(CG3,Historical!CC3,YEAR(CG5)) -> 1900 | CH6: =IF(CH3,Historical!CD3,YEAR(CH5)) -> 1900 | CI6: =IF(CI3,Historical!CE3,YEAR(CI5)) -> 1900 | CJ6: =IF(CJ3,Historical!CF3,YEAR(CJ5)) -> 1900 | CK6: =IF(CK3,Historical!CG3,YEAR(CK5)) -> 1900 | CL6: =IF(CL3,Historical!CH3,YEAR(CL5)) -> 1900 | CM6: =IF(CM3,Historical!CI3,YEAR(CM5)) -> 1900 | CN6: =IF(CN3,Historical!CJ3,YEAR(CN5)) -> 1900 | CO6: =IF(CO3,Historical!CK3,YEAR(CO5)) -> 1900 | CP6: =IF(CP3,Historical!CL3,YEAR(CP5)) -> 1900 | CQ6: =IF(CQ3,Historical!CM3,YEAR(CQ5)) -> 1900 | CR6: =IF(CR3,Historical!CN3,YEAR(CR5)) -> 1900 | CS6: =IF(CS3,Historical!CO3,YEAR(CS5)) -> 1900 | CT6: =IF(CT3,Historical!CP3,YEAR(CT5)) -> 1900 | CU6: =IF(CU3,Historical!CQ3,YEAR(CU5)) -> 1900 | CV6: =IF(CV3,Historical!CR3,YEAR(CV5)) -> 1900 | CW6: =IF(CW3,Historical!CS3,YEAR(CW5)) -> 1900 | CX6: =IF(CX3,Historical!CT3,YEAR(CX5)) -> 1900 | CY6: =IF(CY3,Historical!CU3,YEAR(CY5)) -> 1900 | CZ6: =IF(CZ3,Historical!CV3,YEAR(CZ5)) -> 1900 | DA6: =IF(DA3,Historical!CW3,YEAR(DA5)) -> 1900 | DB6: =IF(DB3,Historical!CX3,YEAR(DB5)) -> 1900 | DC6: =IF(DC3,Historical!CY3,YEAR(DC5)) -> 1900 | DD6: =IF(DD3,Historical!CZ3,YEAR(DD5)) -> 1900 | DE6: =IF(DE3,Historical!DA3,YEAR(DE5)) -> 1900 | DF6: =IF(DF3,Historical!DB3,YEAR(DF5)) -> 1900 | DG6: =IF(DG3,Historical!DC3,YEAR(DG5)) -> 1900 | DH6: =IF(DH3,Historical!DD3,YEAR(DH5)) -> 1900 | DI6: =IF(DI3,Historical!DE3,YEAR(DI5)) -> 1900 | DJ6: =IF(DJ3,Historical!DF3,YEAR(DJ5)) -> 1900 | DK6: =IF(DK3,Historical!DG3,YEAR(DK5)) -> 1900 | DL6: =IF(DL3,Historical!DH3,YEAR(DL5)) -> 1900 | DM6: =IF(DM3,Historical!DI3,YEAR(DM5)) -> 1900 | DN6: =IF(DN3,Historical!DJ3,YEAR(DN5)) -> 1900 | DO6: =IF(DO3,Historical!DK3,YEAR(DO5)) -> 1900 | DP6: =IF(DP3,Historical!DL3,YEAR(DP5)) -> 1900 | DQ6: =IF(DQ3,Historical!DM3,YEAR(DQ5)) -> 1900 | DR6: =IF(DR3,Historical!DN3,YEAR(DR5)) -> 1900 | DS6: =IF(DS3,Historical!DO3,YEAR(DS5)) -> 1900 | DT6: =IF(DT3,Historical!DP3,YEAR(DT5)) -> 1900 | DU6: =IF(DU3,Historical!DQ3,YEAR(DU5)) -> 1900 | DV6: =IF(DV3,Historical!DR3,YEAR(DV5)) -> 1900 | DW6: =IF(DW3,Historical!DS3,YEAR(DW5)) -> 1900 | DX6: =IF(DX3,Historical!DT3,YEAR(DX5)) -> 1900 | DY6: =IF(DY3,Historical!DU3,YEAR(DY5)) -> 1900 | DZ6: =IF(DZ3,Historical!DV3,YEAR(DZ5)) -> 1900 | EA6: =IF(EA3,Historical!DW3,YEAR(EA5)) -> 1900 | EB6: =IF(EB3,Historical!DX3,YEAR(EB5)) -> 1900 | EC6: =IF(EC3,Historical!DY3,YEAR(EC5)) -> 1900 | ED6: =IF(ED3,Historical!DZ3,YEAR(ED5)) -> 1900 | EE6: =IF(EE3,Historical!EA3,YEAR(EE5)) -> 1900 | EF6: =IF(EF3,Historical!EB3,YEAR(EF5)) -> 1900 | EG6: =IF(EG3,Historical!EC3,YEAR(EG5)) -> 1900 | EH6: =IF(EH3,Historical!ED3,YEAR(EH5)) -> 1900 | EI6: =IF(EI3,Historical!EE3,YEAR(EI5)) -> 1900 | EJ6: =IF(EJ3,Historical!EF3,YEAR(EJ5)) -> 1900 | EK6: =IF(EK3,Historical!EG3,YEAR(EK5)) -> 1900 | EL6: =IF(EL3,Historical!EH3,YEAR(EL5)) -> 1900 | EM6: =IF(EM3,Historical!EI3,YEAR(EM5)) -> 1900 | EN6: =IF(EN3,Historical!EJ3,YEAR(EN5)) -> 1900 | EO6: =IF(EO3,Historical!EK3,YEAR(EO5)) -> 1900 | EP6: =IF(EP3,Historical!EL3,YEAR(EP5)) -> 1900 | EQ6: =IF(EQ3,Historical!EM3,YEAR(EQ5)) -> 1900 | ER6: =IF(ER3,Historical!EN3,YEAR(ER5)) -> 1900 | ES6: =IF(ES3,Historical!EO3,YEAR(ES5)) -> 1900 | ET6: =IF(ET3,Historical!EP3,YEAR(ET5)) -> 1900 | EU6: =IF(EU3,Historical!EQ3,YEAR(EU5)) -> 1900 | EV6: =IF(EV3,Historical!ER3,YEAR(EV5)) -> 1900 | EW6: =IF(EW3,Historical!ES3,YEAR(EW5)) -> 1900 | EX6: =IF(EX3,Historical!ET3,YEAR(EX5)) -> 1900 | EY6: =IF(EY3,Historical!EU3,YEAR(EY5)) -> 1900 | EZ6: =IF(EZ3,Historical!EV3,YEAR(EZ5)) -> 1900 | FA6: =IF(FA3,Historical!EW3,YEAR(FA5)) -> 1900 | FB6: =IF(FB3,Historical!EX3,YEAR(FB5)) -> 1900 | FC6: =IF(FC3,Historical!EY3,YEAR(FC5)) -> 1900 | FD6: =IF(FD3,Historical!EZ3,YEAR(FD5)) -> 1900 | FE6: =IF(FE3,Historical!FA3,YEAR(FE5)) -> 1900 | FF6: =IF(FF3,Historical!FB3,YEAR(FF5)) -> 1900 | FG6: =IF(FG3,Historical!FC3,YEAR(FG5)) -> 1900 | FH6: =IF(FH3,Historical!FD3,YEAR(FH5)) -> 1900 | FI6: =IF(FI3,Historical!FE3,YEAR(FI5)) -> 1900 | FJ6: =IF(FJ3,Historical!FF3,YEAR(FJ5)) -> 1900 | FK6: =IF(FK3,Historical!FG3,YEAR(FK5)) -> 1900 | FL6: =IF(FL3,Historical!FH3,YEAR(FL5)) -> 1900 | FM6: =IF(FM3,Historical!FI3,YEAR(FM5)) -> 1900 | FN6: =IF(FN3,Historical!FJ3,YEAR(FN5)) -> 1900 | FO6: =IF(FO3,Historical!FK3,YEAR(FO5)) -> 1900 | FP6: =IF(FP3,Historical!FL3,YEAR(FP5)) -> 1900 | FQ6: =IF(FQ3,Historical!FM3,YEAR(FQ5)) -> 1900 | FR6: =IF(FR3,Historical!FN3,YEAR(FR5)) -> 1900 | FS6: =IF(FS3,Historical!FO3,YEAR(FS5)) -> 1900 | FT6: =IF(FT3,Historical!FP3,YEAR(FT5)) -> 1900 | FU6: =IF(FU3,Historical!FQ3,YEAR(FU5)) -> 1900 | FV6: =IF(FV3,Historical!FR3,YEAR(FV5)) -> 1900 | FW6: =IF(FW3,Historical!FS3,YEAR(FW5)) -> 1900 | FX6: =IF(FX3,Historical!FT3,YEAR(FX5)) -> 1900 | FY6: =IF(FY3,Historical!FU3,YEAR(FY5)) -> 1900 | FZ6: =IF(FZ3,Historical!FV3,YEAR(FZ5)) -> 1900 | GA6: =IF(GA3,Historical!FW3,YEAR(GA5)) -> 1900 | GB6: =IF(GB3,Historical!FX3,YEAR(GB5)) -> 1900 | GC6: =IF(GC3,Historical!FY3,YEAR(GC5)) -> 1900 | GD6: =IF(GD3,Historical!FZ3,YEAR(GD5)) -> 1900 | GE6: =IF(GE3,Historical!GA3,YEAR(GE5)) -> 1900 | GF6: =IF(GF3,Historical!GB3,YEAR(GF5)) -> 1900 | GG6: =IF(GG3,Historical!GC3,YEAR(GG5)) -> 1900 | GH6: =IF(GH3,Historical!GD3,YEAR(GH5)) -> 1900 | GI6: =IF(GI3,Historical!GE3,YEAR(GI5)) -> 1900 | GJ6: =IF(GJ3,Historical!GF3,YEAR(GJ5)) -> 1900 | GK6: =IF(GK3,Historical!GG3,YEAR(GK5)) -> 1900 | GL6: =IF(GL3,Historical!GH3,YEAR(GL5)) -> 1900 | GM6: =IF(GM3,Historical!GI3,YEAR(GM5)) -> 1900 | GN6: =IF(GN3,Historical!GJ3,YEAR(GN5)) -> 1900 | GO6: =IF(GO3,Historical!GK3,YEAR(GO5)) -> 1900 | GP6: =IF(GP3,Historical!GL3,YEAR(GP5)) -> 1900 | GQ6: =IF(GQ3,Historical!GM3,YEAR(GQ5)) -> 1900 | GR6: =IF(GR3,Historical!GN3,YEAR(GR5)) -> 1900 | GS6: =IF(GS3,Historical!GO3,YEAR(GS5)) -> 1900 | GT6: =IF(GT3,Historical!GP3,YEAR(GT5)) -> 1900 | GU6: =IF(GU3,Historical!GQ3,YEAR(GU5)) -> 1900 | GV6: =IF(GV3,Historical!GR3,YEAR(GV5)) -> 1900 | GW6: =IF(GW3,Historical!GS3,YEAR(GW5)) -> 1900 | GX6: =IF(GX3,Historical!GT3,YEAR(GX5)) -> 1900 | GY6: =IF(GY3,Historical!GU3,YEAR(GY5)) -> 1900 | GZ6: =IF(GZ3,Historical!GV3,YEAR(GZ5)) -> 1900 | HA6: =IF(HA3,Historical!GW3,YEAR(HA5)) -> 1900 | HB6: =IF(HB3,Historical!GX3,YEAR(HB5)) -> 1900 | HC6: =IF(HC3,Historical!GY3,YEAR(HC5)) -> 1900 | HD6: =IF(HD3,Historical!GZ3,YEAR(HD5)) -> 1900 | HE6: =IF(HE3,Historical!HA3,YEAR(HE5)) -> 1900 | HF6: =IF(HF3,Historical!HB3,YEAR(HF5)) -> 1900 | HG6: =IF(HG3,Historical!HC3,YEAR(HG5)) -> 1900 | HH6: =IF(HH3,Historical!HD3,YEAR(HH5)) -> 1900 | HI6: =IF(HI3,Historical!HE3,YEAR(HI5)) -> 1900 | HJ6: =IF(HJ3,Historical!HF3,YEAR(HJ5)) -> 1900 | HK6: =IF(HK3,Historical!HG3,YEAR(HK5)) -> 1900 | HL6: =IF(HL3,Historical!HH3,YEAR(HL5)) -> 1900 | HM6: =IF(HM3,Historical!HI3,YEAR(HM5)) -> 1900 | HN6: =IF(HN3,Historical!HJ3,YEAR(HN5)) -> 1900 | HO6: =IF(HO3,Historical!HK3,YEAR(HO5)) -> 1900 | HP6: =IF(HP3,Historical!HL3,YEAR(HP5)) -> 1900 | HQ6: =IF(HQ3,Historical!HM3,YEAR(HQ5)) -> 1900 | HR6: =IF(HR3,Historical!HN3,YEAR(HR5)) -> 1900 | HS6: =IF(HS3,Historical!HO3,YEAR(HS5)) -> 1900 | HT6: =IF(HT3,Historical!HP3,YEAR(HT5)) -> 1900 | HU6: =IF(HU3,Historical!HQ3,YEAR(HU5)) -> 1900 | HV6: =IF(HV3,Historical!HR3,YEAR(HV5)) -> 1900 | HW6: =IF(HW3,Historical!HS3,YEAR(HW5)) -> 1900 | HX6: =IF(HX3,Historical!HT3,YEAR(HX5)) -> 1900 | HY6: =IF(HY3,Historical!HU3,YEAR(HY5)) -> 1900 | HZ6: =IF(HZ3,Historical!HV3,YEAR(HZ5)) -> 1900 | IA6: =IF(IA3,Historical!HW3,YEAR(IA5)) -> 1900 | IB6: =IF(IB3,Historical!HX3,YEAR(IB5)) -> 1900 | IC6: =IF(IC3,Historical!HY3,YEAR(IC5)) -> 1900 | ID6: =IF(ID3,Historical!HZ3,YEAR(ID5)) -> 1900 | IE6: =IF(IE3,Historical!IA3,YEAR(IE5)) -> 1900 | IF6: =IF(IF3,Historical!IB3,YEAR(IF5)) -> 1900 | IG6: =IF(IG3,Historical!IC3,YEAR(IG5)) -> 1900 | IH6: =IF(IH3,Historical!ID3,YEAR(IH5)) -> 1900 | II6: =IF(II3,Historical!IE3,YEAR(II5)) -> 1900 | IJ6: =IF(IJ3,Historical!IF3,YEAR(IJ5)) -> 1900 | IK6: =IF(IK3,Historical!IG3,YEAR(IK5)) -> 1900 | IL6: =IF(IL3,Historical!IH3,YEAR(IL5)) -> 1900 | IM6: =IF(IM3,Historical!II3,YEAR(IM5)) -> 1900 | IN6: =IF(IN3,Historical!IJ3,YEAR(IN5)) -> 1900 | IO6: =IF(IO3,Historical!IK3,YEAR(IO5)) -> 1900 | IP6: =IF(IP3,Historical!IL3,YEAR(IP5)) -> 1900 | IQ6: =IF(IQ3,Historical!IM3,YEAR(IQ5)) -> 1900 | IR6: =IF(IR3,Historical!IN3,YEAR(IR5)) -> 1900 | IS6: =IF(IS3,Historical!IO3,YEAR(IS5)) -> 1900
D7: Fiscal Year Month End | G7: ='Model Parameters'!G8 -> 3 | I7: =AND(NOT(I3),MONTH(I5)=$G$7)*1 -> 0 | J7: =AND(NOT(J3),MONTH(J5)=$G$7)*1 -> 0 | K7: =AND(NOT(K3),MONTH(K5)=$G$7)*1 -> 0 | L7: =AND(NOT(L3),MONTH(L5)=$G$7)*1 -> 0 | M7: =AND(NOT(M3),MONTH(M5)=$G$7)*1 -> 0 | N7: =AND(NOT(N3),MONTH(N5)=$G$7)*1 -> 0 | O7: =AND(NOT(O3),MONTH(O5)=$G$7)*1 -> 0 | P7: =AND(NOT(P3),MONTH(P5)=$G$7)*1 -> 0 | Q7: =AND(NOT(Q3),MONTH(Q5)=$G$7)*1 -> 0 | R7: =AND(NOT(R3),MONTH(R5)=$G$7)*1 -> 0 | S7: =AND(NOT(S3),MONTH(S5)=$G$7)*1 -> 0 | T7: =AND(NOT(T3),MONTH(T5)=$G$7)*1 -> 0 | U7: =AND(NOT(U3),MONTH(U5)=$G$7)*1 -> 0 | V7: =AND(NOT(V3),MONTH(V5)=$G$7)*1 -> 0 | W7: =AND(NOT(W3),MONTH(W5)=$G$7)*1 -> 0 | X7: =AND(NOT(X3),MONTH(X5)=$G$7)*1 -> 0 | Y7: =AND(NOT(Y3),MONTH(Y5)=$G$7)*1 -> 0 | Z7: =AND(NOT(Z3),MONTH(Z5)=$G$7)*1 -> 0 | AA7: =AND(NOT(AA3),MONTH(AA5)=$G$7)*1 -> 0 | AB7: =AND(NOT(AB3),MONTH(AB5)=$G$7)*1 -> 0 | AC7: =AND(NOT(AC3),MONTH(AC5)=$G$7)*1 -> 0 | AD7: =AND(NOT(AD3),MONTH(AD5)=$G$7)*1 -> 0 | AE7: =AND(NOT(AE3),MONTH(AE5)=$G$7)*1 -> 0 | AF7: =AND(NOT(AF3),MONTH(AF5)=$G$7)*1 -> 0 | AG7: =AND(NOT(AG3),MONTH(AG5)=$G$7)*1 -> 0 | AH7: =AND(NOT(AH3),MONTH(AH5)=$G$7)*1 -> 0 | AI7: =AND(NOT(AI3),MONTH(AI5)=$G$7)*1 -> 0 | AJ7: =AND(NOT(AJ3),MONTH(AJ5)=$G$7)*1 -> 0 | AK7: =AND(NOT(AK3),MONTH(AK5)=$G$7)*1 -> 0 | AL7: =AND(NOT(AL3),MONTH(AL5)=$G$7)*1 -> 0 | AM7: =AND(NOT(AM3),MONTH(AM5)=$G$7)*1 -> 0 | AN7: =AND(NOT(AN3),MONTH(AN5)=$G$7)*1 -> 0 | AO7: =AND(NOT(AO3),MONTH(AO5)=$G$7)*1 -> 0 | AP7: =AND(NOT(AP3),MONTH(AP5)=$G$7)*1 -> 0 | AQ7: =AND(NOT(AQ3),MONTH(AQ5)=$G$7)*1 -> 0 | AR7: =AND(NOT(AR3),MONTH(AR5)=$G$7)*1 -> 0 | AS7: =AND(NOT(AS3),MONTH(AS5)=$G$7)*1 -> 0 | AT7: =AND(NOT(AT3),MONTH(AT5)=$G$7)*1 -> 0 | AU7: =AND(NOT(AU3),MONTH(AU5)=$G$7)*1 -> 0 | AV7: =AND(NOT(AV3),MONTH(AV5)=$G$7)*1 -> 0 | AW7: =AND(NOT(AW3),MONTH(AW5)=$G$7)*1 -> 0 | AX7: =AND(NOT(AX3),MONTH(AX5)=$G$7)*1 -> 0 | AY7: =AND(NOT(AY3),MONTH(AY5)=$G$7)*1 -> 0 | AZ7: =AND(NOT(AZ3),MONTH(AZ5)=$G$7)*1 -> 0 | BA7: =AND(NOT(BA3),MONTH(BA5)=$G$7)*1 -> 0 | BB7: =AND(NOT(BB3),MONTH(BB5)=$G$7)*1 -> 0 | BC7: =AND(NOT(BC3),MONTH(BC5)=$G$7)*1 -> 0 | BD7: =AND(NOT(BD3),MONTH(BD5)=$G$7)*1 -> 0 | BE7: =AND(NOT(BE3),MONTH(BE5)=$G$7)*1 -> 0 | BF7: =AND(NOT(BF3),MONTH(BF5)=$G$7)*1 -> 0 | BG7: =AND(NOT(BG3),MONTH(BG5)=$G$7)*1 -> 0 | BH7: =AND(NOT(BH3),MONTH(BH5)=$G$7)*1 -> 0 | BI7: =AND(NOT(BI3),MONTH(BI5)=$G$7)*1 -> 0 | BJ7: =AND(NOT(BJ3),MONTH(BJ5)=$G$7)*1 -> 0 | BK7: =AND(NOT(BK3),MONTH(BK5)=$G$7)*1 -> 0 | BL7: =AND(NOT(BL3),MONTH(BL5)=$G$7)*1 -> 0 | BM7: =AND(NOT(BM3),MONTH(BM5)=$G$7)*1 -> 0 | BN7: =AND(NOT(BN3),MONTH(BN5)=$G$7)*1 -> 0 | BO7: =AND(NOT(BO3),MONTH(BO5)=$G$7)*1 -> 0 | BP7: =AND(NOT(BP3),MONTH(BP5)=$G$7)*1 -> 0 | BQ7: =AND(NOT(BQ3),MONTH(BQ5)=$G$7)*1 -> 0 | BR7: =AND(NOT(BR3),MONTH(BR5)=$G$7)*1 -> 0 | BS7: =AND(NOT(BS3),MONTH(BS5)=$G$7)*1 -> 0 | BT7: =AND(NOT(BT3),MONTH(BT5)=$G$7)*1 -> 0 | BU7: =AND(NOT(BU3),MONTH(BU5)=$G$7)*1 -> 0 | BV7: =AND(NOT(BV3),MONTH(BV5)=$G$7)*1 -> 0 | BW7: =AND(NOT(BW3),MONTH(BW5)=$G$7)*1 -> 0 | BX7: =AND(NOT(BX3),MONTH(BX5)=$G$7)*1 -> 0 | BY7: =AND(NOT(BY3),MONTH(BY5)=$G$7)*1 -> 0 | BZ7: =AND(NOT(BZ3),MONTH(BZ5)=$G$7)*1 -> 0 | CA7: =AND(NOT(CA3),MONTH(CA5)=$G$7)*1 -> 0 | CB7: =AND(NOT(CB3),MONTH(CB5)=$G$7)*1 -> 0 | CC7: =AND(NOT(CC3),MONTH(CC5)=$G$7)*1 -> 0 | CD7: =AND(NOT(CD3),MONTH(CD5)=$G$7)*1 -> 0 | CE7: =AND(NOT(CE3),MONTH(CE5)=$G$7)*1 -> 0 | CF7: =AND(NOT(CF3),MONTH(CF5)=$G$7)*1 -> 0 | CG7: =AND(NOT(CG3),MONTH(CG5)=$G$7)*1 -> 0 | CH7: =AND(NOT(CH3),MONTH(CH5)=$G$7)*1 -> 0 | CI7: =AND(NOT(CI3),MONTH(CI5)=$G$7)*1 -> 0 | CJ7: =AND(NOT(CJ3),MONTH(CJ5)=$G$7)*1 -> 0 | CK7: =AND(NOT(CK3),MONTH(CK5)=$G$7)*1 -> 0 | CL7: =AND(NOT(CL3),MONTH(CL5)=$G$7)*1 -> 0 | CM7: =AND(NOT(CM3),MONTH(CM5)=$G$7)*1 -> 0 | CN7: =AND(NOT(CN3),MONTH(CN5)=$G$7)*1 -> 0 | CO7: =AND(NOT(CO3),MONTH(CO5)=$G$7)*1 -> 0 | CP7: =AND(NOT(CP3),MONTH(CP5)=$G$7)*1 -> 0 | CQ7: =AND(NOT(CQ3),MONTH(CQ5)=$G$7)*1 -> 0 | CR7: =AND(NOT(CR3),MONTH(CR5)=$G$7)*1 -> 0 | CS7: =AND(NOT(CS3),MONTH(CS5)=$G$7)*1 -> 0 | CT7: =AND(NOT(CT3),MONTH(CT5)=$G$7)*1 -> 0 | CU7: =AND(NOT(CU3),MONTH(CU5)=$G$7)*1 -> 0 | CV7: =AND(NOT(CV3),MONTH(CV5)=$G$7)*1 -> 0 | CW7: =AND(NOT(CW3),MONTH(CW5)=$G$7)*1 -> 0 | CX7: =AND(NOT(CX3),MONTH(CX5)=$G$7)*1 -> 0 | CY7: =AND(NOT(CY3),MONTH(CY5)=$G$7)*1 -> 0 | CZ7: =AND(NOT(CZ3),MONTH(CZ5)=$G$7)*1 -> 0 | DA7: =AND(NOT(DA3),MONTH(DA5)=$G$7)*1 -> 0 | DB7: =AND(NOT(DB3),MONTH(DB5)=$G$7)*1 -> 0 | DC7: =AND(NOT(DC3),MONTH(DC5)=$G$7)*1 -> 0 | DD7: =AND(NOT(DD3),MONTH(DD5)=$G$7)*1 -> 0 | DE7: =AND(NOT(DE3),MONTH(DE5)=$G$7)*1 -> 0 | DF7: =AND(NOT(DF3),MONTH(DF5)=$G$7)*1 -> 0 | DG7: =AND(NOT(DG3),MONTH(DG5)=$G$7)*1 -> 0 | DH7: =AND(NOT(DH3),MONTH(DH5)=$G$7)*1 -> 0 | DI7: =AND(NOT(DI3),MONTH(DI5)=$G$7)*1 -> 0 | DJ7: =AND(NOT(DJ3),MONTH(DJ5)=$G$7)*1 -> 0 | DK7: =AND(NOT(DK3),MONTH(DK5)=$G$7)*1 -> 0 | DL7: =AND(NOT(DL3),MONTH(DL5)=$G$7)*1 -> 0 | DM7: =AND(NOT(DM3),MONTH(DM5)=$G$7)*1 -> 0 | DN7: =AND(NOT(DN3),MONTH(DN5)=$G$7)*1 -> 0 | DO7: =AND(NOT(DO3),MONTH(DO5)=$G$7)*1 -> 0 | DP7: =AND(NOT(DP3),MONTH(DP5)=$G$7)*1 -> 0 | DQ7: =AND(NOT(DQ3),MONTH(DQ5)=$G$7)*1 -> 0 | DR7: =AND(NOT(DR3),MONTH(DR5)=$G$7)*1 -> 0 | DS7: =AND(NOT(DS3),MONTH(DS5)=$G$7)*1 -> 0 | DT7: =AND(NOT(DT3),MONTH(DT5)=$G$7)*1 -> 0 | DU7: =AND(NOT(DU3),MONTH(DU5)=$G$7)*1 -> 0 | DV7: =AND(NOT(DV3),MONTH(DV5)=$G$7)*1 -> 0 | DW7: =AND(NOT(DW3),MONTH(DW5)=$G$7)*1 -> 0 | DX7: =AND(NOT(DX3),MONTH(DX5)=$G$7)*1 -> 0 | DY7: =AND(NOT(DY3),MONTH(DY5)=$G$7)*1 -> 0 | DZ7: =AND(NOT(DZ3),MONTH(DZ5)=$G$7)*1 -> 0 | EA7: =AND(NOT(EA3),MONTH(EA5)=$G$7)*1 -> 0 | EB7: =AND(NOT(EB3),MONTH(EB5)=$G$7)*1 -> 0 | EC7: =AND(NOT(EC3),MONTH(EC5)=$G$7)*1 -> 0 | ED7: =AND(NOT(ED3),MONTH(ED5)=$G$7)*1 -> 0 | EE7: =AND(NOT(EE3),MONTH(EE5)=$G$7)*1 -> 0 | EF7: =AND(NOT(EF3),MONTH(EF5)=$G$7)*1 -> 0 | EG7: =AND(NOT(EG3),MONTH(EG5)=$G$7)*1 -> 0 | EH7: =AND(NOT(EH3),MONTH(EH5)=$G$7)*1 -> 0 | EI7: =AND(NOT(EI3),MONTH(EI5)=$G$7)*1 -> 0 | EJ7: =AND(NOT(EJ3),MONTH(EJ5)=$G$7)*1 -> 0 | EK7: =AND(NOT(EK3),MONTH(EK5)=$G$7)*1 -> 0 | EL7: =AND(NOT(EL3),MONTH(EL5)=$G$7)*1 -> 0 | EM7: =AND(NOT(EM3),MONTH(EM5)=$G$7)*1 -> 0 | EN7: =AND(NOT(EN3),MONTH(EN5)=$G$7)*1 -> 0 | EO7: =AND(NOT(EO3),MONTH(EO5)=$G$7)*1 -> 0 | EP7: =AND(NOT(EP3),MONTH(EP5)=$G$7)*1 -> 0 | EQ7: =AND(NOT(EQ3),MONTH(EQ5)=$G$7)*1 -> 0 | ER7: =AND(NOT(ER3),MONTH(ER5)=$G$7)*1 -> 0 | ES7: =AND(NOT(ES3),MONTH(ES5)=$G$7)*1 -> 0 | ET7: =AND(NOT(ET3),MONTH(ET5)=$G$7)*1 -> 0 | EU7: =AND(NOT(EU3),MONTH(EU5)=$G$7)*1 -> 0 | EV7: =AND(NOT(EV3),MONTH(EV5)=$G$7)*1 -> 0 | EW7: =AND(NOT(EW3),MONTH(EW5)=$G$7)*1 -> 0 | EX7: =AND(NOT(EX3),MONTH(EX5)=$G$7)*1 -> 0 | EY7: =AND(NOT(EY3),MONTH(EY5)=$G$7)*1 -> 0 | EZ7: =AND(NOT(EZ3),MONTH(EZ5)=$G$7)*1 -> 0 | FA7: =AND(NOT(FA3),MONTH(FA5)=$G$7)*1 -> 0 | FB7: =AND(NOT(FB3),MONTH(FB5)=$G$7)*1 -> 0 | FC7: =AND(NOT(FC3),MONTH(FC5)=$G$7)*1 -> 0 | FD7: =AND(NOT(FD3),MONTH(FD5)=$G$7)*1 -> 0 | FE7: =AND(NOT(FE3),MONTH(FE5)=$G$7)*1 -> 0 | FF7: =AND(NOT(FF3),MONTH(FF5)=$G$7)*1 -> 0 | FG7: =AND(NOT(FG3),MONTH(FG5)=$G$7)*1 -> 0 | FH7: =AND(NOT(FH3),MONTH(FH5)=$G$7)*1 -> 0 | FI7: =AND(NOT(FI3),MONTH(FI5)=$G$7)*1 -> 0 | FJ7: =AND(NOT(FJ3),MONTH(FJ5)=$G$7)*1 -> 0 | FK7: =AND(NOT(FK3),MONTH(FK5)=$G$7)*1 -> 0 | FL7: =AND(NOT(FL3),MONTH(FL5)=$G$7)*1 -> 0 | FM7: =AND(NOT(FM3),MONTH(FM5)=$G$7)*1 -> 0 | FN7: =AND(NOT(FN3),MONTH(FN5)=$G$7)*1 -> 0 | FO7: =AND(NOT(FO3),MONTH(FO5)=$G$7)*1 -> 0 | FP7: =AND(NOT(FP3),MONTH(FP5)=$G$7)*1 -> 0 | FQ7: =AND(NOT(FQ3),MONTH(FQ5)=$G$7)*1 -> 0 | FR7: =AND(NOT(FR3),MONTH(FR5)=$G$7)*1 -> 0 | FS7: =AND(NOT(FS3),MONTH(FS5)=$G$7)*1 -> 0 | FT7: =AND(NOT(FT3),MONTH(FT5)=$G$7)*1 -> 0 | FU7: =AND(NOT(FU3),MONTH(FU5)=$G$7)*1 -> 0 | FV7: =AND(NOT(FV3),MONTH(FV5)=$G$7)*1 -> 0 | FW7: =AND(NOT(FW3),MONTH(FW5)=$G$7)*1 -> 0 | FX7: =AND(NOT(FX3),MONTH(FX5)=$G$7)*1 -> 0 | FY7: =AND(NOT(FY3),MONTH(FY5)=$G$7)*1 -> 0 | FZ7: =AND(NOT(FZ3),MONTH(FZ5)=$G$7)*1 -> 0 | GA7: =AND(NOT(GA3),MONTH(GA5)=$G$7)*1 -> 0 | GB7: =AND(NOT(GB3),MONTH(GB5)=$G$7)*1 -> 0 | GC7: =AND(NOT(GC3),MONTH(GC5)=$G$7)*1 -> 0 | GD7: =AND(NOT(GD3),MONTH(GD5)=$G$7)*1 -> 0 | GE7: =AND(NOT(GE3),MONTH(GE5)=$G$7)*1 -> 0 | GF7: =AND(NOT(GF3),MONTH(GF5)=$G$7)*1 -> 0 | GG7: =AND(NOT(GG3),MONTH(GG5)=$G$7)*1 -> 0 | GH7: =AND(NOT(GH3),MONTH(GH5)=$G$7)*1 -> 0 | GI7: =AND(NOT(GI3),MONTH(GI5)=$G$7)*1 -> 0 | GJ7: =AND(NOT(GJ3),MONTH(GJ5)=$G$7)*1 -> 0 | GK7: =AND(NOT(GK3),MONTH(GK5)=$G$7)*1 -> 0 | GL7: =AND(NOT(GL3),MONTH(GL5)=$G$7)*1 -> 0 | GM7: =AND(NOT(GM3),MONTH(GM5)=$G$7)*1 -> 0 | GN7: =AND(NOT(GN3),MONTH(GN5)=$G$7)*1 -> 0 | GO7: =AND(NOT(GO3),MONTH(GO5)=$G$7)*1 -> 0 | GP7: =AND(NOT(GP3),MONTH(GP5)=$G$7)*1 -> 0 | GQ7: =AND(NOT(GQ3),MONTH(GQ5)=$G$7)*1 -> 0 | GR7: =AND(NOT(GR3),MONTH(GR5)=$G$7)*1 -> 0 | GS7: =AND(NOT(GS3),MONTH(GS5)=$G$7)*1 -> 0 | GT7: =AND(NOT(GT3),MONTH(GT5)=$G$7)*1 -> 0 | GU7: =AND(NOT(GU3),MONTH(GU5)=$G$7)*1 -> 0 | GV7: =AND(NOT(GV3),MONTH(GV5)=$G$7)*1 -> 0 | GW7: =AND(NOT(GW3),MONTH(GW5)=$G$7)*1 -> 0 | GX7: =AND(NOT(GX3),MONTH(GX5)=$G$7)*1 -> 0 | GY7: =AND(NOT(GY3),MONTH(GY5)=$G$7)*1 -> 0 | GZ7: =AND(NOT(GZ3),MONTH(GZ5)=$G$7)*1 -> 0 | HA7: =AND(NOT(HA3),MONTH(HA5)=$G$7)*1 -> 0 | HB7: =AND(NOT(HB3),MONTH(HB5)=$G$7)*1 -> 0 | HC7: =AND(NOT(HC3),MONTH(HC5)=$G$7)*1 -> 0 | HD7: =AND(NOT(HD3),MONTH(HD5)=$G$7)*1 -> 0 | HE7: =AND(NOT(HE3),MONTH(HE5)=$G$7)*1 -> 0 | HF7: =AND(NOT(HF3),MONTH(HF5)=$G$7)*1 -> 0 | HG7: =AND(NOT(HG3),MONTH(HG5)=$G$7)*1 -> 0 | HH7: =AND(NOT(HH3),MONTH(HH5)=$G$7)*1 -> 0 | HI7: =AND(NOT(HI3),MONTH(HI5)=$G$7)*1 -> 0 | HJ7: =AND(NOT(HJ3),MONTH(HJ5)=$G$7)*1 -> 0 | HK7: =AND(NOT(HK3),MONTH(HK5)=$G$7)*1 -> 0 | HL7: =AND(NOT(HL3),MONTH(HL5)=$G$7)*1 -> 0 | HM7: =AND(NOT(HM3),MONTH(HM5)=$G$7)*1 -> 0 | HN7: =AND(NOT(HN3),MONTH(HN5)=$G$7)*1 -> 0 | HO7: =AND(NOT(HO3),MONTH(HO5)=$G$7)*1 -> 0 | HP7: =AND(NOT(HP3),MONTH(HP5)=$G$7)*1 -> 0 | HQ7: =AND(NOT(HQ3),MONTH(HQ5)=$G$7)*1 -> 0 | HR7: =AND(NOT(HR3),MONTH(HR5)=$G$7)*1 -> 0 | HS7: =AND(NOT(HS3),MONTH(HS5)=$G$7)*1 -> 0 | HT7: =AND(NOT(HT3),MONTH(HT5)=$G$7)*1 -> 0 | HU7: =AND(NOT(HU3),MONTH(HU5)=$G$7)*1 -> 0 | HV7: =AND(NOT(HV3),MONTH(HV5)=$G$7)*1 -> 0 | HW7: =AND(NOT(HW3),MONTH(HW5)=$G$7)*1 -> 0 | HX7: =AND(NOT(HX3),MONTH(HX5)=$G$7)*1 -> 0 | HY7: =AND(NOT(HY3),MONTH(HY5)=$G$7)*1 -> 0 | HZ7: =AND(NOT(HZ3),MONTH(HZ5)=$G$7)*1 -> 0 | IA7: =AND(NOT(IA3),MONTH(IA5)=$G$7)*1 -> 0 | IB7: =AND(NOT(IB3),MONTH(IB5)=$G$7)*1 -> 0 | IC7: =AND(NOT(IC3),MONTH(IC5)=$G$7)*1 -> 0 | ID7: =AND(NOT(ID3),MONTH(ID5)=$G$7)*1 -> 0 | IE7: =AND(NOT(IE3),MONTH(IE5)=$G$7)*1 -> 0 | IF7: =AND(NOT(IF3),MONTH(IF5)=$G$7)*1 -> 0 | IG7: =AND(NOT(IG3),MONTH(IG5)=$G$7)*1 -> 0 | IH7: =AND(NOT(IH3),MONTH(IH5)=$G$7)*1 -> 0 | II7: =AND(NOT(II3),MONTH(II5)=$G$7)*1 -> 0 | IJ7: =AND(NOT(IJ3),MONTH(IJ5)=$G$7)*1 -> 0 | IK7: =AND(NOT(IK3),MONTH(IK5)=$G$7)*1 -> 0 | IL7: =AND(NOT(IL3),MONTH(IL5)=$G$7)*1 -> 0 | IM7: =AND(NOT(IM3),MONTH(IM5)=$G$7)*1 -> 0 | IN7: =AND(NOT(IN3),MONTH(IN5)=$G$7)*1 -> 0 | IO7: =AND(NOT(IO3),MONTH(IO5)=$G$7)*1 -> 0 | IP7: =AND(NOT(IP3),MONTH(IP5)=$G$7)*1 -> 0 | IQ7: =AND(NOT(IQ3),MONTH(IQ5)=$G$7)*1 -> 0 | IR7: =AND(NOT(IR3),MONTH(IR5)=$G$7)*1 -> 0 | IS7: =AND(NOT(IS3),MONTH(IS5)=$G$7)*1 -> 0
D8: Fiscal Year | I8: =IF(I3,I6,G8+I7) -> 0 | J8: =IF(J3,J6,I8+J7) -> 0 | K8: =IF(K3,K6,J8+K7) -> 0 | L8: =IF(L3,L6,K8+L7) -> 0 | M8: =IF(M3,M6,L8+M7) -> 0 | N8: =IF(N3,N6,M8+N7) -> 0 | O8: =IF(O3,O6,N8+O7) -> 0 | P8: =IF(P3,P6,O8+P7) -> 0 | Q8: =IF(Q3,Q6,P8+Q7) -> 0 | R8: =IF(R3,R6,Q8+R7) -> 0 | S8: =IF(S3,S6,R8+S7) -> 0 | T8: =IF(T3,T6,S8+T7) -> 0 | U8: =IF(U3,U6,T8+U7) -> 0 | V8: =IF(V3,V6,U8+V7) -> 0 | W8: =IF(W3,W6,V8+W7) -> 0 | X8: =IF(X3,X6,W8+X7) -> 0 | Y8: =IF(Y3,Y6,X8+Y7) -> 0 | Z8: =IF(Z3,Z6,Y8+Z7) -> 0 | AA8: =IF(AA3,AA6,Z8+AA7) -> 0 | AB8: =IF(AB3,AB6,AA8+AB7) -> 0 | AC8: =IF(AC3,AC6,AB8+AC7) -> 0 | AD8: =IF(AD3,AD6,AC8+AD7) -> 0 | AE8: =IF(AE3,AE6,AD8+AE7) -> 0 | AF8: =IF(AF3,AF6,AE8+AF7) -> 0 | AG8: =IF(AG3,AG6,AF8+AG7) -> 0 | AH8: =IF(AH3,AH6,AG8+AH7) -> 0 | AI8: =IF(AI3,AI6,AH8+AI7) -> 0 | AJ8: =IF(AJ3,AJ6,AI8+AJ7) -> 0 | AK8: =IF(AK3,AK6,AJ8+AK7) -> 0 | AL8: =IF(AL3,AL6,AK8+AL7) -> 0 | AM8: =IF(AM3,AM6,AL8+AM7) -> 0 | AN8: =IF(AN3,AN6,AM8+AN7) -> 0 | AO8: =IF(AO3,AO6,AN8+AO7) -> 0 | AP8: =IF(AP3,AP6,AO8+AP7) -> 0 | AQ8: =IF(AQ3,AQ6,AP8+AQ7) -> 0 | AR8: =IF(AR3,AR6,AQ8+AR7) -> 0 | AS8: =IF(AS3,AS6,AR8+AS7) -> 0 | AT8: =IF(AT3,AT6,AS8+AT7) -> 0 | AU8: =IF(AU3,AU6,AT8+AU7) -> 0 | AV8: =IF(AV3,AV6,AU8+AV7) -> 0 | AW8: =IF(AW3,AW6,AV8+AW7) -> 0 | AX8: =IF(AX3,AX6,AW8+AX7) -> 0 | AY8: =IF(AY3,AY6,AX8+AY7) -> 0 | AZ8: =IF(AZ3,AZ6,AY8+AZ7) -> 0 | BA8: =IF(BA3,BA6,AZ8+BA7) -> 0 | BB8: =IF(BB3,BB6,BA8+BB7) -> 0 | BC8: =IF(BC3,BC6,BB8+BC7) -> 0 | BD8: =IF(BD3,BD6,BC8+BD7) -> 0 | BE8: =IF(BE3,BE6,BD8+BE7) -> 0 | BF8: =IF(BF3,BF6,BE8+BF7) -> 0 | BG8: =IF(BG3,BG6,BF8+BG7) -> 0 | BH8: =IF(BH3,BH6,BG8+BH7) -> 0 | BI8: =IF(BI3,BI6,BH8+BI7) -> 0 | BJ8: =IF(BJ3,BJ6,BI8+BJ7) -> 0 | BK8: =IF(BK3,BK6,BJ8+BK7) -> 0 | BL8: =IF(BL3,BL6,BK8+BL7) -> 0 | BM8: =IF(BM3,BM6,BL8+BM7) -> 0 | BN8: =IF(BN3,BN6,BM8+BN7) -> 0 | BO8: =IF(BO3,BO6,BN8+BO7) -> 0 | BP8: =IF(BP3,BP6,BO8+BP7) -> 0 | BQ8: =IF(BQ3,BQ6,BP8+BQ7) -> 0 | BR8: =IF(BR3,BR6,BQ8+BR7) -> 0 | BS8: =IF(BS3,BS6,BR8+BS7) -> 0 | BT8: =IF(BT3,BT6,BS8+BT7) -> 0 | BU8: =IF(BU3,BU6,BT8+BU7) -> 0 | BV8: =IF(BV3,BV6,BU8+BV7) -> 0 | BW8: =IF(BW3,BW6,BV8+BW7) -> 0 | BX8: =IF(BX3,BX6,BW8+BX7) -> 0 | BY8: =IF(BY3,BY6,BX8+BY7) -> 0 | BZ8: =IF(BZ3,BZ6,BY8+BZ7) -> 0 | CA8: =IF(CA3,CA6,BZ8+CA7) -> 0 | CB8: =IF(CB3,CB6,CA8+CB7) -> 0 | CC8: =IF(CC3,CC6,CB8+CC7) -> 0 | CD8: =IF(CD3,CD6,CC8+CD7) -> 0 | CE8: =IF(CE3,CE6,CD8+CE7) -> 0 | CF8: =IF(CF3,CF6,CE8+CF7) -> 0 | CG8: =IF(CG3,CG6,CF8+CG7) -> 0 | CH8: =IF(CH3,CH6,CG8+CH7) -> 0 | CI8: =IF(CI3,CI6,CH8+CI7) -> 0 | CJ8: =IF(CJ3,CJ6,CI8+CJ7) -> 0 | CK8: =IF(CK3,CK6,CJ8+CK7) -> 0 | CL8: =IF(CL3,CL6,CK8+CL7) -> 0 | CM8: =IF(CM3,CM6,CL8+CM7) -> 0 | CN8: =IF(CN3,CN6,CM8+CN7) -> 0 | CO8: =IF(CO3,CO6,CN8+CO7) -> 0 | CP8: =IF(CP3,CP6,CO8+CP7) -> 0 | CQ8: =IF(CQ3,CQ6,CP8+CQ7) -> 0 | CR8: =IF(CR3,CR6,CQ8+CR7) -> 0 | CS8: =IF(CS3,CS6,CR8+CS7) -> 0 | CT8: =IF(CT3,CT6,CS8+CT7) -> 0 | CU8: =IF(CU3,CU6,CT8+CU7) -> 0 | CV8: =IF(CV3,CV6,CU8+CV7) -> 0 | CW8: =IF(CW3,CW6,CV8+CW7) -> 0 | CX8: =IF(CX3,CX6,CW8+CX7) -> 0 | CY8: =IF(CY3,CY6,CX8+CY7) -> 0 | CZ8: =IF(CZ3,CZ6,CY8+CZ7) -> 0 | DA8: =IF(DA3,DA6,CZ8+DA7) -> 0 | DB8: =IF(DB3,DB6,DA8+DB7) -> 0 | DC8: =IF(DC3,DC6,DB8+DC7) -> 0 | DD8: =IF(DD3,DD6,DC8+DD7) -> 0 | DE8: =IF(DE3,DE6,DD8+DE7) -> 0 | DF8: =IF(DF3,DF6,DE8+DF7) -> 0 | DG8: =IF(DG3,DG6,DF8+DG7) -> 0 | DH8: =IF(DH3,DH6,DG8+DH7) -> 0 | DI8: =IF(DI3,DI6,DH8+DI7) -> 0 | DJ8: =IF(DJ3,DJ6,DI8+DJ7) -> 0 | DK8: =IF(DK3,DK6,DJ8+DK7) -> 0 | DL8: =IF(DL3,DL6,DK8+DL7) -> 0 | DM8: =IF(DM3,DM6,DL8+DM7) -> 0 | DN8: =IF(DN3,DN6,DM8+DN7) -> 0 | DO8: =IF(DO3,DO6,DN8+DO7) -> 0 | DP8: =IF(DP3,DP6,DO8+DP7) -> 0 | DQ8: =IF(DQ3,DQ6,DP8+DQ7) -> 0 | DR8: =IF(DR3,DR6,DQ8+DR7) -> 0 | DS8: =IF(DS3,DS6,DR8+DS7) -> 0 | DT8: =IF(DT3,DT6,DS8+DT7) -> 0 | DU8: =IF(DU3,DU6,DT8+DU7) -> 0 | DV8: =IF(DV3,DV6,DU8+DV7) -> 0 | DW8: =IF(DW3,DW6,DV8+DW7) -> 0 | DX8: =IF(DX3,DX6,DW8+DX7) -> 0 | DY8: =IF(DY3,DY6,DX8+DY7) -> 0 | DZ8: =IF(DZ3,DZ6,DY8+DZ7) -> 0 | EA8: =IF(EA3,EA6,DZ8+EA7) -> 0 | EB8: =IF(EB3,EB6,EA8+EB7) -> 0 | EC8: =IF(EC3,EC6,EB8+EC7) -> 0 | ED8: =IF(ED3,ED6,EC8+ED7) -> 0 | EE8: =IF(EE3,EE6,ED8+EE7) -> 0 | EF8: =IF(EF3,EF6,EE8+EF7) -> 0 | EG8: =IF(EG3,EG6,EF8+EG7) -> 0 | EH8: =IF(EH3,EH6,EG8+EH7) -> 0 | EI8: =IF(EI3,EI6,EH8+EI7) -> 0 | EJ8: =IF(EJ3,EJ6,EI8+EJ7) -> 0 | EK8: =IF(EK3,EK6,EJ8+EK7) -> 0 | EL8: =IF(EL3,EL6,EK8+EL7) -> 0 | EM8: =IF(EM3,EM6,EL8+EM7) -> 0 | EN8: =IF(EN3,EN6,EM8+EN7) -> 0 | EO8: =IF(EO3,EO6,EN8+EO7) -> 0 | EP8: =IF(EP3,EP6,EO8+EP7) -> 0 | EQ8: =IF(EQ3,EQ6,EP8+EQ7) -> 0 | ER8: =IF(ER3,ER6,EQ8+ER7) -> 0 | ES8: =IF(ES3,ES6,ER8+ES7) -> 0 | ET8: =IF(ET3,ET6,ES8+ET7) -> 0 | EU8: =IF(EU3,EU6,ET8+EU7) -> 0 | EV8: =IF(EV3,EV6,EU8+EV7) -> 0 | EW8: =IF(EW3,EW6,EV8+EW7) -> 0 | EX8: =IF(EX3,EX6,EW8+EX7) -> 0 | EY8: =IF(EY3,EY6,EX8+EY7) -> 0 | EZ8: =IF(EZ3,EZ6,EY8+EZ7) -> 0 | FA8: =IF(FA3,FA6,EZ8+FA7) -> 0 | FB8: =IF(FB3,FB6,FA8+FB7) -> 0 | FC8: =IF(FC3,FC6,FB8+FC7) -> 0 | FD8: =IF(FD3,FD6,FC8+FD7) -> 0 | FE8: =IF(FE3,FE6,FD8+FE7) -> 0 | FF8: =IF(FF3,FF6,FE8+FF7) -> 0 | FG8: =IF(FG3,FG6,FF8+FG7) -> 0 | FH8: =IF(FH3,FH6,FG8+FH7) -> 0 | FI8: =IF(FI3,FI6,FH8+FI7) -> 0 | FJ8: =IF(FJ3,FJ6,FI8+FJ7) -> 0 | FK8: =IF(FK3,FK6,FJ8+FK7) -> 0 | FL8: =IF(FL3,FL6,FK8+FL7) -> 0 | FM8: =IF(FM3,FM6,FL8+FM7) -> 0 | FN8: =IF(FN3,FN6,FM8+FN7) -> 0 | FO8: =IF(FO3,FO6,FN8+FO7) -> 0 | FP8: =IF(FP3,FP6,FO8+FP7) -> 0 | FQ8: =IF(FQ3,FQ6,FP8+FQ7) -> 0 | FR8: =IF(FR3,FR6,FQ8+FR7) -> 0 | FS8: =IF(FS3,FS6,FR8+FS7) -> 0 | FT8: =IF(FT3,FT6,FS8+FT7) -> 0 | FU8: =IF(FU3,FU6,FT8+FU7) -> 0 | FV8: =IF(FV3,FV6,FU8+FV7) -> 0 | FW8: =IF(FW3,FW6,FV8+FW7) -> 0 | FX8: =IF(FX3,FX6,FW8+FX7) -> 0 | FY8: =IF(FY3,FY6,FX8+FY7) -> 0 | FZ8: =IF(FZ3,FZ6,FY8+FZ7) -> 0 | GA8: =IF(GA3,GA6,FZ8+GA7) -> 0 | GB8: =IF(GB3,GB6,GA8+GB7) -> 0 | GC8: =IF(GC3,GC6,GB8+GC7) -> 0 | GD8: =IF(GD3,GD6,GC8+GD7) -> 0 | GE8: =IF(GE3,GE6,GD8+GE7) -> 0 | GF8: =IF(GF3,GF6,GE8+GF7) -> 0 | GG8: =IF(GG3,GG6,GF8+GG7) -> 0 | GH8: =IF(GH3,GH6,GG8+GH7) -> 0 | GI8: =IF(GI3,GI6,GH8+GI7) -> 0 | GJ8: =IF(GJ3,GJ6,GI8+GJ7) -> 0 | GK8: =IF(GK3,GK6,GJ8+GK7) -> 0 | GL8: =IF(GL3,GL6,GK8+GL7) -> 0 | GM8: =IF(GM3,GM6,GL8+GM7) -> 0 | GN8: =IF(GN3,GN6,GM8+GN7) -> 0 | GO8: =IF(GO3,GO6,GN8+GO7) -> 0 | GP8: =IF(GP3,GP6,GO8+GP7) -> 0 | GQ8: =IF(GQ3,GQ6,GP8+GQ7) -> 0 | GR8: =IF(GR3,GR6,GQ8+GR7) -> 0 | GS8: =IF(GS3,GS6,GR8+GS7) -> 0 | GT8: =IF(GT3,GT6,GS8+GT7) -> 0 | GU8: =IF(GU3,GU6,GT8+GU7) -> 0 | GV8: =IF(GV3,GV6,GU8+GV7) -> 0 | GW8: =IF(GW3,GW6,GV8+GW7) -> 0 | GX8: =IF(GX3,GX6,GW8+GX7) -> 0 | GY8: =IF(GY3,GY6,GX8+GY7) -> 0 | GZ8: =IF(GZ3,GZ6,GY8+GZ7) -> 0 | HA8: =IF(HA3,HA6,GZ8+HA7) -> 0 | HB8: =IF(HB3,HB6,HA8+HB7) -> 0 | HC8: =IF(HC3,HC6,HB8+HC7) -> 0 | HD8: =IF(HD3,HD6,HC8+HD7) -> 0 | HE8: =IF(HE3,HE6,HD8+HE7) -> 0 | HF8: =IF(HF3,HF6,HE8+HF7) -> 0 | HG8: =IF(HG3,HG6,HF8+HG7) -> 0 | HH8: =IF(HH3,HH6,HG8+HH7) -> 0 | HI8: =IF(HI3,HI6,HH8+HI7) -> 0 | HJ8: =IF(HJ3,HJ6,HI8+HJ7) -> 0 | HK8: =IF(HK3,HK6,HJ8+HK7) -> 0 | HL8: =IF(HL3,HL6,HK8+HL7) -> 0 | HM8: =IF(HM3,HM6,HL8+HM7) -> 0 | HN8: =IF(HN3,HN6,HM8+HN7) -> 0 | HO8: =IF(HO3,HO6,HN8+HO7) -> 0 | HP8: =IF(HP3,HP6,HO8+HP7) -> 0 | HQ8: =IF(HQ3,HQ6,HP8+HQ7) -> 0 | HR8: =IF(HR3,HR6,HQ8+HR7) -> 0 | HS8: =IF(HS3,HS6,HR8+HS7) -> 0 | HT8: =IF(HT3,HT6,HS8+HT7) -> 0 | HU8: =IF(HU3,HU6,HT8+HU7) -> 0 | HV8: =IF(HV3,HV6,HU8+HV7) -> 0 | HW8: =IF(HW3,HW6,HV8+HW7) -> 0 | HX8: =IF(HX3,HX6,HW8+HX7) -> 0 | HY8: =IF(HY3,HY6,HX8+HY7) -> 0 | HZ8: =IF(HZ3,HZ6,HY8+HZ7) -> 0 | IA8: =IF(IA3,IA6,HZ8+IA7) -> 0 | IB8: =IF(IB3,IB6,IA8+IB7) -> 0 | IC8: =IF(IC3,IC6,IB8+IC7) -> 0 | ID8: =IF(ID3,ID6,IC8+ID7) -> 0 | IE8: =IF(IE3,IE6,ID8+IE7) -> 0 | IF8: =IF(IF3,IF6,IE8+IF7) -> 0 | IG8: =IF(IG3,IG6,IF8+IG7) -> 0 | IH8: =IF(IH3,IH6,IG8+IH7) -> 0 | II8: =IF(II3,II6,IH8+II7) -> 0 | IJ8: =IF(IJ3,IJ6,II8+IJ7) -> 0 | IK8: =IF(IK3,IK6,IJ8+IK7) -> 0 | IL8: =IF(IL3,IL6,IK8+IL7) -> 0 | IM8: =IF(IM3,IM6,IL8+IM7) -> 0 | IN8: =IF(IN3,IN6,IM8+IN7) -> 0 | IO8: =IF(IO3,IO6,IN8+IO7) -> 0 | IP8: =IF(IP3,IP6,IO8+IP7) -> 0 | IQ8: =IF(IQ3,IQ6,IP8+IQ7) -> 0 | IR8: =IF(IR3,IR6,IQ8+IR7) -> 0 | IS8: =IF(IS3,IS6,IR8+IS7) -> 0
B9: Income Statement
E10: Sales/Revenue | I10: =Historical!E5 -> 27080000 | J10: =Historical!F5 -> 25780000 | K10: =Historical!G5 -> 25640000 | L10: =Historical!H5 -> 25740000 | M10: =Historical!I5 -> 25330000
E11: COGS excluding D&A | I11: =Historical!E6 -> 16500000 | J11: =Historical!F6 -> 15620000 | K11: =Historical!G6 -> 15180000 | L11: =Historical!H6 -> 15220000 | M11: =Historical!I6 -> 15170000
E12: Cash Gross Margin | I12: =Historical!E7 -> 10580000 | J12: =Historical!F7 -> 10160000 | K12: =Historical!G7 -> 10460000 | L12: =Historical!H7 -> 10520000 | M12: =Historical!I7 -> 10160000
E13: Research & Development | I13: =Historical!E8 -> 0 | J13: =Historical!F8 -> 0 | K13: =Historical!G8 -> 0 | L13: =Historical!H8 -> 0 | M13: =Historical!I8 -> 0
E14: Other SG&A | I14: =Historical!E9 -> 7200000 | J14: =Historical!F9 -> 7270000 | K14: =Historical!G9 -> 7820000 | L14: =Historical!H9 -> 7950000 | M14: =Historical!I9 -> 7900000
E15: Other Operating Expense | I15: =Historical!E10 -> 0 | J15: =Historical!F10 -> 145000 | K15: =Historical!G10 -> 144000 | L15: =Historical!H10 -> 130000 | M15: =Historical!I10 -> 120000
E16: EBITDA Calculated | I16: =Historical!E11 -> 3380000 | J16: =Historical!F11 -> 2745000 | K16: =Historical!G11 -> 2496000 | L16: =Historical!H11 -> 2440000 | M16: =Historical!I11 -> 2140000
E17: Unusual Expense | I17: =Historical!E12 -> 288000 | J17: =Historical!F12 -> 577000 | K17: =Historical!G12 -> 176000 | L17: =Historical!H12 -> 169000 | M17: =Historical!I12 -> 384000
E18: Depreciation | I18: =Historical!E13 -> 1039999.938 | J18: =Historical!F13 -> 1050000 | K18: =Historical!G13 -> 981000 | L18: =Historical!H13 -> 952000 | M18: =Historical!I13 -> 693000
E19: Amortization of Intangibles | I19: =Historical!E14 -> 23000 | J19: =Historical!F14 -> 10000 | K19: =Historical!G14 -> 10000 | L19: =Historical!H14 -> 10000 | M19: =Historical!I14 -> 288000
E20: EBIT Computed | I20: =Historical!E15 -> 2029000.062 | J20: =Historical!F15 -> 1108000 | K20: =Historical!G15 -> 1329000 | L20: =Historical!H15 -> 1309000 | M20: =Historical!I15 -> 775000
E21: Non Operating Income/Expense | I21: =Historical!E16 -> 0 | J21: =Historical!F16 -> 209000 | K21: =Historical!G16 -> 496000 | L21: =Historical!H16 -> 340000 | M21: =Historical!I16 -> 135000
E22: Non-Operating Interest Income | I22: =Historical!E17 -> 2000 | J22: =Historical!F17 -> 4000 | K22: =Historical!G17 -> 11000 | L22: =Historical!H17 -> 25000 | M22: =Historical!I17 -> 20000
E23: Equity in Affiliates (Pretax) | I23: =Historical!E18 -> 0 | J23: =Historical!F18 -> 0 | K23: =Historical!G18 -> 0 | L23: =Historical!H18 -> 0 | M23: =Historical!I18 -> 0
E24: Interest Expense | I24: =Historical!E19 -> 363000 | J24: =Historical!F19 -> 367000 | K24: =Historical!G19 -> 321000 | L24: =Historical!H19 -> 261000 | M24: =Historical!I19 -> 205000
E25: Pretax Income Computed | I25: =Historical!E20 -> 1668000.062 | J25: =Historical!F20 -> 954000 | K25: =Historical!G20 -> 1515000 | L25: =Historical!H20 -> 1413000 | M25: =Historical!I20 -> 725000
E26: Income Tax | I26: =Historical!E21 -> 608000 | J26: =Historical!F21 -> 341000 | K26: =Historical!G21 -> -39000 | L26: =Historical!H21 -> 322000 | M26: =Historical!I21 -> 164000
E27: Equity in Affiliates | I27: =Historical!E22 -> 0 | J27: =Historical!F22 -> 0 | K27: =Historical!G22 -> 0 | L27: =Historical!H22 -> 0 | M27: =Historical!I22 -> 0
E28: Other After Tax Income (Expense) | I28: =Historical!E23 -> 0 | J28: =Historical!F23 -> 0 | K28: =Historical!G23 -> 0 | L28: =Historical!H23 -> 0 | M28: =Historical!I23 -> 0
E29: Consolidated Net Income | I29: =Historical!E24 -> 1070000 | J29: =Historical!F24 -> 611000 | K29: =Historical!G24 -> 1560000 | L29: =Historical!H24 -> 1100000 | M29: =Historical!I24 -> 564000
E30: Other Reconciling Item (Income) | I30: =Historical!E25 -> 9999.9375 | J30: =Historical!F25 -> -2000 | K30: =Historical!G25 -> 6000 | L30: =Historical!H25 -> 9000 | M30: =Historical!I25 -> 3000
E31: Net Income Computed | I31: =Historical!E26 -> 1070000 | J31: =Historical!F26 -> 611000 | K31: =Historical!G26 -> 1560000 | L31: =Historical!H26 -> 1100000 | M31: =Historical!I26 -> 564000
E32: Minority Interest Expense | I32: =Historical!E27 -> -2000 | J32: =Historical!F27 -> -8000 | K32: =Historical!G27 -> -11000 | L32: =Historical!H27 -> -10000 | M32: =Historical!I27 -> 0
E33: Net Income | I33: =Historical!E28 -> 1070000 | J33: =Historical!F28 -> 619000 | K33: =Historical!G28 -> 1570000 | L33: =Historical!H28 -> 1110000 | M33: =Historical!I28 -> 564000
E34: Extraordinaries & Discontinued Operations | I34: =Historical!E29 -> 0 | J34: =Historical!F29 -> 0 | K34: =Historical!G29 -> 0 | L34: =Historical!H29 -> 0 | M34: =Historical!I29 -> 0
E35: Net Income After Extraordinaries | I35: =Historical!E30 -> 1070000 | J35: =Historical!F30 -> 619000 | K35: =Historical!G30 -> 1570000 | L35: =Historical!H30 -> 1110000 | M35: =Historical!I30 -> 564000
E36: Preferred Dividends | I36: =Historical!E31 -> 0 | J36: =Historical!F31 -> 0 | K36: =Historical!G31 -> 0 | L36: =Historical!H31 -> 0 | M36: =Historical!I31 -> 0
E37: Net Income Available to Common | I37: =Historical!E32 -> 1070000 | J37: =Historical!F32 -> 619000 | K37: =Historical!G32 -> 1570000 | L37: =Historical!H32 -> 1110000 | M37: =Historical!I32 -> 564000
I38: =Historical!E33 -> 0 | J38: =Historical!F33 -> 0 | K38: =Historical!G33 -> 0 | L38: =Historical!H33 -> 0 | M38: =Historical!I33 -> 0
E39: EPS (Basic) | I39: =Historical!E34 -> 3.26 | J39: =Historical!F34 -> 2.01 | K39: =Historical!G34 -> 5.13 | L39: =Historical!H34 -> 3.6 | M39: =Historical!I34 -> 1.82
E40: Basic Shares Outstanding | I40: =Historical!E35 -> 328400 | J40: =Historical!F35 -> 308500 | K40: =Historical!G35 -> 305400 | L40: =Historical!H35 -> 307700 | M40: =Historical!I35 -> 309700
E41: EPS (Diluted) | I41: =Historical!E36 -> 3.22 | J41: =Historical!F36 -> 1.99 | K41: =Historical!G36 -> 5.1 | L41: =Historical!H36 -> 3.56 | M41: =Historical!I36 -> 1.81
E42: Diluted Shares Outstanding | I42: =Historical!E37 -> 333000 | J42: =Historical!F37 -> 310800 | K42: =Historical!G37 -> 306800 | L42: =Historical!H37 -> 311400 | M42: =Historical!I37 -> 311400
B44: Cash Flow
E46: Cash at Start of Period | I46: =F82 -> 0 | J46: =I82 -> 892000 | K46: 2512000 | L46: 4155000 | M46: 5443000
E48: Net Income before Extraordinaries | I48: =Historical!E43 -> 1070000 | J48: =Historical!F43 -> 611000 | K48: =Historical!G43 -> 1560000 | L48: =Historical!H43 -> 1100000 | M48: =Historical!I43 -> 564000
E49: Depreciation, Depletion & Amortization | I49: =Historical!E44 -> 1060000 | J49: =Historical!F44 -> 1060000 | K49: =Historical!G44 -> 991000 | L49: =Historical!H44 -> 962000 | M49: =Historical!I44 -> 981000
E50: Deferred Taxes & Investment Tax Credit | I50: =Historical!E45 -> -1000 | J50: =Historical!F45 -> -139000 | K50: =Historical!G45 -> -421000 | L50: =Historical!H45 -> 112000 | M50: =Historical!I45 -> -6000
E51: Other Funds | I51: =Historical!E46 -> 335000 | J51: =Historical!F46 -> 415000 | K51: =Historical!G46 -> -240000 | L51: =Historical!H46 -> -117000 | M51: =Historical!I46 -> 320000
E52: Funds from Operations | I52: =Historical!E47 -> 2464000 | J52: =Historical!F47 -> 1947000 | K52: =Historical!G47 -> 1890000 | L52: =Historical!H47 -> 2057000 | M52: =Historical!I47 -> 1859000
E53: Extraordinaries | I53: =Historical!E48 -> 0 | J53: =Historical!F48 -> 0 | K53: =Historical!G48 -> 0 | L53: =Historical!H48 -> 0 | M53: =Historical!I48 -> 0
E54: Changes in Working Capital | I54: =Historical!E49 -> -485000 | J54: =Historical!F49 -> -144000 | K54: =Historical!G49 -> 91000 | L54: =Historical!H49 -> -320000 | M54: =Historical!I49 -> -254000
E55: Net Operating Cash Flow | I55: =Historical!E50 -> 1979000 | J55: =Historical!F50 -> 1803000 | K55: =Historical!G50 -> 1981000 | L55: =Historical!H50 -> 1737000 | M55: =Historical!I50 -> 1605000
E56: Investing Activities | I56: =Historical!E51 -> 0 | J56: =Historical!F51 -> 0 | K56: =Historical!G51 -> 0 | L56: =Historical!H51 -> 0 | M56: =Historical!I51 -> 0
E57: Capital Expenditures (Fixed Assets) | I57: =Historical!E52 -> -777000 | J57: =Historical!F52 -> -596000 | K57: =Historical!G52 -> -487000 | L57: =Historical!H52 -> -657000 | M57: =Historical!I52 -> -902000
E58: Capital Expenditures (Other Assets) | I58: =Historical!E53 -> -336000 | J58: =Historical!F53 -> -316000 | K58: =Historical!G53 -> -273000 | L58: =Historical!H53 -> -275000 | M58: =Historical!I53 -> -255000
E59: Net Assets from Acquisitions | I59: =Historical!E54 -> -212000 | J59: =Historical!F54 -> 0 | K59: =Historical!G54 -> 0 | L59: =Historical!H54 -> 0 | M59: =Historical!I54 -> 0
E60: Sale of Fixed Assets & Businesses | I60: =Historical!E55 -> 209000 | J60: =Historical!F55 -> 677000 | K60: =Historical!G55 -> 424000 | L60: =Historical!H55 -> 481000 | M60: =Historical!I55 -> 185000
I61: =Historical!E56 -> FALSE | J61: =Historical!F56 -> FALSE | K61: =Historical!G56 -> FALSE | L61: =Historical!H56 -> FALSE | M61: =Historical!I56 -> FALSE
E62: Purchase/Sale of Investments | I62: =Historical!E57 -> 0 | J62: =Historical!F57 -> 0 | K62: =Historical!G57 -> 0 | L62: =Historical!H57 -> 0 | M62: =Historical!I57 -> 0
E63: Other Uses | I63: =Historical!E58 -> 0 | J63: =Historical!F58 -> 0 | K63: =Historical!G58 -> -2000 | L63: =Historical!H58 -> 0 | M63: =Historical!I58 -> -30000
E64: Other Sources | I64: =Historical!E59 -> 29000 | J64: =Historical!F59 -> 52000 | K64: =Historical!G59 -> 0 | L64: =Historical!H59 -> 2000 | M64: =Historical!I59 -> 0
E65: Net Investing Cash Flow | I65: =Historical!E60 -> -1087000 | J65: =Historical!F60 -> -183000 | K65: =Historical!G60 -> -338000 | L65: =Historical!H60 -> -449000 | M65: =Historical!I60 -> -1002000
E66: Financing Activities | I66: =Historical!E61 -> 0 | J66: =Historical!F61 -> 0 | K66: =Historical!G61 -> 0 | L66: =Historical!H61 -> 0 | M66: =Historical!I61 -> 0
E67: Common Dividends | I67: =Historical!E62 -> -456000 | J67: =Historical!F62 -> -459000 | K67: =Historical!G62 -> -461000 | L67: =Historical!H62 -> -463000 | M67: =Historical!I62 -> -466000
E68: Preferred Dividends | I68: =Historical!E63 -> 0 | J68: =Historical!F63 -> 0 | K68: =Historical!G63 -> 0 | L68: =Historical!H63 -> 0 | M68: =Historical!I63 -> 0
E69: Change in Capital Stock | I69: =Historical!E64 -> -1840000 | J69: =Historical!F64 -> -280000 | K69: =Historical!G64 -> 5000 | L69: =Historical!H64 -> 45000 | M69: =Historical!I64 -> 5000
E70: Repurchase of Common & Preferred Stk. | I70: =Historical!E65 -> -2000000 | J70: =Historical!F65 -> -316000 | K70: =Historical!G65 -> -1000 | L70: =Historical!H65 -> 0 | M70: =Historical!I65 -> -1000
E71: Sale of Common & Preferred Stock | I71: =Historical!E66 -> 163000 | J71: =Historical!F66 -> 36000 | K71: =Historical!G66 -> 6000 | L71: =Historical!H66 -> 45000 | M71: =Historical!I66 -> 6000
E72: Issuance/Reduction of Debt, Net | I72: =Historical!E67 -> 260000 | J72: =Historical!F67 -> -691000 | K72: =Historical!G67 -> -1000000 | L72: =Historical!H67 -> -1130000 | M72: =Historical!I67 -> -659000
E73: Change in Current Debt | I73: =Historical!E68 -> 0 | J73: =Historical!F68 -> 0 | K73: =Historical!G68 -> 0 | L73: =Historical!H68 -> 0 | M73: =Historical!I68 -> 0
E74: Change in Long-Term Debt | I74: =Historical!E69 -> 343000 | J74: =Historical!F69 -> -752000 | K74: =Historical!G69 -> -988000 | L74: =Historical!H69 -> -1150000 | M74: =Historical!I69 -> -597000
E75: Issuance of Long-Term Debt | I75: =Historical!E70 -> 495000 | J75: =Historical!F70 -> -1000 | K75: =Historical!G70 -> 0 | L75: =Historical!H70 -> 0 | M75: =Historical!I70 -> 0
E76: Reduction in Long-Term Debt | I76: =Historical!E71 -> -152000 | J76: =Historical!F71 -> -751000 | K76: =Historical!G71 -> -988000 | L76: =Historical!H71 -> -1150000 | M76: =Historical!I71 -> -597000
E77: Other Funds | I77: =Historical!E72 -> 335000 | J77: =Historical!F72 -> 415000 | K77: =Historical!G72 -> -240000 | L77: =Historical!H72 -> -117000 | M77: =Historical!I72 -> 320000
E78: Other Uses | I78: =Historical!E73 -> 0 | J78: =Historical!F73 -> 0 | K78: =Historical!G73 -> -2000 | L78: =Historical!H73 -> 0 | M78: =Historical!I73 -> -30000
E79: Other Sources | I79: =Historical!E74 -> 29000 | J79: =Historical!F74 -> 52000 | K79: =Historical!G74 -> 0 | L79: =Historical!H74 -> 2000 | M79: =Historical!I74 -> 0
E80: Net Financing Cash Flow | I80: =Historical!E75 -> 0 | J80: =Historical!F75 -> 0 | K80: =Historical!G75 -> 0 | L80: =Historical!H75 -> 0 | M80: =Historical!I75 -> 0
I81: =Historical!E76 -> 0 | J81: =Historical!F76 -> 0 | K81: =Historical!G76 -> 0 | L81: =Historical!H76 -> 0 | M81: =Historical!I76 -> 0
E82: Cash at End of Period | I82: =IF(I3,I91,I46+I55+I65+I80) -> 892000 | J82: =IF(J3,J91,J46+J55+J65+J80) -> 2512000 | K82: =IF(K3,K91,K46+K55+K65+K80) -> 4155000 | L82: =IF(L3,L91,L46+L55+L65+L80) -> 5443000 | M82: =IF(M3,M91,M46+M55+M65+M80) -> 6046000 | N82: =IF(N3,N91,N46+N55+N65+N80) -> 0 | O82: =IF(O3,O91,O46+O55+O65+O80) -> 0
E84: Exchange Rate Effect | I84: =Historical!E77 -> 0 | J84: =Historical!F77 -> 0 | K84: =Historical!G77 -> 0 | L84: =Historical!H77 -> 0 | M84: =Historical!I77 -> 0
E85: Miscellaneous Funds | I85: =Historical!E78 -> 0 | J85: =Historical!F78 -> 0 | K85: =Historical!G78 -> 0 | L85: =Historical!H78 -> 0 | M85: =Historical!I78 -> 0
E86: Net Change in Cash | I86: =Historical!E79 -> -1140000 | J86: =Historical!F79 -> 188000 | K86: =Historical!G79 -> 179000 | L86: =Historical!H79 -> -265000 | M86: =Historical!I79 -> -517000
E87: Free Cash Flow | I87: =Historical!E80 -> 1210000 | J87: =Historical!F80 -> 1210000 | K87: =Historical!G80 -> 1490000 | L87: =Historical!H80 -> 1080000 | M87: =Historical!I80 -> 703000
B89: Balance Sheet
D90: Assets
E91: Cash & Short Term Investments | I91: =Historical!E87 -> 1150000 | J91: =Historical!F87 -> 1330000 | K91: =Historical!G87 -> 1490000 | L91: =Historical!H87 -> 1200000 | M91: =Historical!I87 -> 722000
E92: Total Accounts Receivable | I92: =Historical!E88 -> 558000 | J92: =Historical!F88 -> 522000 | K92: =Historical!G88 -> 363000 | L92: =Historical!H88 -> 400000 | M92: =Historical!I88 -> 556000
E93: Inventories | I93: =Historical!E89 -> 5510000 | J93: =Historical!F89 -> 5400000 | K93: =Historical!G89 -> 5180000 | L93: =Historical!H89 -> 5260000 | M93: =Historical!I89 -> 5190000
E94: Progress Payments & Other | I94: =Historical!E90 -> 0 | J94: =Historical!F90 -> 0 | K94: =Historical!G90 -> 0 | L94: =Historical!H90 -> 0 | M94: =Historical!I90 -> 0
E95: Other Current Assets | I95: =Historical!E91 -> 442000 | J95: =Historical!F91 -> 371000 | K95: =Historical!G91 -> 613000 | L95: =Historical!H91 -> 583000 | M95: =Historical!I91 -> 344000
E96: Total Current Assets | I96: =Historical!E92 -> 7660000 | J96: =Historical!F92 -> 7623000 | K96: =Historical!G92 -> 7646000 | L96: =Historical!H92 -> 7443000 | M96: =Historical!I92 -> 6812000
E97: Property, Plant & Equipment - Gross | I97: =Historical!E93 -> 12940000 | J97: =Historical!F93 -> 11870000 | K97: =Historical!G93 -> 11280000 | L97: =Historical!H93 -> 11130000 | M97: =Historical!I93 -> 13710000
E98: Accumulated Depreciation | I98: =Historical!E94 -> 5320000 | J98: =Historical!F94 -> 4860000 | K98: =Historical!G94 -> 4610000 | L98: =Historical!H94 -> 4500000 | M98: =Historical!I94 -> 4400000
E99: Net Property, Plant & Equipment | I99: =Historical!E95 -> 7620000 | J99: =Historical!F95 -> 7020000 | K99: =Historical!G95 -> 6670000 | L99: =Historical!H95 -> 6640000 | M99: =Historical!I95 -> 9300000
E100: Total Investments and Advances
E101: Intangible Assets | I101: =Historical!E97 -> 4410000 | J101: =Historical!F97 -> 4400000 | K101: =Historical!G97 -> 4390000 | L101: =Historical!H97 -> 4390000 | M101: =Historical!I97 -> 4990000
E102: Other Assets | I102: =Historical!E98 -> 897000 | J102: =Historical!F98 -> 813000 | K102: =Historical!G98 -> 880000 | L102: =Historical!H98 -> 726000 | M102: =Historical!I98 -> 72000
E103: Total Assets | I103: =Historical!E99 -> 20587000 | J103: =Historical!F99 -> 19856000 | K103: =Historical!G99 -> 19586000 | L103: =Historical!H99 -> 19199000 | M103: =Historical!I99 -> 21174000
D105: Liabilities & Shareholders' Equity
E106: ST Debt & Current Portion LT Debt | I106: =Historical!E102 -> 642000 | J106: =Historical!F102 -> 309000 | K106: =Historical!G102 -> 22000 | L106: =Historical!H102 -> 43000 | M106: =Historical!I102 -> 872000
E107: Accounts Payable | I107: =Historical!E103 -> 2340000 | J107: =Historical!F103 -> 2180000 | K107: =Historical!G103 -> 2330000 | L107: =Historical!H103 -> 2640000 | M107: =Historical!I103 -> 2660000
E108: Income Tax Payable | I108: =Historical!E104 -> 227000 | J108: =Historical!F104 -> 352000 | K108: =Historical!G104 -> 296000 | L108: =Historical!H104 -> 168000 | M108: =Historical!I104 -> 81000
E109: Other Current Liabilities | I109: =Historical!E105 -> 2520000 | J109: =Historical!F105 -> 2810000 | K109: =Historical!G105 -> 2540000 | L109: =Historical!H105 -> 2380000 | M109: =Historical!I105 -> 2140000
E110: Total Current Liabilities | I110: =Historical!E106 -> 5729000 | J110: =Historical!F106 -> 5651000 | K110: =Historical!G106 -> 5188000 | L110: =Historical!H106 -> 5231000 | M110: =Historical!I106 -> 5753000
E111: Long-Term Debt | I111: =Historical!E107 -> 7000000 | J111: =Historical!F107 -> 6560000 | K111: =Historical!G107 -> 5860000 | L111: =Historical!H107 -> 4710000 | M111: =Historical!I107 -> 6540000
E112: Provision for Risks & Charges | I112: =Historical!E108 -> 1630000 | J112: =Historical!F108 -> 1350000 | K112: =Historical!G108 -> 1180000 | L112: =Historical!H108 -> 1090000 | M112: =Historical!I108 -> 1100000
E113: Deferred Taxes | I113: =Historical!E109 -> 1480000 | J113: =Historical!F109 -> 1440000 | K113: =Historical!G109 -> 1150000 | L113: =Historical!H109 -> 1240000 | M113: =Historical!I109 -> 1170000
E114: Other Liabilities | I114: =Historical!E110 -> 497000 | J114: =Historical!F110 -> 532000 | K114: =Historical!G110 -> 483000 | L114: =Historical!H110 -> 492000 | M114: =Historical!I110 -> 240000
E115: Reconciling Liabilities | I115: =Historical!E111 -> 1000 | J115: =Historical!F111 -> 3000 | K115: =Historical!G111 -> -5000 | L115: =Historical!H111 -> -4000 | M115: =Historical!I111 -> -9000
E116: Total Liabilities | I116: =Historical!E112 -> 16337000 | J116: =Historical!F112 -> 15536000 | K116: =Historical!G112 -> 13856000 | L116: =Historical!H112 -> 12759000 | M116: =Historical!I112 -> 14794000
E117: Total Shareholders' Equity | I117: =Historical!E113 -> 4250000 | J117: =Historical!F113 -> 4320000 | K117: =Historical!G113 -> 5750000 | L117: =Historical!H113 -> 6440000 | M117: =Historical!I113 -> 6380000
E118: Accumulated Minority Interest | I118: =Historical!E114 -> 3000 | J118: =Historical!F114 -> -1000 | K118: =Historical!G114 -> -12000 | L118: =Historical!H114 -> 0 | M118: =Historical!I114 -> 0
E119: Total Equity | I119: =Historical!E115 -> 4250000 | J119: =Historical!F115 -> 4320000 | K119: =Historical!G115 -> 5730000 | L119: =Historical!H115 -> 6440000 | M119: =Historical!I115 -> 6380000
E120: Liabilities & Shareholders' Equity | I120: =Historical!E116 -> 20587000 | J120: =Historical!F116 -> 19856000 | K120: =Historical!G116 -> 19586000 | L120: =Historical!H116 -> 19199000 | M120: =Historical!I116 -> 21174000
B122: Revenue Assumptions
D123: Base Unit Price | F123: USD/Unit | G123: 10 | I123: =G123 -> 10 | J123: =I123 -> 10 | K123: 10 | L123: 10 | M123: 10 | N123: 10 | O123: 10 | P123: 10 | Q123: 10 | R123: 10 | S123: 10 | T123: 10 | U123: 10 | V123: 10 | W123: 10 | X123: 10 | Y123: 10 | Z123: 10 | AA123: 10 | AB123: 10 | AC123: 10 | AD123: 10 | AE123: 10 | AF123: 10 | AG123: 10 | AH123: 10 | AI123: 10 | AJ123: 10 | AK123: 10 | AL123: 10 | AM123: 10 | AN123: 10 | AO123: 10 | AP123: 10 | AQ123: 10 | AR123: 10 | AS123: 10 | AT123: 10 | AU123: 10 | AV123: 10 | AW123: 10 | AX123: 10 | AY123: 10 | AZ123: 10 | BA123: 10 | BB123: 10 | BC123: 10 | BD123: 10 | BE123: 10 | BF123: 10 | BG123: 10 | BH123: 10 | BI123: 10 | BJ123: 10 | BK123: 10 | BL123: 10 | BM123: 10 | BN123: 10 | BO123: 10 | BP123: 10 | BQ123: 10 | BR123: 10 | BS123: 10 | BT123: 10 | BU123: 10 | BV123: =BU123 -> 10 | BW123: 10 | BX123: 10 | BY123: 10 | BZ123: 10 | CA123: 10 | CB123: 10 | CC123: 10 | CD123: 10 | CE123: 10 | CF123: 10 | CG123: 10 | CH123: 10 | CI123: 10 | CJ123: 10 | CK123: 10 | CL123: 10 | CM123: 10 | CN123: 10 | CO123: 10 | CP123: 10 | CQ123: 10 | CR123: 10 | CS123: 10 | CT123: =CS123 -> 10 | CU123: 10 | CV123: 10 | CW123: 10 | CX123: 10 | CY123: 10 | CZ123: 10 | DA123: 10 | DB123: 10 | DC123: 10 | DD123: 10 | DE123: 10 | DF123: 10 | DG123: 10 | DH123: =DG123 -> 10 | DI123: 10 | DJ123: 10 | DK123: 10 | DL123: 10 | DM123: 10 | DN123: 10 | DO123: 10 | DP123: 10 | DQ123: 10 | DR123: 10 | DS123: 10 | DT123: 10 | DU123: 10 | DV123: 10 | DW123: 10 | DX123: 10 | DY123: 10 | DZ123: 10 | EA123: =DZ123 -> 10 | EB123: 10 | EC123: 10 | ED123: 10 | EE123: 10 | EF123: 10 | EG123: 10 | EH123: 10 | EI123: 10 | EJ123: 10 | EK123: 10 | EL123: =EK123 -> 10 | EM123: 10 | EN123: 10 | EO123: 10 | EP123: 10 | EQ123: 10 | ER123: 10 | ES123: 10 | ET123: 10 | EU123: 10 | EV123: 10 | EW123: 10 | EX123: 10 | EY123: 10 | EZ123: 10 | FA123: 10 | FB123: 10 | FC123: 10 | FD123: 10 | FE123: 10 | FF123: 10 | FG123: 10 | FH123: 10 | FI123: 10 | FJ123: 10 | FK123: 10 | FL123: 10 | FM123: 10 | FN123: 10 | FO123: 10 | FP123: 10 | FQ123: 10 | FR123: 10 | FS123: 10 | FT123: 10 | FU123: 10 | FV123: 10 | FW123: 10 | FX123: 10 | FY123: 10 | FZ123: 10 | GA123: 10 | GB123: 10 | GC123: 10 | GD123: 10 | GE123: 10 | GF123: 10 | GG123: 10 | GH123: 10 | GI123: 10 | GJ123: 10 | GK123: 10 | GL123: 10 | GM123: 10 | GN123: 10 | GO123: 10 | GP123: 10 | GQ123: 10 | GR123: 10 | GS123: 10 | GT123: 10 | GU123: 10 | GV123: 10 | GW123: 10 | GX123: =GW123 -> 10 | GY123: 10 | GZ123: 10 | HA123: 10 | HB123: 10 | HC123: 10 | HD123: 10 | HE123: 10 | HF123: 10 | HG123: 10 | HH123: 10 | HI123: 10 | HJ123: 10 | HK123: 10 | HL123: 10 | HM123: 10 | HN123: 10 | HO123: 10 | HP123: 10 | HQ123: 10 | HR123: 10 | HS123: 10 | HT123: 10 | HU123: 10 | HV123: 10 | HW123: 10 | HX123: 10 | HY123: 10 | HZ123: 10 | IA123: 10 | IB123: 10 | IC123: 10 | ID123: 10 | IE123: 10 | IF123: 10 | IG123: 10 | IH123: 10 | II123: 10 | IJ123: 10 | IK123: 10 | IL123: 10 | IM123: 10 | IN123: 10 | IO123: 10 | IP123: 10 | IQ123: 10 | IR123: 10 | IS123: 10
D124: Assumed Price Increase | F124: % p.a. | G124: ='Model Parameters'!I14 -> 0 | I124: =LOOKUP(I8,'Model Parameters'!13:13,'Model Parameters'!14:14) ->  | J124: =LOOKUP(J8,'Model Parameters'!13:13,'Model Parameters'!14:14) ->  | K124: =LOOKUP(K8,'Model Parameters'!13:13,'Model Parameters'!14:14) ->  | L124: =LOOKUP(L8,'Model Parameters'!13:13,'Model Parameters'!14:14) ->  | M124: =LOOKUP(M8,'Model Parameters'!13:13,'Model Parameters'!14:14) ->  | N124: =LOOKUP(N8,'Model Parameters'!13:13,'Model Parameters'!14:14) ->  | O124: =LOOKUP(O8,'Model Parameters'!13:13,'Model Parameters'!14:14) ->  | P124: =LOOKUP(P8,'Model Parameters'!13:13,'Model Parameters'!14:14) ->  | Q124: =LOOKUP(Q8,'Model Parameters'!13:13,'Model Parameters'!14:14) ->  | R124: =LOOKUP(R8,'Model Parameters'!13:13,'Model Parameters'!14:14) ->  | S124: =LOOKUP(S8,'Model Parameters'!13:13,'Model Parameters'!14:14) ->  | T124: =LOOKUP(T8,'Model Parameters'!13:13,'Model Parameters'!14:14) ->  | U124: =LOOKUP(U8,'Model Parameters'!13:13,'Model Parameters'!14:14) ->  | V124: =LOOKUP(V8,'Model Parameters'!13:13,'Model Parameters'!14:14) ->  | W124: =LOOKUP(W8,'Model Parameters'!13:13,'Model Parameters'!14:14) ->  | X124: =LOOKUP(X8,'Model Parameters'!13:13,'Model Parameters'!14:14) ->  | Y124: =LOOKUP(Y8,'Model Parameters'!13:13,'Model Parameters'!14:14) ->  | Z124: =LOOKUP(Z8,'Model Parameters'!13:13,'Model Parameters'!14:14) ->  | AA124: =LOOKUP(AA8,'Model Parameters'!13:13,'Model Parameters'!14:14) ->  | AB124: =LOOKUP(AB8,'Model Parameters'!13:13,'Model Parameters'!14:14) ->  | AC124: =LOOKUP(AC8,'Model Parameters'!13:13,'Model Parameters'!14:14) ->  | AD124: =LOOKUP(AD8,'Model Parameters'!13:13,'Model Parameters'!14:14) ->  | AE124: =LOOKUP(AE8,'Model Parameters'!13:13,'Model Parameters'!14:14) ->  | AF124: =LOOKUP(AF8,'Model Parameters'!13:13,'Model Parameters'!14:14) ->  | AG124: =LOOKUP(AG8,'Model Parameters'!13:13,'Model Parameters'!14:14) ->  | AH124: =LOOKUP(AH8,'Model Parameters'!13:13,'Model Parameters'!14:14) ->  | AI124: =LOOKUP(AI8,'Model Parameters'!13:13,'Model Parameters'!14:14) ->  | AJ124: =LOOKUP(AJ8,'Model Parameters'!13:13,'Model Parameters'!14:14) ->  | AK124: =LOOKUP(AK8,'Model Parameters'!13:13,'Model Parameters'!14:14) ->  | AL124: =LOOKUP(AL8,'Model Parameters'!13:13,'Model Parameters'!14:14) ->  | AM124: =LOOKUP(AM8,'Model Parameters'!13:13,'Model Parameters'!14:14) ->  | AN124: =LOOKUP(AN8,'Model Parameters'!13:13,'Model Parameters'!14:14) ->  | AO124: =LOOKUP(AO8,'Model Parameters'!13:13,'Model Parameters'!14:14) ->  | AP124: =LOOKUP(AP8,'Model Parameters'!13:13,'Model Parameters'!14:14) ->  | AQ124: =LOOKUP(AQ8,'Model Parameters'!13:13,'Model Parameters'!14:14) ->  | AR124: =LOOKUP(AR8,'Model Parameters'!13:13,'Model Parameters'!14:14) ->  | AS124: =LOOKUP(AS8,'Model Parameters'!13:13,'Model Parameters'!14:14) ->  | AT124: =LOOKUP(AT8,'Model Parameters'!13:13,'Model Parameters'!14:14) ->  | AU124: =LOOKUP(AU8,'Model Parameters'!13:13,'Model Parameters'!14:14) ->  | AV124: =LOOKUP(AV8,'Model Parameters'!13:13,'Model Parameters'!14:14) ->  | AW124: =LOOKUP(AW8,'Model Parameters'!13:13,'Model Parameters'!14:14) ->  | AX124: =LOOKUP(AX8,'Model Parameters'!13:13,'Model Parameters'!14:14) ->  | AY124: =LOOKUP(AY8,'Model Parameters'!13:13,'Model Parameters'!14:14) ->  | AZ124: =LOOKUP(AZ8,'Model Parameters'!13:13,'Model Parameters'!14:14) ->  | BA124: =LOOKUP(BA8,'Model Parameters'!13:13,'Model Parameters'!14:14) ->  | BB124: =LOOKUP(BB8,'Model Parameters'!13:13,'Model Parameters'!14:14) ->  | BC124: =LOOKUP(BC8,'Model Parameters'!13:13,'Model Parameters'!14:14) ->  | BD124: =LOOKUP(BD8,'Model Parameters'!13:13,'Model Parameters'!14:14) ->  | BE124: =LOOKUP(BE8,'Model Parameters'!13:13,'Model Parameters'!14:14) ->  | BF124: =LOOKUP(BF8,'Model Parameters'!13:13,'Model Parameters'!14:14) ->  | BG124: =LOOKUP(BG8,'Model Parameters'!13:13,'Model Parameters'!14:14) ->  | BH124: =LOOKUP(BH8,'Model Parameters'!13:13,'Model Parameters'!14:14) ->  | BI124: =LOOKUP(BI8,'Model Parameters'!13:13,'Model Parameters'!14:14) ->  | BJ124: =LOOKUP(BJ8,'Model Parameters'!13:13,'Model Parameters'!14:14) ->  | BK124: =LOOKUP(BK8,'Model Parameters'!13:13,'Model Parameters'!14:14) ->  | BL124: =LOOKUP(BL8,'Model Parameters'!13:13,'Model Parameters'!14:14) ->  | BM124: =LOOKUP(BM8,'Model Parameters'!13:13,'Model Parameters'!14:14) ->  | BN124: =LOOKUP(BN8,'Model Parameters'!13:13,'Model Parameters'!14:14) ->  | BO124: =LOOKUP(BO8,'Model Parameters'!13:13,'Model Parameters'!14:14) ->  | BP124: =LOOKUP(BP8,'Model Parameters'!13:13,'Model Parameters'!14:14) ->  | BQ124: =LOOKUP(BQ8,'Model Parameters'!13:13,'Model Parameters'!14:14) ->  | BR124: =LOOKUP(BR8,'Model Parameters'!13:13,'Model Parameters'!14:14) ->  | BS124: =LOOKUP(BS8,'Model Parameters'!13:13,'Model Parameters'!14:14) ->  | BT124: =LOOKUP(BT8,'Model Parameters'!13:13,'Model Parameters'!14:14) ->  | BU124: =LOOKUP(BU8,'Model Parameters'!13:13,'Model Parameters'!14:14) ->  | BV124: =LOOKUP(BV8,'Model Parameters'!13:13,'Model Parameters'!14:14) ->  | BW124: =LOOKUP(BW8,'Model Parameters'!13:13,'Model Parameters'!14:14) ->  | BX124: =LOOKUP(BX8,'Model Parameters'!13:13,'Model Parameters'!14:14) ->  | BY124: =LOOKUP(BY8,'Model Parameters'!13:13,'Model Parameters'!14:14) ->  | BZ124: =LOOKUP(BZ8,'Model Parameters'!13:13,'Model Parameters'!14:14) ->  | CA124: =LOOKUP(CA8,'Model Parameters'!13:13,'Model Parameters'!14:14) ->  | CB124: =LOOKUP(CB8,'Model Parameters'!13:13,'Model Parameters'!14:14) ->  | CC124: =LOOKUP(CC8,'Model Parameters'!13:13,'Model Parameters'!14:14) ->  | CD124: =LOOKUP(CD8,'Model Parameters'!13:13,'Model Parameters'!14:14) ->  | CE124: =LOOKUP(CE8,'Model Parameters'!13:13,'Model Parameters'!14:14) ->  | CF124: =LOOKUP(CF8,'Model Parameters'!13:13,'Model Parameters'!14:14) ->  | CG124: =LOOKUP(CG8,'Model Parameters'!13:13,'Model Parameters'!14:14) ->  | CH124: =LOOKUP(CH8,'Model Parameters'!13:13,'Model Parameters'!14:14) ->  | CI124: =LOOKUP(CI8,'Model Parameters'!13:13,'Model Parameters'!14:14) ->  | CJ124: =LOOKUP(CJ8,'Model Parameters'!13:13,'Model Parameters'!14:14) ->  | CK124: =LOOKUP(CK8,'Model Parameters'!13:13,'Model Parameters'!14:14) ->  | CL124: =LOOKUP(CL8,'Model Parameters'!13:13,'Model Parameters'!14:14) ->  | CM124: =LOOKUP(CM8,'Model Parameters'!13:13,'Model Parameters'!14:14) ->  | CN124: =LOOKUP(CN8,'Model Parameters'!13:13,'Model Parameters'!14:14) ->  | CO124: =LOOKUP(CO8,'Model Parameters'!13:13,'Model Parameters'!14:14) ->  | CP124: =LOOKUP(CP8,'Model Parameters'!13:13,'Model Parameters'!14:14) ->  | CQ124: =LOOKUP(CQ8,'Model Parameters'!13:13,'Model Parameters'!14:14) ->  | CR124: =LOOKUP(CR8,'Model Parameters'!13:13,'Model Parameters'!14:14) ->  | CS124: =LOOKUP(CS8,'Model Parameters'!13:13,'Model Parameters'!14:14) ->  | CT124: =LOOKUP(CT8,'Model Parameters'!13:13,'Model Parameters'!14:14) ->  | CU124: =LOOKUP(CU8,'Model Parameters'!13:13,'Model Parameters'!14:14) ->  | CV124: =LOOKUP(CV8,'Model Parameters'!13:13,'Model Parameters'!14:14) ->  | CW124: =LOOKUP(CW8,'Model Parameters'!13:13,'Model Parameters'!14:14) ->  | CX124: =LOOKUP(CX8,'Model Parameters'!13:13,'Model Parameters'!14:14) ->  | CY124: =LOOKUP(CY8,'Model Parameters'!13:13,'Model Parameters'!14:14) ->  | CZ124: =LOOKUP(CZ8,'Model Parameters'!13:13,'Model Parameters'!14:14) ->  | DA124: =LOOKUP(DA8,'Model Parameters'!13:13,'Model Parameters'!14:14) ->  | DB124: =LOOKUP(DB8,'Model Parameters'!13:13,'Model Parameters'!14:14) ->  | DC124: =LOOKUP(DC8,'Model Parameters'!13:13,'Model Parameters'!14:14) ->  | DD124: =LOOKUP(DD8,'Model Parameters'!13:13,'Model Parameters'!14:14) ->  | DE124: =LOOKUP(DE8,'Model Parameters'!13:13,'Model Parameters'!14:14) ->  | DF124: =LOOKUP(DF8,'Model Parameters'!13:13,'Model Parameters'!14:14) ->  | DG124: =LOOKUP(DG8,'Model Parameters'!13:13,'Model Parameters'!14:14) ->  | DH124: =LOOKUP(DH8,'Model Parameters'!13:13,'Model Parameters'!14:14) ->  | DI124: =LOOKUP(DI8,'Model Parameters'!13:13,'Model Parameters'!14:14) ->  | DJ124: =LOOKUP(DJ8,'Model Parameters'!13:13,'Model Parameters'!14:14) ->  | DK124: =LOOKUP(DK8,'Model Parameters'!13:13,'Model Parameters'!14:14) ->  | DL124: =LOOKUP(DL8,'Model Parameters'!13:13,'Model Parameters'!14:14) ->  | DM124: =LOOKUP(DM8,'Model Parameters'!13:13,'Model Parameters'!14:14) ->  | DN124: =LOOKUP(DN8,'Model Parameters'!13:13,'Model Parameters'!14:14) ->  | DO124: =LOOKUP(DO8,'Model Parameters'!13:13,'Model Parameters'!14:14) ->  | DP124: =LOOKUP(DP8,'Model Parameters'!13:13,'Model Parameters'!14:14) ->  | DQ124: =LOOKUP(DQ8,'Model Parameters'!13:13,'Model Parameters'!14:14) ->  | DR124: =LOOKUP(DR8,'Model Parameters'!13:13,'Model Parameters'!14:14) ->  | DS124: =LOOKUP(DS8,'Model Parameters'!13:13,'Model Parameters'!14:14) ->  | DT124: =LOOKUP(DT8,'Model Parameters'!13:13,'Model Parameters'!14:14) ->  | DU124: =LOOKUP(DU8,'Model Parameters'!13:13,'Model Parameters'!14:14) ->  | DV124: =LOOKUP(DV8,'Model Parameters'!13:13,'Model Parameters'!14:14) ->  | DW124: =LOOKUP(DW8,'Model Parameters'!13:13,'Model Parameters'!14:14) ->  | DX124: =LOOKUP(DX8,'Model Parameters'!13:13,'Model Parameters'!14:14) ->  | DY124: =LOOKUP(DY8,'Model Parameters'!13:13,'Model Parameters'!14:14) ->  | DZ124: =LOOKUP(DZ8,'Model Parameters'!13:13,'Model Parameters'!14:14) ->  | EA124: =LOOKUP(EA8,'Model Parameters'!13:13,'Model Parameters'!14:14) ->  | EB124: =LOOKUP(EB8,'Model Parameters'!13:13,'Model Parameters'!14:14) ->  | EC124: =LOOKUP(EC8,'Model Parameters'!13:13,'Model Parameters'!14:14) ->  | ED124: =LOOKUP(ED8,'Model Parameters'!13:13,'Model Parameters'!14:14) ->  | EE124: =LOOKUP(EE8,'Model Parameters'!13:13,'Model Parameters'!14:14) ->  | EF124: =LOOKUP(EF8,'Model Parameters'!13:13,'Model Parameters'!14:14) ->  | EG124: =LOOKUP(EG8,'Model Parameters'!13:13,'Model Parameters'!14:14) ->  | EH124: =LOOKUP(EH8,'Model Parameters'!13:13,'Model Parameters'!14:14) ->  | EI124: =LOOKUP(EI8,'Model Parameters'!13:13,'Model Parameters'!14:14) ->  | EJ124: =LOOKUP(EJ8,'Model Parameters'!13:13,'Model Parameters'!14:14) ->  | EK124: =LOOKUP(EK8,'Model Parameters'!13:13,'Model Parameters'!14:14) ->  | EL124: =LOOKUP(EL8,'Model Parameters'!13:13,'Model Parameters'!14:14) ->  | EM124: =LOOKUP(EM8,'Model Parameters'!13:13,'Model Parameters'!14:14) ->  | EN124: =LOOKUP(EN8,'Model Parameters'!13:13,'Model Parameters'!14:14) ->  | EO124: =LOOKUP(EO8,'Model Parameters'!13:13,'Model Parameters'!14:14) ->  | EP124: =LOOKUP(EP8,'Model Parameters'!13:13,'Model Parameters'!14:14) ->  | EQ124: =LOOKUP(EQ8,'Model Parameters'!13:13,'Model Parameters'!14:14) ->  | ER124: =LOOKUP(ER8,'Model Parameters'!13:13,'Model Parameters'!14:14) ->  | ES124: =LOOKUP(ES8,'Model Parameters'!13:13,'Model Parameters'!14:14) ->  | ET124: =LOOKUP(ET8,'Model Parameters'!13:13,'Model Parameters'!14:14) ->  | EU124: =LOOKUP(EU8,'Model Parameters'!13:13,'Model Parameters'!14:14) ->  | EV124: =LOOKUP(EV8,'Model Parameters'!13:13,'Model Parameters'!14:14) ->  | EW124: =LOOKUP(EW8,'Model Parameters'!13:13,'Model Parameters'!14:14) ->  | EX124: =LOOKUP(EX8,'Model Parameters'!13:13,'Model Parameters'!14:14) ->  | EY124: =LOOKUP(EY8,'Model Parameters'!13:13,'Model Parameters'!14:14) ->  | EZ124: =LOOKUP(EZ8,'Model Parameters'!13:13,'Model Parameters'!14:14) ->  | FA124: =LOOKUP(FA8,'Model Parameters'!13:13,'Model Parameters'!14:14) ->  | FB124: =LOOKUP(FB8,'Model Parameters'!13:13,'Model Parameters'!14:14) ->  | FC124: =LOOKUP(FC8,'Model Parameters'!13:13,'Model Parameters'!14:14) ->  | FD124: =LOOKUP(FD8,'Model Parameters'!13:13,'Model Parameters'!14:14) ->  | FE124: =LOOKUP(FE8,'Model Parameters'!13:13,'Model Parameters'!14:14) ->  | FF124: =LOOKUP(FF8,'Model Parameters'!13:13,'Model Parameters'!14:14) ->  | FG124: =LOOKUP(FG8,'Model Parameters'!13:13,'Model Parameters'!14:14) ->  | FH124: =LOOKUP(FH8,'Model Parameters'!13:13,'Model Parameters'!14:14) ->  | FI124: =LOOKUP(FI8,'Model Parameters'!13:13,'Model Parameters'!14:14) ->  | FJ124: =LOOKUP(FJ8,'Model Parameters'!13:13,'Model Parameters'!14:14) ->  | FK124: =LOOKUP(FK8,'Model Parameters'!13:13,'Model Parameters'!14:14) ->  | FL124: =LOOKUP(FL8,'Model Parameters'!13:13,'Model Parameters'!14:14) ->  | FM124: =LOOKUP(FM8,'Model Parameters'!13:13,'Model Parameters'!14:14) ->  | FN124: =LOOKUP(FN8,'Model Parameters'!13:13,'Model Parameters'!14:14) ->  | FO124: =LOOKUP(FO8,'Model Parameters'!13:13,'Model Parameters'!14:14) ->  | FP124: =LOOKUP(FP8,'Model Parameters'!13:13,'Model Parameters'!14:14) ->  | FQ124: =LOOKUP(FQ8,'Model Parameters'!13:13,'Model Parameters'!14:14) ->  | FR124: =LOOKUP(FR8,'Model Parameters'!13:13,'Model Parameters'!14:14) ->  | FS124: =LOOKUP(FS8,'Model Parameters'!13:13,'Model Parameters'!14:14) ->  | FT124: =LOOKUP(FT8,'Model Parameters'!13:13,'Model Parameters'!14:14) ->  | FU124: =LOOKUP(FU8,'Model Parameters'!13:13,'Model Parameters'!14:14) ->  | FV124: =LOOKUP(FV8,'Model Parameters'!13:13,'Model Parameters'!14:14) ->  | FW124: =LOOKUP(FW8,'Model Parameters'!13:13,'Model Parameters'!14:14) ->  | FX124: =LOOKUP(FX8,'Model Parameters'!13:13,'Model Parameters'!14:14) ->  | FY124: =LOOKUP(FY8,'Model Parameters'!13:13,'Model Parameters'!14:14) ->  | FZ124: =LOOKUP(FZ8,'Model Parameters'!13:13,'Model Parameters'!14:14) ->  | GA124: =LOOKUP(GA8,'Model Parameters'!13:13,'Model Parameters'!14:14) ->  | GB124: =LOOKUP(GB8,'Model Parameters'!13:13,'Model Parameters'!14:14) ->  | GC124: =LOOKUP(GC8,'Model Parameters'!13:13,'Model Parameters'!14:14) ->  | GD124: =LOOKUP(GD8,'Model Parameters'!13:13,'Model Parameters'!14:14) ->  | GE124: =LOOKUP(GE8,'Model Parameters'!13:13,'Model Parameters'!14:14) ->  | GF124: =LOOKUP(GF8,'Model Parameters'!13:13,'Model Parameters'!14:14) ->  | GG124: =LOOKUP(GG8,'Model Parameters'!13:13,'Model Parameters'!14:14) ->  | GH124: =LOOKUP(GH8,'Model Parameters'!13:13,'Model Parameters'!14:14) ->  | GI124: =LOOKUP(GI8,'Model Parameters'!13:13,'Model Parameters'!14:14) ->  | GJ124: =LOOKUP(GJ8,'Model Parameters'!13:13,'Model Parameters'!14:14) ->  | GK124: =LOOKUP(GK8,'Model Parameters'!13:13,'Model Parameters'!14:14) ->  | GL124: =LOOKUP(GL8,'Model Parameters'!13:13,'Model Parameters'!14:14) ->  | GM124: =LOOKUP(GM8,'Model Parameters'!13:13,'Model Parameters'!14:14) ->  | GN124: =LOOKUP(GN8,'Model Parameters'!13:13,'Model Parameters'!14:14) ->  | GO124: =LOOKUP(GO8,'Model Parameters'!13:13,'Model Parameters'!14:14) ->  | GP124: =LOOKUP(GP8,'Model Parameters'!13:13,'Model Parameters'!14:14) ->  | GQ124: =LOOKUP(GQ8,'Model Parameters'!13:13,'Model Parameters'!14:14) ->  | GR124: =LOOKUP(GR8,'Model Parameters'!13:13,'Model Parameters'!14:14) ->  | GS124: =LOOKUP(GS8,'Model Parameters'!13:13,'Model Parameters'!14:14) ->  | GT124: =LOOKUP(GT8,'Model Parameters'!13:13,'Model Parameters'!14:14) ->  | GU124: =LOOKUP(GU8,'Model Parameters'!13:13,'Model Parameters'!14:14) ->  | GV124: =LOOKUP(GV8,'Model Parameters'!13:13,'Model Parameters'!14:14) ->  | GW124: =LOOKUP(GW8,'Model Parameters'!13:13,'Model Parameters'!14:14) ->  | GX124: =LOOKUP(GX8,'Model Parameters'!13:13,'Model Parameters'!14:14) ->  | GY124: =LOOKUP(GY8,'Model Parameters'!13:13,'Model Parameters'!14:14) ->  | GZ124: =LOOKUP(GZ8,'Model Parameters'!13:13,'Model Parameters'!14:14) ->  | HA124: =LOOKUP(HA8,'Model Parameters'!13:13,'Model Parameters'!14:14) ->  | HB124: =LOOKUP(HB8,'Model Parameters'!13:13,'Model Parameters'!14:14) ->  | HC124: =LOOKUP(HC8,'Model Parameters'!13:13,'Model Parameters'!14:14) ->  | HD124: =LOOKUP(HD8,'Model Parameters'!13:13,'Model Parameters'!14:14) ->  | HE124: =LOOKUP(HE8,'Model Parameters'!13:13,'Model Parameters'!14:14) ->  | HF124: =LOOKUP(HF8,'Model Parameters'!13:13,'Model Parameters'!14:14) ->  | HG124: =LOOKUP(HG8,'Model Parameters'!13:13,'Model Parameters'!14:14) ->  | HH124: =LOOKUP(HH8,'Model Parameters'!13:13,'Model Parameters'!14:14) ->  | HI124: =LOOKUP(HI8,'Model Parameters'!13:13,'Model Parameters'!14:14) ->  | HJ124: =LOOKUP(HJ8,'Model Parameters'!13:13,'Model Parameters'!14:14) ->  | HK124: =LOOKUP(HK8,'Model Parameters'!13:13,'Model Parameters'!14:14) ->  | HL124: =LOOKUP(HL8,'Model Parameters'!13:13,'Model Parameters'!14:14) ->  | HM124: =LOOKUP(HM8,'Model Parameters'!13:13,'Model Parameters'!14:14) ->  | HN124: =LOOKUP(HN8,'Model Parameters'!13:13,'Model Parameters'!14:14) ->  | HO124: =LOOKUP(HO8,'Model Parameters'!13:13,'Model Parameters'!14:14) ->  | HP124: =LOOKUP(HP8,'Model Parameters'!13:13,'Model Parameters'!14:14) ->  | HQ124: =LOOKUP(HQ8,'Model Parameters'!13:13,'Model Parameters'!14:14) ->  | HR124: =LOOKUP(HR8,'Model Parameters'!13:13,'Model Parameters'!14:14) ->  | HS124: =LOOKUP(HS8,'Model Parameters'!13:13,'Model Parameters'!14:14) ->  | HT124: =LOOKUP(HT8,'Model Parameters'!13:13,'Model Parameters'!14:14) ->  | HU124: =LOOKUP(HU8,'Model Parameters'!13:13,'Model Parameters'!14:14) ->  | HV124: =LOOKUP(HV8,'Model Parameters'!13:13,'Model Parameters'!14:14) ->  | HW124: =LOOKUP(HW8,'Model Parameters'!13:13,'Model Parameters'!14:14) ->  | HX124: =LOOKUP(HX8,'Model Parameters'!13:13,'Model Parameters'!14:14) ->  | HY124: =LOOKUP(HY8,'Model Parameters'!13:13,'Model Parameters'!14:14) ->  | HZ124: =LOOKUP(HZ8,'Model Parameters'!13:13,'Model Parameters'!14:14) ->  | IA124: =LOOKUP(IA8,'Model Parameters'!13:13,'Model Parameters'!14:14) ->  | IB124: =LOOKUP(IB8,'Model Parameters'!13:13,'Model Parameters'!14:14) ->  | IC124: =LOOKUP(IC8,'Model Parameters'!13:13,'Model Parameters'!14:14) ->  | ID124: =LOOKUP(ID8,'Model Parameters'!13:13,'Model Parameters'!14:14) ->  | IE124: =LOOKUP(IE8,'Model Parameters'!13:13,'Model Parameters'!14:14) ->  | IF124: =LOOKUP(IF8,'Model Parameters'!13:13,'Model Parameters'!14:14) ->  | IG124: =LOOKUP(IG8,'Model Parameters'!13:13,'Model Parameters'!14:14) ->  | IH124: =LOOKUP(IH8,'Model Parameters'!13:13,'Model Parameters'!14:14) ->  | II124: =LOOKUP(II8,'Model Parameters'!13:13,'Model Parameters'!14:14) ->  | IJ124: =LOOKUP(IJ8,'Model Parameters'!13:13,'Model Parameters'!14:14) ->  | IK124: =LOOKUP(IK8,'Model Parameters'!13:13,'Model Parameters'!14:14) ->  | IL124: =LOOKUP(IL8,'Model Parameters'!13:13,'Model Parameters'!14:14) ->  | IM124: =LOOKUP(IM8,'Model Parameters'!13:13,'Model Parameters'!14:14) ->  | IN124: =LOOKUP(IN8,'Model Parameters'!13:13,'Model Parameters'!14:14) ->  | IO124: =LOOKUP(IO8,'Model Parameters'!13:13,'Model Parameters'!14:14) ->  | IP124: =LOOKUP(IP8,'Model Parameters'!13:13,'Model Parameters'!14:14) ->  | IQ124: =LOOKUP(IQ8,'Model Parameters'!13:13,'Model Parameters'!14:14) ->  | IR124: =LOOKUP(IR8,'Model Parameters'!13:13,'Model Parameters'!14:14) ->  | IS124: =LOOKUP(IS8,'Model Parameters'!13:13,'Model Parameters'!14:14) -> 
D125: Periodic Price Increase | F125: % p.p. | I125: =(1+I124)^(I4/12)-1 ->  | J125: =(1+J124)^(J4/12)-1 ->  | K125: =(1+K124)^(K4/12)-1 ->  | L125: =(1+L124)^(L4/12)-1 ->  | M125: =(1+M124)^(M4/12)-1 ->  | N125: =(1+N124)^(N4/12)-1 ->  | O125: =(1+O124)^(O4/12)-1 ->  | P125: =(1+P124)^(P4/12)-1 ->  | Q125: =(1+Q124)^(Q4/12)-1 ->  | R125: =(1+R124)^(R4/12)-1 ->  | S125: =(1+S124)^(S4/12)-1 ->  | T125: =(1+T124)^(T4/12)-1 ->  | U125: =(1+U124)^(U4/12)-1 ->  | V125: =(1+V124)^(V4/12)-1 ->  | W125: =(1+W124)^(W4/12)-1 ->  | X125: =(1+X124)^(X4/12)-1 ->  | Y125: =(1+Y124)^(Y4/12)-1 ->  | Z125: =(1+Z124)^(Z4/12)-1 ->  | AA125: =(1+AA124)^(AA4/12)-1 ->  | AB125: =(1+AB124)^(AB4/12)-1 ->  | AC125: =(1+AC124)^(AC4/12)-1 ->  | AD125: =(1+AD124)^(AD4/12)-1 ->  | AE125: =(1+AE124)^(AE4/12)-1 ->  | AF125: =(1+AF124)^(AF4/12)-1 ->  | AG125: =(1+AG124)^(AG4/12)-1 ->  | AH125: =(1+AH124)^(AH4/12)-1 ->  | AI125: =(1+AI124)^(AI4/12)-1 ->  | AJ125: =(1+AJ124)^(AJ4/12)-1 ->  | AK125: =(1+AK124)^(AK4/12)-1 ->  | AL125: =(1+AL124)^(AL4/12)-1 ->  | AM125: =(1+AM124)^(AM4/12)-1 ->  | AN125: =(1+AN124)^(AN4/12)-1 ->  | AO125: =(1+AO124)^(AO4/12)-1 ->  | AP125: =(1+AP124)^(AP4/12)-1 ->  | AQ125: =(1+AQ124)^(AQ4/12)-1 ->  | AR125: =(1+AR124)^(AR4/12)-1 ->  | AS125: =(1+AS124)^(AS4/12)-1 ->  | AT125: =(1+AT124)^(AT4/12)-1 ->  | AU125: =(1+AU124)^(AU4/12)-1 ->  | AV125: =(1+AV124)^(AV4/12)-1 ->  | AW125: =(1+AW124)^(AW4/12)-1 ->  | AX125: =(1+AX124)^(AX4/12)-1 ->  | AY125: =(1+AY124)^(AY4/12)-1 ->  | AZ125: =(1+AZ124)^(AZ4/12)-1 ->  | BA125: =(1+BA124)^(BA4/12)-1 ->  | BB125: =(1+BB124)^(BB4/12)-1 ->  | BC125: =(1+BC124)^(BC4/12)-1 ->  | BD125: =(1+BD124)^(BD4/12)-1 ->  | BE125: =(1+BE124)^(BE4/12)-1 ->  | BF125: =(1+BF124)^(BF4/12)-1 ->  | BG125: =(1+BG124)^(BG4/12)-1 ->  | BH125: =(1+BH124)^(BH4/12)-1 ->  | BI125: =(1+BI124)^(BI4/12)-1 ->  | BJ125: =(1+BJ124)^(BJ4/12)-1 ->  | BK125: =(1+BK124)^(BK4/12)-1 ->  | BL125: =(1+BL124)^(BL4/12)-1 ->  | BM125: =(1+BM124)^(BM4/12)-1 ->  | BN125: =(1+BN124)^(BN4/12)-1 ->  | BO125: =(1+BO124)^(BO4/12)-1 ->  | BP125: =(1+BP124)^(BP4/12)-1 ->  | BQ125: =(1+BQ124)^(BQ4/12)-1 ->  | BR125: =(1+BR124)^(BR4/12)-1 ->  | BS125: =(1+BS124)^(BS4/12)-1 ->  | BT125: =(1+BT124)^(BT4/12)-1 ->  | BU125: =(1+BU124)^(BU4/12)-1 ->  | BV125: =(1+BV124)^(BV4/12)-1 ->  | BW125: =(1+BW124)^(BW4/12)-1 ->  | BX125: =(1+BX124)^(BX4/12)-1 ->  | BY125: =(1+BY124)^(BY4/12)-1 ->  | BZ125: =(1+BZ124)^(BZ4/12)-1 ->  | CA125: =(1+CA124)^(CA4/12)-1 ->  | CB125: =(1+CB124)^(CB4/12)-1 ->  | CC125: =(1+CC124)^(CC4/12)-1 ->  | CD125: =(1+CD124)^(CD4/12)-1 ->  | CE125: =(1+CE124)^(CE4/12)-1 ->  | CF125: =(1+CF124)^(CF4/12)-1 ->  | CG125: =(1+CG124)^(CG4/12)-1 ->  | CH125: =(1+CH124)^(CH4/12)-1 ->  | CI125: =(1+CI124)^(CI4/12)-1 ->  | CJ125: =(1+CJ124)^(CJ4/12)-1 ->  | CK125: =(1+CK124)^(CK4/12)-1 ->  | CL125: =(1+CL124)^(CL4/12)-1 ->  | CM125: =(1+CM124)^(CM4/12)-1 ->  | CN125: =(1+CN124)^(CN4/12)-1 ->  | CO125: =(1+CO124)^(CO4/12)-1 ->  | CP125: =(1+CP124)^(CP4/12)-1 ->  | CQ125: =(1+CQ124)^(CQ4/12)-1 ->  | CR125: =(1+CR124)^(CR4/12)-1 ->  | CS125: =(1+CS124)^(CS4/12)-1 ->  | CT125: =(1+CT124)^(CT4/12)-1 ->  | CU125: =(1+CU124)^(CU4/12)-1 ->  | CV125: =(1+CV124)^(CV4/12)-1 ->  | CW125: =(1+CW124)^(CW4/12)-1 ->  | CX125: =(1+CX124)^(CX4/12)-1 ->  | CY125: =(1+CY124)^(CY4/12)-1 ->  | CZ125: =(1+CZ124)^(CZ4/12)-1 ->  | DA125: =(1+DA124)^(DA4/12)-1 ->  | DB125: =(1+DB124)^(DB4/12)-1 ->  | DC125: =(1+DC124)^(DC4/12)-1 ->  | DD125: =(1+DD124)^(DD4/12)-1 ->  | DE125: =(1+DE124)^(DE4/12)-1 ->  | DF125: =(1+DF124)^(DF4/12)-1 ->  | DG125: =(1+DG124)^(DG4/12)-1 ->  | DH125: =(1+DH124)^(DH4/12)-1 ->  | DI125: =(1+DI124)^(DI4/12)-1 ->  | DJ125: =(1+DJ124)^(DJ4/12)-1 ->  | DK125: =(1+DK124)^(DK4/12)-1 ->  | DL125: =(1+DL124)^(DL4/12)-1 ->  | DM125: =(1+DM124)^(DM4/12)-1 ->  | DN125: =(1+DN124)^(DN4/12)-1 ->  | DO125: =(1+DO124)^(DO4/12)-1 ->  | DP125: =(1+DP124)^(DP4/12)-1 ->  | DQ125: =(1+DQ124)^(DQ4/12)-1 ->  | DR125: =(1+DR124)^(DR4/12)-1 ->  | DS125: =(1+DS124)^(DS4/12)-1 ->  | DT125: =(1+DT124)^(DT4/12)-1 ->  | DU125: =(1+DU124)^(DU4/12)-1 ->  | DV125: =(1+DV124)^(DV4/12)-1 ->  | DW125: =(1+DW124)^(DW4/12)-1 ->  | DX125: =(1+DX124)^(DX4/12)-1 ->  | DY125: =(1+DY124)^(DY4/12)-1 ->  | DZ125: =(1+DZ124)^(DZ4/12)-1 ->  | EA125: =(1+EA124)^(EA4/12)-1 ->  | EB125: =(1+EB124)^(EB4/12)-1 ->  | EC125: =(1+EC124)^(EC4/12)-1 ->  | ED125: =(1+ED124)^(ED4/12)-1 ->  | EE125: =(1+EE124)^(EE4/12)-1 ->  | EF125: =(1+EF124)^(EF4/12)-1 ->  | EG125: =(1+EG124)^(EG4/12)-1 ->  | EH125: =(1+EH124)^(EH4/12)-1 ->  | EI125: =(1+EI124)^(EI4/12)-1 ->  | EJ125: =(1+EJ124)^(EJ4/12)-1 ->  | EK125: =(1+EK124)^(EK4/12)-1 ->  | EL125: =(1+EL124)^(EL4/12)-1 ->  | EM125: =(1+EM124)^(EM4/12)-1 ->  | EN125: =(1+EN124)^(EN4/12)-1 ->  | EO125: =(1+EO124)^(EO4/12)-1 ->  | EP125: =(1+EP124)^(EP4/12)-1 ->  | EQ125: =(1+EQ124)^(EQ4/12)-1 ->  | ER125: =(1+ER124)^(ER4/12)-1 ->  | ES125: =(1+ES124)^(ES4/12)-1 ->  | ET125: =(1+ET124)^(ET4/12)-1 ->  | EU125: =(1+EU124)^(EU4/12)-1 ->  | EV125: =(1+EV124)^(EV4/12)-1 ->  | EW125: =(1+EW124)^(EW4/12)-1 ->  | EX125: =(1+EX124)^(EX4/12)-1 ->  | EY125: =(1+EY124)^(EY4/12)-1 ->  | EZ125: =(1+EZ124)^(EZ4/12)-1 ->  | FA125: =(1+FA124)^(FA4/12)-1 ->  | FB125: =(1+FB124)^(FB4/12)-1 ->  | FC125: =(1+FC124)^(FC4/12)-1 ->  | FD125: =(1+FD124)^(FD4/12)-1 ->  | FE125: =(1+FE124)^(FE4/12)-1 ->  | FF125: =(1+FF124)^(FF4/12)-1 ->  | FG125: =(1+FG124)^(FG4/12)-1 ->  | FH125: =(1+FH124)^(FH4/12)-1 ->  | FI125: =(1+FI124)^(FI4/12)-1 ->  | FJ125: =(1+FJ124)^(FJ4/12)-1 ->  | FK125: =(1+FK124)^(FK4/12)-1 ->  | FL125: =(1+FL124)^(FL4/12)-1 ->  | FM125: =(1+FM124)^(FM4/12)-1 ->  | FN125: =(1+FN124)^(FN4/12)-1 ->  | FO125: =(1+FO124)^(FO4/12)-1 ->  | FP125: =(1+FP124)^(FP4/12)-1 ->  | FQ125: =(1+FQ124)^(FQ4/12)-1 ->  | FR125: =(1+FR124)^(FR4/12)-1 ->  | FS125: =(1+FS124)^(FS4/12)-1 ->  | FT125: =(1+FT124)^(FT4/12)-1 ->  | FU125: =(1+FU124)^(FU4/12)-1 ->  | FV125: =(1+FV124)^(FV4/12)-1 ->  | FW125: =(1+FW124)^(FW4/12)-1 ->  | FX125: =(1+FX124)^(FX4/12)-1 ->  | FY125: =(1+FY124)^(FY4/12)-1 ->  | FZ125: =(1+FZ124)^(FZ4/12)-1 ->  | GA125: =(1+GA124)^(GA4/12)-1 ->  | GB125: =(1+GB124)^(GB4/12)-1 ->  | GC125: =(1+GC124)^(GC4/12)-1 ->  | GD125: =(1+GD124)^(GD4/12)-1 ->  | GE125: =(1+GE124)^(GE4/12)-1 ->  | GF125: =(1+GF124)^(GF4/12)-1 ->  | GG125: =(1+GG124)^(GG4/12)-1 ->  | GH125: =(1+GH124)^(GH4/12)-1 ->  | GI125: =(1+GI124)^(GI4/12)-1 ->  | GJ125: =(1+GJ124)^(GJ4/12)-1 ->  | GK125: =(1+GK124)^(GK4/12)-1 ->  | GL125: =(1+GL124)^(GL4/12)-1 ->  | GM125: =(1+GM124)^(GM4/12)-1 ->  | GN125: =(1+GN124)^(GN4/12)-1 ->  | GO125: =(1+GO124)^(GO4/12)-1 ->  | GP125: =(1+GP124)^(GP4/12)-1 ->  | GQ125: =(1+GQ124)^(GQ4/12)-1 ->  | GR125: =(1+GR124)^(GR4/12)-1 ->  | GS125: =(1+GS124)^(GS4/12)-1 ->  | GT125: =(1+GT124)^(GT4/12)-1 ->  | GU125: =(1+GU124)^(GU4/12)-1 ->  | GV125: =(1+GV124)^(GV4/12)-1 ->  | GW125: =(1+GW124)^(GW4/12)-1 ->  | GX125: =(1+GX124)^(GX4/12)-1 ->  | GY125: =(1+GY124)^(GY4/12)-1 ->  | GZ125: =(1+GZ124)^(GZ4/12)-1 ->  | HA125: =(1+HA124)^(HA4/12)-1 ->  | HB125: =(1+HB124)^(HB4/12)-1 ->  | HC125: =(1+HC124)^(HC4/12)-1 ->  | HD125: =(1+HD124)^(HD4/12)-1 ->  | HE125: =(1+HE124)^(HE4/12)-1 ->  | HF125: =(1+HF124)^(HF4/12)-1 ->  | HG125: =(1+HG124)^(HG4/12)-1 ->  | HH125: =(1+HH124)^(HH4/12)-1 ->  | HI125: =(1+HI124)^(HI4/12)-1 ->  | HJ125: =(1+HJ124)^(HJ4/12)-1 ->  | HK125: =(1+HK124)^(HK4/12)-1 ->  | HL125: =(1+HL124)^(HL4/12)-1 ->  | HM125: =(1+HM124)^(HM4/12)-1 ->  | HN125: =(1+HN124)^(HN4/12)-1 ->  | HO125: =(1+HO124)^(HO4/12)-1 ->  | HP125: =(1+HP124)^(HP4/12)-1 ->  | HQ125: =(1+HQ124)^(HQ4/12)-1 ->  | HR125: =(1+HR124)^(HR4/12)-1 ->  | HS125: =(1+HS124)^(HS4/12)-1 ->  | HT125: =(1+HT124)^(HT4/12)-1 ->  | HU125: =(1+HU124)^(HU4/12)-1 ->  | HV125: =(1+HV124)^(HV4/12)-1 ->  | HW125: =(1+HW124)^(HW4/12)-1 ->  | HX125: =(1+HX124)^(HX4/12)-1 ->  | HY125: =(1+HY124)^(HY4/12)-1 ->  | HZ125: =(1+HZ124)^(HZ4/12)-1 ->  | IA125: =(1+IA124)^(IA4/12)-1 ->  | IB125: =(1+IB124)^(IB4/12)-1 ->  | IC125: =(1+IC124)^(IC4/12)-1 ->  | ID125: =(1+ID124)^(ID4/12)-1 ->  | IE125: =(1+IE124)^(IE4/12)-1 ->  | IF125: =(1+IF124)^(IF4/12)-1 ->  | IG125: =(1+IG124)^(IG4/12)-1 ->  | IH125: =(1+IH124)^(IH4/12)-1 ->  | II125: =(1+II124)^(II4/12)-1 ->  | IJ125: =(1+IJ124)^(IJ4/12)-1 ->  | IK125: =(1+IK124)^(IK4/12)-1 ->  | IL125: =(1+IL124)^(IL4/12)-1 ->  | IM125: =(1+IM124)^(IM4/12)-1 ->  | IN125: =(1+IN124)^(IN4/12)-1 ->  | IO125: =(1+IO124)^(IO4/12)-1 ->  | IP125: =(1+IP124)^(IP4/12)-1 ->  | IQ125: =(1+IQ124)^(IQ4/12)-1 ->  | IR125: =(1+IR124)^(IR4/12)-1 ->  | IS125: =(1+IS124)^(IS4/12)-1 -> 
D126: Price Index | H126: 1 | I126: =H126*(1+I125) ->  | J126: =I126*(1+J125) ->  | BV126: =BU126*(1+BV125) ->  | EH126: =EG126*(1+EH125) ->  | GT126: =GS126*(1+GT125) -> 
D127: Applied Price | F127: USD/Unit | I127: =I126*I123 ->  | J127: =J126*J123 ->  | BS127: =BS126*BS123 ->  | BT127: =BT126*BT123 ->  | BU127: =BU126*BU123 ->  | BV127: =BV126*BV123 ->  | BW127: =BW126*BW123 ->  | BX127: =BX126*BX123 ->  | BY127: =BY126*BY123 ->  | BZ127: =BZ126*BZ123 ->  | CA127: =CA126*CA123 ->  | CB127: =CB126*CB123 ->  | CC127: =CC126*CC123 ->  | CD127: =CD126*CD123 ->  | CE127: =CE126*CE123 ->  | CF127: =CF126*CF123 ->  | CG127: =CG126*CG123 ->  | CH127: =CH126*CH123 ->  | CI127: =CI126*CI123 ->  | CJ127: =CJ126*CJ123 ->  | CK127: =CK126*CK123 ->  | CL127: =CL126*CL123 ->  | CM127: =CM126*CM123 ->  | CN127: =CN126*CN123 ->  | CO127: =CO126*CO123 ->  | CP127: =CP126*CP123 ->  | CQ127: =CQ126*CQ123 ->  | CR127: =CR126*CR123 ->  | CS127: =CS126*CS123 ->  | DH127: =DH126*DH123 ->  | EA127: =EA126*EA123 ->  | EL127: =EL126*EL123 ->  | GX127: =GX126*GX123 -> 
D129: Unit Sales Growth | F129: % p.a. | I129: =LOOKUP(I5,Scenarios!8:8,Scenarios!22:22) ->  | J129: =LOOKUP(J5,Scenarios!8:8,Scenarios!22:22) ->  | K129: =LOOKUP(K5,Scenarios!8:8,Scenarios!22:22) ->  | L129: =LOOKUP(L5,Scenarios!8:8,Scenarios!22:22) ->  | M129: =LOOKUP(M5,Scenarios!8:8,Scenarios!22:22) ->  | N129: =LOOKUP(N5,Scenarios!8:8,Scenarios!22:22) ->  | O129: =LOOKUP(O5,Scenarios!8:8,Scenarios!22:22) ->  | P129: =LOOKUP(P5,Scenarios!8:8,Scenarios!22:22) ->  | Q129: =LOOKUP(Q5,Scenarios!8:8,Scenarios!22:22) ->  | R129: =LOOKUP(R5,Scenarios!8:8,Scenarios!22:22) ->  | S129: =LOOKUP(S5,Scenarios!8:8,Scenarios!22:22) ->  | T129: =LOOKUP(T5,Scenarios!8:8,Scenarios!22:22) ->  | U129: =LOOKUP(U5,Scenarios!8:8,Scenarios!22:22) ->  | V129: =LOOKUP(V5,Scenarios!8:8,Scenarios!22:22) ->  | W129: =LOOKUP(W5,Scenarios!8:8,Scenarios!22:22) ->  | X129: =LOOKUP(X5,Scenarios!8:8,Scenarios!22:22) ->  | Y129: =LOOKUP(Y5,Scenarios!8:8,Scenarios!22:22) ->  | Z129: =LOOKUP(Z5,Scenarios!8:8,Scenarios!22:22) ->  | AA129: =LOOKUP(AA5,Scenarios!8:8,Scenarios!22:22) ->  | AB129: =LOOKUP(AB5,Scenarios!8:8,Scenarios!22:22) ->  | AC129: =LOOKUP(AC5,Scenarios!8:8,Scenarios!22:22) ->  | AD129: =LOOKUP(AD5,Scenarios!8:8,Scenarios!22:22) ->  | AE129: =LOOKUP(AE5,Scenarios!8:8,Scenarios!22:22) ->  | AF129: =LOOKUP(AF5,Scenarios!8:8,Scenarios!22:22) ->  | AG129: =LOOKUP(AG5,Scenarios!8:8,Scenarios!22:22) ->  | AH129: =LOOKUP(AH5,Scenarios!8:8,Scenarios!22:22) ->  | AI129: =LOOKUP(AI5,Scenarios!8:8,Scenarios!22:22) ->  | AJ129: =LOOKUP(AJ5,Scenarios!8:8,Scenarios!22:22) ->  | AK129: =LOOKUP(AK5,Scenarios!8:8,Scenarios!22:22) ->  | AL129: =LOOKUP(AL5,Scenarios!8:8,Scenarios!22:22) ->  | AM129: =LOOKUP(AM5,Scenarios!8:8,Scenarios!22:22) ->  | AN129: =LOOKUP(AN5,Scenarios!8:8,Scenarios!22:22) ->  | AO129: =LOOKUP(AO5,Scenarios!8:8,Scenarios!22:22) ->  | AP129: =LOOKUP(AP5,Scenarios!8:8,Scenarios!22:22) ->  | AQ129: =LOOKUP(AQ5,Scenarios!8:8,Scenarios!22:22) ->  | AR129: =LOOKUP(AR5,Scenarios!8:8,Scenarios!22:22) ->  | AS129: =LOOKUP(AS5,Scenarios!8:8,Scenarios!22:22) ->  | AT129: =LOOKUP(AT5,Scenarios!8:8,Scenarios!22:22) ->  | AU129: =LOOKUP(AU5,Scenarios!8:8,Scenarios!22:22) ->  | AV129: =LOOKUP(AV5,Scenarios!8:8,Scenarios!22:22) ->  | AW129: =LOOKUP(AW5,Scenarios!8:8,Scenarios!22:22) ->  | AX129: =LOOKUP(AX5,Scenarios!8:8,Scenarios!22:22) ->  | AY129: =LOOKUP(AY5,Scenarios!8:8,Scenarios!22:22) ->  | AZ129: =LOOKUP(AZ5,Scenarios!8:8,Scenarios!22:22) ->  | BA129: =LOOKUP(BA5,Scenarios!8:8,Scenarios!22:22) ->  | BB129: =LOOKUP(BB5,Scenarios!8:8,Scenarios!22:22) ->  | BC129: =LOOKUP(BC5,Scenarios!8:8,Scenarios!22:22) ->  | BD129: =LOOKUP(BD5,Scenarios!8:8,Scenarios!22:22) ->  | BE129: =LOOKUP(BE5,Scenarios!8:8,Scenarios!22:22) ->  | BF129: =LOOKUP(BF5,Scenarios!8:8,Scenarios!22:22) ->  | BG129: =LOOKUP(BG5,Scenarios!8:8,Scenarios!22:22) ->  | BH129: =LOOKUP(BH5,Scenarios!8:8,Scenarios!22:22) ->  | BI129: =LOOKUP(BI5,Scenarios!8:8,Scenarios!22:22) ->  | BJ129: =LOOKUP(BJ5,Scenarios!8:8,Scenarios!22:22) ->  | BK129: =LOOKUP(BK5,Scenarios!8:8,Scenarios!22:22) ->  | BL129: =LOOKUP(BL5,Scenarios!8:8,Scenarios!22:22) ->  | BM129: =LOOKUP(BM5,Scenarios!8:8,Scenarios!22:22) ->  | BN129: =LOOKUP(BN5,Scenarios!8:8,Scenarios!22:22) ->  | BO129: =LOOKUP(BO5,Scenarios!8:8,Scenarios!22:22) ->  | BP129: =LOOKUP(BP5,Scenarios!8:8,Scenarios!22:22) ->  | BQ129: =LOOKUP(BQ5,Scenarios!8:8,Scenarios!22:22) ->  | BR129: =LOOKUP(BR5,Scenarios!8:8,Scenarios!22:22) ->  | BS129: =LOOKUP(BS5,Scenarios!8:8,Scenarios!22:22) ->  | BT129: =LOOKUP(BT5,Scenarios!8:8,Scenarios!22:22) ->  | BU129: =LOOKUP(BU5,Scenarios!8:8,Scenarios!22:22) ->  | BV129: =LOOKUP(BV5,Scenarios!8:8,Scenarios!22:22) ->  | BW129: =LOOKUP(BW5,Scenarios!8:8,Scenarios!22:22) ->  | BX129: =LOOKUP(BX5,Scenarios!8:8,Scenarios!22:22) ->  | BY129: =LOOKUP(BY5,Scenarios!8:8,Scenarios!22:22) ->  | BZ129: =LOOKUP(BZ5,Scenarios!8:8,Scenarios!22:22) ->  | CA129: =LOOKUP(CA5,Scenarios!8:8,Scenarios!22:22) ->  | CB129: =LOOKUP(CB5,Scenarios!8:8,Scenarios!22:22) ->  | CC129: =LOOKUP(CC5,Scenarios!8:8,Scenarios!22:22) ->  | CD129: =LOOKUP(CD5,Scenarios!8:8,Scenarios!22:22) ->  | CE129: =LOOKUP(CE5,Scenarios!8:8,Scenarios!22:22) ->  | CF129: =LOOKUP(CF5,Scenarios!8:8,Scenarios!22:22) ->  | CG129: =LOOKUP(CG5,Scenarios!8:8,Scenarios!22:22) ->  | CH129: =LOOKUP(CH5,Scenarios!8:8,Scenarios!22:22) ->  | CI129: =LOOKUP(CI5,Scenarios!8:8,Scenarios!22:22) ->  | CJ129: =LOOKUP(CJ5,Scenarios!8:8,Scenarios!22:22) ->  | CK129: =LOOKUP(CK5,Scenarios!8:8,Scenarios!22:22) ->  | CL129: =LOOKUP(CL5,Scenarios!8:8,Scenarios!22:22) ->  | CM129: =LOOKUP(CM5,Scenarios!8:8,Scenarios!22:22) ->  | CN129: =LOOKUP(CN5,Scenarios!8:8,Scenarios!22:22) ->  | CO129: =LOOKUP(CO5,Scenarios!8:8,Scenarios!22:22) ->  | CP129: =LOOKUP(CP5,Scenarios!8:8,Scenarios!22:22) ->  | CQ129: =LOOKUP(CQ5,Scenarios!8:8,Scenarios!22:22) ->  | CR129: =LOOKUP(CR5,Scenarios!8:8,Scenarios!22:22) ->  | CS129: =LOOKUP(CS5,Scenarios!8:8,Scenarios!22:22) ->  | CT129: =LOOKUP(CT5,Scenarios!8:8,Scenarios!22:22) ->  | CU129: =LOOKUP(CU5,Scenarios!8:8,Scenarios!22:22) ->  | CV129: =LOOKUP(CV5,Scenarios!8:8,Scenarios!22:22) ->  | CW129: =LOOKUP(CW5,Scenarios!8:8,Scenarios!22:22) ->  | CX129: =LOOKUP(CX5,Scenarios!8:8,Scenarios!22:22) ->  | CY129: =LOOKUP(CY5,Scenarios!8:8,Scenarios!22:22) ->  | CZ129: =LOOKUP(CZ5,Scenarios!8:8,Scenarios!22:22) ->  | DA129: =LOOKUP(DA5,Scenarios!8:8,Scenarios!22:22) ->  | DB129: =LOOKUP(DB5,Scenarios!8:8,Scenarios!22:22) ->  | DC129: =LOOKUP(DC5,Scenarios!8:8,Scenarios!22:22) ->  | DD129: =LOOKUP(DD5,Scenarios!8:8,Scenarios!22:22) ->  | DE129: =LOOKUP(DE5,Scenarios!8:8,Scenarios!22:22) ->  | DF129: =LOOKUP(DF5,Scenarios!8:8,Scenarios!22:22) ->  | DG129: =LOOKUP(DG5,Scenarios!8:8,Scenarios!22:22) ->  | DH129: =LOOKUP(DH5,Scenarios!8:8,Scenarios!22:22) ->  | DI129: =LOOKUP(DI5,Scenarios!8:8,Scenarios!22:22) ->  | DJ129: =LOOKUP(DJ5,Scenarios!8:8,Scenarios!22:22) ->  | DK129: =LOOKUP(DK5,Scenarios!8:8,Scenarios!22:22) ->  | DL129: =LOOKUP(DL5,Scenarios!8:8,Scenarios!22:22) ->  | DM129: =LOOKUP(DM5,Scenarios!8:8,Scenarios!22:22) ->  | DN129: =LOOKUP(DN5,Scenarios!8:8,Scenarios!22:22) ->  | DO129: =LOOKUP(DO5,Scenarios!8:8,Scenarios!22:22) ->  | DP129: =LOOKUP(DP5,Scenarios!8:8,Scenarios!22:22) ->  | DQ129: =LOOKUP(DQ5,Scenarios!8:8,Scenarios!22:22) ->  | DR129: =LOOKUP(DR5,Scenarios!8:8,Scenarios!22:22) ->  | DS129: =LOOKUP(DS5,Scenarios!8:8,Scenarios!22:22) ->  | DT129: =LOOKUP(DT5,Scenarios!8:8,Scenarios!22:22) ->  | DU129: =LOOKUP(DU5,Scenarios!8:8,Scenarios!22:22) ->  | DV129: =LOOKUP(DV5,Scenarios!8:8,Scenarios!22:22) ->  | DW129: =LOOKUP(DW5,Scenarios!8:8,Scenarios!22:22) ->  | DX129: =LOOKUP(DX5,Scenarios!8:8,Scenarios!22:22) ->  | DY129: =LOOKUP(DY5,Scenarios!8:8,Scenarios!22:22) ->  | DZ129: =LOOKUP(DZ5,Scenarios!8:8,Scenarios!22:22) ->  | EA129: =LOOKUP(EA5,Scenarios!8:8,Scenarios!22:22) ->  | EB129: =LOOKUP(EB5,Scenarios!8:8,Scenarios!22:22) ->  | EC129: =LOOKUP(EC5,Scenarios!8:8,Scenarios!22:22) ->  | ED129: =LOOKUP(ED5,Scenarios!8:8,Scenarios!22:22) ->  | EE129: =LOOKUP(EE5,Scenarios!8:8,Scenarios!22:22) ->  | EF129: =LOOKUP(EF5,Scenarios!8:8,Scenarios!22:22) ->  | EG129: =LOOKUP(EG5,Scenarios!8:8,Scenarios!22:22) ->  | EH129: =LOOKUP(EH5,Scenarios!8:8,Scenarios!22:22) ->  | EI129: =LOOKUP(EI5,Scenarios!8:8,Scenarios!22:22) ->  | EJ129: =LOOKUP(EJ5,Scenarios!8:8,Scenarios!22:22) ->  | EK129: =LOOKUP(EK5,Scenarios!8:8,Scenarios!22:22) ->  | EL129: =LOOKUP(EL5,Scenarios!8:8,Scenarios!22:22) ->  | EM129: =LOOKUP(EM5,Scenarios!8:8,Scenarios!22:22) ->  | EN129: =LOOKUP(EN5,Scenarios!8:8,Scenarios!22:22) ->  | EO129: =LOOKUP(EO5,Scenarios!8:8,Scenarios!22:22) ->  | EP129: =LOOKUP(EP5,Scenarios!8:8,Scenarios!22:22) ->  | EQ129: =LOOKUP(EQ5,Scenarios!8:8,Scenarios!22:22) ->  | ER129: =LOOKUP(ER5,Scenarios!8:8,Scenarios!22:22) ->  | ES129: =LOOKUP(ES5,Scenarios!8:8,Scenarios!22:22) ->  | ET129: =LOOKUP(ET5,Scenarios!8:8,Scenarios!22:22) ->  | EU129: =LOOKUP(EU5,Scenarios!8:8,Scenarios!22:22) ->  | EV129: =LOOKUP(EV5,Scenarios!8:8,Scenarios!22:22) ->  | EW129: =LOOKUP(EW5,Scenarios!8:8,Scenarios!22:22) ->  | EX129: =LOOKUP(EX5,Scenarios!8:8,Scenarios!22:22) ->  | EY129: =LOOKUP(EY5,Scenarios!8:8,Scenarios!22:22) ->  | EZ129: =LOOKUP(EZ5,Scenarios!8:8,Scenarios!22:22) ->  | FA129: =LOOKUP(FA5,Scenarios!8:8,Scenarios!22:22) ->  | FB129: =LOOKUP(FB5,Scenarios!8:8,Scenarios!22:22) ->  | FC129: =LOOKUP(FC5,Scenarios!8:8,Scenarios!22:22) ->  | FD129: =LOOKUP(FD5,Scenarios!8:8,Scenarios!22:22) ->  | FE129: =LOOKUP(FE5,Scenarios!8:8,Scenarios!22:22) ->  | FF129: =LOOKUP(FF5,Scenarios!8:8,Scenarios!22:22) ->  | FG129: =LOOKUP(FG5,Scenarios!8:8,Scenarios!22:22) ->  | FH129: =LOOKUP(FH5,Scenarios!8:8,Scenarios!22:22) ->  | FI129: =LOOKUP(FI5,Scenarios!8:8,Scenarios!22:22) ->  | FJ129: =LOOKUP(FJ5,Scenarios!8:8,Scenarios!22:22) ->  | FK129: =LOOKUP(FK5,Scenarios!8:8,Scenarios!22:22) ->  | FL129: =LOOKUP(FL5,Scenarios!8:8,Scenarios!22:22) ->  | FM129: =LOOKUP(FM5,Scenarios!8:8,Scenarios!22:22) ->  | FN129: =LOOKUP(FN5,Scenarios!8:8,Scenarios!22:22) ->  | FO129: =LOOKUP(FO5,Scenarios!8:8,Scenarios!22:22) ->  | FP129: =LOOKUP(FP5,Scenarios!8:8,Scenarios!22:22) ->  | FQ129: =LOOKUP(FQ5,Scenarios!8:8,Scenarios!22:22) ->  | FR129: =LOOKUP(FR5,Scenarios!8:8,Scenarios!22:22) ->  | FS129: =LOOKUP(FS5,Scenarios!8:8,Scenarios!22:22) ->  | FT129: =LOOKUP(FT5,Scenarios!8:8,Scenarios!22:22) ->  | FU129: =LOOKUP(FU5,Scenarios!8:8,Scenarios!22:22) ->  | FV129: =LOOKUP(FV5,Scenarios!8:8,Scenarios!22:22) ->  | FW129: =LOOKUP(FW5,Scenarios!8:8,Scenarios!22:22) ->  | FX129: =LOOKUP(FX5,Scenarios!8:8,Scenarios!22:22) ->  | FY129: =LOOKUP(FY5,Scenarios!8:8,Scenarios!22:22) ->  | FZ129: =LOOKUP(FZ5,Scenarios!8:8,Scenarios!22:22) ->  | GA129: =LOOKUP(GA5,Scenarios!8:8,Scenarios!22:22) ->  | GB129: =LOOKUP(GB5,Scenarios!8:8,Scenarios!22:22) ->  | GC129: =LOOKUP(GC5,Scenarios!8:8,Scenarios!22:22) ->  | GD129: =LOOKUP(GD5,Scenarios!8:8,Scenarios!22:22) ->  | GE129: =LOOKUP(GE5,Scenarios!8:8,Scenarios!22:22) ->  | GF129: =LOOKUP(GF5,Scenarios!8:8,Scenarios!22:22) ->  | GG129: =LOOKUP(GG5,Scenarios!8:8,Scenarios!22:22) ->  | GH129: =LOOKUP(GH5,Scenarios!8:8,Scenarios!22:22) ->  | GI129: =LOOKUP(GI5,Scenarios!8:8,Scenarios!22:22) ->  | GJ129: =LOOKUP(GJ5,Scenarios!8:8,Scenarios!22:22) ->  | GK129: =LOOKUP(GK5,Scenarios!8:8,Scenarios!22:22) ->  | GL129: =LOOKUP(GL5,Scenarios!8:8,Scenarios!22:22) ->  | GM129: =LOOKUP(GM5,Scenarios!8:8,Scenarios!22:22) ->  | GN129: =LOOKUP(GN5,Scenarios!8:8,Scenarios!22:22) ->  | GO129: =LOOKUP(GO5,Scenarios!8:8,Scenarios!22:22) ->  | GP129: =LOOKUP(GP5,Scenarios!8:8,Scenarios!22:22) ->  | GQ129: =LOOKUP(GQ5,Scenarios!8:8,Scenarios!22:22) ->  | GR129: =LOOKUP(GR5,Scenarios!8:8,Scenarios!22:22) ->  | GS129: =LOOKUP(GS5,Scenarios!8:8,Scenarios!22:22) ->  | GT129: =LOOKUP(GT5,Scenarios!8:8,Scenarios!22:22) ->  | GU129: =LOOKUP(GU5,Scenarios!8:8,Scenarios!22:22) ->  | GV129: =LOOKUP(GV5,Scenarios!8:8,Scenarios!22:22) ->  | GW129: =LOOKUP(GW5,Scenarios!8:8,Scenarios!22:22) ->  | GX129: =LOOKUP(GX5,Scenarios!8:8,Scenarios!22:22) ->  | GY129: =LOOKUP(GY5,Scenarios!8:8,Scenarios!22:22) ->  | GZ129: =LOOKUP(GZ5,Scenarios!8:8,Scenarios!22:22) ->  | HA129: =LOOKUP(HA5,Scenarios!8:8,Scenarios!22:22) ->  | HB129: =LOOKUP(HB5,Scenarios!8:8,Scenarios!22:22) ->  | HC129: =LOOKUP(HC5,Scenarios!8:8,Scenarios!22:22) ->  | HD129: =LOOKUP(HD5,Scenarios!8:8,Scenarios!22:22) ->  | HE129: =LOOKUP(HE5,Scenarios!8:8,Scenarios!22:22) ->  | HF129: =LOOKUP(HF5,Scenarios!8:8,Scenarios!22:22) ->  | HG129: =LOOKUP(HG5,Scenarios!8:8,Scenarios!22:22) ->  | HH129: =LOOKUP(HH5,Scenarios!8:8,Scenarios!22:22) ->  | HI129: =LOOKUP(HI5,Scenarios!8:8,Scenarios!22:22) ->  | HJ129: =LOOKUP(HJ5,Scenarios!8:8,Scenarios!22:22) ->  | HK129: =LOOKUP(HK5,Scenarios!8:8,Scenarios!22:22) ->  | HL129: =LOOKUP(HL5,Scenarios!8:8,Scenarios!22:22) ->  | HM129: =LOOKUP(HM5,Scenarios!8:8,Scenarios!22:22) ->  | HN129: =LOOKUP(HN5,Scenarios!8:8,Scenarios!22:22) ->  | HO129: =LOOKUP(HO5,Scenarios!8:8,Scenarios!22:22) ->  | HP129: =LOOKUP(HP5,Scenarios!8:8,Scenarios!22:22) ->  | HQ129: =LOOKUP(HQ5,Scenarios!8:8,Scenarios!22:22) ->  | HR129: =LOOKUP(HR5,Scenarios!8:8,Scenarios!22:22) ->  | HS129: =LOOKUP(HS5,Scenarios!8:8,Scenarios!22:22) ->  | HT129: =LOOKUP(HT5,Scenarios!8:8,Scenarios!22:22) ->  | HU129: =LOOKUP(HU5,Scenarios!8:8,Scenarios!22:22) ->  | HV129: =LOOKUP(HV5,Scenarios!8:8,Scenarios!22:22) ->  | HW129: =LOOKUP(HW5,Scenarios!8:8,Scenarios!22:22) ->  | HX129: =LOOKUP(HX5,Scenarios!8:8,Scenarios!22:22) ->  | HY129: =LOOKUP(HY5,Scenarios!8:8,Scenarios!22:22) ->  | HZ129: =LOOKUP(HZ5,Scenarios!8:8,Scenarios!22:22) ->  | IA129: =LOOKUP(IA5,Scenarios!8:8,Scenarios!22:22) ->  | IB129: =LOOKUP(IB5,Scenarios!8:8,Scenarios!22:22) ->  | IC129: =LOOKUP(IC5,Scenarios!8:8,Scenarios!22:22) ->  | ID129: =LOOKUP(ID5,Scenarios!8:8,Scenarios!22:22) ->  | IE129: =LOOKUP(IE5,Scenarios!8:8,Scenarios!22:22) ->  | IF129: =LOOKUP(IF5,Scenarios!8:8,Scenarios!22:22) ->  | IG129: =LOOKUP(IG5,Scenarios!8:8,Scenarios!22:22) ->  | IH129: =LOOKUP(IH5,Scenarios!8:8,Scenarios!22:22) ->  | II129: =LOOKUP(II5,Scenarios!8:8,Scenarios!22:22) ->  | IJ129: =LOOKUP(IJ5,Scenarios!8:8,Scenarios!22:22) ->  | IK129: =LOOKUP(IK5,Scenarios!8:8,Scenarios!22:22) ->  | IL129: =LOOKUP(IL5,Scenarios!8:8,Scenarios!22:22) ->  | IM129: =LOOKUP(IM5,Scenarios!8:8,Scenarios!22:22) ->  | IN129: =LOOKUP(IN5,Scenarios!8:8,Scenarios!22:22) ->  | IO129: =LOOKUP(IO5,Scenarios!8:8,Scenarios!22:22) ->  | IP129: =LOOKUP(IP5,Scenarios!8:8,Scenarios!22:22) ->  | IQ129: =LOOKUP(IQ5,Scenarios!8:8,Scenarios!22:22) ->  | IR129: =LOOKUP(IR5,Scenarios!8:8,Scenarios!22:22) ->  | IS129: =LOOKUP(IS5,Scenarios!8:8,Scenarios!22:22) -> 
D130: Unit Sales Growth - Interpolate | F130: % p.p. | I130: =IFERROR(interpolate_look_up(I5,Scenarios!8:8,Scenarios!22:22),F130) -> % p.p. | J130: =IFERROR(interpolate_look_up(J5,Scenarios!8:8,Scenarios!22:22),I130) -> % p.p. | K130: =IFERROR(interpolate_look_up(K5,Scenarios!8:8,Scenarios!22:22),J130) -> % p.p. | L130: =IFERROR(interpolate_look_up(L5,Scenarios!8:8,Scenarios!22:22),K130) -> % p.p. | M130: =IFERROR(interpolate_look_up(M5,Scenarios!8:8,Scenarios!22:22),L130) -> % p.p. | N130: =IFERROR(interpolate_look_up(N5,Scenarios!8:8,Scenarios!22:22),M130) -> % p.p. | O130: =IFERROR(interpolate_look_up(O5,Scenarios!8:8,Scenarios!22:22),N130) -> % p.p. | P130: =IFERROR(interpolate_look_up(P5,Scenarios!8:8,Scenarios!22:22),O130) -> % p.p. | Q130: =IFERROR(interpolate_look_up(Q5,Scenarios!8:8,Scenarios!22:22),P130) -> % p.p. | R130: =IFERROR(interpolate_look_up(R5,Scenarios!8:8,Scenarios!22:22),Q130) -> % p.p. | S130: =IFERROR(interpolate_look_up(S5,Scenarios!8:8,Scenarios!22:22),R130) -> % p.p. | T130: =IFERROR(interpolate_look_up(T5,Scenarios!8:8,Scenarios!22:22),S130) -> % p.p. | U130: =IFERROR(interpolate_look_up(U5,Scenarios!8:8,Scenarios!22:22),T130) -> % p.p. | V130: =IFERROR(interpolate_look_up(V5,Scenarios!8:8,Scenarios!22:22),U130) -> % p.p. | W130: =IFERROR(interpolate_look_up(W5,Scenarios!8:8,Scenarios!22:22),V130) -> % p.p. | X130: =IFERROR(interpolate_look_up(X5,Scenarios!8:8,Scenarios!22:22),W130) -> % p.p. | Y130: =IFERROR(interpolate_look_up(Y5,Scenarios!8:8,Scenarios!22:22),X130) -> % p.p. | Z130: =IFERROR(interpolate_look_up(Z5,Scenarios!8:8,Scenarios!22:22),Y130) -> % p.p. | AA130: =IFERROR(interpolate_look_up(AA5,Scenarios!8:8,Scenarios!22:22),Z130) -> % p.p. | AB130: =IFERROR(interpolate_look_up(AB5,Scenarios!8:8,Scenarios!22:22),AA130) -> % p.p. | AC130: =IFERROR(interpolate_look_up(AC5,Scenarios!8:8,Scenarios!22:22),AB130) -> % p.p. | AD130: =IFERROR(interpolate_look_up(AD5,Scenarios!8:8,Scenarios!22:22),AC130) -> % p.p. | AE130: =IFERROR(interpolate_look_up(AE5,Scenarios!8:8,Scenarios!22:22),AD130) -> % p.p. | AF130: =IFERROR(interpolate_look_up(AF5,Scenarios!8:8,Scenarios!22:22),AE130) -> % p.p. | AG130: =IFERROR(interpolate_look_up(AG5,Scenarios!8:8,Scenarios!22:22),AF130) -> % p.p. | AH130: =IFERROR(interpolate_look_up(AH5,Scenarios!8:8,Scenarios!22:22),AG130) -> % p.p. | AI130: =IFERROR(interpolate_look_up(AI5,Scenarios!8:8,Scenarios!22:22),AH130) -> % p.p. | AJ130: =IFERROR(interpolate_look_up(AJ5,Scenarios!8:8,Scenarios!22:22),AI130) -> % p.p. | AK130: =IFERROR(interpolate_look_up(AK5,Scenarios!8:8,Scenarios!22:22),AJ130) -> % p.p. | AL130: =IFERROR(interpolate_look_up(AL5,Scenarios!8:8,Scenarios!22:22),AK130) -> % p.p. | AM130: =IFERROR(interpolate_look_up(AM5,Scenarios!8:8,Scenarios!22:22),AL130) -> % p.p. | AN130: =IFERROR(interpolate_look_up(AN5,Scenarios!8:8,Scenarios!22:22),AM130) -> % p.p. | AO130: =IFERROR(interpolate_look_up(AO5,Scenarios!8:8,Scenarios!22:22),AN130) -> % p.p. | AP130: =IFERROR(interpolate_look_up(AP5,Scenarios!8:8,Scenarios!22:22),AO130) -> % p.p. | AQ130: =IFERROR(interpolate_look_up(AQ5,Scenarios!8:8,Scenarios!22:22),AP130) -> % p.p. | AR130: =IFERROR(interpolate_look_up(AR5,Scenarios!8:8,Scenarios!22:22),AQ130) -> % p.p. | AS130: =IFERROR(interpolate_look_up(AS5,Scenarios!8:8,Scenarios!22:22),AR130) -> % p.p. | AT130: =IFERROR(interpolate_look_up(AT5,Scenarios!8:8,Scenarios!22:22),AS130) -> % p.p. | AU130: =IFERROR(interpolate_look_up(AU5,Scenarios!8:8,Scenarios!22:22),AT130) -> % p.p. | AV130: =IFERROR(interpolate_look_up(AV5,Scenarios!8:8,Scenarios!22:22),AU130) -> % p.p. | AW130: =IFERROR(interpolate_look_up(AW5,Scenarios!8:8,Scenarios!22:22),AV130) -> % p.p. | AX130: =IFERROR(interpolate_look_up(AX5,Scenarios!8:8,Scenarios!22:22),AW130) -> % p.p. | AY130: =IFERROR(interpolate_look_up(AY5,Scenarios!8:8,Scenarios!22:22),AX130) -> % p.p. | AZ130: =IFERROR(interpolate_look_up(AZ5,Scenarios!8:8,Scenarios!22:22),AY130) -> % p.p. | BA130: =IFERROR(interpolate_look_up(BA5,Scenarios!8:8,Scenarios!22:22),AZ130) -> % p.p. | BB130: =IFERROR(interpolate_look_up(BB5,Scenarios!8:8,Scenarios!22:22),BA130) -> % p.p. | BC130: =IFERROR(interpolate_look_up(BC5,Scenarios!8:8,Scenarios!22:22),BB130) -> % p.p. | BD130: =IFERROR(interpolate_look_up(BD5,Scenarios!8:8,Scenarios!22:22),BC130) -> % p.p. | BE130: =IFERROR(interpolate_look_up(BE5,Scenarios!8:8,Scenarios!22:22),BD130) -> % p.p. | BF130: =IFERROR(interpolate_look_up(BF5,Scenarios!8:8,Scenarios!22:22),BE130) -> % p.p. | BG130: =IFERROR(interpolate_look_up(BG5,Scenarios!8:8,Scenarios!22:22),BF130) -> % p.p. | BH130: =IFERROR(interpolate_look_up(BH5,Scenarios!8:8,Scenarios!22:22),BG130) -> % p.p. | BI130: =IFERROR(interpolate_look_up(BI5,Scenarios!8:8,Scenarios!22:22),BH130) -> % p.p. | BJ130: =IFERROR(interpolate_look_up(BJ5,Scenarios!8:8,Scenarios!22:22),BI130) -> % p.p. | BK130: =IFERROR(interpolate_look_up(BK5,Scenarios!8:8,Scenarios!22:22),BJ130) -> % p.p. | BL130: =IFERROR(interpolate_look_up(BL5,Scenarios!8:8,Scenarios!22:22),BK130) -> % p.p. | BM130: =IFERROR(interpolate_look_up(BM5,Scenarios!8:8,Scenarios!22:22),BL130) -> % p.p. | BN130: =IFERROR(interpolate_look_up(BN5,Scenarios!8:8,Scenarios!22:22),BM130) -> % p.p. | BO130: =IFERROR(interpolate_look_up(BO5,Scenarios!8:8,Scenarios!22:22),BN130) -> % p.p. | BP130: =IFERROR(interpolate_look_up(BP5,Scenarios!8:8,Scenarios!22:22),BO130) -> % p.p. | BQ130: =IFERROR(interpolate_look_up(BQ5,Scenarios!8:8,Scenarios!22:22),BP130) -> % p.p. | BR130: =IFERROR(interpolate_look_up(BR5,Scenarios!8:8,Scenarios!22:22),BQ130) -> % p.p. | BS130: =IFERROR(interpolate_look_up(BS5,Scenarios!8:8,Scenarios!22:22),BR130) -> % p.p. | BT130: =IFERROR(interpolate_look_up(BT5,Scenarios!8:8,Scenarios!22:22),BS130) -> % p.p. | BU130: =IFERROR(interpolate_look_up(BU5,Scenarios!8:8,Scenarios!22:22),BT130) -> % p.p. | BV130: =IFERROR(interpolate_look_up(BV5,Scenarios!8:8,Scenarios!22:22),BU130) -> % p.p. | BW130: =IFERROR(interpolate_look_up(BW5,Scenarios!8:8,Scenarios!22:22),BV130) -> % p.p. | BX130: =IFERROR(interpolate_look_up(BX5,Scenarios!8:8,Scenarios!22:22),BW130) -> % p.p. | BY130: =IFERROR(interpolate_look_up(BY5,Scenarios!8:8,Scenarios!22:22),BX130) -> % p.p. | BZ130: =IFERROR(interpolate_look_up(BZ5,Scenarios!8:8,Scenarios!22:22),BY130) -> % p.p. | CA130: =IFERROR(interpolate_look_up(CA5,Scenarios!8:8,Scenarios!22:22),BZ130) -> % p.p. | CB130: =IFERROR(interpolate_look_up(CB5,Scenarios!8:8,Scenarios!22:22),CA130) -> % p.p. | CC130: =IFERROR(interpolate_look_up(CC5,Scenarios!8:8,Scenarios!22:22),CB130) -> % p.p. | CD130: =IFERROR(interpolate_look_up(CD5,Scenarios!8:8,Scenarios!22:22),CC130) -> % p.p. | CE130: =IFERROR(interpolate_look_up(CE5,Scenarios!8:8,Scenarios!22:22),CD130) -> % p.p. | CF130: =IFERROR(interpolate_look_up(CF5,Scenarios!8:8,Scenarios!22:22),CE130) -> % p.p. | CG130: =IFERROR(interpolate_look_up(CG5,Scenarios!8:8,Scenarios!22:22),CF130) -> % p.p. | CH130: =IFERROR(interpolate_look_up(CH5,Scenarios!8:8,Scenarios!22:22),CG130) -> % p.p. | CI130: =IFERROR(interpolate_look_up(CI5,Scenarios!8:8,Scenarios!22:22),CH130) -> % p.p. | CJ130: =IFERROR(interpolate_look_up(CJ5,Scenarios!8:8,Scenarios!22:22),CI130) -> % p.p. | CK130: =IFERROR(interpolate_look_up(CK5,Scenarios!8:8,Scenarios!22:22),CJ130) -> % p.p. | CL130: =IFERROR(interpolate_look_up(CL5,Scenarios!8:8,Scenarios!22:22),CK130) -> % p.p. | CM130: =IFERROR(interpolate_look_up(CM5,Scenarios!8:8,Scenarios!22:22),CL130) -> % p.p. | CN130: =IFERROR(interpolate_look_up(CN5,Scenarios!8:8,Scenarios!22:22),CM130) -> % p.p. | CO130: =IFERROR(interpolate_look_up(CO5,Scenarios!8:8,Scenarios!22:22),CN130) -> % p.p. | CP130: =IFERROR(interpolate_look_up(CP5,Scenarios!8:8,Scenarios!22:22),CO130) -> % p.p. | CQ130: =IFERROR(interpolate_look_up(CQ5,Scenarios!8:8,Scenarios!22:22),CP130) -> % p.p. | CR130: =IFERROR(interpolate_look_up(CR5,Scenarios!8:8,Scenarios!22:22),CQ130) -> % p.p. | CS130: =IFERROR(interpolate_look_up(CS5,Scenarios!8:8,Scenarios!22:22),CR130) -> % p.p. | CT130: =IFERROR(interpolate_look_up(CT5,Scenarios!8:8,Scenarios!22:22),CS130) -> % p.p. | CU130: =IFERROR(interpolate_look_up(CU5,Scenarios!8:8,Scenarios!22:22),CT130) -> % p.p. | CV130: =IFERROR(interpolate_look_up(CV5,Scenarios!8:8,Scenarios!22:22),CU130) -> % p.p. | CW130: =IFERROR(interpolate_look_up(CW5,Scenarios!8:8,Scenarios!22:22),CV130) -> % p.p. | CX130: =IFERROR(interpolate_look_up(CX5,Scenarios!8:8,Scenarios!22:22),CW130) -> % p.p. | CY130: =IFERROR(interpolate_look_up(CY5,Scenarios!8:8,Scenarios!22:22),CX130) -> % p.p. | CZ130: =IFERROR(interpolate_look_up(CZ5,Scenarios!8:8,Scenarios!22:22),CY130) -> % p.p. | DA130: =IFERROR(interpolate_look_up(DA5,Scenarios!8:8,Scenarios!22:22),CZ130) -> % p.p. | DB130: =IFERROR(interpolate_look_up(DB5,Scenarios!8:8,Scenarios!22:22),DA130) -> % p.p. | DC130: =IFERROR(interpolate_look_up(DC5,Scenarios!8:8,Scenarios!22:22),DB130) -> % p.p. | DD130: =IFERROR(interpolate_look_up(DD5,Scenarios!8:8,Scenarios!22:22),DC130) -> % p.p. | DE130: =IFERROR(interpolate_look_up(DE5,Scenarios!8:8,Scenarios!22:22),DD130) -> % p.p. | DF130: =IFERROR(interpolate_look_up(DF5,Scenarios!8:8,Scenarios!22:22),DE130) -> % p.p. | DG130: =IFERROR(interpolate_look_up(DG5,Scenarios!8:8,Scenarios!22:22),DF130) -> % p.p. | DH130: =IFERROR(interpolate_look_up(DH5,Scenarios!8:8,Scenarios!22:22),DG130) -> % p.p. | DI130: =IFERROR(interpolate_look_up(DI5,Scenarios!8:8,Scenarios!22:22),DH130) -> % p.p. | DJ130: =IFERROR(interpolate_look_up(DJ5,Scenarios!8:8,Scenarios!22:22),DI130) -> % p.p. | DK130: =IFERROR(interpolate_look_up(DK5,Scenarios!8:8,Scenarios!22:22),DJ130) -> % p.p. | DL130: =IFERROR(interpolate_look_up(DL5,Scenarios!8:8,Scenarios!22:22),DK130) -> % p.p. | DM130: =IFERROR(interpolate_look_up(DM5,Scenarios!8:8,Scenarios!22:22),DL130) -> % p.p. | DN130: =IFERROR(interpolate_look_up(DN5,Scenarios!8:8,Scenarios!22:22),DM130) -> % p.p. | DO130: =IFERROR(interpolate_look_up(DO5,Scenarios!8:8,Scenarios!22:22),DN130) -> % p.p. | DP130: =IFERROR(interpolate_look_up(DP5,Scenarios!8:8,Scenarios!22:22),DO130) -> % p.p. | DQ130: =IFERROR(interpolate_look_up(DQ5,Scenarios!8:8,Scenarios!22:22),DP130) -> % p.p. | DR130: =IFERROR(interpolate_look_up(DR5,Scenarios!8:8,Scenarios!22:22),DQ130) -> % p.p. | DS130: =IFERROR(interpolate_look_up(DS5,Scenarios!8:8,Scenarios!22:22),DR130) -> % p.p. | DT130: =IFERROR(interpolate_look_up(DT5,Scenarios!8:8,Scenarios!22:22),DS130) -> % p.p. | DU130: =IFERROR(interpolate_look_up(DU5,Scenarios!8:8,Scenarios!22:22),DT130) -> % p.p. | DV130: =IFERROR(interpolate_look_up(DV5,Scenarios!8:8,Scenarios!22:22),DU130) -> % p.p. | DW130: =IFERROR(interpolate_look_up(DW5,Scenarios!8:8,Scenarios!22:22),DV130) -> % p.p. | DX130: =IFERROR(interpolate_look_up(DX5,Scenarios!8:8,Scenarios!22:22),DW130) -> % p.p. | DY130: =IFERROR(interpolate_look_up(DY5,Scenarios!8:8,Scenarios!22:22),DX130) -> % p.p. | DZ130: =IFERROR(interpolate_look_up(DZ5,Scenarios!8:8,Scenarios!22:22),DY130) -> % p.p. | EA130: =IFERROR(interpolate_look_up(EA5,Scenarios!8:8,Scenarios!22:22),DZ130) -> % p.p. | EB130: =IFERROR(interpolate_look_up(EB5,Scenarios!8:8,Scenarios!22:22),EA130) -> % p.p. | EC130: =IFERROR(interpolate_look_up(EC5,Scenarios!8:8,Scenarios!22:22),EB130) -> % p.p. | ED130: =IFERROR(interpolate_look_up(ED5,Scenarios!8:8,Scenarios!22:22),EC130) -> % p.p. | EE130: =IFERROR(interpolate_look_up(EE5,Scenarios!8:8,Scenarios!22:22),ED130) -> % p.p. | EF130: =IFERROR(interpolate_look_up(EF5,Scenarios!8:8,Scenarios!22:22),EE130) -> % p.p. | EG130: =IFERROR(interpolate_look_up(EG5,Scenarios!8:8,Scenarios!22:22),EF130) -> % p.p. | EH130: =IFERROR(interpolate_look_up(EH5,Scenarios!8:8,Scenarios!22:22),EG130) -> % p.p. | EI130: =IFERROR(interpolate_look_up(EI5,Scenarios!8:8,Scenarios!22:22),EH130) -> % p.p. | EJ130: =IFERROR(interpolate_look_up(EJ5,Scenarios!8:8,Scenarios!22:22),EI130) -> % p.p. | EK130: =IFERROR(interpolate_look_up(EK5,Scenarios!8:8,Scenarios!22:22),EJ130) -> % p.p. | EL130: =IFERROR(interpolate_look_up(EL5,Scenarios!8:8,Scenarios!22:22),EK130) -> % p.p. | EM130: =IFERROR(interpolate_look_up(EM5,Scenarios!8:8,Scenarios!22:22),EL130) -> % p.p. | EN130: =IFERROR(interpolate_look_up(EN5,Scenarios!8:8,Scenarios!22:22),EM130) -> % p.p. | EO130: =IFERROR(interpolate_look_up(EO5,Scenarios!8:8,Scenarios!22:22),EN130) -> % p.p. | EP130: =IFERROR(interpolate_look_up(EP5,Scenarios!8:8,Scenarios!22:22),EO130) -> % p.p. | EQ130: =IFERROR(interpolate_look_up(EQ5,Scenarios!8:8,Scenarios!22:22),EP130) -> % p.p. | ER130: =IFERROR(interpolate_look_up(ER5,Scenarios!8:8,Scenarios!22:22),EQ130) -> % p.p. | ES130: =IFERROR(interpolate_look_up(ES5,Scenarios!8:8,Scenarios!22:22),ER130) -> % p.p. | ET130: =IFERROR(interpolate_look_up(ET5,Scenarios!8:8,Scenarios!22:22),ES130) -> % p.p. | EU130: =IFERROR(interpolate_look_up(EU5,Scenarios!8:8,Scenarios!22:22),ET130) -> % p.p. | EV130: =IFERROR(interpolate_look_up(EV5,Scenarios!8:8,Scenarios!22:22),EU130) -> % p.p. | EW130: =IFERROR(interpolate_look_up(EW5,Scenarios!8:8,Scenarios!22:22),EV130) -> % p.p. | EX130: =IFERROR(interpolate_look_up(EX5,Scenarios!8:8,Scenarios!22:22),EW130) -> % p.p. | EY130: =IFERROR(interpolate_look_up(EY5,Scenarios!8:8,Scenarios!22:22),EX130) -> % p.p. | EZ130: =IFERROR(interpolate_look_up(EZ5,Scenarios!8:8,Scenarios!22:22),EY130) -> % p.p. | FA130: =IFERROR(interpolate_look_up(FA5,Scenarios!8:8,Scenarios!22:22),EZ130) -> % p.p. | FB130: =IFERROR(interpolate_look_up(FB5,Scenarios!8:8,Scenarios!22:22),FA130) -> % p.p. | FC130: =IFERROR(interpolate_look_up(FC5,Scenarios!8:8,Scenarios!22:22),FB130) -> % p.p. | FD130: =IFERROR(interpolate_look_up(FD5,Scenarios!8:8,Scenarios!22:22),FC130) -> % p.p. | FE130: =IFERROR(interpolate_look_up(FE5,Scenarios!8:8,Scenarios!22:22),FD130) -> % p.p. | FF130: =IFERROR(interpolate_look_up(FF5,Scenarios!8:8,Scenarios!22:22),FE130) -> % p.p. | FG130: =IFERROR(interpolate_look_up(FG5,Scenarios!8:8,Scenarios!22:22),FF130) -> % p.p. | FH130: =IFERROR(interpolate_look_up(FH5,Scenarios!8:8,Scenarios!22:22),FG130) -> % p.p. | FI130: =IFERROR(interpolate_look_up(FI5,Scenarios!8:8,Scenarios!22:22),FH130) -> % p.p. | FJ130: =IFERROR(interpolate_look_up(FJ5,Scenarios!8:8,Scenarios!22:22),FI130) -> % p.p. | FK130: =IFERROR(interpolate_look_up(FK5,Scenarios!8:8,Scenarios!22:22),FJ130) -> % p.p. | FL130: =IFERROR(interpolate_look_up(FL5,Scenarios!8:8,Scenarios!22:22),FK130) -> % p.p. | FM130: =IFERROR(interpolate_look_up(FM5,Scenarios!8:8,Scenarios!22:22),FL130) -> % p.p. | FN130: =IFERROR(interpolate_look_up(FN5,Scenarios!8:8,Scenarios!22:22),FM130) -> % p.p. | FO130: =IFERROR(interpolate_look_up(FO5,Scenarios!8:8,Scenarios!22:22),FN130) -> % p.p. | FP130: =IFERROR(interpolate_look_up(FP5,Scenarios!8:8,Scenarios!22:22),FO130) -> % p.p. | FQ130: =IFERROR(interpolate_look_up(FQ5,Scenarios!8:8,Scenarios!22:22),FP130) -> % p.p. | FR130: =IFERROR(interpolate_look_up(FR5,Scenarios!8:8,Scenarios!22:22),FQ130) -> % p.p. | FS130: =IFERROR(interpolate_look_up(FS5,Scenarios!8:8,Scenarios!22:22),FR130) -> % p.p. | FT130: =IFERROR(interpolate_look_up(FT5,Scenarios!8:8,Scenarios!22:22),FS130) -> % p.p. | FU130: =IFERROR(interpolate_look_up(FU5,Scenarios!8:8,Scenarios!22:22),FT130) -> % p.p. | FV130: =IFERROR(interpolate_look_up(FV5,Scenarios!8:8,Scenarios!22:22),FU130) -> % p.p. | FW130: =IFERROR(interpolate_look_up(FW5,Scenarios!8:8,Scenarios!22:22),FV130) -> % p.p. | FX130: =IFERROR(interpolate_look_up(FX5,Scenarios!8:8,Scenarios!22:22),FW130) -> % p.p. | FY130: =IFERROR(interpolate_look_up(FY5,Scenarios!8:8,Scenarios!22:22),FX130) -> % p.p. | FZ130: =IFERROR(interpolate_look_up(FZ5,Scenarios!8:8,Scenarios!22:22),FY130) -> % p.p. | GA130: =IFERROR(interpolate_look_up(GA5,Scenarios!8:8,Scenarios!22:22),FZ130) -> % p.p. | GB130: =IFERROR(interpolate_look_up(GB5,Scenarios!8:8,Scenarios!22:22),GA130) -> % p.p. | GC130: =IFERROR(interpolate_look_up(GC5,Scenarios!8:8,Scenarios!22:22),GB130) -> % p.p. | GD130: =IFERROR(interpolate_look_up(GD5,Scenarios!8:8,Scenarios!22:22),GC130) -> % p.p. | GE130: =IFERROR(interpolate_look_up(GE5,Scenarios!8:8,Scenarios!22:22),GD130) -> % p.p. | GF130: =IFERROR(interpolate_look_up(GF5,Scenarios!8:8,Scenarios!22:22),GE130) -> % p.p. | GG130: =IFERROR(interpolate_look_up(GG5,Scenarios!8:8,Scenarios!22:22),GF130) -> % p.p. | GH130: =IFERROR(interpolate_look_up(GH5,Scenarios!8:8,Scenarios!22:22),GG130) -> % p.p. | GI130: =IFERROR(interpolate_look_up(GI5,Scenarios!8:8,Scenarios!22:22),GH130) -> % p.p. | GJ130: =IFERROR(interpolate_look_up(GJ5,Scenarios!8:8,Scenarios!22:22),GI130) -> % p.p. | GK130: =IFERROR(interpolate_look_up(GK5,Scenarios!8:8,Scenarios!22:22),GJ130) -> % p.p. | GL130: =IFERROR(interpolate_look_up(GL5,Scenarios!8:8,Scenarios!22:22),GK130) -> % p.p. | GM130: =IFERROR(interpolate_look_up(GM5,Scenarios!8:8,Scenarios!22:22),GL130) -> % p.p. | GN130: =IFERROR(interpolate_look_up(GN5,Scenarios!8:8,Scenarios!22:22),GM130) -> % p.p. | GO130: =IFERROR(interpolate_look_up(GO5,Scenarios!8:8,Scenarios!22:22),GN130) -> % p.p. | GP130: =IFERROR(interpolate_look_up(GP5,Scenarios!8:8,Scenarios!22:22),GO130) -> % p.p. | GQ130: =IFERROR(interpolate_look_up(GQ5,Scenarios!8:8,Scenarios!22:22),GP130) -> % p.p. | GR130: =IFERROR(interpolate_look_up(GR5,Scenarios!8:8,Scenarios!22:22),GQ130) -> % p.p. | GS130: =IFERROR(interpolate_look_up(GS5,Scenarios!8:8,Scenarios!22:22),GR130) -> % p.p. | GT130: =IFERROR(interpolate_look_up(GT5,Scenarios!8:8,Scenarios!22:22),GS130) -> % p.p. | GU130: =IFERROR(interpolate_look_up(GU5,Scenarios!8:8,Scenarios!22:22),GT130) -> % p.p. | GV130: =IFERROR(interpolate_look_up(GV5,Scenarios!8:8,Scenarios!22:22),GU130) -> % p.p. | GW130: =IFERROR(interpolate_look_up(GW5,Scenarios!8:8,Scenarios!22:22),GV130) -> % p.p. | GX130: =IFERROR(interpolate_look_up(GX5,Scenarios!8:8,Scenarios!22:22),GW130) -> % p.p. | GY130: =IFERROR(interpolate_look_up(GY5,Scenarios!8:8,Scenarios!22:22),GX130) -> % p.p. | GZ130: =IFERROR(interpolate_look_up(GZ5,Scenarios!8:8,Scenarios!22:22),GY130) -> % p.p. | HA130: =IFERROR(interpolate_look_up(HA5,Scenarios!8:8,Scenarios!22:22),GZ130) -> % p.p. | HB130: =IFERROR(interpolate_look_up(HB5,Scenarios!8:8,Scenarios!22:22),HA130) -> % p.p. | HC130: =IFERROR(interpolate_look_up(HC5,Scenarios!8:8,Scenarios!22:22),HB130) -> % p.p. | HD130: =IFERROR(interpolate_look_up(HD5,Scenarios!8:8,Scenarios!22:22),HC130) -> % p.p. | HE130: =IFERROR(interpolate_look_up(HE5,Scenarios!8:8,Scenarios!22:22),HD130) -> % p.p. | HF130: =IFERROR(interpolate_look_up(HF5,Scenarios!8:8,Scenarios!22:22),HE130) -> % p.p. | HG130: =IFERROR(interpolate_look_up(HG5,Scenarios!8:8,Scenarios!22:22),HF130) -> % p.p. | HH130: =IFERROR(interpolate_look_up(HH5,Scenarios!8:8,Scenarios!22:22),HG130) -> % p.p. | HI130: =IFERROR(interpolate_look_up(HI5,Scenarios!8:8,Scenarios!22:22),HH130) -> % p.p. | HJ130: =IFERROR(interpolate_look_up(HJ5,Scenarios!8:8,Scenarios!22:22),HI130) -> % p.p. | HK130: =IFERROR(interpolate_look_up(HK5,Scenarios!8:8,Scenarios!22:22),HJ130) -> % p.p. | HL130: =IFERROR(interpolate_look_up(HL5,Scenarios!8:8,Scenarios!22:22),HK130) -> % p.p. | HM130: =IFERROR(interpolate_look_up(HM5,Scenarios!8:8,Scenarios!22:22),HL130) -> % p.p. | HN130: =IFERROR(interpolate_look_up(HN5,Scenarios!8:8,Scenarios!22:22),HM130) -> % p.p. | HO130: =IFERROR(interpolate_look_up(HO5,Scenarios!8:8,Scenarios!22:22),HN130) -> % p.p. | HP130: =IFERROR(interpolate_look_up(HP5,Scenarios!8:8,Scenarios!22:22),HO130) -> % p.p. | HQ130: =IFERROR(interpolate_look_up(HQ5,Scenarios!8:8,Scenarios!22:22),HP130) -> % p.p. | HR130: =IFERROR(interpolate_look_up(HR5,Scenarios!8:8,Scenarios!22:22),HQ130) -> % p.p. | HS130: =IFERROR(interpolate_look_up(HS5,Scenarios!8:8,Scenarios!22:22),HR130) -> % p.p. | HT130: =IFERROR(interpolate_look_up(HT5,Scenarios!8:8,Scenarios!22:22),HS130) -> % p.p. | HU130: =IFERROR(interpolate_look_up(HU5,Scenarios!8:8,Scenarios!22:22),HT130) -> % p.p. | HV130: =IFERROR(interpolate_look_up(HV5,Scenarios!8:8,Scenarios!22:22),HU130) -> % p.p. | HW130: =IFERROR(interpolate_look_up(HW5,Scenarios!8:8,Scenarios!22:22),HV130) -> % p.p. | HX130: =IFERROR(interpolate_look_up(HX5,Scenarios!8:8,Scenarios!22:22),HW130) -> % p.p. | HY130: =IFERROR(interpolate_look_up(HY5,Scenarios!8:8,Scenarios!22:22),HX130) -> % p.p. | HZ130: =IFERROR(interpolate_look_up(HZ5,Scenarios!8:8,Scenarios!22:22),HY130) -> % p.p. | IA130: =IFERROR(interpolate_look_up(IA5,Scenarios!8:8,Scenarios!22:22),HZ130) -> % p.p. | IB130: =IFERROR(interpolate_look_up(IB5,Scenarios!8:8,Scenarios!22:22),IA130) -> % p.p. | IC130: =IFERROR(interpolate_look_up(IC5,Scenarios!8:8,Scenarios!22:22),IB130) -> % p.p. | ID130: =IFERROR(interpolate_look_up(ID5,Scenarios!8:8,Scenarios!22:22),IC130) -> % p.p. | IE130: =IFERROR(interpolate_look_up(IE5,Scenarios!8:8,Scenarios!22:22),ID130) -> % p.p. | IF130: =IFERROR(interpolate_look_up(IF5,Scenarios!8:8,Scenarios!22:22),IE130) -> % p.p. | IG130: =IFERROR(interpolate_look_up(IG5,Scenarios!8:8,Scenarios!22:22),IF130) -> % p.p. | IH130: =IFERROR(interpolate_look_up(IH5,Scenarios!8:8,Scenarios!22:22),IG130) -> % p.p. | II130: =IFERROR(interpolate_look_up(II5,Scenarios!8:8,Scenarios!22:22),IH130) -> % p.p. | IJ130: =IFERROR(interpolate_look_up(IJ5,Scenarios!8:8,Scenarios!22:22),II130) -> % p.p. | IK130: =IFERROR(interpolate_look_up(IK5,Scenarios!8:8,Scenarios!22:22),IJ130) -> % p.p. | IL130: =IFERROR(interpolate_look_up(IL5,Scenarios!8:8,Scenarios!22:22),IK130) -> % p.p. | IM130: =IFERROR(interpolate_look_up(IM5,Scenarios!8:8,Scenarios!22:22),IL130) -> % p.p. | IN130: =IFERROR(interpolate_look_up(IN5,Scenarios!8:8,Scenarios!22:22),IM130) -> % p.p. | IO130: =IFERROR(interpolate_look_up(IO5,Scenarios!8:8,Scenarios!22:22),IN130) -> % p.p. | IP130: =IFERROR(interpolate_look_up(IP5,Scenarios!8:8,Scenarios!22:22),IO130) -> % p.p. | IQ130: =IFERROR(interpolate_look_up(IQ5,Scenarios!8:8,Scenarios!22:22),IP130) -> % p.p. | IR130: =IFERROR(interpolate_look_up(IR5,Scenarios!8:8,Scenarios!22:22),IQ130) -> % p.p. | IS130: =IFERROR(interpolate_look_up(IS5,Scenarios!8:8,Scenarios!22:22),IR130) -> % p.p.
D131: Annual Growth Flag | F131: Period | I131: =LOOKUP(I5,'Model Parameters'!48:48,'Model Parameters'!49:49) ->  | J131: =LOOKUP(J5,'Model Parameters'!48:48,'Model Parameters'!49:49) ->  | K131: =LOOKUP(K5,'Model Parameters'!48:48,'Model Parameters'!49:49) ->  | L131: =LOOKUP(L5,'Model Parameters'!48:48,'Model Parameters'!49:49) ->  | M131: =LOOKUP(M5,'Model Parameters'!48:48,'Model Parameters'!49:49) ->  | N131: =LOOKUP(N5,'Model Parameters'!48:48,'Model Parameters'!49:49) ->  | O131: =LOOKUP(O5,'Model Parameters'!48:48,'Model Parameters'!49:49) ->  | P131: =LOOKUP(P5,'Model Parameters'!48:48,'Model Parameters'!49:49) ->  | Q131: =LOOKUP(Q5,'Model Parameters'!48:48,'Model Parameters'!49:49) ->  | R131: =LOOKUP(R5,'Model Parameters'!48:48,'Model Parameters'!49:49) ->  | S131: =LOOKUP(S5,'Model Parameters'!48:48,'Model Parameters'!49:49) ->  | T131: =LOOKUP(T5,'Model Parameters'!48:48,'Model Parameters'!49:49) ->  | U131: =LOOKUP(U5,'Model Parameters'!48:48,'Model Parameters'!49:49) ->  | V131: =LOOKUP(V5,'Model Parameters'!48:48,'Model Parameters'!49:49) ->  | W131: =LOOKUP(W5,'Model Parameters'!48:48,'Model Parameters'!49:49) ->  | X131: =LOOKUP(X5,'Model Parameters'!48:48,'Model Parameters'!49:49) ->  | Y131: =LOOKUP(Y5,'Model Parameters'!48:48,'Model Parameters'!49:49) ->  | Z131: =LOOKUP(Z5,'Model Parameters'!48:48,'Model Parameters'!49:49) ->  | AA131: =LOOKUP(AA5,'Model Parameters'!48:48,'Model Parameters'!49:49) ->  | AB131: =LOOKUP(AB5,'Model Parameters'!48:48,'Model Parameters'!49:49) ->  | AC131: =LOOKUP(AC5,'Model Parameters'!48:48,'Model Parameters'!49:49) ->  | AD131: =LOOKUP(AD5,'Model Parameters'!48:48,'Model Parameters'!49:49) ->  | AE131: =LOOKUP(AE5,'Model Parameters'!48:48,'Model Parameters'!49:49) ->  | AF131: =LOOKUP(AF5,'Model Parameters'!48:48,'Model Parameters'!49:49) ->  | AG131: =LOOKUP(AG5,'Model Parameters'!48:48,'Model Parameters'!49:49) ->  | AH131: =LOOKUP(AH5,'Model Parameters'!48:48,'Model Parameters'!49:49) ->  | AI131: =LOOKUP(AI5,'Model Parameters'!48:48,'Model Parameters'!49:49) ->  | AJ131: =LOOKUP(AJ5,'Model Parameters'!48:48,'Model Parameters'!49:49) ->  | AK131: =LOOKUP(AK5,'Model Parameters'!48:48,'Model Parameters'!49:49) ->  | AL131: =LOOKUP(AL5,'Model Parameters'!48:48,'Model Parameters'!49:49) ->  | AM131: =LOOKUP(AM5,'Model Parameters'!48:48,'Model Parameters'!49:49) ->  | AN131: =LOOKUP(AN5,'Model Parameters'!48:48,'Model Parameters'!49:49) ->  | AO131: =LOOKUP(AO5,'Model Parameters'!48:48,'Model Parameters'!49:49) ->  | AP131: =LOOKUP(AP5,'Model Parameters'!48:48,'Model Parameters'!49:49) ->  | AQ131: =LOOKUP(AQ5,'Model Parameters'!48:48,'Model Parameters'!49:49) ->  | AR131: =LOOKUP(AR5,'Model Parameters'!48:48,'Model Parameters'!49:49) ->  | AS131: =LOOKUP(AS5,'Model Parameters'!48:48,'Model Parameters'!49:49) ->  | AT131: =LOOKUP(AT5,'Model Parameters'!48:48,'Model Parameters'!49:49) ->  | AU131: =LOOKUP(AU5,'Model Parameters'!48:48,'Model Parameters'!49:49) ->  | AV131: =LOOKUP(AV5,'Model Parameters'!48:48,'Model Parameters'!49:49) ->  | AW131: =LOOKUP(AW5,'Model Parameters'!48:48,'Model Parameters'!49:49) ->  | AX131: =LOOKUP(AX5,'Model Parameters'!48:48,'Model Parameters'!49:49) ->  | AY131: =LOOKUP(AY5,'Model Parameters'!48:48,'Model Parameters'!49:49) ->  | AZ131: =LOOKUP(AZ5,'Model Parameters'!48:48,'Model Parameters'!49:49) ->  | BA131: =LOOKUP(BA5,'Model Parameters'!48:48,'Model Parameters'!49:49) ->  | BB131: =LOOKUP(BB5,'Model Parameters'!48:48,'Model Parameters'!49:49) ->  | BC131: =LOOKUP(BC5,'Model Parameters'!48:48,'Model Parameters'!49:49) ->  | BD131: =LOOKUP(BD5,'Model Parameters'!48:48,'Model Parameters'!49:49) ->  | BE131: =LOOKUP(BE5,'Model Parameters'!48:48,'Model Parameters'!49:49) ->  | BF131: =LOOKUP(BF5,'Model Parameters'!48:48,'Model Parameters'!49:49) ->  | BG131: =LOOKUP(BG5,'Model Parameters'!48:48,'Model Parameters'!49:49) ->  | BH131: =LOOKUP(BH5,'Model Parameters'!48:48,'Model Parameters'!49:49) ->  | BI131: =LOOKUP(BI5,'Model Parameters'!48:48,'Model Parameters'!49:49) ->  | BJ131: =LOOKUP(BJ5,'Model Parameters'!48:48,'Model Parameters'!49:49) ->  | BK131: =LOOKUP(BK5,'Model Parameters'!48:48,'Model Parameters'!49:49) ->  | BL131: =LOOKUP(BL5,'Model Parameters'!48:48,'Model Parameters'!49:49) ->  | BM131: =LOOKUP(BM5,'Model Parameters'!48:48,'Model Parameters'!49:49) ->  | BN131: =LOOKUP(BN5,'Model Parameters'!48:48,'Model Parameters'!49:49) ->  | BO131: =LOOKUP(BO5,'Model Parameters'!48:48,'Model Parameters'!49:49) ->  | BP131: =LOOKUP(BP5,'Model Parameters'!48:48,'Model Parameters'!49:49) ->  | BQ131: =LOOKUP(BQ5,'Model Parameters'!48:48,'Model Parameters'!49:49) ->  | BR131: =LOOKUP(BR5,'Model Parameters'!48:48,'Model Parameters'!49:49) ->  | BS131: =LOOKUP(BS5,'Model Parameters'!48:48,'Model Parameters'!49:49) ->  | BT131: =LOOKUP(BT5,'Model Parameters'!48:48,'Model Parameters'!49:49) ->  | BU131: =LOOKUP(BU5,'Model Parameters'!48:48,'Model Parameters'!49:49) ->  | BV131: =LOOKUP(BV5,'Model Parameters'!48:48,'Model Parameters'!49:49) ->  | BW131: =LOOKUP(BW5,'Model Parameters'!48:48,'Model Parameters'!49:49) ->  | BX131: =LOOKUP(BX5,'Model Parameters'!48:48,'Model Parameters'!49:49) ->  | BY131: =LOOKUP(BY5,'Model Parameters'!48:48,'Model Parameters'!49:49) ->  | BZ131: =LOOKUP(BZ5,'Model Parameters'!48:48,'Model Parameters'!49:49) ->  | CA131: =LOOKUP(CA5,'Model Parameters'!48:48,'Model Parameters'!49:49) ->  | CB131: =LOOKUP(CB5,'Model Parameters'!48:48,'Model Parameters'!49:49) ->  | CC131: =LOOKUP(CC5,'Model Parameters'!48:48,'Model Parameters'!49:49) ->  | CD131: =LOOKUP(CD5,'Model Parameters'!48:48,'Model Parameters'!49:49) ->  | CE131: =LOOKUP(CE5,'Model Parameters'!48:48,'Model Parameters'!49:49) ->  | CF131: =LOOKUP(CF5,'Model Parameters'!48:48,'Model Parameters'!49:49) ->  | CG131: =LOOKUP(CG5,'Model Parameters'!48:48,'Model Parameters'!49:49) ->  | CH131: =LOOKUP(CH5,'Model Parameters'!48:48,'Model Parameters'!49:49) ->  | CI131: =LOOKUP(CI5,'Model Parameters'!48:48,'Model Parameters'!49:49) ->  | CJ131: =LOOKUP(CJ5,'Model Parameters'!48:48,'Model Parameters'!49:49) ->  | CK131: =LOOKUP(CK5,'Model Parameters'!48:48,'Model Parameters'!49:49) ->  | CL131: =LOOKUP(CL5,'Model Parameters'!48:48,'Model Parameters'!49:49) ->  | CM131: =LOOKUP(CM5,'Model Parameters'!48:48,'Model Parameters'!49:49) ->  | CN131: =LOOKUP(CN5,'Model Parameters'!48:48,'Model Parameters'!49:49) ->  | CO131: =LOOKUP(CO5,'Model Parameters'!48:48,'Model Parameters'!49:49) ->  | CP131: =LOOKUP(CP5,'Model Parameters'!48:48,'Model Parameters'!49:49) ->  | CQ131: =LOOKUP(CQ5,'Model Parameters'!48:48,'Model Parameters'!49:49) ->  | CR131: =LOOKUP(CR5,'Model Parameters'!48:48,'Model Parameters'!49:49) ->  | CS131: =LOOKUP(CS5,'Model Parameters'!48:48,'Model Parameters'!49:49) ->  | CT131: =LOOKUP(CT5,'Model Parameters'!48:48,'Model Parameters'!49:49) ->  | CU131: =LOOKUP(CU5,'Model Parameters'!48:48,'Model Parameters'!49:49) ->  | CV131: =LOOKUP(CV5,'Model Parameters'!48:48,'Model Parameters'!49:49) ->  | CW131: =LOOKUP(CW5,'Model Parameters'!48:48,'Model Parameters'!49:49) ->  | CX131: =LOOKUP(CX5,'Model Parameters'!48:48,'Model Parameters'!49:49) ->  | CY131: =LOOKUP(CY5,'Model Parameters'!48:48,'Model Parameters'!49:49) ->  | CZ131: =LOOKUP(CZ5,'Model Parameters'!48:48,'Model Parameters'!49:49) ->  | DA131: =LOOKUP(DA5,'Model Parameters'!48:48,'Model Parameters'!49:49) ->  | DB131: =LOOKUP(DB5,'Model Parameters'!48:48,'Model Parameters'!49:49) ->  | DC131: =LOOKUP(DC5,'Model Parameters'!48:48,'Model Parameters'!49:49) ->  | DD131: =LOOKUP(DD5,'Model Parameters'!48:48,'Model Parameters'!49:49) ->  | DE131: =LOOKUP(DE5,'Model Parameters'!48:48,'Model Parameters'!49:49) ->  | DF131: =LOOKUP(DF5,'Model Parameters'!48:48,'Model Parameters'!49:49) ->  | DG131: =LOOKUP(DG5,'Model Parameters'!48:48,'Model Parameters'!49:49) ->  | DH131: =LOOKUP(DH5,'Model Parameters'!48:48,'Model Parameters'!49:49) ->  | DI131: =LOOKUP(DI5,'Model Parameters'!48:48,'Model Parameters'!49:49) ->  | DJ131: =LOOKUP(DJ5,'Model Parameters'!48:48,'Model Parameters'!49:49) ->  | DK131: =LOOKUP(DK5,'Model Parameters'!48:48,'Model Parameters'!49:49) ->  | DL131: =LOOKUP(DL5,'Model Parameters'!48:48,'Model Parameters'!49:49) ->  | DM131: =LOOKUP(DM5,'Model Parameters'!48:48,'Model Parameters'!49:49) ->  | DN131: =LOOKUP(DN5,'Model Parameters'!48:48,'Model Parameters'!49:49) ->  | DO131: =LOOKUP(DO5,'Model Parameters'!48:48,'Model Parameters'!49:49) ->  | DP131: =LOOKUP(DP5,'Model Parameters'!48:48,'Model Parameters'!49:49) ->  | DQ131: =LOOKUP(DQ5,'Model Parameters'!48:48,'Model Parameters'!49:49) ->  | DR131: =LOOKUP(DR5,'Model Parameters'!48:48,'Model Parameters'!49:49) ->  | DS131: =LOOKUP(DS5,'Model Parameters'!48:48,'Model Parameters'!49:49) ->  | DT131: =LOOKUP(DT5,'Model Parameters'!48:48,'Model Parameters'!49:49) ->  | DU131: =LOOKUP(DU5,'Model Parameters'!48:48,'Model Parameters'!49:49) ->  | DV131: =LOOKUP(DV5,'Model Parameters'!48:48,'Model Parameters'!49:49) ->  | DW131: =LOOKUP(DW5,'Model Parameters'!48:48,'Model Parameters'!49:49) ->  | DX131: =LOOKUP(DX5,'Model Parameters'!48:48,'Model Parameters'!49:49) ->  | DY131: =LOOKUP(DY5,'Model Parameters'!48:48,'Model Parameters'!49:49) ->  | DZ131: =LOOKUP(DZ5,'Model Parameters'!48:48,'Model Parameters'!49:49) ->  | EA131: =LOOKUP(EA5,'Model Parameters'!48:48,'Model Parameters'!49:49) ->  | EB131: =LOOKUP(EB5,'Model Parameters'!48:48,'Model Parameters'!49:49) ->  | EC131: =LOOKUP(EC5,'Model Parameters'!48:48,'Model Parameters'!49:49) ->  | ED131: =LOOKUP(ED5,'Model Parameters'!48:48,'Model Parameters'!49:49) ->  | EE131: =LOOKUP(EE5,'Model Parameters'!48:48,'Model Parameters'!49:49) ->  | EF131: =LOOKUP(EF5,'Model Parameters'!48:48,'Model Parameters'!49:49) ->  | EG131: =LOOKUP(EG5,'Model Parameters'!48:48,'Model Parameters'!49:49) ->  | EH131: =LOOKUP(EH5,'Model Parameters'!48:48,'Model Parameters'!49:49) ->  | EI131: =LOOKUP(EI5,'Model Parameters'!48:48,'Model Parameters'!49:49) ->  | EJ131: =LOOKUP(EJ5,'Model Parameters'!48:48,'Model Parameters'!49:49) ->  | EK131: =LOOKUP(EK5,'Model Parameters'!48:48,'Model Parameters'!49:49) ->  | EL131: =LOOKUP(EL5,'Model Parameters'!48:48,'Model Parameters'!49:49) ->  | EM131: =LOOKUP(EM5,'Model Parameters'!48:48,'Model Parameters'!49:49) ->  | EN131: =LOOKUP(EN5,'Model Parameters'!48:48,'Model Parameters'!49:49) ->  | EO131: =LOOKUP(EO5,'Model Parameters'!48:48,'Model Parameters'!49:49) ->  | EP131: =LOOKUP(EP5,'Model Parameters'!48:48,'Model Parameters'!49:49) ->  | EQ131: =LOOKUP(EQ5,'Model Parameters'!48:48,'Model Parameters'!49:49) ->  | ER131: =LOOKUP(ER5,'Model Parameters'!48:48,'Model Parameters'!49:49) ->  | ES131: =LOOKUP(ES5,'Model Parameters'!48:48,'Model Parameters'!49:49) ->  | ET131: =LOOKUP(ET5,'Model Parameters'!48:48,'Model Parameters'!49:49) ->  | EU131: =LOOKUP(EU5,'Model Parameters'!48:48,'Model Parameters'!49:49) ->  | EV131: =LOOKUP(EV5,'Model Parameters'!48:48,'Model Parameters'!49:49) ->  | EW131: =LOOKUP(EW5,'Model Parameters'!48:48,'Model Parameters'!49:49) ->  | EX131: =LOOKUP(EX5,'Model Parameters'!48:48,'Model Parameters'!49:49) ->  | EY131: =LOOKUP(EY5,'Model Parameters'!48:48,'Model Parameters'!49:49) ->  | EZ131: =LOOKUP(EZ5,'Model Parameters'!48:48,'Model Parameters'!49:49) ->  | FA131: =LOOKUP(FA5,'Model Parameters'!48:48,'Model Parameters'!49:49) ->  | FB131: =LOOKUP(FB5,'Model Parameters'!48:48,'Model Parameters'!49:49) ->  | FC131: =LOOKUP(FC5,'Model Parameters'!48:48,'Model Parameters'!49:49) ->  | FD131: =LOOKUP(FD5,'Model Parameters'!48:48,'Model Parameters'!49:49) ->  | FE131: =LOOKUP(FE5,'Model Parameters'!48:48,'Model Parameters'!49:49) ->  | FF131: =LOOKUP(FF5,'Model Parameters'!48:48,'Model Parameters'!49:49) ->  | FG131: =LOOKUP(FG5,'Model Parameters'!48:48,'Model Parameters'!49:49) ->  | FH131: =LOOKUP(FH5,'Model Parameters'!48:48,'Model Parameters'!49:49) ->  | FI131: =LOOKUP(FI5,'Model Parameters'!48:48,'Model Parameters'!49:49) ->  | FJ131: =LOOKUP(FJ5,'Model Parameters'!48:48,'Model Parameters'!49:49) ->  | FK131: =LOOKUP(FK5,'Model Parameters'!48:48,'Model Parameters'!49:49) ->  | FL131: =LOOKUP(FL5,'Model Parameters'!48:48,'Model Parameters'!49:49) ->  | FM131: =LOOKUP(FM5,'Model Parameters'!48:48,'Model Parameters'!49:49) ->  | FN131: =LOOKUP(FN5,'Model Parameters'!48:48,'Model Parameters'!49:49) ->  | FO131: =LOOKUP(FO5,'Model Parameters'!48:48,'Model Parameters'!49:49) ->  | FP131: =LOOKUP(FP5,'Model Parameters'!48:48,'Model Parameters'!49:49) ->  | FQ131: =LOOKUP(FQ5,'Model Parameters'!48:48,'Model Parameters'!49:49) ->  | FR131: =LOOKUP(FR5,'Model Parameters'!48:48,'Model Parameters'!49:49) ->  | FS131: =LOOKUP(FS5,'Model Parameters'!48:48,'Model Parameters'!49:49) ->  | FT131: =LOOKUP(FT5,'Model Parameters'!48:48,'Model Parameters'!49:49) ->  | FU131: =LOOKUP(FU5,'Model Parameters'!48:48,'Model Parameters'!49:49) ->  | FV131: =LOOKUP(FV5,'Model Parameters'!48:48,'Model Parameters'!49:49) ->  | FW131: =LOOKUP(FW5,'Model Parameters'!48:48,'Model Parameters'!49:49) ->  | FX131: =LOOKUP(FX5,'Model Parameters'!48:48,'Model Parameters'!49:49) ->  | FY131: =LOOKUP(FY5,'Model Parameters'!48:48,'Model Parameters'!49:49) ->  | FZ131: =LOOKUP(FZ5,'Model Parameters'!48:48,'Model Parameters'!49:49) ->  | GA131: =LOOKUP(GA5,'Model Parameters'!48:48,'Model Parameters'!49:49) ->  | GB131: =LOOKUP(GB5,'Model Parameters'!48:48,'Model Parameters'!49:49) ->  | GC131: =LOOKUP(GC5,'Model Parameters'!48:48,'Model Parameters'!49:49) ->  | GD131: =LOOKUP(GD5,'Model Parameters'!48:48,'Model Parameters'!49:49) ->  | GE131: =LOOKUP(GE5,'Model Parameters'!48:48,'Model Parameters'!49:49) ->  | GF131: =LOOKUP(GF5,'Model Parameters'!48:48,'Model Parameters'!49:49) ->  | GG131: =LOOKUP(GG5,'Model Parameters'!48:48,'Model Parameters'!49:49) ->  | GH131: =LOOKUP(GH5,'Model Parameters'!48:48,'Model Parameters'!49:49) ->  | GI131: =LOOKUP(GI5,'Model Parameters'!48:48,'Model Parameters'!49:49) ->  | GJ131: =LOOKUP(GJ5,'Model Parameters'!48:48,'Model Parameters'!49:49) ->  | GK131: =LOOKUP(GK5,'Model Parameters'!48:48,'Model Parameters'!49:49) ->  | GL131: =LOOKUP(GL5,'Model Parameters'!48:48,'Model Parameters'!49:49) ->  | GM131: =LOOKUP(GM5,'Model Parameters'!48:48,'Model Parameters'!49:49) ->  | GN131: =LOOKUP(GN5,'Model Parameters'!48:48,'Model Parameters'!49:49) ->  | GO131: =LOOKUP(GO5,'Model Parameters'!48:48,'Model Parameters'!49:49) ->  | GP131: =LOOKUP(GP5,'Model Parameters'!48:48,'Model Parameters'!49:49) ->  | GQ131: =LOOKUP(GQ5,'Model Parameters'!48:48,'Model Parameters'!49:49) ->  | GR131: =LOOKUP(GR5,'Model Parameters'!48:48,'Model Parameters'!49:49) ->  | GS131: =LOOKUP(GS5,'Model Parameters'!48:48,'Model Parameters'!49:49) ->  | GT131: =LOOKUP(GT5,'Model Parameters'!48:48,'Model Parameters'!49:49) ->  | GU131: =LOOKUP(GU5,'Model Parameters'!48:48,'Model Parameters'!49:49) ->  | GV131: =LOOKUP(GV5,'Model Parameters'!48:48,'Model Parameters'!49:49) ->  | GW131: =LOOKUP(GW5,'Model Parameters'!48:48,'Model Parameters'!49:49) ->  | GX131: =LOOKUP(GX5,'Model Parameters'!48:48,'Model Parameters'!49:49) ->  | GY131: =LOOKUP(GY5,'Model Parameters'!48:48,'Model Parameters'!49:49) ->  | GZ131: =LOOKUP(GZ5,'Model Parameters'!48:48,'Model Parameters'!49:49) ->  | HA131: =LOOKUP(HA5,'Model Parameters'!48:48,'Model Parameters'!49:49) ->  | HB131: =LOOKUP(HB5,'Model Parameters'!48:48,'Model Parameters'!49:49) ->  | HC131: =LOOKUP(HC5,'Model Parameters'!48:48,'Model Parameters'!49:49) ->  | HD131: =LOOKUP(HD5,'Model Parameters'!48:48,'Model Parameters'!49:49) ->  | HE131: =LOOKUP(HE5,'Model Parameters'!48:48,'Model Parameters'!49:49) ->  | HF131: =LOOKUP(HF5,'Model Parameters'!48:48,'Model Parameters'!49:49) ->  | HG131: =LOOKUP(HG5,'Model Parameters'!48:48,'Model Parameters'!49:49) ->  | HH131: =LOOKUP(HH5,'Model Parameters'!48:48,'Model Parameters'!49:49) ->  | HI131: =LOOKUP(HI5,'Model Parameters'!48:48,'Model Parameters'!49:49) ->  | HJ131: =LOOKUP(HJ5,'Model Parameters'!48:48,'Model Parameters'!49:49) ->  | HK131: =LOOKUP(HK5,'Model Parameters'!48:48,'Model Parameters'!49:49) ->  | HL131: =LOOKUP(HL5,'Model Parameters'!48:48,'Model Parameters'!49:49) ->  | HM131: =LOOKUP(HM5,'Model Parameters'!48:48,'Model Parameters'!49:49) ->  | HN131: =LOOKUP(HN5,'Model Parameters'!48:48,'Model Parameters'!49:49) ->  | HO131: =LOOKUP(HO5,'Model Parameters'!48:48,'Model Parameters'!49:49) ->  | HP131: =LOOKUP(HP5,'Model Parameters'!48:48,'Model Parameters'!49:49) ->  | HQ131: =LOOKUP(HQ5,'Model Parameters'!48:48,'Model Parameters'!49:49) ->  | HR131: =LOOKUP(HR5,'Model Parameters'!48:48,'Model Parameters'!49:49) ->  | HS131: =LOOKUP(HS5,'Model Parameters'!48:48,'Model Parameters'!49:49) ->  | HT131: =LOOKUP(HT5,'Model Parameters'!48:48,'Model Parameters'!49:49) ->  | HU131: =LOOKUP(HU5,'Model Parameters'!48:48,'Model Parameters'!49:49) ->  | HV131: =LOOKUP(HV5,'Model Parameters'!48:48,'Model Parameters'!49:49) ->  | HW131: =LOOKUP(HW5,'Model Parameters'!48:48,'Model Parameters'!49:49) ->  | HX131: =LOOKUP(HX5,'Model Parameters'!48:48,'Model Parameters'!49:49) ->  | HY131: =LOOKUP(HY5,'Model Parameters'!48:48,'Model Parameters'!49:49) ->  | HZ131: =LOOKUP(HZ5,'Model Parameters'!48:48,'Model Parameters'!49:49) ->  | IA131: =LOOKUP(IA5,'Model Parameters'!48:48,'Model Parameters'!49:49) ->  | IB131: =LOOKUP(IB5,'Model Parameters'!48:48,'Model Parameters'!49:49) ->  | IC131: =LOOKUP(IC5,'Model Parameters'!48:48,'Model Parameters'!49:49) ->  | ID131: =LOOKUP(ID5,'Model Parameters'!48:48,'Model Parameters'!49:49) ->  | IE131: =LOOKUP(IE5,'Model Parameters'!48:48,'Model Parameters'!49:49) ->  | IF131: =LOOKUP(IF5,'Model Parameters'!48:48,'Model Parameters'!49:49) ->  | IG131: =LOOKUP(IG5,'Model Parameters'!48:48,'Model Parameters'!49:49) ->  | IH131: =LOOKUP(IH5,'Model Parameters'!48:48,'Model Parameters'!49:49) ->  | II131: =LOOKUP(II5,'Model Parameters'!48:48,'Model Parameters'!49:49) ->  | IJ131: =LOOKUP(IJ5,'Model Parameters'!48:48,'Model Parameters'!49:49) ->  | IK131: =LOOKUP(IK5,'Model Parameters'!48:48,'Model Parameters'!49:49) ->  | IL131: =LOOKUP(IL5,'Model Parameters'!48:48,'Model Parameters'!49:49) ->  | IM131: =LOOKUP(IM5,'Model Parameters'!48:48,'Model Parameters'!49:49) ->  | IN131: =LOOKUP(IN5,'Model Parameters'!48:48,'Model Parameters'!49:49) ->  | IO131: =LOOKUP(IO5,'Model Parameters'!48:48,'Model Parameters'!49:49) ->  | IP131: =LOOKUP(IP5,'Model Parameters'!48:48,'Model Parameters'!49:49) ->  | IQ131: =LOOKUP(IQ5,'Model Parameters'!48:48,'Model Parameters'!49:49) ->  | IR131: =LOOKUP(IR5,'Model Parameters'!48:48,'Model Parameters'!49:49) ->  | IS131: =LOOKUP(IS5,'Model Parameters'!48:48,'Model Parameters'!49:49) -> 
D132: Periodic Sales Growth | F132: % p.a. | I132: =IF(I131,I130,(1+I130)^(I4/12)-1) ->  | J132: =IF(J131,J130,(1+J130)^(J4/12)-1) ->  | K132: =IF(K131,K130,(1+K130)^(K4/12)-1) ->  | L132: =IF(L131,L130,(1+L130)^(L4/12)-1) ->  | M132: =IF(M131,M130,(1+M130)^(M4/12)-1) ->  | N132: =IF(N131,N130,(1+N130)^(N4/12)-1) ->  | O132: =IF(O131,O130,(1+O130)^(O4/12)-1) ->  | P132: =IF(P131,P130,(1+P130)^(P4/12)-1) ->  | Q132: =IF(Q131,Q130,(1+Q130)^(Q4/12)-1) ->  | R132: =IF(R131,R130,(1+R130)^(R4/12)-1) ->  | S132: =IF(S131,S130,(1+S130)^(S4/12)-1) ->  | T132: =IF(T131,T130,(1+T130)^(T4/12)-1) ->  | U132: =IF(U131,U130,(1+U130)^(U4/12)-1) ->  | V132: =IF(V131,V130,(1+V130)^(V4/12)-1) ->  | W132: =IF(W131,W130,(1+W130)^(W4/12)-1) ->  | X132: =IF(X131,X130,(1+X130)^(X4/12)-1) ->  | Y132: =IF(Y131,Y130,(1+Y130)^(Y4/12)-1) ->  | Z132: =IF(Z131,Z130,(1+Z130)^(Z4/12)-1) ->  | AA132: =IF(AA131,AA130,(1+AA130)^(AA4/12)-1) ->  | AB132: =IF(AB131,AB130,(1+AB130)^(AB4/12)-1) ->  | AC132: =IF(AC131,AC130,(1+AC130)^(AC4/12)-1) ->  | AD132: =IF(AD131,AD130,(1+AD130)^(AD4/12)-1) ->  | AE132: =IF(AE131,AE130,(1+AE130)^(AE4/12)-1) ->  | AF132: =IF(AF131,AF130,(1+AF130)^(AF4/12)-1) ->  | AG132: =IF(AG131,AG130,(1+AG130)^(AG4/12)-1) ->  | AH132: =IF(AH131,AH130,(1+AH130)^(AH4/12)-1) ->  | AI132: =IF(AI131,AI130,(1+AI130)^(AI4/12)-1) ->  | AJ132: =IF(AJ131,AJ130,(1+AJ130)^(AJ4/12)-1) ->  | AK132: =IF(AK131,AK130,(1+AK130)^(AK4/12)-1) ->  | AL132: =IF(AL131,AL130,(1+AL130)^(AL4/12)-1) ->  | AM132: =IF(AM131,AM130,(1+AM130)^(AM4/12)-1) ->  | AN132: =IF(AN131,AN130,(1+AN130)^(AN4/12)-1) ->  | AO132: =IF(AO131,AO130,(1+AO130)^(AO4/12)-1) ->  | AP132: =IF(AP131,AP130,(1+AP130)^(AP4/12)-1) ->  | AQ132: =IF(AQ131,AQ130,(1+AQ130)^(AQ4/12)-1) ->  | AR132: =IF(AR131,AR130,(1+AR130)^(AR4/12)-1) ->  | AS132: =IF(AS131,AS130,(1+AS130)^(AS4/12)-1) ->  | AT132: =IF(AT131,AT130,(1+AT130)^(AT4/12)-1) ->  | AU132: =IF(AU131,AU130,(1+AU130)^(AU4/12)-1) ->  | AV132: =IF(AV131,AV130,(1+AV130)^(AV4/12)-1) ->  | AW132: =IF(AW131,AW130,(1+AW130)^(AW4/12)-1) ->  | AX132: =IF(AX131,AX130,(1+AX130)^(AX4/12)-1) ->  | AY132: =IF(AY131,AY130,(1+AY130)^(AY4/12)-1) ->  | AZ132: =IF(AZ131,AZ130,(1+AZ130)^(AZ4/12)-1) ->  | BA132: =IF(BA131,BA130,(1+BA130)^(BA4/12)-1) ->  | BB132: =IF(BB131,BB130,(1+BB130)^(BB4/12)-1) ->  | BC132: =IF(BC131,BC130,(1+BC130)^(BC4/12)-1) ->  | BD132: =IF(BD131,BD130,(1+BD130)^(BD4/12)-1) ->  | BE132: =IF(BE131,BE130,(1+BE130)^(BE4/12)-1) ->  | BF132: =IF(BF131,BF130,(1+BF130)^(BF4/12)-1) ->  | BG132: =IF(BG131,BG130,(1+BG130)^(BG4/12)-1) ->  | BH132: =IF(BH131,BH130,(1+BH130)^(BH4/12)-1) ->  | BI132: =IF(BI131,BI130,(1+BI130)^(BI4/12)-1) ->  | BJ132: =IF(BJ131,BJ130,(1+BJ130)^(BJ4/12)-1) ->  | BK132: =IF(BK131,BK130,(1+BK130)^(BK4/12)-1) ->  | BL132: =IF(BL131,BL130,(1+BL130)^(BL4/12)-1) ->  | BM132: =IF(BM131,BM130,(1+BM130)^(BM4/12)-1) ->  | BN132: =IF(BN131,BN130,(1+BN130)^(BN4/12)-1) ->  | BO132: =IF(BO131,BO130,(1+BO130)^(BO4/12)-1) ->  | BP132: =IF(BP131,BP130,(1+BP130)^(BP4/12)-1) ->  | BQ132: =IF(BQ131,BQ130,(1+BQ130)^(BQ4/12)-1) ->  | BR132: =IF(BR131,BR130,(1+BR130)^(BR4/12)-1) ->  | BS132: =IF(BS131,BS130,(1+BS130)^(BS4/12)-1) ->  | BT132: =IF(BT131,BT130,(1+BT130)^(BT4/12)-1) ->  | BU132: =IF(BU131,BU130,(1+BU130)^(BU4/12)-1) ->  | BV132: =IF(BV131,BV130,(1+BV130)^(BV4/12)-1) ->  | BW132: =IF(BW131,BW130,(1+BW130)^(BW4/12)-1) ->  | BX132: =IF(BX131,BX130,(1+BX130)^(BX4/12)-1) ->  | BY132: =IF(BY131,BY130,(1+BY130)^(BY4/12)-1) ->  | BZ132: =IF(BZ131,BZ130,(1+BZ130)^(BZ4/12)-1) ->  | CA132: =IF(CA131,CA130,(1+CA130)^(CA4/12)-1) ->  | CB132: =IF(CB131,CB130,(1+CB130)^(CB4/12)-1) ->  | CC132: =IF(CC131,CC130,(1+CC130)^(CC4/12)-1) ->  | CD132: =IF(CD131,CD130,(1+CD130)^(CD4/12)-1) ->  | CE132: =IF(CE131,CE130,(1+CE130)^(CE4/12)-1) ->  | CF132: =IF(CF131,CF130,(1+CF130)^(CF4/12)-1) ->  | CG132: =IF(CG131,CG130,(1+CG130)^(CG4/12)-1) ->  | CH132: =IF(CH131,CH130,(1+CH130)^(CH4/12)-1) ->  | CI132: =IF(CI131,CI130,(1+CI130)^(CI4/12)-1) ->  | CJ132: =IF(CJ131,CJ130,(1+CJ130)^(CJ4/12)-1) ->  | CK132: =IF(CK131,CK130,(1+CK130)^(CK4/12)-1) ->  | CL132: =IF(CL131,CL130,(1+CL130)^(CL4/12)-1) ->  | CM132: =IF(CM131,CM130,(1+CM130)^(CM4/12)-1) ->  | CN132: =IF(CN131,CN130,(1+CN130)^(CN4/12)-1) ->  | CO132: =IF(CO131,CO130,(1+CO130)^(CO4/12)-1) ->  | CP132: =IF(CP131,CP130,(1+CP130)^(CP4/12)-1) ->  | CQ132: =IF(CQ131,CQ130,(1+CQ130)^(CQ4/12)-1) ->  | CR132: =IF(CR131,CR130,(1+CR130)^(CR4/12)-1) ->  | CS132: =IF(CS131,CS130,(1+CS130)^(CS4/12)-1) ->  | CT132: =IF(CT131,CT130,(1+CT130)^(CT4/12)-1) ->  | CU132: =IF(CU131,CU130,(1+CU130)^(CU4/12)-1) ->  | CV132: =IF(CV131,CV130,(1+CV130)^(CV4/12)-1) ->  | CW132: =IF(CW131,CW130,(1+CW130)^(CW4/12)-1) ->  | CX132: =IF(CX131,CX130,(1+CX130)^(CX4/12)-1) ->  | CY132: =IF(CY131,CY130,(1+CY130)^(CY4/12)-1) ->  | CZ132: =IF(CZ131,CZ130,(1+CZ130)^(CZ4/12)-1) ->  | DA132: =IF(DA131,DA130,(1+DA130)^(DA4/12)-1) ->  | DB132: =IF(DB131,DB130,(1+DB130)^(DB4/12)-1) ->  | DC132: =IF(DC131,DC130,(1+DC130)^(DC4/12)-1) ->  | DD132: =IF(DD131,DD130,(1+DD130)^(DD4/12)-1) ->  | DE132: =IF(DE131,DE130,(1+DE130)^(DE4/12)-1) ->  | DF132: =IF(DF131,DF130,(1+DF130)^(DF4/12)-1) ->  | DG132: =IF(DG131,DG130,(1+DG130)^(DG4/12)-1) ->  | DH132: =IF(DH131,DH130,(1+DH130)^(DH4/12)-1) ->  | DI132: =IF(DI131,DI130,(1+DI130)^(DI4/12)-1) ->  | DJ132: =IF(DJ131,DJ130,(1+DJ130)^(DJ4/12)-1) ->  | DK132: =IF(DK131,DK130,(1+DK130)^(DK4/12)-1) ->  | DL132: =IF(DL131,DL130,(1+DL130)^(DL4/12)-1) ->  | DM132: =IF(DM131,DM130,(1+DM130)^(DM4/12)-1) ->  | DN132: =IF(DN131,DN130,(1+DN130)^(DN4/12)-1) ->  | DO132: =IF(DO131,DO130,(1+DO130)^(DO4/12)-1) ->  | DP132: =IF(DP131,DP130,(1+DP130)^(DP4/12)-1) ->  | DQ132: =IF(DQ131,DQ130,(1+DQ130)^(DQ4/12)-1) ->  | DR132: =IF(DR131,DR130,(1+DR130)^(DR4/12)-1) ->  | DS132: =IF(DS131,DS130,(1+DS130)^(DS4/12)-1) ->  | DT132: =IF(DT131,DT130,(1+DT130)^(DT4/12)-1) ->  | DU132: =IF(DU131,DU130,(1+DU130)^(DU4/12)-1) ->  | DV132: =IF(DV131,DV130,(1+DV130)^(DV4/12)-1) ->  | DW132: =IF(DW131,DW130,(1+DW130)^(DW4/12)-1) ->  | DX132: =IF(DX131,DX130,(1+DX130)^(DX4/12)-1) ->  | DY132: =IF(DY131,DY130,(1+DY130)^(DY4/12)-1) ->  | DZ132: =IF(DZ131,DZ130,(1+DZ130)^(DZ4/12)-1) ->  | EA132: =IF(EA131,EA130,(1+EA130)^(EA4/12)-1) ->  | EB132: =IF(EB131,EB130,(1+EB130)^(EB4/12)-1) ->  | EC132: =IF(EC131,EC130,(1+EC130)^(EC4/12)-1) ->  | ED132: =IF(ED131,ED130,(1+ED130)^(ED4/12)-1) ->  | EE132: =IF(EE131,EE130,(1+EE130)^(EE4/12)-1) ->  | EF132: =IF(EF131,EF130,(1+EF130)^(EF4/12)-1) ->  | EG132: =IF(EG131,EG130,(1+EG130)^(EG4/12)-1) ->  | EH132: =IF(EH131,EH130,(1+EH130)^(EH4/12)-1) ->  | EI132: =IF(EI131,EI130,(1+EI130)^(EI4/12)-1) ->  | EJ132: =IF(EJ131,EJ130,(1+EJ130)^(EJ4/12)-1) ->  | EK132: =IF(EK131,EK130,(1+EK130)^(EK4/12)-1) ->  | EL132: =IF(EL131,EL130,(1+EL130)^(EL4/12)-1) ->  | EM132: =IF(EM131,EM130,(1+EM130)^(EM4/12)-1) ->  | EN132: =IF(EN131,EN130,(1+EN130)^(EN4/12)-1) ->  | EO132: =IF(EO131,EO130,(1+EO130)^(EO4/12)-1) ->  | EP132: =IF(EP131,EP130,(1+EP130)^(EP4/12)-1) ->  | EQ132: =IF(EQ131,EQ130,(1+EQ130)^(EQ4/12)-1) ->  | ER132: =IF(ER131,ER130,(1+ER130)^(ER4/12)-1) ->  | ES132: =IF(ES131,ES130,(1+ES130)^(ES4/12)-1) ->  | ET132: =IF(ET131,ET130,(1+ET130)^(ET4/12)-1) ->  | EU132: =IF(EU131,EU130,(1+EU130)^(EU4/12)-1) ->  | EV132: =IF(EV131,EV130,(1+EV130)^(EV4/12)-1) ->  | EW132: =IF(EW131,EW130,(1+EW130)^(EW4/12)-1) ->  | EX132: =IF(EX131,EX130,(1+EX130)^(EX4/12)-1) ->  | EY132: =IF(EY131,EY130,(1+EY130)^(EY4/12)-1) ->  | EZ132: =IF(EZ131,EZ130,(1+EZ130)^(EZ4/12)-1) ->  | FA132: =IF(FA131,FA130,(1+FA130)^(FA4/12)-1) ->  | FB132: =IF(FB131,FB130,(1+FB130)^(FB4/12)-1) ->  | FC132: =IF(FC131,FC130,(1+FC130)^(FC4/12)-1) ->  | FD132: =IF(FD131,FD130,(1+FD130)^(FD4/12)-1) ->  | FE132: =IF(FE131,FE130,(1+FE130)^(FE4/12)-1) ->  | FF132: =IF(FF131,FF130,(1+FF130)^(FF4/12)-1) ->  | FG132: =IF(FG131,FG130,(1+FG130)^(FG4/12)-1) ->  | FH132: =IF(FH131,FH130,(1+FH130)^(FH4/12)-1) ->  | FI132: =IF(FI131,FI130,(1+FI130)^(FI4/12)-1) ->  | FJ132: =IF(FJ131,FJ130,(1+FJ130)^(FJ4/12)-1) ->  | FK132: =IF(FK131,FK130,(1+FK130)^(FK4/12)-1) ->  | FL132: =IF(FL131,FL130,(1+FL130)^(FL4/12)-1) ->  | FM132: =IF(FM131,FM130,(1+FM130)^(FM4/12)-1) ->  | FN132: =IF(FN131,FN130,(1+FN130)^(FN4/12)-1) ->  | FO132: =IF(FO131,FO130,(1+FO130)^(FO4/12)-1) ->  | FP132: =IF(FP131,FP130,(1+FP130)^(FP4/12)-1) ->  | FQ132: =IF(FQ131,FQ130,(1+FQ130)^(FQ4/12)-1) ->  | FR132: =IF(FR131,FR130,(1+FR130)^(FR4/12)-1) ->  | FS132: =IF(FS131,FS130,(1+FS130)^(FS4/12)-1) ->  | FT132: =IF(FT131,FT130,(1+FT130)^(FT4/12)-1) ->  | FU132: =IF(FU131,FU130,(1+FU130)^(FU4/12)-1) ->  | FV132: =IF(FV131,FV130,(1+FV130)^(FV4/12)-1) ->  | FW132: =IF(FW131,FW130,(1+FW130)^(FW4/12)-1) ->  | FX132: =IF(FX131,FX130,(1+FX130)^(FX4/12)-1) ->  | FY132: =IF(FY131,FY130,(1+FY130)^(FY4/12)-1) ->  | FZ132: =IF(FZ131,FZ130,(1+FZ130)^(FZ4/12)-1) ->  | GA132: =IF(GA131,GA130,(1+GA130)^(GA4/12)-1) ->  | GB132: =IF(GB131,GB130,(1+GB130)^(GB4/12)-1) ->  | GC132: =IF(GC131,GC130,(1+GC130)^(GC4/12)-1) ->  | GD132: =IF(GD131,GD130,(1+GD130)^(GD4/12)-1) ->  | GE132: =IF(GE131,GE130,(1+GE130)^(GE4/12)-1) ->  | GF132: =IF(GF131,GF130,(1+GF130)^(GF4/12)-1) ->  | GG132: =IF(GG131,GG130,(1+GG130)^(GG4/12)-1) ->  | GH132: =IF(GH131,GH130,(1+GH130)^(GH4/12)-1) ->  | GI132: =IF(GI131,GI130,(1+GI130)^(GI4/12)-1) ->  | GJ132: =IF(GJ131,GJ130,(1+GJ130)^(GJ4/12)-1) ->  | GK132: =IF(GK131,GK130,(1+GK130)^(GK4/12)-1) ->  | GL132: =IF(GL131,GL130,(1+GL130)^(GL4/12)-1) ->  | GM132: =IF(GM131,GM130,(1+GM130)^(GM4/12)-1) ->  | GN132: =IF(GN131,GN130,(1+GN130)^(GN4/12)-1) ->  | GO132: =IF(GO131,GO130,(1+GO130)^(GO4/12)-1) ->  | GP132: =IF(GP131,GP130,(1+GP130)^(GP4/12)-1) ->  | GQ132: =IF(GQ131,GQ130,(1+GQ130)^(GQ4/12)-1) ->  | GR132: =IF(GR131,GR130,(1+GR130)^(GR4/12)-1) ->  | GS132: =IF(GS131,GS130,(1+GS130)^(GS4/12)-1) ->  | GT132: =IF(GT131,GT130,(1+GT130)^(GT4/12)-1) ->  | GU132: =IF(GU131,GU130,(1+GU130)^(GU4/12)-1) ->  | GV132: =IF(GV131,GV130,(1+GV130)^(GV4/12)-1) ->  | GW132: =IF(GW131,GW130,(1+GW130)^(GW4/12)-1) ->  | GX132: =IF(GX131,GX130,(1+GX130)^(GX4/12)-1) ->  | GY132: =IF(GY131,GY130,(1+GY130)^(GY4/12)-1) ->  | GZ132: =IF(GZ131,GZ130,(1+GZ130)^(GZ4/12)-1) ->  | HA132: =IF(HA131,HA130,(1+HA130)^(HA4/12)-1) ->  | HB132: =IF(HB131,HB130,(1+HB130)^(HB4/12)-1) ->  | HC132: =IF(HC131,HC130,(1+HC130)^(HC4/12)-1) ->  | HD132: =IF(HD131,HD130,(1+HD130)^(HD4/12)-1) ->  | HE132: =IF(HE131,HE130,(1+HE130)^(HE4/12)-1) ->  | HF132: =IF(HF131,HF130,(1+HF130)^(HF4/12)-1) ->  | HG132: =IF(HG131,HG130,(1+HG130)^(HG4/12)-1) ->  | HH132: =IF(HH131,HH130,(1+HH130)^(HH4/12)-1) ->  | HI132: =IF(HI131,HI130,(1+HI130)^(HI4/12)-1) ->  | HJ132: =IF(HJ131,HJ130,(1+HJ130)^(HJ4/12)-1) ->  | HK132: =IF(HK131,HK130,(1+HK130)^(HK4/12)-1) ->  | HL132: =IF(HL131,HL130,(1+HL130)^(HL4/12)-1) ->  | HM132: =IF(HM131,HM130,(1+HM130)^(HM4/12)-1) ->  | HN132: =IF(HN131,HN130,(1+HN130)^(HN4/12)-1) ->  | HO132: =IF(HO131,HO130,(1+HO130)^(HO4/12)-1) ->  | HP132: =IF(HP131,HP130,(1+HP130)^(HP4/12)-1) ->  | HQ132: =IF(HQ131,HQ130,(1+HQ130)^(HQ4/12)-1) ->  | HR132: =IF(HR131,HR130,(1+HR130)^(HR4/12)-1) ->  | HS132: =IF(HS131,HS130,(1+HS130)^(HS4/12)-1) ->  | HT132: =IF(HT131,HT130,(1+HT130)^(HT4/12)-1) ->  | HU132: =IF(HU131,HU130,(1+HU130)^(HU4/12)-1) ->  | HV132: =IF(HV131,HV130,(1+HV130)^(HV4/12)-1) ->  | HW132: =IF(HW131,HW130,(1+HW130)^(HW4/12)-1) ->  | HX132: =IF(HX131,HX130,(1+HX130)^(HX4/12)-1) ->  | HY132: =IF(HY131,HY130,(1+HY130)^(HY4/12)-1) ->  | HZ132: =IF(HZ131,HZ130,(1+HZ130)^(HZ4/12)-1) ->  | IA132: =IF(IA131,IA130,(1+IA130)^(IA4/12)-1) ->  | IB132: =IF(IB131,IB130,(1+IB130)^(IB4/12)-1) ->  | IC132: =IF(IC131,IC130,(1+IC130)^(IC4/12)-1) ->  | ID132: =IF(ID131,ID130,(1+ID130)^(ID4/12)-1) ->  | IE132: =IF(IE131,IE130,(1+IE130)^(IE4/12)-1) ->  | IF132: =IF(IF131,IF130,(1+IF130)^(IF4/12)-1) ->  | IG132: =IF(IG131,IG130,(1+IG130)^(IG4/12)-1) ->  | IH132: =IF(IH131,IH130,(1+IH130)^(IH4/12)-1) ->  | II132: =IF(II131,II130,(1+II130)^(II4/12)-1) ->  | IJ132: =IF(IJ131,IJ130,(1+IJ130)^(IJ4/12)-1) ->  | IK132: =IF(IK131,IK130,(1+IK130)^(IK4/12)-1) ->  | IL132: =IF(IL131,IL130,(1+IL130)^(IL4/12)-1) ->  | IM132: =IF(IM131,IM130,(1+IM130)^(IM4/12)-1) ->  | IN132: =IF(IN131,IN130,(1+IN130)^(IN4/12)-1) ->  | IO132: =IF(IO131,IO130,(1+IO130)^(IO4/12)-1) ->  | IP132: =IF(IP131,IP130,(1+IP130)^(IP4/12)-1) ->  | IQ132: =IF(IQ131,IQ130,(1+IQ130)^(IQ4/12)-1) ->  | IR132: =IF(IR131,IR130,(1+IR130)^(IR4/12)-1) ->  | IS132: =IF(IS131,IS130,(1+IS130)^(IS4/12)-1) -> 
D134: Historic Revenues | F134: USD 000 | H134: =SUM(I134:IS134) -> 0 | I134: =IF(I3,I10) -> FALSE | J134: =IF(J3,J10) -> FALSE | K134: =IF(K3,K10) -> FALSE | L134: =IF(L3,L10) -> FALSE | M134: =IF(M3,M10) -> FALSE | N134: =IF(N3,N10) -> FALSE | O134: =IF(O3,O10) -> FALSE | P134: =IF(P3,P10) -> FALSE | Q134: =IF(Q3,Q10) -> FALSE | R134: =IF(R3,R10) -> FALSE | S134: =IF(S3,S10) -> FALSE | T134: =IF(T3,T10) -> FALSE | U134: =IF(U3,U10) -> FALSE | V134: =IF(V3,V10) -> FALSE | W134: =IF(W3,W10) -> FALSE | X134: =IF(X3,X10) -> FALSE | Y134: =IF(Y3,Y10) -> FALSE | Z134: =IF(Z3,Z10) -> FALSE | AA134: =IF(AA3,AA10) -> FALSE | AB134: =IF(AB3,AB10) -> FALSE | AC134: =IF(AC3,AC10) -> FALSE | AD134: =IF(AD3,AD10) -> FALSE | AE134: =IF(AE3,AE10) -> FALSE | AF134: =IF(AF3,AF10) -> FALSE | AG134: =IF(AG3,AG10) -> FALSE | AH134: =IF(AH3,AH10) -> FALSE | AI134: =IF(AI3,AI10) -> FALSE | AJ134: =IF(AJ3,AJ10) -> FALSE | AK134: =IF(AK3,AK10) -> FALSE | AL134: =IF(AL3,AL10) -> FALSE | AM134: =IF(AM3,AM10) -> FALSE | AN134: =IF(AN3,AN10) -> FALSE | AO134: =IF(AO3,AO10) -> FALSE | AP134: =IF(AP3,AP10) -> FALSE | AQ134: =IF(AQ3,AQ10) -> FALSE | AR134: =IF(AR3,AR10) -> FALSE | AS134: =IF(AS3,AS10) -> FALSE | AT134: =IF(AT3,AT10) -> FALSE | AU134: =IF(AU3,AU10) -> FALSE | AV134: =IF(AV3,AV10) -> FALSE | AW134: =IF(AW3,AW10) -> FALSE | AX134: =IF(AX3,AX10) -> FALSE | AY134: =IF(AY3,AY10) -> FALSE | AZ134: =IF(AZ3,AZ10) -> FALSE | BA134: =IF(BA3,BA10) -> FALSE | BB134: =IF(BB3,BB10) -> FALSE | BC134: =IF(BC3,BC10) -> FALSE | BD134: =IF(BD3,BD10) -> FALSE | BE134: =IF(BE3,BE10) -> FALSE | BF134: =IF(BF3,BF10) -> FALSE | BG134: =IF(BG3,BG10) -> FALSE | BH134: =IF(BH3,BH10) -> FALSE | BI134: =IF(BI3,BI10) -> FALSE | BJ134: =IF(BJ3,BJ10) -> FALSE | BK134: =IF(BK3,BK10) -> FALSE | BL134: =IF(BL3,BL10) -> FALSE | BM134: =IF(BM3,BM10) -> FALSE | BN134: =IF(BN3,BN10) -> FALSE | BO134: =IF(BO3,BO10) -> FALSE | BP134: =IF(BP3,BP10) -> FALSE | BQ134: =IF(BQ3,BQ10) -> FALSE | BR134: =IF(BR3,BR10) -> FALSE | BS134: =IF(BS3,BS10) -> FALSE | BT134: =IF(BT3,BT10) -> FALSE | BU134: =IF(BU3,BU10) -> FALSE | BV134: =IF(BV3,BV10) -> FALSE | BW134: =IF(BW3,BW10) -> FALSE | BX134: =IF(BX3,BX10) -> FALSE | BY134: =IF(BY3,BY10) -> FALSE | BZ134: =IF(BZ3,BZ10) -> FALSE | CA134: =IF(CA3,CA10) -> FALSE | CB134: =IF(CB3,CB10) -> FALSE | CC134: =IF(CC3,CC10) -> FALSE | CD134: =IF(CD3,CD10) -> FALSE | CE134: =IF(CE3,CE10) -> FALSE | CF134: =IF(CF3,CF10) -> FALSE | CG134: =IF(CG3,CG10) -> FALSE | CH134: =IF(CH3,CH10) -> FALSE | CI134: =IF(CI3,CI10) -> FALSE | CJ134: =IF(CJ3,CJ10) -> FALSE | CK134: =IF(CK3,CK10) -> FALSE | CL134: =IF(CL3,CL10) -> FALSE | CM134: =IF(CM3,CM10) -> FALSE | CN134: =IF(CN3,CN10) -> FALSE | CO134: =IF(CO3,CO10) -> FALSE | CP134: =IF(CP3,CP10) -> FALSE | CQ134: =IF(CQ3,CQ10) -> FALSE | CR134: =IF(CR3,CR10) -> FALSE | CS134: =IF(CS3,CS10) -> FALSE | CT134: =IF(CT3,CT10) -> FALSE | CU134: =IF(CU3,CU10) -> FALSE | CV134: =IF(CV3,CV10) -> FALSE | CW134: =IF(CW3,CW10) -> FALSE | CX134: =IF(CX3,CX10) -> FALSE | CY134: =IF(CY3,CY10) -> FALSE | CZ134: =IF(CZ3,CZ10) -> FALSE | DA134: =IF(DA3,DA10) -> FALSE | DB134: =IF(DB3,DB10) -> FALSE | DC134: =IF(DC3,DC10) -> FALSE | DD134: =IF(DD3,DD10) -> FALSE | DE134: =IF(DE3,DE10) -> FALSE | DF134: =IF(DF3,DF10) -> FALSE | DG134: =IF(DG3,DG10) -> FALSE | DH134: =IF(DH3,DH10) -> FALSE | DI134: =IF(DI3,DI10) -> FALSE | DJ134: =IF(DJ3,DJ10) -> FALSE | DK134: =IF(DK3,DK10) -> FALSE | DL134: =IF(DL3,DL10) -> FALSE | DM134: =IF(DM3,DM10) -> FALSE | DN134: =IF(DN3,DN10) -> FALSE | DO134: =IF(DO3,DO10) -> FALSE | DP134: =IF(DP3,DP10) -> FALSE | DQ134: =IF(DQ3,DQ10) -> FALSE | DR134: =IF(DR3,DR10) -> FALSE | DS134: =IF(DS3,DS10) -> FALSE | DT134: =IF(DT3,DT10) -> FALSE | DU134: =IF(DU3,DU10) -> FALSE | DV134: =IF(DV3,DV10) -> FALSE | DW134: =IF(DW3,DW10) -> FALSE | DX134: =IF(DX3,DX10) -> FALSE | DY134: =IF(DY3,DY10) -> FALSE | DZ134: =IF(DZ3,DZ10) -> FALSE | EA134: =IF(EA3,EA10) -> FALSE | EB134: =IF(EB3,EB10) -> FALSE | EC134: =IF(EC3,EC10) -> FALSE | ED134: =IF(ED3,ED10) -> FALSE | EE134: =IF(EE3,EE10) -> FALSE | EF134: =IF(EF3,EF10) -> FALSE | EG134: =IF(EG3,EG10) -> FALSE | EH134: =IF(EH3,EH10) -> FALSE | EI134: =IF(EI3,EI10) -> FALSE | EJ134: =IF(EJ3,EJ10) -> FALSE | EK134: =IF(EK3,EK10) -> FALSE | EL134: =IF(EL3,EL10) -> FALSE | EM134: =IF(EM3,EM10) -> FALSE | EN134: =IF(EN3,EN10) -> FALSE | EO134: =IF(EO3,EO10) -> FALSE | EP134: =IF(EP3,EP10) -> FALSE | EQ134: =IF(EQ3,EQ10) -> FALSE | ER134: =IF(ER3,ER10) -> FALSE | ES134: =IF(ES3,ES10) -> FALSE | ET134: =IF(ET3,ET10) -> FALSE | EU134: =IF(EU3,EU10) -> FALSE | EV134: =IF(EV3,EV10) -> FALSE | EW134: =IF(EW3,EW10) -> FALSE | EX134: =IF(EX3,EX10) -> FALSE | EY134: =IF(EY3,EY10) -> FALSE | EZ134: =IF(EZ3,EZ10) -> FALSE | FA134: =IF(FA3,FA10) -> FALSE | FB134: =IF(FB3,FB10) -> FALSE | FC134: =IF(FC3,FC10) -> FALSE | FD134: =IF(FD3,FD10) -> FALSE | FE134: =IF(FE3,FE10) -> FALSE | FF134: =IF(FF3,FF10) -> FALSE | FG134: =IF(FG3,FG10) -> FALSE | FH134: =IF(FH3,FH10) -> FALSE | FI134: =IF(FI3,FI10) -> FALSE | FJ134: =IF(FJ3,FJ10) -> FALSE | FK134: =IF(FK3,FK10) -> FALSE | FL134: =IF(FL3,FL10) -> FALSE | FM134: =IF(FM3,FM10) -> FALSE | FN134: =IF(FN3,FN10) -> FALSE | FO134: =IF(FO3,FO10) -> FALSE | FP134: =IF(FP3,FP10) -> FALSE | FQ134: =IF(FQ3,FQ10) -> FALSE | FR134: =IF(FR3,FR10) -> FALSE | FS134: =IF(FS3,FS10) -> FALSE | FT134: =IF(FT3,FT10) -> FALSE | FU134: =IF(FU3,FU10) -> FALSE | FV134: =IF(FV3,FV10) -> FALSE | FW134: =IF(FW3,FW10) -> FALSE | FX134: =IF(FX3,FX10) -> FALSE | FY134: =IF(FY3,FY10) -> FALSE | FZ134: =IF(FZ3,FZ10) -> FALSE | GA134: =IF(GA3,GA10) -> FALSE | GB134: =IF(GB3,GB10) -> FALSE | GC134: =IF(GC3,GC10) -> FALSE | GD134: =IF(GD3,GD10) -> FALSE | GE134: =IF(GE3,GE10) -> FALSE | GF134: =IF(GF3,GF10) -> FALSE | GG134: =IF(GG3,GG10) -> FALSE | GH134: =IF(GH3,GH10) -> FALSE | GI134: =IF(GI3,GI10) -> FALSE | GJ134: =IF(GJ3,GJ10) -> FALSE | GK134: =IF(GK3,GK10) -> FALSE | GL134: =IF(GL3,GL10) -> FALSE | GM134: =IF(GM3,GM10) -> FALSE | GN134: =IF(GN3,GN10) -> FALSE | GO134: =IF(GO3,GO10) -> FALSE | GP134: =IF(GP3,GP10) -> FALSE | GQ134: =IF(GQ3,GQ10) -> FALSE | GR134: =IF(GR3,GR10) -> FALSE | GS134: =IF(GS3,GS10) -> FALSE | GT134: =IF(GT3,GT10) -> FALSE | GU134: =IF(GU3,GU10) -> FALSE | GV134: =IF(GV3,GV10) -> FALSE | GW134: =IF(GW3,GW10) -> FALSE | GX134: =IF(GX3,GX10) -> FALSE | GY134: =IF(GY3,GY10) -> FALSE | GZ134: =IF(GZ3,GZ10) -> FALSE | HA134: =IF(HA3,HA10) -> FALSE | HB134: =IF(HB3,HB10) -> FALSE | HC134: =IF(HC3,HC10) -> FALSE | HD134: =IF(HD3,HD10) -> FALSE | HE134: =IF(HE3,HE10) -> FALSE | HF134: =IF(HF3,HF10) -> FALSE | HG134: =IF(HG3,HG10) -> FALSE | HH134: =IF(HH3,HH10) -> FALSE | HI134: =IF(HI3,HI10) -> FALSE | HJ134: =IF(HJ3,HJ10) -> FALSE | HK134: =IF(HK3,HK10) -> FALSE | HL134: =IF(HL3,HL10) -> FALSE | HM134: =IF(HM3,HM10) -> FALSE | HN134: =IF(HN3,HN10) -> FALSE | HO134: =IF(HO3,HO10) -> FALSE | HP134: =IF(HP3,HP10) -> FALSE | HQ134: =IF(HQ3,HQ10) -> FALSE | HR134: =IF(HR3,HR10) -> FALSE | HS134: =IF(HS3,HS10) -> FALSE | HT134: =IF(HT3,HT10) -> FALSE | HU134: =IF(HU3,HU10) -> FALSE | HV134: =IF(HV3,HV10) -> FALSE | HW134: =IF(HW3,HW10) -> FALSE | HX134: =IF(HX3,HX10) -> FALSE | HY134: =IF(HY3,HY10) -> FALSE | HZ134: =IF(HZ3,HZ10) -> FALSE | IA134: =IF(IA3,IA10) -> FALSE | IB134: =IF(IB3,IB10) -> FALSE | IC134: =IF(IC3,IC10) -> FALSE | ID134: =IF(ID3,ID10) -> FALSE | IE134: =IF(IE3,IE10) -> FALSE | IF134: =IF(IF3,IF10) -> FALSE | IG134: =IF(IG3,IG10) -> FALSE | IH134: =IF(IH3,IH10) -> FALSE | II134: =IF(II3,II10) -> FALSE | IJ134: =IF(IJ3,IJ10) -> FALSE | IK134: =IF(IK3,IK10) -> FALSE | IL134: =IF(IL3,IL10) -> FALSE | IM134: =IF(IM3,IM10) -> FALSE | IN134: =IF(IN3,IN10) -> FALSE | IO134: =IF(IO3,IO10) -> FALSE | IP134: =IF(IP3,IP10) -> FALSE | IQ134: =IF(IQ3,IQ10) -> FALSE | IR134: =IF(IR3,IR10) -> FALSE | IS134: =IF(IS3,IS10) -> FALSE
D135: Historic Sales in Units | F135: Units p.a. | H135: =SUM(I135:IS135) ->  | I135: =I134/I127 ->  | J135: =J134/J127 ->  | BS135: =BS134/BS127 ->  | BT135: =BT134/BT127 ->  | BU135: =BU134/BU127 ->  | BV135: =BV134/BV127 ->  | BW135: =BW134/BW127 ->  | BX135: =BX134/BX127 ->  | BY135: =BY134/BY127 ->  | BZ135: =BZ134/BZ127 ->  | CA135: =CA134/CA127 ->  | CB135: =CB134/CB127 ->  | CC135: =CC134/CC127 ->  | CD135: =CD134/CD127 ->  | CE135: =CE134/CE127 ->  | CF135: =CF134/CF127 ->  | CG135: =CG134/CG127 ->  | CH135: =CH134/CH127 ->  | CI135: =CI134/CI127 ->  | CJ135: =CJ134/CJ127 ->  | CK135: =CK134/CK127 ->  | CL135: =CL134/CL127 ->  | CM135: =CM134/CM127 ->  | CN135: =CN134/CN127 ->  | CO135: =CO134/CO127 ->  | CP135: =CP134/CP127 ->  | CQ135: =CQ134/CQ127 ->  | CR135: =CR134/CR127 ->  | CS135: =CS134/CS127 ->  | DH135: =DH134/DH127 ->  | EA135: =EA134/EA127 ->  | EL135: =EL134/EL127 ->  | GX135: =GX134/GX127 -> 
D136: Historic Sales in Units | F136: Units p.m. | H136: =SUM(I136:IS136) ->  | I136: =IF(I3,I135/12,G136*(1+I132)) ->  | J136: =IF(J3,J135/12,I136*(1+J132)) ->  | K136: =IF(K3,K135/12,J136*(1+K132)) ->  | L136: =IF(L3,L135/12,K136*(1+L132)) ->  | M136: =IF(M3,M135/12,L136*(1+M132)) ->  | N136: =IF(N3,N135/12,M136*(1+N132)) ->  | O136: =IF(O3,O135/12,N136*(1+O132)) ->  | P136: =IF(P3,P135/12,O136*(1+P132)) ->  | Q136: =IF(Q3,Q135/12,P136*(1+Q132)) ->  | R136: =IF(R3,R135/12,Q136*(1+R132)) ->  | S136: =IF(S3,S135/12,R136*(1+S132)) ->  | T136: =IF(T3,T135/12,S136*(1+T132)) ->  | U136: =IF(U3,U135/12,T136*(1+U132)) ->  | V136: =IF(V3,V135/12,U136*(1+V132)) ->  | W136: =IF(W3,W135/12,V136*(1+W132)) ->  | X136: =IF(X3,X135/12,W136*(1+X132)) ->  | Y136: =IF(Y3,Y135/12,X136*(1+Y132)) ->  | Z136: =IF(Z3,Z135/12,Y136*(1+Z132)) ->  | AA136: =IF(AA3,AA135/12,Z136*(1+AA132)) ->  | AB136: =IF(AB3,AB135/12,AA136*(1+AB132)) ->  | AC136: =IF(AC3,AC135/12,AB136*(1+AC132)) ->  | AD136: =IF(AD3,AD135/12,AC136*(1+AD132)) ->  | AE136: =IF(AE3,AE135/12,AD136*(1+AE132)) ->  | AF136: =IF(AF3,AF135/12,AE136*(1+AF132)) ->  | AG136: =IF(AG3,AG135/12,AF136*(1+AG132)) ->  | AH136: =IF(AH3,AH135/12,AG136*(1+AH132)) ->  | AI136: =IF(AI3,AI135/12,AH136*(1+AI132)) ->  | AJ136: =IF(AJ3,AJ135/12,AI136*(1+AJ132)) ->  | AK136: =IF(AK3,AK135/12,AJ136*(1+AK132)) ->  | AL136: =IF(AL3,AL135/12,AK136*(1+AL132)) ->  | AM136: =IF(AM3,AM135/12,AL136*(1+AM132)) ->  | AN136: =IF(AN3,AN135/12,AM136*(1+AN132)) ->  | AO136: =IF(AO3,AO135/12,AN136*(1+AO132)) ->  | AP136: =IF(AP3,AP135/12,AO136*(1+AP132)) ->  | AQ136: =IF(AQ3,AQ135/12,AP136*(1+AQ132)) ->  | AR136: =IF(AR3,AR135/12,AQ136*(1+AR132)) ->  | AS136: =IF(AS3,AS135/12,AR136*(1+AS132)) ->  | AT136: =IF(AT3,AT135/12,AS136*(1+AT132)) ->  | AU136: =IF(AU3,AU135/12,AT136*(1+AU132)) ->  | AV136: =IF(AV3,AV135/12,AU136*(1+AV132)) ->  | AW136: =IF(AW3,AW135/12,AV136*(1+AW132)) ->  | AX136: =IF(AX3,AX135/12,AW136*(1+AX132)) ->  | AY136: =IF(AY3,AY135/12,AX136*(1+AY132)) ->  | AZ136: =IF(AZ3,AZ135/12,AY136*(1+AZ132)) ->  | BA136: =IF(BA3,BA135/12,AZ136*(1+BA132)) ->  | BB136: =IF(BB3,BB135/12,BA136*(1+BB132)) ->  | BC136: =IF(BC3,BC135/12,BB136*(1+BC132)) ->  | BD136: =IF(BD3,BD135/12,BC136*(1+BD132)) ->  | BE136: =IF(BE3,BE135/12,BD136*(1+BE132)) ->  | BF136: =IF(BF3,BF135/12,BE136*(1+BF132)) ->  | BG136: =IF(BG3,BG135/12,BF136*(1+BG132)) ->  | BH136: =IF(BH3,BH135/12,BG136*(1+BH132)) ->  | BI136: =IF(BI3,BI135/12,BH136*(1+BI132)) ->  | BJ136: =IF(BJ3,BJ135/12,BI136*(1+BJ132)) ->  | BK136: =IF(BK3,BK135/12,BJ136*(1+BK132)) ->  | BL136: =IF(BL3,BL135/12,BK136*(1+BL132)) ->  | BM136: =IF(BM3,BM135/12,BL136*(1+BM132)) ->  | BN136: =IF(BN3,BN135/12,BM136*(1+BN132)) ->  | BO136: =IF(BO3,BO135/12,BN136*(1+BO132)) ->  | BP136: =IF(BP3,BP135/12,BO136*(1+BP132)) ->  | BQ136: =IF(BQ3,BQ135/12,BP136*(1+BQ132)) ->  | BR136: =IF(BR3,BR135/12,BQ136*(1+BR132)) ->  | BS136: =IF(BS3,BS135/12,BR136*(1+BS132)) ->  | BT136: =IF(BT3,BT135/12,BS136*(1+BT132)) ->  | BU136: =IF(BU3,BU135/12,BT136*(1+BU132)) ->  | BV136: =IF(BV3,BV135/12,BU136*(1+BV132)) ->  | BW136: =IF(BW3,BW135/12,BV136*(1+BW132)) ->  | BX136: =IF(BX3,BX135/12,BW136*(1+BX132)) ->  | BY136: =IF(BY3,BY135/12,BX136*(1+BY132)) ->  | BZ136: =IF(BZ3,BZ135/12,BY136*(1+BZ132)) ->  | CA136: =IF(CA3,CA135/12,BZ136*(1+CA132)) ->  | CB136: =IF(CB3,CB135/12,CA136*(1+CB132)) ->  | CC136: =IF(CC3,CC135/12,CB136*(1+CC132)) ->  | CD136: =IF(CD3,CD135/12,CC136*(1+CD132)) ->  | CE136: =IF(CE3,CE135/12,CD136*(1+CE132)) ->  | CF136: =IF(CF3,CF135/12,CE136*(1+CF132)) ->  | CG136: =IF(CG3,CG135/12,CF136*(1+CG132)) ->  | CH136: =IF(CH3,CH135/12,CG136*(1+CH132)) ->  | CI136: =IF(CI3,CI135/12,CH136*(1+CI132)) ->  | CJ136: =IF(CJ3,CJ135/12,CI136*(1+CJ132)) ->  | CK136: =IF(CK3,CK135/12,CJ136*(1+CK132)) ->  | CL136: =IF(CL3,CL135/12,CK136*(1+CL132)) ->  | CM136: =IF(CM3,CM135/12,CL136*(1+CM132)) ->  | CN136: =IF(CN3,CN135/12,CM136*(1+CN132)) ->  | CO136: =IF(CO3,CO135/12,CN136*(1+CO132)) ->  | CP136: =IF(CP3,CP135/12,CO136*(1+CP132)) ->  | CQ136: =IF(CQ3,CQ135/12,CP136*(1+CQ132)) ->  | CR136: =IF(CR3,CR135/12,CQ136*(1+CR132)) ->  | CS136: =IF(CS3,CS135/12,CR136*(1+CS132)) ->  | CT136: =IF(CT3,CT135/12,CS136*(1+CT132)) ->  | CU136: =IF(CU3,CU135/12,CT136*(1+CU132)) ->  | CV136: =IF(CV3,CV135/12,CU136*(1+CV132)) ->  | CW136: =IF(CW3,CW135/12,CV136*(1+CW132)) ->  | CX136: =IF(CX3,CX135/12,CW136*(1+CX132)) ->  | CY136: =IF(CY3,CY135/12,CX136*(1+CY132)) ->  | CZ136: =IF(CZ3,CZ135/12,CY136*(1+CZ132)) ->  | DA136: =IF(DA3,DA135/12,CZ136*(1+DA132)) ->  | DB136: =IF(DB3,DB135/12,DA136*(1+DB132)) ->  | DC136: =IF(DC3,DC135/12,DB136*(1+DC132)) ->  | DD136: =IF(DD3,DD135/12,DC136*(1+DD132)) ->  | DE136: =IF(DE3,DE135/12,DD136*(1+DE132)) ->  | DF136: =IF(DF3,DF135/12,DE136*(1+DF132)) ->  | DG136: =IF(DG3,DG135/12,DF136*(1+DG132)) ->  | DH136: =IF(DH3,DH135/12,DG136*(1+DH132)) ->  | DI136: =IF(DI3,DI135/12,DH136*(1+DI132)) ->  | DJ136: =IF(DJ3,DJ135/12,DI136*(1+DJ132)) ->  | DK136: =IF(DK3,DK135/12,DJ136*(1+DK132)) ->  | DL136: =IF(DL3,DL135/12,DK136*(1+DL132)) ->  | DM136: =IF(DM3,DM135/12,DL136*(1+DM132)) ->  | DN136: =IF(DN3,DN135/12,DM136*(1+DN132)) ->  | DO136: =IF(DO3,DO135/12,DN136*(1+DO132)) ->  | DP136: =IF(DP3,DP135/12,DO136*(1+DP132)) ->  | DQ136: =IF(DQ3,DQ135/12,DP136*(1+DQ132)) ->  | DR136: =IF(DR3,DR135/12,DQ136*(1+DR132)) ->  | DS136: =IF(DS3,DS135/12,DR136*(1+DS132)) ->  | DT136: =IF(DT3,DT135/12,DS136*(1+DT132)) ->  | DU136: =IF(DU3,DU135/12,DT136*(1+DU132)) ->  | DV136: =IF(DV3,DV135/12,DU136*(1+DV132)) ->  | DW136: =IF(DW3,DW135/12,DV136*(1+DW132)) ->  | DX136: =IF(DX3,DX135/12,DW136*(1+DX132)) ->  | DY136: =IF(DY3,DY135/12,DX136*(1+DY132)) ->  | DZ136: =IF(DZ3,DZ135/12,DY136*(1+DZ132)) ->  | EA136: =IF(EA3,EA135/12,DZ136*(1+EA132)) ->  | EB136: =IF(EB3,EB135/12,EA136*(1+EB132)) ->  | EC136: =IF(EC3,EC135/12,EB136*(1+EC132)) ->  | ED136: =IF(ED3,ED135/12,EC136*(1+ED132)) ->  | EE136: =IF(EE3,EE135/12,ED136*(1+EE132)) ->  | EF136: =IF(EF3,EF135/12,EE136*(1+EF132)) ->  | EG136: =IF(EG3,EG135/12,EF136*(1+EG132)) ->  | EH136: =IF(EH3,EH135/12,EG136*(1+EH132)) ->  | EI136: =IF(EI3,EI135/12,EH136*(1+EI132)) ->  | EJ136: =IF(EJ3,EJ135/12,EI136*(1+EJ132)) ->  | EK136: =IF(EK3,EK135/12,EJ136*(1+EK132)) ->  | EL136: =IF(EL3,EL135/12,EK136*(1+EL132)) ->  | EM136: =IF(EM3,EM135/12,EL136*(1+EM132)) ->  | EN136: =IF(EN3,EN135/12,EM136*(1+EN132)) ->  | EO136: =IF(EO3,EO135/12,EN136*(1+EO132)) ->  | EP136: =IF(EP3,EP135/12,EO136*(1+EP132)) ->  | EQ136: =IF(EQ3,EQ135/12,EP136*(1+EQ132)) ->  | ER136: =IF(ER3,ER135/12,EQ136*(1+ER132)) ->  | ES136: =IF(ES3,ES135/12,ER136*(1+ES132)) ->  | ET136: =IF(ET3,ET135/12,ES136*(1+ET132)) ->  | EU136: =IF(EU3,EU135/12,ET136*(1+EU132)) ->  | EV136: =IF(EV3,EV135/12,EU136*(1+EV132)) ->  | EW136: =IF(EW3,EW135/12,EV136*(1+EW132)) ->  | EX136: =IF(EX3,EX135/12,EW136*(1+EX132)) ->  | EY136: =IF(EY3,EY135/12,EX136*(1+EY132)) ->  | EZ136: =IF(EZ3,EZ135/12,EY136*(1+EZ132)) ->  | FA136: =IF(FA3,FA135/12,EZ136*(1+FA132)) ->  | FB136: =IF(FB3,FB135/12,FA136*(1+FB132)) ->  | FC136: =IF(FC3,FC135/12,FB136*(1+FC132)) ->  | FD136: =IF(FD3,FD135/12,FC136*(1+FD132)) ->  | FE136: =IF(FE3,FE135/12,FD136*(1+FE132)) ->  | FF136: =IF(FF3,FF135/12,FE136*(1+FF132)) ->  | FG136: =IF(FG3,FG135/12,FF136*(1+FG132)) ->  | FH136: =IF(FH3,FH135/12,FG136*(1+FH132)) ->  | FI136: =IF(FI3,FI135/12,FH136*(1+FI132)) ->  | FJ136: =IF(FJ3,FJ135/12,FI136*(1+FJ132)) ->  | FK136: =IF(FK3,FK135/12,FJ136*(1+FK132)) ->  | FL136: =IF(FL3,FL135/12,FK136*(1+FL132)) ->  | FM136: =IF(FM3,FM135/12,FL136*(1+FM132)) ->  | FN136: =IF(FN3,FN135/12,FM136*(1+FN132)) ->  | FO136: =IF(FO3,FO135/12,FN136*(1+FO132)) ->  | FP136: =IF(FP3,FP135/12,FO136*(1+FP132)) ->  | FQ136: =IF(FQ3,FQ135/12,FP136*(1+FQ132)) ->  | FR136: =IF(FR3,FR135/12,FQ136*(1+FR132)) ->  | FS136: =IF(FS3,FS135/12,FR136*(1+FS132)) ->  | FT136: =IF(FT3,FT135/12,FS136*(1+FT132)) ->  | FU136: =IF(FU3,FU135/12,FT136*(1+FU132)) ->  | FV136: =IF(FV3,FV135/12,FU136*(1+FV132)) ->  | FW136: =IF(FW3,FW135/12,FV136*(1+FW132)) ->  | FX136: =IF(FX3,FX135/12,FW136*(1+FX132)) ->  | FY136: =IF(FY3,FY135/12,FX136*(1+FY132)) ->  | FZ136: =IF(FZ3,FZ135/12,FY136*(1+FZ132)) ->  | GA136: =IF(GA3,GA135/12,FZ136*(1+GA132)) ->  | GB136: =IF(GB3,GB135/12,GA136*(1+GB132)) ->  | GC136: =IF(GC3,GC135/12,GB136*(1+GC132)) ->  | GD136: =IF(GD3,GD135/12,GC136*(1+GD132)) ->  | GE136: =IF(GE3,GE135/12,GD136*(1+GE132)) ->  | GF136: =IF(GF3,GF135/12,GE136*(1+GF132)) ->  | GG136: =IF(GG3,GG135/12,GF136*(1+GG132)) ->  | GH136: =IF(GH3,GH135/12,GG136*(1+GH132)) ->  | GI136: =IF(GI3,GI135/12,GH136*(1+GI132)) ->  | GJ136: =IF(GJ3,GJ135/12,GI136*(1+GJ132)) ->  | GK136: =IF(GK3,GK135/12,GJ136*(1+GK132)) ->  | GL136: =IF(GL3,GL135/12,GK136*(1+GL132)) ->  | GM136: =IF(GM3,GM135/12,GL136*(1+GM132)) ->  | GN136: =IF(GN3,GN135/12,GM136*(1+GN132)) ->  | GO136: =IF(GO3,GO135/12,GN136*(1+GO132)) ->  | GP136: =IF(GP3,GP135/12,GO136*(1+GP132)) ->  | GQ136: =IF(GQ3,GQ135/12,GP136*(1+GQ132)) ->  | GR136: =IF(GR3,GR135/12,GQ136*(1+GR132)) ->  | GS136: =IF(GS3,GS135/12,GR136*(1+GS132)) ->  | GT136: =IF(GT3,GT135/12,GS136*(1+GT132)) ->  | GU136: =IF(GU3,GU135/12,GT136*(1+GU132)) ->  | GV136: =IF(GV3,GV135/12,GU136*(1+GV132)) ->  | GW136: =IF(GW3,GW135/12,GV136*(1+GW132)) ->  | GX136: =IF(GX3,GX135/12,GW136*(1+GX132)) ->  | GY136: =IF(GY3,GY135/12,GX136*(1+GY132)) ->  | GZ136: =IF(GZ3,GZ135/12,GY136*(1+GZ132)) ->  | HA136: =IF(HA3,HA135/12,GZ136*(1+HA132)) ->  | HB136: =IF(HB3,HB135/12,HA136*(1+HB132)) ->  | HC136: =IF(HC3,HC135/12,HB136*(1+HC132)) ->  | HD136: =IF(HD3,HD135/12,HC136*(1+HD132)) ->  | HE136: =IF(HE3,HE135/12,HD136*(1+HE132)) ->  | HF136: =IF(HF3,HF135/12,HE136*(1+HF132)) ->  | HG136: =IF(HG3,HG135/12,HF136*(1+HG132)) ->  | HH136: =IF(HH3,HH135/12,HG136*(1+HH132)) ->  | HI136: =IF(HI3,HI135/12,HH136*(1+HI132)) ->  | HJ136: =IF(HJ3,HJ135/12,HI136*(1+HJ132)) ->  | HK136: =IF(HK3,HK135/12,HJ136*(1+HK132)) ->  | HL136: =IF(HL3,HL135/12,HK136*(1+HL132)) ->  | HM136: =IF(HM3,HM135/12,HL136*(1+HM132)) ->  | HN136: =IF(HN3,HN135/12,HM136*(1+HN132)) ->  | HO136: =IF(HO3,HO135/12,HN136*(1+HO132)) ->  | HP136: =IF(HP3,HP135/12,HO136*(1+HP132)) ->  | HQ136: =IF(HQ3,HQ135/12,HP136*(1+HQ132)) ->  | HR136: =IF(HR3,HR135/12,HQ136*(1+HR132)) ->  | HS136: =IF(HS3,HS135/12,HR136*(1+HS132)) ->  | HT136: =IF(HT3,HT135/12,HS136*(1+HT132)) ->  | HU136: =IF(HU3,HU135/12,HT136*(1+HU132)) ->  | HV136: =IF(HV3,HV135/12,HU136*(1+HV132)) ->  | HW136: =IF(HW3,HW135/12,HV136*(1+HW132)) ->  | HX136: =IF(HX3,HX135/12,HW136*(1+HX132)) ->  | HY136: =IF(HY3,HY135/12,HX136*(1+HY132)) ->  | HZ136: =IF(HZ3,HZ135/12,HY136*(1+HZ132)) ->  | IA136: =IF(IA3,IA135/12,HZ136*(1+IA132)) ->  | IB136: =IF(IB3,IB135/12,IA136*(1+IB132)) ->  | IC136: =IF(IC3,IC135/12,IB136*(1+IC132)) ->  | ID136: =IF(ID3,ID135/12,IC136*(1+ID132)) ->  | IE136: =IF(IE3,IE135/12,ID136*(1+IE132)) ->  | IF136: =IF(IF3,IF135/12,IE136*(1+IF132)) ->  | IG136: =IF(IG3,IG135/12,IF136*(1+IG132)) ->  | IH136: =IF(IH3,IH135/12,IG136*(1+IH132)) ->  | II136: =IF(II3,II135/12,IH136*(1+II132)) ->  | IJ136: =IF(IJ3,IJ135/12,II136*(1+IJ132)) ->  | IK136: =IF(IK3,IK135/12,IJ136*(1+IK132)) ->  | IL136: =IF(IL3,IL135/12,IK136*(1+IL132)) ->  | IM136: =IF(IM3,IM135/12,IL136*(1+IM132)) ->  | IN136: =IF(IN3,IN135/12,IM136*(1+IN132)) ->  | IO136: =IF(IO3,IO135/12,IN136*(1+IO132)) ->  | IP136: =IF(IP3,IP135/12,IO136*(1+IP132)) ->  | IQ136: =IF(IQ3,IQ135/12,IP136*(1+IQ132)) ->  | IR136: =IF(IR3,IR135/12,IQ136*(1+IR132)) ->  | IS136: =IF(IS3,IS135/12,IR136*(1+IS132)) -> 
D137: Periodic Sales in Units | F137: Units | H137: =SUM(I137:IS137) ->  | I137: =IF(I3,I135,I136) ->  | J137: =IF(J3,J135,J136) ->  | K137: =IF(K3,K135,K136) ->  | L137: =IF(L3,L135,L136) ->  | M137: =IF(M3,M135,M136) ->  | N137: =IF(N3,N135,N136) ->  | O137: =IF(O3,O135,O136) ->  | P137: =IF(P3,P135,P136) ->  | Q137: =IF(Q3,Q135,Q136) ->  | R137: =IF(R3,R135,R136) ->  | S137: =IF(S3,S135,S136) ->  | T137: =IF(T3,T135,T136) ->  | U137: =IF(U3,U135,U136) ->  | V137: =IF(V3,V135,V136) ->  | W137: =IF(W3,W135,W136) ->  | X137: =IF(X3,X135,X136) ->  | Y137: =IF(Y3,Y135,Y136) ->  | Z137: =IF(Z3,Z135,Z136) ->  | AA137: =IF(AA3,AA135,AA136) ->  | AB137: =IF(AB3,AB135,AB136) ->  | AC137: =IF(AC3,AC135,AC136) ->  | AD137: =IF(AD3,AD135,AD136) ->  | AE137: =IF(AE3,AE135,AE136) ->  | AF137: =IF(AF3,AF135,AF136) ->  | AG137: =IF(AG3,AG135,AG136) ->  | AH137: =IF(AH3,AH135,AH136) ->  | AI137: =IF(AI3,AI135,AI136) ->  | AJ137: =IF(AJ3,AJ135,AJ136) ->  | AK137: =IF(AK3,AK135,AK136) ->  | AL137: =IF(AL3,AL135,AL136) ->  | AM137: =IF(AM3,AM135,AM136) ->  | AN137: =IF(AN3,AN135,AN136) ->  | AO137: =IF(AO3,AO135,AO136) ->  | AP137: =IF(AP3,AP135,AP136) ->  | AQ137: =IF(AQ3,AQ135,AQ136) ->  | AR137: =IF(AR3,AR135,AR136) ->  | AS137: =IF(AS3,AS135,AS136) ->  | AT137: =IF(AT3,AT135,AT136) ->  | AU137: =IF(AU3,AU135,AU136) ->  | AV137: =IF(AV3,AV135,AV136) ->  | AW137: =IF(AW3,AW135,AW136) ->  | AX137: =IF(AX3,AX135,AX136) ->  | AY137: =IF(AY3,AY135,AY136) ->  | AZ137: =IF(AZ3,AZ135,AZ136) ->  | BA137: =IF(BA3,BA135,BA136) ->  | BB137: =IF(BB3,BB135,BB136) ->  | BC137: =IF(BC3,BC135,BC136) ->  | BD137: =IF(BD3,BD135,BD136) ->  | BE137: =IF(BE3,BE135,BE136) ->  | BF137: =IF(BF3,BF135,BF136) ->  | BG137: =IF(BG3,BG135,BG136) ->  | BH137: =IF(BH3,BH135,BH136) ->  | BI137: =IF(BI3,BI135,BI136) ->  | BJ137: =IF(BJ3,BJ135,BJ136) ->  | BK137: =IF(BK3,BK135,BK136) ->  | BL137: =IF(BL3,BL135,BL136) ->  | BM137: =IF(BM3,BM135,BM136) ->  | BN137: =IF(BN3,BN135,BN136) ->  | BO137: =IF(BO3,BO135,BO136) ->  | BP137: =IF(BP3,BP135,BP136) ->  | BQ137: =IF(BQ3,BQ135,BQ136) ->  | BR137: =IF(BR3,BR135,BR136) ->  | BS137: =IF(BS3,BS135,BS136) ->  | BT137: =IF(BT3,BT135,BT136) ->  | BU137: =IF(BU3,BU135,BU136) ->  | BV137: =IF(BV3,BV135,BV136) ->  | BW137: =IF(BW3,BW135,BW136) ->  | BX137: =IF(BX3,BX135,BX136) ->  | BY137: =IF(BY3,BY135,BY136) ->  | BZ137: =IF(BZ3,BZ135,BZ136) ->  | CA137: =IF(CA3,CA135,CA136) ->  | CB137: =IF(CB3,CB135,CB136) ->  | CC137: =IF(CC3,CC135,CC136) ->  | CD137: =IF(CD3,CD135,CD136) ->  | CE137: =IF(CE3,CE135,CE136) ->  | CF137: =IF(CF3,CF135,CF136) ->  | CG137: =IF(CG3,CG135,CG136) ->  | CH137: =IF(CH3,CH135,CH136) ->  | CI137: =IF(CI3,CI135,CI136) ->  | CJ137: =IF(CJ3,CJ135,CJ136) ->  | CK137: =IF(CK3,CK135,CK136) ->  | CL137: =IF(CL3,CL135,CL136) ->  | CM137: =IF(CM3,CM135,CM136) ->  | CN137: =IF(CN3,CN135,CN136) ->  | CO137: =IF(CO3,CO135,CO136) ->  | CP137: =IF(CP3,CP135,CP136) ->  | CQ137: =IF(CQ3,CQ135,CQ136) ->  | CR137: =IF(CR3,CR135,CR136) ->  | CS137: =IF(CS3,CS135,CS136) ->  | CT137: =IF(CT3,CT135,CT136) ->  | CU137: =IF(CU3,CU135,CU136) ->  | CV137: =IF(CV3,CV135,CV136) ->  | CW137: =IF(CW3,CW135,CW136) ->  | CX137: =IF(CX3,CX135,CX136) ->  | CY137: =IF(CY3,CY135,CY136) ->  | CZ137: =IF(CZ3,CZ135,CZ136) ->  | DA137: =IF(DA3,DA135,DA136) ->  | DB137: =IF(DB3,DB135,DB136) ->  | DC137: =IF(DC3,DC135,DC136) ->  | DD137: =IF(DD3,DD135,DD136) ->  | DE137: =IF(DE3,DE135,DE136) ->  | DF137: =IF(DF3,DF135,DF136) ->  | DG137: =IF(DG3,DG135,DG136) ->  | DH137: =IF(DH3,DH135,DH136) ->  | DI137: =IF(DI3,DI135,DI136) ->  | DJ137: =IF(DJ3,DJ135,DJ136) ->  | DK137: =IF(DK3,DK135,DK136) ->  | DL137: =IF(DL3,DL135,DL136) ->  | DM137: =IF(DM3,DM135,DM136) ->  | DN137: =IF(DN3,DN135,DN136) ->  | DO137: =IF(DO3,DO135,DO136) ->  | DP137: =IF(DP3,DP135,DP136) ->  | DQ137: =IF(DQ3,DQ135,DQ136) ->  | DR137: =IF(DR3,DR135,DR136) ->  | DS137: =IF(DS3,DS135,DS136) ->  | DT137: =IF(DT3,DT135,DT136) ->  | DU137: =IF(DU3,DU135,DU136) ->  | DV137: =IF(DV3,DV135,DV136) ->  | DW137: =IF(DW3,DW135,DW136) ->  | DX137: =IF(DX3,DX135,DX136) ->  | DY137: =IF(DY3,DY135,DY136) ->  | DZ137: =IF(DZ3,DZ135,DZ136) ->  | EA137: =IF(EA3,EA135,EA136) ->  | EB137: =IF(EB3,EB135,EB136) ->  | EC137: =IF(EC3,EC135,EC136) ->  | ED137: =IF(ED3,ED135,ED136) ->  | EE137: =IF(EE3,EE135,EE136) ->  | EF137: =IF(EF3,EF135,EF136) ->  | EG137: =IF(EG3,EG135,EG136) ->  | EH137: =IF(EH3,EH135,EH136) ->  | EI137: =IF(EI3,EI135,EI136) ->  | EJ137: =IF(EJ3,EJ135,EJ136) ->  | EK137: =IF(EK3,EK135,EK136) ->  | EL137: =IF(EL3,EL135,EL136) ->  | EM137: =IF(EM3,EM135,EM136) ->  | EN137: =IF(EN3,EN135,EN136) ->  | EO137: =IF(EO3,EO135,EO136) ->  | EP137: =IF(EP3,EP135,EP136) ->  | EQ137: =IF(EQ3,EQ135,EQ136) ->  | ER137: =IF(ER3,ER135,ER136) ->  | ES137: =IF(ES3,ES135,ES136) ->  | ET137: =IF(ET3,ET135,ET136) ->  | EU137: =IF(EU3,EU135,EU136) ->  | EV137: =IF(EV3,EV135,EV136) ->  | EW137: =IF(EW3,EW135,EW136) ->  | EX137: =IF(EX3,EX135,EX136) ->  | EY137: =IF(EY3,EY135,EY136) ->  | EZ137: =IF(EZ3,EZ135,EZ136) ->  | FA137: =IF(FA3,FA135,FA136) ->  | FB137: =IF(FB3,FB135,FB136) ->  | FC137: =IF(FC3,FC135,FC136) ->  | FD137: =IF(FD3,FD135,FD136) ->  | FE137: =IF(FE3,FE135,FE136) ->  | FF137: =IF(FF3,FF135,FF136) ->  | FG137: =IF(FG3,FG135,FG136) ->  | FH137: =IF(FH3,FH135,FH136) ->  | FI137: =IF(FI3,FI135,FI136) ->  | FJ137: =IF(FJ3,FJ135,FJ136) ->  | FK137: =IF(FK3,FK135,FK136) ->  | FL137: =IF(FL3,FL135,FL136) ->  | FM137: =IF(FM3,FM135,FM136) ->  | FN137: =IF(FN3,FN135,FN136) ->  | FO137: =IF(FO3,FO135,FO136) ->  | FP137: =IF(FP3,FP135,FP136) ->  | FQ137: =IF(FQ3,FQ135,FQ136) ->  | FR137: =IF(FR3,FR135,FR136) ->  | FS137: =IF(FS3,FS135,FS136) ->  | FT137: =IF(FT3,FT135,FT136) ->  | FU137: =IF(FU3,FU135,FU136) ->  | FV137: =IF(FV3,FV135,FV136) ->  | FW137: =IF(FW3,FW135,FW136) ->  | FX137: =IF(FX3,FX135,FX136) ->  | FY137: =IF(FY3,FY135,FY136) ->  | FZ137: =IF(FZ3,FZ135,FZ136) ->  | GA137: =IF(GA3,GA135,GA136) ->  | GB137: =IF(GB3,GB135,GB136) ->  | GC137: =IF(GC3,GC135,GC136) ->  | GD137: =IF(GD3,GD135,GD136) ->  | GE137: =IF(GE3,GE135,GE136) ->  | GF137: =IF(GF3,GF135,GF136) ->  | GG137: =IF(GG3,GG135,GG136) ->  | GH137: =IF(GH3,GH135,GH136) ->  | GI137: =IF(GI3,GI135,GI136) ->  | GJ137: =IF(GJ3,GJ135,GJ136) ->  | GK137: =IF(GK3,GK135,GK136) ->  | GL137: =IF(GL3,GL135,GL136) ->  | GM137: =IF(GM3,GM135,GM136) ->  | GN137: =IF(GN3,GN135,GN136) ->  | GO137: =IF(GO3,GO135,GO136) ->  | GP137: =IF(GP3,GP135,GP136) ->  | GQ137: =IF(GQ3,GQ135,GQ136) ->  | GR137: =IF(GR3,GR135,GR136) ->  | GS137: =IF(GS3,GS135,GS136) ->  | GT137: =IF(GT3,GT135,GT136) ->  | GU137: =IF(GU3,GU135,GU136) ->  | GV137: =IF(GV3,GV135,GV136) ->  | GW137: =IF(GW3,GW135,GW136) ->  | GX137: =IF(GX3,GX135,GX136) ->  | GY137: =IF(GY3,GY135,GY136) ->  | GZ137: =IF(GZ3,GZ135,GZ136) ->  | HA137: =IF(HA3,HA135,HA136) ->  | HB137: =IF(HB3,HB135,HB136) ->  | HC137: =IF(HC3,HC135,HC136) ->  | HD137: =IF(HD3,HD135,HD136) ->  | HE137: =IF(HE3,HE135,HE136) ->  | HF137: =IF(HF3,HF135,HF136) ->  | HG137: =IF(HG3,HG135,HG136) ->  | HH137: =IF(HH3,HH135,HH136) ->  | HI137: =IF(HI3,HI135,HI136) ->  | HJ137: =IF(HJ3,HJ135,HJ136) ->  | HK137: =IF(HK3,HK135,HK136) ->  | HL137: =IF(HL3,HL135,HL136) ->  | HM137: =IF(HM3,HM135,HM136) ->  | HN137: =IF(HN3,HN135,HN136) ->  | HO137: =IF(HO3,HO135,HO136) ->  | HP137: =IF(HP3,HP135,HP136) ->  | HQ137: =IF(HQ3,HQ135,HQ136) ->  | HR137: =IF(HR3,HR135,HR136) ->  | HS137: =IF(HS3,HS135,HS136) ->  | HT137: =IF(HT3,HT135,HT136) ->  | HU137: =IF(HU3,HU135,HU136) ->  | HV137: =IF(HV3,HV135,HV136) ->  | HW137: =IF(HW3,HW135,HW136) ->  | HX137: =IF(HX3,HX135,HX136) ->  | HY137: =IF(HY3,HY135,HY136) ->  | HZ137: =IF(HZ3,HZ135,HZ136) ->  | IA137: =IF(IA3,IA135,IA136) ->  | IB137: =IF(IB3,IB135,IB136) ->  | IC137: =IF(IC3,IC135,IC136) ->  | ID137: =IF(ID3,ID135,ID136) ->  | IE137: =IF(IE3,IE135,IE136) ->  | IF137: =IF(IF3,IF135,IF136) ->  | IG137: =IF(IG3,IG135,IG136) ->  | IH137: =IF(IH3,IH135,IH136) ->  | II137: =IF(II3,II135,II136) ->  | IJ137: =IF(IJ3,IJ135,IJ136) ->  | IK137: =IF(IK3,IK135,IK136) ->  | IL137: =IF(IL3,IL135,IL136) ->  | IM137: =IF(IM3,IM135,IM136) ->  | IN137: =IF(IN3,IN135,IN136) ->  | IO137: =IF(IO3,IO135,IO136) ->  | IP137: =IF(IP3,IP135,IP136) ->  | IQ137: =IF(IQ3,IQ135,IQ136) ->  | IR137: =IF(IR3,IR135,IR136) ->  | IS137: =IF(IS3,IS135,IS136) -> 
D139: Periodic Revenues | F139: USD 000 | H139: =SUM(I139:IS139) ->  | I139: =I137*I127 ->  | J139: =J137*J127 ->  | BV139: =BV137*BV127 ->  | CT139: =CT137*CT127 ->  | DH139: =DH137*DH127 ->  | EA139: =EA137*EA127 ->  | EL139: =EL137*EL127 ->  | GX139: =GX137*GX127 -> 
D141: Revenue Growth | F141: % | J141: =J139/I139-1 ->  | K141: =K139/J139-1 ->  | BW141: =BW139/BV139-1 ->  | EI141: =EI139/EH139-1 ->  | GU141: =GU139/GT139-1 -> 
D142: Units Sold Growth | J142: =J137/I137-1 ->  | K142: =K137/J137-1 ->  | BW142: =BW137/BV137-1 ->  | EI142: =EI137/EH137-1 ->  | GU142: =GU137/GT137-1 -> 
B144: Cost of Goods Sold and Inventory
D145: Historic Cost of Goods Sold | F145: USD 000 | H145: =SUM(I145:IS145) -> 0 | I145: =IF(I3,I11) -> FALSE | J145: =IF(J3,J11) -> FALSE | K145: =IF(K3,K11) -> FALSE | L145: =IF(L3,L11) -> FALSE | M145: =IF(M3,M11) -> FALSE | N145: =IF(N3,N11) -> FALSE | O145: =IF(O3,O11) -> FALSE | P145: =IF(P3,P11) -> FALSE | Q145: =IF(Q3,Q11) -> FALSE | R145: =IF(R3,R11) -> FALSE | S145: =IF(S3,S11) -> FALSE | T145: =IF(T3,T11) -> FALSE | U145: =IF(U3,U11) -> FALSE | V145: =IF(V3,V11) -> FALSE | W145: =IF(W3,W11) -> FALSE | X145: =IF(X3,X11) -> FALSE | Y145: =IF(Y3,Y11) -> FALSE | Z145: =IF(Z3,Z11) -> FALSE | AA145: =IF(AA3,AA11) -> FALSE | AB145: =IF(AB3,AB11) -> FALSE | AC145: =IF(AC3,AC11) -> FALSE | AD145: =IF(AD3,AD11) -> FALSE | AE145: =IF(AE3,AE11) -> FALSE | AF145: =IF(AF3,AF11) -> FALSE | AG145: =IF(AG3,AG11) -> FALSE | AH145: =IF(AH3,AH11) -> FALSE | AI145: =IF(AI3,AI11) -> FALSE | AJ145: =IF(AJ3,AJ11) -> FALSE | AK145: =IF(AK3,AK11) -> FALSE | AL145: =IF(AL3,AL11) -> FALSE | AM145: =IF(AM3,AM11) -> FALSE | AN145: =IF(AN3,AN11) -> FALSE | AO145: =IF(AO3,AO11) -> FALSE | AP145: =IF(AP3,AP11) -> FALSE | AQ145: =IF(AQ3,AQ11) -> FALSE | AR145: =IF(AR3,AR11) -> FALSE | AS145: =IF(AS3,AS11) -> FALSE | AT145: =IF(AT3,AT11) -> FALSE | AU145: =IF(AU3,AU11) -> FALSE | AV145: =IF(AV3,AV11) -> FALSE | AW145: =IF(AW3,AW11) -> FALSE | AX145: =IF(AX3,AX11) -> FALSE | AY145: =IF(AY3,AY11) -> FALSE | AZ145: =IF(AZ3,AZ11) -> FALSE | BA145: =IF(BA3,BA11) -> FALSE | BB145: =IF(BB3,BB11) -> FALSE | BC145: =IF(BC3,BC11) -> FALSE | BD145: =IF(BD3,BD11) -> FALSE | BE145: =IF(BE3,BE11) -> FALSE | BF145: =IF(BF3,BF11) -> FALSE | BG145: =IF(BG3,BG11) -> FALSE | BH145: =IF(BH3,BH11) -> FALSE | BI145: =IF(BI3,BI11) -> FALSE | BJ145: =IF(BJ3,BJ11) -> FALSE | BK145: =IF(BK3,BK11) -> FALSE | BL145: =IF(BL3,BL11) -> FALSE | BM145: =IF(BM3,BM11) -> FALSE | BN145: =IF(BN3,BN11) -> FALSE | BO145: =IF(BO3,BO11) -> FALSE | BP145: =IF(BP3,BP11) -> FALSE | BQ145: =IF(BQ3,BQ11) -> FALSE | BR145: =IF(BR3,BR11) -> FALSE | BS145: =IF(BS3,BS11) -> FALSE | BT145: =IF(BT3,BT11) -> FALSE | BU145: =IF(BU3,BU11) -> FALSE | BV145: =IF(BV3,BV11) -> FALSE | BW145: =IF(BW3,BW11) -> FALSE | BX145: =IF(BX3,BX11) -> FALSE | BY145: =IF(BY3,BY11) -> FALSE | BZ145: =IF(BZ3,BZ11) -> FALSE | CA145: =IF(CA3,CA11) -> FALSE | CB145: =IF(CB3,CB11) -> FALSE | CC145: =IF(CC3,CC11) -> FALSE | CD145: =IF(CD3,CD11) -> FALSE | CE145: =IF(CE3,CE11) -> FALSE | CF145: =IF(CF3,CF11) -> FALSE | CG145: =IF(CG3,CG11) -> FALSE | CH145: =IF(CH3,CH11) -> FALSE | CI145: =IF(CI3,CI11) -> FALSE | CJ145: =IF(CJ3,CJ11) -> FALSE | CK145: =IF(CK3,CK11) -> FALSE | CL145: =IF(CL3,CL11) -> FALSE | CM145: =IF(CM3,CM11) -> FALSE | CN145: =IF(CN3,CN11) -> FALSE | CO145: =IF(CO3,CO11) -> FALSE | CP145: =IF(CP3,CP11) -> FALSE | CQ145: =IF(CQ3,CQ11) -> FALSE | CR145: =IF(CR3,CR11) -> FALSE | CS145: =IF(CS3,CS11) -> FALSE | CT145: =IF(CT3,CT11) -> FALSE | CU145: =IF(CU3,CU11) -> FALSE | CV145: =IF(CV3,CV11) -> FALSE | CW145: =IF(CW3,CW11) -> FALSE | CX145: =IF(CX3,CX11) -> FALSE | CY145: =IF(CY3,CY11) -> FALSE | CZ145: =IF(CZ3,CZ11) -> FALSE | DA145: =IF(DA3,DA11) -> FALSE | DB145: =IF(DB3,DB11) -> FALSE | DC145: =IF(DC3,DC11) -> FALSE | DD145: =IF(DD3,DD11) -> FALSE | DE145: =IF(DE3,DE11) -> FALSE | DF145: =IF(DF3,DF11) -> FALSE | DG145: =IF(DG3,DG11) -> FALSE | DH145: =IF(DH3,DH11) -> FALSE | DI145: =IF(DI3,DI11) -> FALSE | DJ145: =IF(DJ3,DJ11) -> FALSE | DK145: =IF(DK3,DK11) -> FALSE | DL145: =IF(DL3,DL11) -> FALSE | DM145: =IF(DM3,DM11) -> FALSE | DN145: =IF(DN3,DN11) -> FALSE | DO145: =IF(DO3,DO11) -> FALSE | DP145: =IF(DP3,DP11) -> FALSE | DQ145: =IF(DQ3,DQ11) -> FALSE | DR145: =IF(DR3,DR11) -> FALSE | DS145: =IF(DS3,DS11) -> FALSE | DT145: =IF(DT3,DT11) -> FALSE | DU145: =IF(DU3,DU11) -> FALSE | DV145: =IF(DV3,DV11) -> FALSE | DW145: =IF(DW3,DW11) -> FALSE | DX145: =IF(DX3,DX11) -> FALSE | DY145: =IF(DY3,DY11) -> FALSE | DZ145: =IF(DZ3,DZ11) -> FALSE | EA145: =IF(EA3,EA11) -> FALSE | EB145: =IF(EB3,EB11) -> FALSE | EC145: =IF(EC3,EC11) -> FALSE | ED145: =IF(ED3,ED11) -> FALSE | EE145: =IF(EE3,EE11) -> FALSE | EF145: =IF(EF3,EF11) -> FALSE | EG145: =IF(EG3,EG11) -> FALSE | EH145: =IF(EH3,EH11) -> FALSE | EI145: =IF(EI3,EI11) -> FALSE | EJ145: =IF(EJ3,EJ11) -> FALSE | EK145: =IF(EK3,EK11) -> FALSE | EL145: =IF(EL3,EL11) -> FALSE | EM145: =IF(EM3,EM11) -> FALSE | EN145: =IF(EN3,EN11) -> FALSE | EO145: =IF(EO3,EO11) -> FALSE | EP145: =IF(EP3,EP11) -> FALSE | EQ145: =IF(EQ3,EQ11) -> FALSE | ER145: =IF(ER3,ER11) -> FALSE | ES145: =IF(ES3,ES11) -> FALSE | ET145: =IF(ET3,ET11) -> FALSE | EU145: =IF(EU3,EU11) -> FALSE | EV145: =IF(EV3,EV11) -> FALSE | EW145: =IF(EW3,EW11) -> FALSE | EX145: =IF(EX3,EX11) -> FALSE | EY145: =IF(EY3,EY11) -> FALSE | EZ145: =IF(EZ3,EZ11) -> FALSE | FA145: =IF(FA3,FA11) -> FALSE | FB145: =IF(FB3,FB11) -> FALSE | FC145: =IF(FC3,FC11) -> FALSE | FD145: =IF(FD3,FD11) -> FALSE | FE145: =IF(FE3,FE11) -> FALSE | FF145: =IF(FF3,FF11) -> FALSE | FG145: =IF(FG3,FG11) -> FALSE | FH145: =IF(FH3,FH11) -> FALSE | FI145: =IF(FI3,FI11) -> FALSE | FJ145: =IF(FJ3,FJ11) -> FALSE | FK145: =IF(FK3,FK11) -> FALSE | FL145: =IF(FL3,FL11) -> FALSE | FM145: =IF(FM3,FM11) -> FALSE | FN145: =IF(FN3,FN11) -> FALSE | FO145: =IF(FO3,FO11) -> FALSE | FP145: =IF(FP3,FP11) -> FALSE | FQ145: =IF(FQ3,FQ11) -> FALSE | FR145: =IF(FR3,FR11) -> FALSE | FS145: =IF(FS3,FS11) -> FALSE | FT145: =IF(FT3,FT11) -> FALSE | FU145: =IF(FU3,FU11) -> FALSE | FV145: =IF(FV3,FV11) -> FALSE | FW145: =IF(FW3,FW11) -> FALSE | FX145: =IF(FX3,FX11) -> FALSE | FY145: =IF(FY3,FY11) -> FALSE | FZ145: =IF(FZ3,FZ11) -> FALSE | GA145: =IF(GA3,GA11) -> FALSE | GB145: =IF(GB3,GB11) -> FALSE | GC145: =IF(GC3,GC11) -> FALSE | GD145: =IF(GD3,GD11) -> FALSE | GE145: =IF(GE3,GE11) -> FALSE | GF145: =IF(GF3,GF11) -> FALSE | GG145: =IF(GG3,GG11) -> FALSE | GH145: =IF(GH3,GH11) -> FALSE | GI145: =IF(GI3,GI11) -> FALSE | GJ145: =IF(GJ3,GJ11) -> FALSE | GK145: =IF(GK3,GK11) -> FALSE | GL145: =IF(GL3,GL11) -> FALSE | GM145: =IF(GM3,GM11) -> FALSE | GN145: =IF(GN3,GN11) -> FALSE | GO145: =IF(GO3,GO11) -> FALSE | GP145: =IF(GP3,GP11) -> FALSE | GQ145: =IF(GQ3,GQ11) -> FALSE | GR145: =IF(GR3,GR11) -> FALSE | GS145: =IF(GS3,GS11) -> FALSE | GT145: =IF(GT3,GT11) -> FALSE | GU145: =IF(GU3,GU11) -> FALSE | GV145: =IF(GV3,GV11) -> FALSE | GW145: =IF(GW3,GW11) -> FALSE | GX145: =IF(GX3,GX11) -> FALSE | GY145: =IF(GY3,GY11) -> FALSE | GZ145: =IF(GZ3,GZ11) -> FALSE | HA145: =IF(HA3,HA11) -> FALSE | HB145: =IF(HB3,HB11) -> FALSE | HC145: =IF(HC3,HC11) -> FALSE | HD145: =IF(HD3,HD11) -> FALSE | HE145: =IF(HE3,HE11) -> FALSE | HF145: =IF(HF3,HF11) -> FALSE | HG145: =IF(HG3,HG11) -> FALSE | HH145: =IF(HH3,HH11) -> FALSE | HI145: =IF(HI3,HI11) -> FALSE | HJ145: =IF(HJ3,HJ11) -> FALSE | HK145: =IF(HK3,HK11) -> FALSE | HL145: =IF(HL3,HL11) -> FALSE | HM145: =IF(HM3,HM11) -> FALSE | HN145: =IF(HN3,HN11) -> FALSE | HO145: =IF(HO3,HO11) -> FALSE | HP145: =IF(HP3,HP11) -> FALSE | HQ145: =IF(HQ3,HQ11) -> FALSE | HR145: =IF(HR3,HR11) -> FALSE | HS145: =IF(HS3,HS11) -> FALSE | HT145: =IF(HT3,HT11) -> FALSE | HU145: =IF(HU3,HU11) -> FALSE | HV145: =IF(HV3,HV11) -> FALSE | HW145: =IF(HW3,HW11) -> FALSE | HX145: =IF(HX3,HX11) -> FALSE | HY145: =IF(HY3,HY11) -> FALSE | HZ145: =IF(HZ3,HZ11) -> FALSE | IA145: =IF(IA3,IA11) -> FALSE | IB145: =IF(IB3,IB11) -> FALSE | IC145: =IF(IC3,IC11) -> FALSE | ID145: =IF(ID3,ID11) -> FALSE | IE145: =IF(IE3,IE11) -> FALSE | IF145: =IF(IF3,IF11) -> FALSE | IG145: =IF(IG3,IG11) -> FALSE | IH145: =IF(IH3,IH11) -> FALSE | II145: =IF(II3,II11) -> FALSE | IJ145: =IF(IJ3,IJ11) -> FALSE | IK145: =IF(IK3,IK11) -> FALSE | IL145: =IF(IL3,IL11) -> FALSE | IM145: =IF(IM3,IM11) -> FALSE | IN145: =IF(IN3,IN11) -> FALSE | IO145: =IF(IO3,IO11) -> FALSE | IP145: =IF(IP3,IP11) -> FALSE | IQ145: =IF(IQ3,IQ11) -> FALSE | IR145: =IF(IR3,IR11) -> FALSE | IS145: =IF(IS3,IS11) -> FALSE
D146: Cost of Goods Sold Percent | F146: % | G146: ='Model Parameters'!$G$15 -> 0.592 | I146: =IFERROR(I145/I134,$G$146) -> 0.592 | J146: =IFERROR(J145/J134,$G$146) -> 0.592 | K146: 0.592 | L146: 0.592 | M146: 0.592 | N146: 0.592 | O146: 0.592 | P146: 0.592 | Q146: 0.592 | R146: 0.592 | S146: 0.592 | T146: 0.592 | U146: 0.592 | V146: 0.592 | W146: 0.592 | X146: 0.592 | Y146: 0.592 | Z146: 0.592 | AA146: 0.592 | AB146: 0.592 | AC146: 0.592 | AD146: 0.592 | AE146: 0.592 | AF146: 0.592 | AG146: 0.592 | AH146: 0.592 | AI146: 0.592 | AJ146: 0.592 | AK146: 0.592 | AL146: 0.592 | AM146: 0.592 | AN146: 0.592 | AO146: 0.592 | AP146: 0.592 | AQ146: 0.592 | AR146: 0.592 | AS146: 0.592 | AT146: 0.592 | AU146: 0.592 | AV146: 0.592 | AW146: 0.592 | AX146: 0.592 | AY146: 0.592 | AZ146: 0.592 | BA146: 0.592 | BB146: 0.592 | BC146: 0.592 | BD146: 0.592 | BE146: 0.592 | BF146: 0.592 | BG146: 0.592 | BH146: 0.592 | BI146: 0.592 | BJ146: 0.592 | BK146: 0.592 | BL146: 0.592 | BM146: 0.592 | BN146: 0.592 | BO146: 0.592 | BP146: 0.592 | BQ146: 0.592 | BR146: 0.592 | BS146: 0.592 | BT146: 0.592 | BU146: 0.592 | BV146: =IFERROR(BV145/BV134,$G$146) -> 0.592 | BW146: 0.592 | BX146: 0.592 | BY146: 0.592 | BZ146: 0.592 | CA146: 0.592 | CB146: 0.592 | CC146: 0.592 | CD146: 0.592 | CE146: 0.592 | CF146: 0.592 | CG146: 0.592 | CH146: 0.592 | CI146: 0.592 | CJ146: 0.592 | CK146: 0.592 | CL146: 0.592 | CM146: 0.592 | CN146: 0.592 | CO146: 0.592 | CP146: 0.592 | CQ146: 0.592 | CR146: 0.592 | CS146: 0.592 | CT146: 0.592 | CU146: 0.592 | CV146: 0.592 | CW146: 0.592 | CX146: 0.592 | CY146: 0.592 | CZ146: 0.592 | DA146: 0.592 | DB146: 0.592 | DC146: 0.592 | DD146: 0.592 | DE146: 0.592 | DF146: 0.592 | DG146: 0.592 | DH146: 0.592 | DI146: 0.592 | DJ146: 0.592 | DK146: 0.592 | DL146: 0.592 | DM146: 0.592 | DN146: 0.592 | DO146: 0.592 | DP146: 0.592 | DQ146: 0.592 | DR146: 0.592 | DS146: 0.592 | DT146: 0.592 | DU146: 0.592 | DV146: 0.592 | DW146: 0.592 | DX146: 0.592 | DY146: 0.592 | DZ146: 0.592 | EA146: 0.592 | EB146: 0.592 | EC146: 0.592 | ED146: 0.592 | EE146: 0.592 | EF146: 0.592 | EG146: 0.592 | EH146: =IFERROR(EH145/EH134,$G$146) -> 0.592 | EI146: 0.592 | EJ146: 0.592 | EK146: 0.592 | EL146: 0.592 | EM146: 0.592 | EN146: 0.592 | EO146: 0.592 | EP146: 0.592 | EQ146: 0.592 | ER146: 0.592 | ES146: 0.592 | ET146: 0.592 | EU146: 0.592 | EV146: 0.592 | EW146: 0.592 | EX146: 0.592 | EY146: 0.592 | EZ146: 0.592 | FA146: 0.592 | FB146: 0.592 | FC146: 0.592 | FD146: 0.592 | FE146: 0.592 | FF146: 0.592 | FG146: 0.592 | FH146: 0.592 | FI146: 0.592 | FJ146: 0.592 | FK146: 0.592 | FL146: 0.592 | FM146: 0.592 | FN146: 0.592 | FO146: 0.592 | FP146: 0.592 | FQ146: 0.592 | FR146: 0.592 | FS146: 0.592 | FT146: 0.592 | FU146: 0.592 | FV146: 0.592 | FW146: 0.592 | FX146: 0.592 | FY146: 0.592 | FZ146: 0.592 | GA146: 0.592 | GB146: 0.592 | GC146: 0.592 | GD146: 0.592 | GE146: 0.592 | GF146: 0.592 | GG146: 0.592 | GH146: 0.592 | GI146: 0.592 | GJ146: 0.592 | GK146: 0.592 | GL146: 0.592 | GM146: 0.592 | GN146: 0.592 | GO146: 0.592 | GP146: 0.592 | GQ146: 0.592 | GR146: 0.592 | GS146: 0.592 | GT146: =IFERROR(GT145/GT134,$G$146) -> 0.592 | GU146: 0.592 | GV146: 0.592 | GW146: 0.592 | GX146: 0.592 | GY146: 0.592 | GZ146: 0.592 | HA146: 0.592 | HB146: 0.592 | HC146: 0.592 | HD146: 0.592 | HE146: 0.592 | HF146: 0.592 | HG146: 0.592 | HH146: 0.592 | HI146: 0.592 | HJ146: 0.592 | HK146: 0.592 | HL146: 0.592 | HM146: 0.592 | HN146: 0.592 | HO146: 0.592 | HP146: 0.592 | HQ146: 0.592 | HR146: 0.592 | HS146: 0.592 | HT146: 0.592 | HU146: 0.592 | HV146: 0.592 | HW146: 0.592 | HX146: 0.592 | HY146: 0.592 | HZ146: 0.592 | IA146: 0.592 | IB146: 0.592 | IC146: 0.592 | ID146: 0.592 | IE146: 0.592 | IF146: 0.592 | IG146: 0.592 | IH146: 0.592 | II146: 0.592 | IJ146: 0.592 | IK146: 0.592 | IL146: 0.592 | IM146: 0.592 | IN146: 0.592 | IO146: 0.592 | IP146: 0.592 | IQ146: 0.592 | IR146: 0.592 | IS146: 0.592
D147: Cost per Unit | F147: USD 000 | I147: =I146*I127 ->  | BU147: =BU146*BU127 ->  | EG147: =EG146*EG127 ->  | GS147: =GS146*GS127 -> 
D149: Simple Inventory Method
E150: Historic Inventory | F150: USD 000 | I150: =IF(I3,I93) -> FALSE | J150: =IF(J3,J93) -> FALSE | K150: =IF(K3,K93) -> FALSE | L150: =IF(L3,L93) -> FALSE | M150: =IF(M3,M93) -> FALSE | N150: =IF(N3,N93) -> FALSE | O150: =IF(O3,O93) -> FALSE | P150: =IF(P3,P93) -> FALSE | Q150: =IF(Q3,Q93) -> FALSE | R150: =IF(R3,R93) -> FALSE | S150: =IF(S3,S93) -> FALSE | T150: =IF(T3,T93) -> FALSE | U150: =IF(U3,U93) -> FALSE | V150: =IF(V3,V93) -> FALSE | W150: =IF(W3,W93) -> FALSE | X150: =IF(X3,X93) -> FALSE | Y150: =IF(Y3,Y93) -> FALSE | Z150: =IF(Z3,Z93) -> FALSE | AA150: =IF(AA3,AA93) -> FALSE | AB150: =IF(AB3,AB93) -> FALSE | AC150: =IF(AC3,AC93) -> FALSE | AD150: =IF(AD3,AD93) -> FALSE | AE150: =IF(AE3,AE93) -> FALSE | AF150: =IF(AF3,AF93) -> FALSE | AG150: =IF(AG3,AG93) -> FALSE | AH150: =IF(AH3,AH93) -> FALSE | AI150: =IF(AI3,AI93) -> FALSE | AJ150: =IF(AJ3,AJ93) -> FALSE | AK150: =IF(AK3,AK93) -> FALSE | AL150: =IF(AL3,AL93) -> FALSE | AM150: =IF(AM3,AM93) -> FALSE | AN150: =IF(AN3,AN93) -> FALSE | AO150: =IF(AO3,AO93) -> FALSE | AP150: =IF(AP3,AP93) -> FALSE | AQ150: =IF(AQ3,AQ93) -> FALSE | AR150: =IF(AR3,AR93) -> FALSE | AS150: =IF(AS3,AS93) -> FALSE | AT150: =IF(AT3,AT93) -> FALSE | AU150: =IF(AU3,AU93) -> FALSE | AV150: =IF(AV3,AV93) -> FALSE | AW150: =IF(AW3,AW93) -> FALSE | AX150: =IF(AX3,AX93) -> FALSE | AY150: =IF(AY3,AY93) -> FALSE | AZ150: =IF(AZ3,AZ93) -> FALSE | BA150: =IF(BA3,BA93) -> FALSE | BB150: =IF(BB3,BB93) -> FALSE | BC150: =IF(BC3,BC93) -> FALSE | BD150: =IF(BD3,BD93) -> FALSE | BE150: =IF(BE3,BE93) -> FALSE | BF150: =IF(BF3,BF93) -> FALSE | BG150: =IF(BG3,BG93) -> FALSE | BH150: =IF(BH3,BH93) -> FALSE | BI150: =IF(BI3,BI93) -> FALSE | BJ150: =IF(BJ3,BJ93) -> FALSE | BK150: =IF(BK3,BK93) -> FALSE | BL150: =IF(BL3,BL93) -> FALSE | BM150: =IF(BM3,BM93) -> FALSE | BN150: =IF(BN3,BN93) -> FALSE | BO150: =IF(BO3,BO93) -> FALSE | BP150: =IF(BP3,BP93) -> FALSE | BQ150: =IF(BQ3,BQ93) -> FALSE | BR150: =IF(BR3,BR93) -> FALSE | BS150: =IF(BS3,BS93) -> FALSE | BT150: =IF(BT3,BT93) -> FALSE | BU150: =IF(BU3,BU93) -> FALSE | BV150: =IF(BV3,BV93) -> FALSE | BW150: =IF(BW3,BW93) -> FALSE | BX150: =IF(BX3,BX93) -> FALSE | BY150: =IF(BY3,BY93) -> FALSE | BZ150: =IF(BZ3,BZ93) -> FALSE | CA150: =IF(CA3,CA93) -> FALSE | CB150: =IF(CB3,CB93) -> FALSE | CC150: =IF(CC3,CC93) -> FALSE | CD150: =IF(CD3,CD93) -> FALSE | CE150: =IF(CE3,CE93) -> FALSE | CF150: =IF(CF3,CF93) -> FALSE | CG150: =IF(CG3,CG93) -> FALSE | CH150: =IF(CH3,CH93) -> FALSE | CI150: =IF(CI3,CI93) -> FALSE | CJ150: =IF(CJ3,CJ93) -> FALSE | CK150: =IF(CK3,CK93) -> FALSE | CL150: =IF(CL3,CL93) -> FALSE | CM150: =IF(CM3,CM93) -> FALSE | CN150: =IF(CN3,CN93) -> FALSE | CO150: =IF(CO3,CO93) -> FALSE | CP150: =IF(CP3,CP93) -> FALSE | CQ150: =IF(CQ3,CQ93) -> FALSE | CR150: =IF(CR3,CR93) -> FALSE | CS150: =IF(CS3,CS93) -> FALSE | CT150: =IF(CT3,CT93) -> FALSE | CU150: =IF(CU3,CU93) -> FALSE | CV150: =IF(CV3,CV93) -> FALSE | CW150: =IF(CW3,CW93) -> FALSE | CX150: =IF(CX3,CX93) -> FALSE | CY150: =IF(CY3,CY93) -> FALSE | CZ150: =IF(CZ3,CZ93) -> FALSE | DA150: =IF(DA3,DA93) -> FALSE | DB150: =IF(DB3,DB93) -> FALSE | DC150: =IF(DC3,DC93) -> FALSE | DD150: =IF(DD3,DD93) -> FALSE | DE150: =IF(DE3,DE93) -> FALSE | DF150: =IF(DF3,DF93) -> FALSE | DG150: =IF(DG3,DG93) -> FALSE | DH150: =IF(DH3,DH93) -> FALSE | DI150: =IF(DI3,DI93) -> FALSE | DJ150: =IF(DJ3,DJ93) -> FALSE | DK150: =IF(DK3,DK93) -> FALSE | DL150: =IF(DL3,DL93) -> FALSE | DM150: =IF(DM3,DM93) -> FALSE | DN150: =IF(DN3,DN93) -> FALSE | DO150: =IF(DO3,DO93) -> FALSE | DP150: =IF(DP3,DP93) -> FALSE | DQ150: =IF(DQ3,DQ93) -> FALSE | DR150: =IF(DR3,DR93) -> FALSE | DS150: =IF(DS3,DS93) -> FALSE | DT150: =IF(DT3,DT93) -> FALSE | DU150: =IF(DU3,DU93) -> FALSE | DV150: =IF(DV3,DV93) -> FALSE | DW150: =IF(DW3,DW93) -> FALSE | DX150: =IF(DX3,DX93) -> FALSE | DY150: =IF(DY3,DY93) -> FALSE | DZ150: =IF(DZ3,DZ93) -> FALSE | EA150: =IF(EA3,EA93) -> FALSE | EB150: =IF(EB3,EB93) -> FALSE | EC150: =IF(EC3,EC93) -> FALSE | ED150: =IF(ED3,ED93) -> FALSE | EE150: =IF(EE3,EE93) -> FALSE | EF150: =IF(EF3,EF93) -> FALSE | EG150: =IF(EG3,EG93) -> FALSE | EH150: =IF(EH3,EH93) -> FALSE | EI150: =IF(EI3,EI93) -> FALSE | EJ150: =IF(EJ3,EJ93) -> FALSE | EK150: =IF(EK3,EK93) -> FALSE | EL150: =IF(EL3,EL93) -> FALSE | EM150: =IF(EM3,EM93) -> FALSE | EN150: =IF(EN3,EN93) -> FALSE | EO150: =IF(EO3,EO93) -> FALSE | EP150: =IF(EP3,EP93) -> FALSE | EQ150: =IF(EQ3,EQ93) -> FALSE | ER150: =IF(ER3,ER93) -> FALSE | ES150: =IF(ES3,ES93) -> FALSE | ET150: =IF(ET3,ET93) -> FALSE | EU150: =IF(EU3,EU93) -> FALSE | EV150: =IF(EV3,EV93) -> FALSE | EW150: =IF(EW3,EW93) -> FALSE | EX150: =IF(EX3,EX93) -> FALSE | EY150: =IF(EY3,EY93) -> FALSE | EZ150: =IF(EZ3,EZ93) -> FALSE | FA150: =IF(FA3,FA93) -> FALSE | FB150: =IF(FB3,FB93) -> FALSE | FC150: =IF(FC3,FC93) -> FALSE | FD150: =IF(FD3,FD93) -> FALSE | FE150: =IF(FE3,FE93) -> FALSE | FF150: =IF(FF3,FF93) -> FALSE | FG150: =IF(FG3,FG93) -> FALSE | FH150: =IF(FH3,FH93) -> FALSE | FI150: =IF(FI3,FI93) -> FALSE | FJ150: =IF(FJ3,FJ93) -> FALSE | FK150: =IF(FK3,FK93) -> FALSE | FL150: =IF(FL3,FL93) -> FALSE | FM150: =IF(FM3,FM93) -> FALSE | FN150: =IF(FN3,FN93) -> FALSE | FO150: =IF(FO3,FO93) -> FALSE | FP150: =IF(FP3,FP93) -> FALSE | FQ150: =IF(FQ3,FQ93) -> FALSE | FR150: =IF(FR3,FR93) -> FALSE | FS150: =IF(FS3,FS93) -> FALSE | FT150: =IF(FT3,FT93) -> FALSE | FU150: =IF(FU3,FU93) -> FALSE | FV150: =IF(FV3,FV93) -> FALSE | FW150: =IF(FW3,FW93) -> FALSE | FX150: =IF(FX3,FX93) -> FALSE | FY150: =IF(FY3,FY93) -> FALSE | FZ150: =IF(FZ3,FZ93) -> FALSE | GA150: =IF(GA3,GA93) -> FALSE | GB150: =IF(GB3,GB93) -> FALSE | GC150: =IF(GC3,GC93) -> FALSE | GD150: =IF(GD3,GD93) -> FALSE | GE150: =IF(GE3,GE93) -> FALSE | GF150: =IF(GF3,GF93) -> FALSE | GG150: =IF(GG3,GG93) -> FALSE | GH150: =IF(GH3,GH93) -> FALSE | GI150: =IF(GI3,GI93) -> FALSE | GJ150: =IF(GJ3,GJ93) -> FALSE | GK150: =IF(GK3,GK93) -> FALSE | GL150: =IF(GL3,GL93) -> FALSE | GM150: =IF(GM3,GM93) -> FALSE | GN150: =IF(GN3,GN93) -> FALSE | GO150: =IF(GO3,GO93) -> FALSE | GP150: =IF(GP3,GP93) -> FALSE | GQ150: =IF(GQ3,GQ93) -> FALSE | GR150: =IF(GR3,GR93) -> FALSE | GS150: =IF(GS3,GS93) -> FALSE | GT150: =IF(GT3,GT93) -> FALSE | GU150: =IF(GU3,GU93) -> FALSE | GV150: =IF(GV3,GV93) -> FALSE | GW150: =IF(GW3,GW93) -> FALSE | GX150: =IF(GX3,GX93) -> FALSE | GY150: =IF(GY3,GY93) -> FALSE | GZ150: =IF(GZ3,GZ93) -> FALSE | HA150: =IF(HA3,HA93) -> FALSE | HB150: =IF(HB3,HB93) -> FALSE | HC150: =IF(HC3,HC93) -> FALSE | HD150: =IF(HD3,HD93) -> FALSE | HE150: =IF(HE3,HE93) -> FALSE | HF150: =IF(HF3,HF93) -> FALSE | HG150: =IF(HG3,HG93) -> FALSE | HH150: =IF(HH3,HH93) -> FALSE | HI150: =IF(HI3,HI93) -> FALSE | HJ150: =IF(HJ3,HJ93) -> FALSE | HK150: =IF(HK3,HK93) -> FALSE | HL150: =IF(HL3,HL93) -> FALSE | HM150: =IF(HM3,HM93) -> FALSE | HN150: =IF(HN3,HN93) -> FALSE | HO150: =IF(HO3,HO93) -> FALSE | HP150: =IF(HP3,HP93) -> FALSE | HQ150: =IF(HQ3,HQ93) -> FALSE | HR150: =IF(HR3,HR93) -> FALSE | HS150: =IF(HS3,HS93) -> FALSE | HT150: =IF(HT3,HT93) -> FALSE | HU150: =IF(HU3,HU93) -> FALSE | HV150: =IF(HV3,HV93) -> FALSE | HW150: =IF(HW3,HW93) -> FALSE | HX150: =IF(HX3,HX93) -> FALSE | HY150: =IF(HY3,HY93) -> FALSE | HZ150: =IF(HZ3,HZ93) -> FALSE | IA150: =IF(IA3,IA93) -> FALSE | IB150: =IF(IB3,IB93) -> FALSE | IC150: =IF(IC3,IC93) -> FALSE | ID150: =IF(ID3,ID93) -> FALSE | IE150: =IF(IE3,IE93) -> FALSE | IF150: =IF(IF3,IF93) -> FALSE | IG150: =IF(IG3,IG93) -> FALSE | IH150: =IF(IH3,IH93) -> FALSE | II150: =IF(II3,II93) -> FALSE | IJ150: =IF(IJ3,IJ93) -> FALSE | IK150: =IF(IK3,IK93) -> FALSE | IL150: =IF(IL3,IL93) -> FALSE | IM150: =IF(IM3,IM93) -> FALSE | IN150: =IF(IN3,IN93) -> FALSE | IO150: =IF(IO3,IO93) -> FALSE | IP150: =IF(IP3,IP93) -> FALSE | IQ150: =IF(IQ3,IQ93) -> FALSE | IR150: =IF(IR3,IR93) -> FALSE | IS150: =IF(IS3,IS93) -> FALSE
E151: Inventory as Percent of Cost of Goods Sold | F151: % | G151: =LOOKUP(G3,2:2,151:151) ->  | I151: =IF(I3,I150/I145,$G$151*12/I4) ->  | J151: =IF(J3,J150/J145,$G$151*12/J4) ->  | K151: =IF(K3,K150/K145,$G$151*12/K4) ->  | L151: =IF(L3,L150/L145,$G$151*12/L4) ->  | M151: =IF(M3,M150/M145,$G$151*12/M4) ->  | N151: =IF(N3,N150/N145,$G$151*12/N4) ->  | O151: =IF(O3,O150/O145,$G$151*12/O4) ->  | P151: =IF(P3,P150/P145,$G$151*12/P4) ->  | Q151: =IF(Q3,Q150/Q145,$G$151*12/Q4) ->  | R151: =IF(R3,R150/R145,$G$151*12/R4) ->  | S151: =IF(S3,S150/S145,$G$151*12/S4) ->  | T151: =IF(T3,T150/T145,$G$151*12/T4) ->  | U151: =IF(U3,U150/U145,$G$151*12/U4) ->  | V151: =IF(V3,V150/V145,$G$151*12/V4) ->  | W151: =IF(W3,W150/W145,$G$151*12/W4) ->  | X151: =IF(X3,X150/X145,$G$151*12/X4) ->  | Y151: =IF(Y3,Y150/Y145,$G$151*12/Y4) ->  | Z151: =IF(Z3,Z150/Z145,$G$151*12/Z4) ->  | AA151: =IF(AA3,AA150/AA145,$G$151*12/AA4) ->  | AB151: =IF(AB3,AB150/AB145,$G$151*12/AB4) ->  | AC151: =IF(AC3,AC150/AC145,$G$151*12/AC4) ->  | AD151: =IF(AD3,AD150/AD145,$G$151*12/AD4) ->  | AE151: =IF(AE3,AE150/AE145,$G$151*12/AE4) ->  | AF151: =IF(AF3,AF150/AF145,$G$151*12/AF4) ->  | AG151: =IF(AG3,AG150/AG145,$G$151*12/AG4) ->  | AH151: =IF(AH3,AH150/AH145,$G$151*12/AH4) ->  | AI151: =IF(AI3,AI150/AI145,$G$151*12/AI4) ->  | AJ151: =IF(AJ3,AJ150/AJ145,$G$151*12/AJ4) ->  | AK151: =IF(AK3,AK150/AK145,$G$151*12/AK4) ->  | AL151: =IF(AL3,AL150/AL145,$G$151*12/AL4) ->  | AM151: =IF(AM3,AM150/AM145,$G$151*12/AM4) ->  | AN151: =IF(AN3,AN150/AN145,$G$151*12/AN4) ->  | AO151: =IF(AO3,AO150/AO145,$G$151*12/AO4) ->  | AP151: =IF(AP3,AP150/AP145,$G$151*12/AP4) ->  | AQ151: =IF(AQ3,AQ150/AQ145,$G$151*12/AQ4) ->  | AR151: =IF(AR3,AR150/AR145,$G$151*12/AR4) ->  | AS151: =IF(AS3,AS150/AS145,$G$151*12/AS4) ->  | AT151: =IF(AT3,AT150/AT145,$G$151*12/AT4) ->  | AU151: =IF(AU3,AU150/AU145,$G$151*12/AU4) ->  | AV151: =IF(AV3,AV150/AV145,$G$151*12/AV4) ->  | AW151: =IF(AW3,AW150/AW145,$G$151*12/AW4) ->  | AX151: =IF(AX3,AX150/AX145,$G$151*12/AX4) ->  | AY151: =IF(AY3,AY150/AY145,$G$151*12/AY4) ->  | AZ151: =IF(AZ3,AZ150/AZ145,$G$151*12/AZ4) ->  | BA151: =IF(BA3,BA150/BA145,$G$151*12/BA4) ->  | BB151: =IF(BB3,BB150/BB145,$G$151*12/BB4) ->  | BC151: =IF(BC3,BC150/BC145,$G$151*12/BC4) ->  | BD151: =IF(BD3,BD150/BD145,$G$151*12/BD4) ->  | BE151: =IF(BE3,BE150/BE145,$G$151*12/BE4) ->  | BF151: =IF(BF3,BF150/BF145,$G$151*12/BF4) ->  | BG151: =IF(BG3,BG150/BG145,$G$151*12/BG4) ->  | BH151: =IF(BH3,BH150/BH145,$G$151*12/BH4) ->  | BI151: =IF(BI3,BI150/BI145,$G$151*12/BI4) ->  | BJ151: =IF(BJ3,BJ150/BJ145,$G$151*12/BJ4) ->  | BK151: =IF(BK3,BK150/BK145,$G$151*12/BK4) ->  | BL151: =IF(BL3,BL150/BL145,$G$151*12/BL4) ->  | BM151: =IF(BM3,BM150/BM145,$G$151*12/BM4) ->  | BN151: =IF(BN3,BN150/BN145,$G$151*12/BN4) ->  | BO151: =IF(BO3,BO150/BO145,$G$151*12/BO4) ->  | BP151: =IF(BP3,BP150/BP145,$G$151*12/BP4) ->  | BQ151: =IF(BQ3,BQ150/BQ145,$G$151*12/BQ4) ->  | BR151: =IF(BR3,BR150/BR145,$G$151*12/BR4) ->  | BS151: =IF(BS3,BS150/BS145,$G$151*12/BS4) ->  | BT151: =IF(BT3,BT150/BT145,$G$151*12/BT4) ->  | BU151: =IF(BU3,BU150/BU145,$G$151*12/BU4) ->  | BV151: =IF(BV3,BV150/BV145,$G$151*12/BV4) ->  | BW151: =IF(BW3,BW150/BW145,$G$151*12/BW4) ->  | BX151: =IF(BX3,BX150/BX145,$G$151*12/BX4) ->  | BY151: =IF(BY3,BY150/BY145,$G$151*12/BY4) ->  | BZ151: =IF(BZ3,BZ150/BZ145,$G$151*12/BZ4) ->  | CA151: =IF(CA3,CA150/CA145,$G$151*12/CA4) ->  | CB151: =IF(CB3,CB150/CB145,$G$151*12/CB4) ->  | CC151: =IF(CC3,CC150/CC145,$G$151*12/CC4) ->  | CD151: =IF(CD3,CD150/CD145,$G$151*12/CD4) ->  | CE151: =IF(CE3,CE150/CE145,$G$151*12/CE4) ->  | CF151: =IF(CF3,CF150/CF145,$G$151*12/CF4) ->  | CG151: =IF(CG3,CG150/CG145,$G$151*12/CG4) ->  | CH151: =IF(CH3,CH150/CH145,$G$151*12/CH4) ->  | CI151: =IF(CI3,CI150/CI145,$G$151*12/CI4) ->  | CJ151: =IF(CJ3,CJ150/CJ145,$G$151*12/CJ4) ->  | CK151: =IF(CK3,CK150/CK145,$G$151*12/CK4) ->  | CL151: =IF(CL3,CL150/CL145,$G$151*12/CL4) ->  | CM151: =IF(CM3,CM150/CM145,$G$151*12/CM4) ->  | CN151: =IF(CN3,CN150/CN145,$G$151*12/CN4) ->  | CO151: =IF(CO3,CO150/CO145,$G$151*12/CO4) ->  | CP151: =IF(CP3,CP150/CP145,$G$151*12/CP4) ->  | CQ151: =IF(CQ3,CQ150/CQ145,$G$151*12/CQ4) ->  | CR151: =IF(CR3,CR150/CR145,$G$151*12/CR4) ->  | CS151: =IF(CS3,CS150/CS145,$G$151*12/CS4) ->  | CT151: =IF(CT3,CT150/CT145,$G$151*12/CT4) ->  | CU151: =IF(CU3,CU150/CU145,$G$151*12/CU4) ->  | CV151: =IF(CV3,CV150/CV145,$G$151*12/CV4) ->  | CW151: =IF(CW3,CW150/CW145,$G$151*12/CW4) ->  | CX151: =IF(CX3,CX150/CX145,$G$151*12/CX4) ->  | CY151: =IF(CY3,CY150/CY145,$G$151*12/CY4) ->  | CZ151: =IF(CZ3,CZ150/CZ145,$G$151*12/CZ4) ->  | DA151: =IF(DA3,DA150/DA145,$G$151*12/DA4) ->  | DB151: =IF(DB3,DB150/DB145,$G$151*12/DB4) ->  | DC151: =IF(DC3,DC150/DC145,$G$151*12/DC4) ->  | DD151: =IF(DD3,DD150/DD145,$G$151*12/DD4) ->  | DE151: =IF(DE3,DE150/DE145,$G$151*12/DE4) ->  | DF151: =IF(DF3,DF150/DF145,$G$151*12/DF4) ->  | DG151: =IF(DG3,DG150/DG145,$G$151*12/DG4) ->  | DH151: =IF(DH3,DH150/DH145,$G$151*12/DH4) ->  | DI151: =IF(DI3,DI150/DI145,$G$151*12/DI4) ->  | DJ151: =IF(DJ3,DJ150/DJ145,$G$151*12/DJ4) ->  | DK151: =IF(DK3,DK150/DK145,$G$151*12/DK4) ->  | DL151: =IF(DL3,DL150/DL145,$G$151*12/DL4) ->  | DM151: =IF(DM3,DM150/DM145,$G$151*12/DM4) ->  | DN151: =IF(DN3,DN150/DN145,$G$151*12/DN4) ->  | DO151: =IF(DO3,DO150/DO145,$G$151*12/DO4) ->  | DP151: =IF(DP3,DP150/DP145,$G$151*12/DP4) ->  | DQ151: =IF(DQ3,DQ150/DQ145,$G$151*12/DQ4) ->  | DR151: =IF(DR3,DR150/DR145,$G$151*12/DR4) ->  | DS151: =IF(DS3,DS150/DS145,$G$151*12/DS4) ->  | DT151: =IF(DT3,DT150/DT145,$G$151*12/DT4) ->  | DU151: =IF(DU3,DU150/DU145,$G$151*12/DU4) ->  | DV151: =IF(DV3,DV150/DV145,$G$151*12/DV4) ->  | DW151: =IF(DW3,DW150/DW145,$G$151*12/DW4) ->  | DX151: =IF(DX3,DX150/DX145,$G$151*12/DX4) ->  | DY151: =IF(DY3,DY150/DY145,$G$151*12/DY4) ->  | DZ151: =IF(DZ3,DZ150/DZ145,$G$151*12/DZ4) ->  | EA151: =IF(EA3,EA150/EA145,$G$151*12/EA4) ->  | EB151: =IF(EB3,EB150/EB145,$G$151*12/EB4) ->  | EC151: =IF(EC3,EC150/EC145,$G$151*12/EC4) ->  | ED151: =IF(ED3,ED150/ED145,$G$151*12/ED4) ->  | EE151: =IF(EE3,EE150/EE145,$G$151*12/EE4) ->  | EF151: =IF(EF3,EF150/EF145,$G$151*12/EF4) ->  | EG151: =IF(EG3,EG150/EG145,$G$151*12/EG4) ->  | EH151: =IF(EH3,EH150/EH145,$G$151*12/EH4) ->  | EI151: =IF(EI3,EI150/EI145,$G$151*12/EI4) ->  | EJ151: =IF(EJ3,EJ150/EJ145,$G$151*12/EJ4) ->  | EK151: =IF(EK3,EK150/EK145,$G$151*12/EK4) ->  | EL151: =IF(EL3,EL150/EL145,$G$151*12/EL4) ->  | EM151: =IF(EM3,EM150/EM145,$G$151*12/EM4) ->  | EN151: =IF(EN3,EN150/EN145,$G$151*12/EN4) ->  | EO151: =IF(EO3,EO150/EO145,$G$151*12/EO4) ->  | EP151: =IF(EP3,EP150/EP145,$G$151*12/EP4) ->  | EQ151: =IF(EQ3,EQ150/EQ145,$G$151*12/EQ4) ->  | ER151: =IF(ER3,ER150/ER145,$G$151*12/ER4) ->  | ES151: =IF(ES3,ES150/ES145,$G$151*12/ES4) ->  | ET151: =IF(ET3,ET150/ET145,$G$151*12/ET4) ->  | EU151: =IF(EU3,EU150/EU145,$G$151*12/EU4) ->  | EV151: =IF(EV3,EV150/EV145,$G$151*12/EV4) ->  | EW151: =IF(EW3,EW150/EW145,$G$151*12/EW4) ->  | EX151: =IF(EX3,EX150/EX145,$G$151*12/EX4) ->  | EY151: =IF(EY3,EY150/EY145,$G$151*12/EY4) ->  | EZ151: =IF(EZ3,EZ150/EZ145,$G$151*12/EZ4) ->  | FA151: =IF(FA3,FA150/FA145,$G$151*12/FA4) ->  | FB151: =IF(FB3,FB150/FB145,$G$151*12/FB4) ->  | FC151: =IF(FC3,FC150/FC145,$G$151*12/FC4) ->  | FD151: =IF(FD3,FD150/FD145,$G$151*12/FD4) ->  | FE151: =IF(FE3,FE150/FE145,$G$151*12/FE4) ->  | FF151: =IF(FF3,FF150/FF145,$G$151*12/FF4) ->  | FG151: =IF(FG3,FG150/FG145,$G$151*12/FG4) ->  | FH151: =IF(FH3,FH150/FH145,$G$151*12/FH4) ->  | FI151: =IF(FI3,FI150/FI145,$G$151*12/FI4) ->  | FJ151: =IF(FJ3,FJ150/FJ145,$G$151*12/FJ4) ->  | FK151: =IF(FK3,FK150/FK145,$G$151*12/FK4) ->  | FL151: =IF(FL3,FL150/FL145,$G$151*12/FL4) ->  | FM151: =IF(FM3,FM150/FM145,$G$151*12/FM4) ->  | FN151: =IF(FN3,FN150/FN145,$G$151*12/FN4) ->  | FO151: =IF(FO3,FO150/FO145,$G$151*12/FO4) ->  | FP151: =IF(FP3,FP150/FP145,$G$151*12/FP4) ->  | FQ151: =IF(FQ3,FQ150/FQ145,$G$151*12/FQ4) ->  | FR151: =IF(FR3,FR150/FR145,$G$151*12/FR4) ->  | FS151: =IF(FS3,FS150/FS145,$G$151*12/FS4) ->  | FT151: =IF(FT3,FT150/FT145,$G$151*12/FT4) ->  | FU151: =IF(FU3,FU150/FU145,$G$151*12/FU4) ->  | FV151: =IF(FV3,FV150/FV145,$G$151*12/FV4) ->  | FW151: =IF(FW3,FW150/FW145,$G$151*12/FW4) ->  | FX151: =IF(FX3,FX150/FX145,$G$151*12/FX4) ->  | FY151: =IF(FY3,FY150/FY145,$G$151*12/FY4) ->  | FZ151: =IF(FZ3,FZ150/FZ145,$G$151*12/FZ4) ->  | GA151: =IF(GA3,GA150/GA145,$G$151*12/GA4) ->  | GB151: =IF(GB3,GB150/GB145,$G$151*12/GB4) ->  | GC151: =IF(GC3,GC150/GC145,$G$151*12/GC4) ->  | GD151: =IF(GD3,GD150/GD145,$G$151*12/GD4) ->  | GE151: =IF(GE3,GE150/GE145,$G$151*12/GE4) ->  | GF151: =IF(GF3,GF150/GF145,$G$151*12/GF4) ->  | GG151: =IF(GG3,GG150/GG145,$G$151*12/GG4) ->  | GH151: =IF(GH3,GH150/GH145,$G$151*12/GH4) ->  | GI151: =IF(GI3,GI150/GI145,$G$151*12/GI4) ->  | GJ151: =IF(GJ3,GJ150/GJ145,$G$151*12/GJ4) ->  | GK151: =IF(GK3,GK150/GK145,$G$151*12/GK4) ->  | GL151: =IF(GL3,GL150/GL145,$G$151*12/GL4) ->  | GM151: =IF(GM3,GM150/GM145,$G$151*12/GM4) ->  | GN151: =IF(GN3,GN150/GN145,$G$151*12/GN4) ->  | GO151: =IF(GO3,GO150/GO145,$G$151*12/GO4) ->  | GP151: =IF(GP3,GP150/GP145,$G$151*12/GP4) ->  | GQ151: =IF(GQ3,GQ150/GQ145,$G$151*12/GQ4) ->  | GR151: =IF(GR3,GR150/GR145,$G$151*12/GR4) ->  | GS151: =IF(GS3,GS150/GS145,$G$151*12/GS4) ->  | GT151: =IF(GT3,GT150/GT145,$G$151*12/GT4) ->  | GU151: =IF(GU3,GU150/GU145,$G$151*12/GU4) ->  | GV151: =IF(GV3,GV150/GV145,$G$151*12/GV4) ->  | GW151: =IF(GW3,GW150/GW145,$G$151*12/GW4) ->  | GX151: =IF(GX3,GX150/GX145,$G$151*12/GX4) ->  | GY151: =IF(GY3,GY150/GY145,$G$151*12/GY4) ->  | GZ151: =IF(GZ3,GZ150/GZ145,$G$151*12/GZ4) ->  | HA151: =IF(HA3,HA150/HA145,$G$151*12/HA4) ->  | HB151: =IF(HB3,HB150/HB145,$G$151*12/HB4) ->  | HC151: =IF(HC3,HC150/HC145,$G$151*12/HC4) ->  | HD151: =IF(HD3,HD150/HD145,$G$151*12/HD4) ->  | HE151: =IF(HE3,HE150/HE145,$G$151*12/HE4) ->  | HF151: =IF(HF3,HF150/HF145,$G$151*12/HF4) ->  | HG151: =IF(HG3,HG150/HG145,$G$151*12/HG4) ->  | HH151: =IF(HH3,HH150/HH145,$G$151*12/HH4) ->  | HI151: =IF(HI3,HI150/HI145,$G$151*12/HI4) ->  | HJ151: =IF(HJ3,HJ150/HJ145,$G$151*12/HJ4) ->  | HK151: =IF(HK3,HK150/HK145,$G$151*12/HK4) ->  | HL151: =IF(HL3,HL150/HL145,$G$151*12/HL4) ->  | HM151: =IF(HM3,HM150/HM145,$G$151*12/HM4) ->  | HN151: =IF(HN3,HN150/HN145,$G$151*12/HN4) ->  | HO151: =IF(HO3,HO150/HO145,$G$151*12/HO4) ->  | HP151: =IF(HP3,HP150/HP145,$G$151*12/HP4) ->  | HQ151: =IF(HQ3,HQ150/HQ145,$G$151*12/HQ4) ->  | HR151: =IF(HR3,HR150/HR145,$G$151*12/HR4) ->  | HS151: =IF(HS3,HS150/HS145,$G$151*12/HS4) ->  | HT151: =IF(HT3,HT150/HT145,$G$151*12/HT4) ->  | HU151: =IF(HU3,HU150/HU145,$G$151*12/HU4) ->  | HV151: =IF(HV3,HV150/HV145,$G$151*12/HV4) ->  | HW151: =IF(HW3,HW150/HW145,$G$151*12/HW4) ->  | HX151: =IF(HX3,HX150/HX145,$G$151*12/HX4) ->  | HY151: =IF(HY3,HY150/HY145,$G$151*12/HY4) ->  | HZ151: =IF(HZ3,HZ150/HZ145,$G$151*12/HZ4) ->  | IA151: =IF(IA3,IA150/IA145,$G$151*12/IA4) ->  | IB151: =IF(IB3,IB150/IB145,$G$151*12/IB4) ->  | IC151: =IF(IC3,IC150/IC145,$G$151*12/IC4) ->  | ID151: =IF(ID3,ID150/ID145,$G$151*12/ID4) ->  | IE151: =IF(IE3,IE150/IE145,$G$151*12/IE4) ->  | IF151: =IF(IF3,IF150/IF145,$G$151*12/IF4) ->  | IG151: =IF(IG3,IG150/IG145,$G$151*12/IG4) ->  | IH151: =IF(IH3,IH150/IH145,$G$151*12/IH4) ->  | II151: =IF(II3,II150/II145,$G$151*12/II4) ->  | IJ151: =IF(IJ3,IJ150/IJ145,$G$151*12/IJ4) ->  | IK151: =IF(IK3,IK150/IK145,$G$151*12/IK4) ->  | IL151: =IF(IL3,IL150/IL145,$G$151*12/IL4) ->  | IM151: =IF(IM3,IM150/IM145,$G$151*12/IM4) ->  | IN151: =IF(IN3,IN150/IN145,$G$151*12/IN4) ->  | IO151: =IF(IO3,IO150/IO145,$G$151*12/IO4) ->  | IP151: =IF(IP3,IP150/IP145,$G$151*12/IP4) ->  | IQ151: =IF(IQ3,IQ150/IQ145,$G$151*12/IQ4) ->  | IR151: =IF(IR3,IR150/IR145,$G$151*12/IR4) ->  | IS151: =IF(IS3,IS150/IS145,$G$151*12/IS4) -> 
E152: Inventory Days | F152: Days | I152: =I151*365 ->  | J152: =J151*365 ->  | BS152: =BS151*365 ->  | BT152: =BT151*365 ->  | BU152: =BU151*365 ->  | BV152: =BV151*365 ->  | BW152: =BW151*365 ->  | BX152: =BX151*365 ->  | BY152: =BY151*365 ->  | BZ152: =BZ151*365 ->  | CA152: =CA151*365 ->  | CB152: =CB151*365 ->  | CC152: =CC151*365 ->  | CD152: =CD151*365 ->  | CE152: =CE151*365 ->  | CF152: =CF151*365 ->  | CG152: =CG151*365 ->  | CH152: =CH151*365 ->  | CI152: =CI151*365 ->  | CJ152: =CJ151*365 ->  | CK152: =CK151*365 ->  | CL152: =CL151*365 ->  | CM152: =CM151*365 ->  | CN152: =CN151*365 ->  | CO152: =CO151*365 ->  | CP152: =CP151*365 ->  | CQ152: =CQ151*365 ->  | CR152: =CR151*365 ->  | CS152: =CS151*365 ->  | DH152: =DH151*365 ->  | EA152: =EA151*365 ->  | EL152: =EL151*365 ->  | GX152: =GX151*365 -> 
E153: Inventory Months | F153: Months | I153: =I152/30.42 ->  | J153: =J152/30.42 ->  | BS153: =BS152/30.42 ->  | BT153: =BT152/30.42 ->  | BU153: =BU152/30.42 ->  | BV153: =BV152/30.42 ->  | BW153: =BW152/30.42 ->  | BX153: =BX152/30.42 ->  | BY153: =BY152/30.42 ->  | BZ153: =BZ152/30.42 ->  | CA153: =CA152/30.42 ->  | CB153: =CB152/30.42 ->  | CC153: =CC152/30.42 ->  | CD153: =CD152/30.42 ->  | CE153: =CE152/30.42 ->  | CF153: =CF152/30.42 ->  | CG153: =CG152/30.42 ->  | CH153: =CH152/30.42 ->  | CI153: =CI152/30.42 ->  | CJ153: =CJ152/30.42 ->  | CK153: =CK152/30.42 ->  | CL153: =CL152/30.42 ->  | CM153: =CM152/30.42 ->  | CN153: =CN152/30.42 ->  | CO153: =CO152/30.42 ->  | CP153: =CP152/30.42 ->  | CQ153: =CQ152/30.42 ->  | CR153: =CR152/30.42 ->  | CS153: =CS152/30.42 ->  | DH153: =DH152/30.42 ->  | EA153: =EA152/30.42 ->  | EL153: =EL152/30.42 ->  | GX153: =GX152/30.42 -> 
E155: Total Cost of Goods Sold | F155: USD 000 | H155: =SUM(I155:IS155) ->  | I155: =I146*I139 ->  | BU155: =BU146*BU139 ->  | EG155: =EG146*EG139 ->  | GS155: =GS146*GS139 -> 
E156: Total Inventory | F156: USD 000 | I156: =I155*I151 ->  | J156: =J155*J151 ->  | BV156: =BV155*BV151 ->  | CT156: =CT155*CT151 ->  | CU156: =CU155*CU151 ->  | CV156: =CV155*CV151 ->  | CW156: =CW155*CW151 ->  | CX156: =CX155*CX151 ->  | CY156: =CY155*CY151 ->  | CZ156: =CZ155*CZ151 ->  | DA156: =DA155*DA151 ->  | DB156: =DB155*DB151 ->  | DC156: =DC155*DC151 ->  | DD156: =DD155*DD151 ->  | DE156: =DE155*DE151 ->  | DF156: =DF155*DF151 ->  | DG156: =DG155*DG151 ->  | DH156: =DH155*DH151 ->  | DI156: =DI155*DI151 ->  | DJ156: =DJ155*DJ151 ->  | DK156: =DK155*DK151 ->  | DL156: =DL155*DL151 ->  | DM156: =DM155*DM151 ->  | DN156: =DN155*DN151 ->  | DO156: =DO155*DO151 ->  | DP156: =DP155*DP151 ->  | DQ156: =DQ155*DQ151 ->  | DR156: =DR155*DR151 ->  | DS156: =DS155*DS151 ->  | DT156: =DT155*DT151 ->  | DU156: =DU155*DU151 ->  | DV156: =DV155*DV151 ->  | DW156: =DW155*DW151 ->  | DX156: =DX155*DX151 ->  | DY156: =DY155*DY151 ->  | DZ156: =DZ155*DZ151 ->  | EA156: =EA155*EA151 ->  | EB156: =EB155*EB151 ->  | EC156: =EC155*EC151 ->  | ED156: =ED155*ED151 ->  | EE156: =EE155*EE151 ->  | EF156: =EF155*EF151 ->  | EG156: =EG155*EG151 ->  | EH156: =EH155*EH151 ->  | EI156: =EI155*EI151 ->  | EJ156: =EJ155*EJ151 ->  | EK156: =EK155*EK151 ->  | EL156: =EL155*EL151 ->  | EM156: =EM155*EM151 ->  | EN156: =EN155*EN151 ->  | EO156: =EO155*EO151 ->  | EP156: =EP155*EP151 ->  | EQ156: =EQ155*EQ151 ->  | ER156: =ER155*ER151 ->  | ES156: =ES155*ES151 ->  | ET156: =ET155*ET151 ->  | EU156: =EU155*EU151 ->  | EV156: =EV155*EV151 ->  | EW156: =EW155*EW151 ->  | EX156: =EX155*EX151 ->  | EY156: =EY155*EY151 ->  | EZ156: =EZ155*EZ151 ->  | FA156: =FA155*FA151 ->  | FB156: =FB155*FB151 ->  | FC156: =FC155*FC151 ->  | FD156: =FD155*FD151 ->  | FE156: =FE155*FE151 ->  | FF156: =FF155*FF151 ->  | FG156: =FG155*FG151 ->  | FH156: =FH155*FH151 ->  | FI156: =FI155*FI151 ->  | FJ156: =FJ155*FJ151 ->  | FK156: =FK155*FK151 ->  | FL156: =FL155*FL151 ->  | FM156: =FM155*FM151 ->  | FN156: =FN155*FN151 ->  | FO156: =FO155*FO151 ->  | FP156: =FP155*FP151 ->  | FQ156: =FQ155*FQ151 ->  | FR156: =FR155*FR151 ->  | FS156: =FS155*FS151 ->  | FT156: =FT155*FT151 ->  | FU156: =FU155*FU151 ->  | FV156: =FV155*FV151 ->  | FW156: =FW155*FW151 ->  | FX156: =FX155*FX151 ->  | FY156: =FY155*FY151 ->  | FZ156: =FZ155*FZ151 ->  | GA156: =GA155*GA151 ->  | GB156: =GB155*GB151 ->  | GC156: =GC155*GC151 ->  | GD156: =GD155*GD151 ->  | GE156: =GE155*GE151 ->  | GF156: =GF155*GF151 ->  | GG156: =GG155*GG151 ->  | GH156: =GH155*GH151 ->  | GI156: =GI155*GI151 ->  | GJ156: =GJ155*GJ151 ->  | GK156: =GK155*GK151 ->  | GL156: =GL155*GL151 ->  | GM156: =GM155*GM151 ->  | GN156: =GN155*GN151 ->  | GO156: =GO155*GO151 ->  | GP156: =GP155*GP151 ->  | GQ156: =GQ155*GQ151 ->  | GR156: =GR155*GR151 ->  | GS156: =GS155*GS151 ->  | GT156: =GT155*GT151 ->  | GU156: =GU155*GU151 ->  | GV156: =GV155*GV151 ->  | GW156: =GW155*GW151 ->  | GX156: =GX155*GX151 ->  | GY156: =GY155*GY151 ->  | GZ156: =GZ155*GZ151 ->  | HA156: =HA155*HA151 ->  | HB156: =HB155*HB151 ->  | HC156: =HC155*HC151 ->  | HD156: =HD155*HD151 ->  | HE156: =HE155*HE151 ->  | HF156: =HF155*HF151 ->  | HG156: =HG155*HG151 ->  | HH156: =HH155*HH151 ->  | HI156: =HI155*HI151 ->  | HJ156: =HJ155*HJ151 ->  | HK156: =HK155*HK151 ->  | HL156: =HL155*HL151 ->  | HM156: =HM155*HM151 ->  | HN156: =HN155*HN151 ->  | HO156: =HO155*HO151 ->  | HP156: =HP155*HP151 ->  | HQ156: =HQ155*HQ151 ->  | HR156: =HR155*HR151 ->  | HS156: =HS155*HS151 ->  | HT156: =HT155*HT151 ->  | HU156: =HU155*HU151 ->  | HV156: =HV155*HV151 ->  | HW156: =HW155*HW151 ->  | HX156: =HX155*HX151 ->  | HY156: =HY155*HY151 ->  | HZ156: =HZ155*HZ151 ->  | IA156: =IA155*IA151 ->  | IB156: =IB155*IB151 ->  | IC156: =IC155*IC151 ->  | ID156: =ID155*ID151 ->  | IE156: =IE155*IE151 ->  | IF156: =IF155*IF151 ->  | IG156: =IG155*IG151 ->  | IH156: =IH155*IH151 ->  | II156: =II155*II151 ->  | IJ156: =IJ155*IJ151 ->  | IK156: =IK155*IK151 ->  | IL156: =IL155*IL151 ->  | IM156: =IM155*IM151 ->  | IN156: =IN155*IN151 ->  | IO156: =IO155*IO151 ->  | IP156: =IP155*IP151 ->  | IQ156: =IQ155*IQ151 ->  | IR156: =IR155*IR151 ->  | IS156: =IS155*IS151 -> 
D158: Calculation with Units
E159: Cost of Goods Sold Target Percent | I159: =I151 ->  | BU159: =BU151 ->  | EG159: =EG151 ->  | GS159: =GS151 -> 
E160: Units Sold | H160: =SUM(I160:IS160) ->  | I160: =I137 ->  | BU160: =BU137 ->  | EG160: =EG137 ->  | GS160: =GS137 -> 
E161: Unadjusted Closing Balance Target - Purchases x Percent | I161: =I159*I160 ->  | J161: =J159*J160 ->  | K161: =K159*K160 ->  | BW161: =BW159*BW160 ->  | CT161: =CT159*CT160 ->  | CU161: =CU159*CU160 ->  | CV161: =CV159*CV160 ->  | CW161: =CW159*CW160 ->  | CX161: =CX159*CX160 ->  | CY161: =CY159*CY160 ->  | CZ161: =CZ159*CZ160 ->  | DA161: =DA159*DA160 ->  | DB161: =DB159*DB160 ->  | DC161: =DC159*DC160 ->  | DD161: =DD159*DD160 ->  | DE161: =DE159*DE160 ->  | DF161: =DF159*DF160 ->  | DG161: =DG159*DG160 ->  | DH161: =DH159*DH160 ->  | DI161: =DI159*DI160 ->  | DJ161: =DJ159*DJ160 ->  | DK161: =DK159*DK160 ->  | DL161: =DL159*DL160 ->  | DM161: =DM159*DM160 ->  | DN161: =DN159*DN160 ->  | DO161: =DO159*DO160 ->  | DP161: =DP159*DP160 ->  | DQ161: =DQ159*DQ160 ->  | DR161: =DR159*DR160 ->  | DS161: =DS159*DS160 ->  | DT161: =DT159*DT160 ->  | DU161: =DU159*DU160 ->  | DV161: =DV159*DV160 ->  | DW161: =DW159*DW160 ->  | DX161: =DX159*DX160 ->  | DY161: =DY159*DY160 ->  | DZ161: =DZ159*DZ160 ->  | EA161: =EA159*EA160 ->  | EB161: =EB159*EB160 ->  | EC161: =EC159*EC160 ->  | ED161: =ED159*ED160 ->  | EE161: =EE159*EE160 ->  | EF161: =EF159*EF160 ->  | EG161: =EG159*EG160 ->  | EH161: =EH159*EH160 ->  | EI161: =EI159*EI160 ->  | EJ161: =EJ159*EJ160 ->  | EK161: =EK159*EK160 ->  | EL161: =EL159*EL160 ->  | EM161: =EM159*EM160 ->  | EN161: =EN159*EN160 ->  | EO161: =EO159*EO160 ->  | EP161: =EP159*EP160 ->  | EQ161: =EQ159*EQ160 ->  | ER161: =ER159*ER160 ->  | ES161: =ES159*ES160 ->  | ET161: =ET159*ET160 ->  | EU161: =EU159*EU160 ->  | EV161: =EV159*EV160 ->  | EW161: =EW159*EW160 ->  | EX161: =EX159*EX160 ->  | EY161: =EY159*EY160 ->  | EZ161: =EZ159*EZ160 ->  | FA161: =FA159*FA160 ->  | FB161: =FB159*FB160 ->  | FC161: =FC159*FC160 ->  | FD161: =FD159*FD160 ->  | FE161: =FE159*FE160 ->  | FF161: =FF159*FF160 ->  | FG161: =FG159*FG160 ->  | FH161: =FH159*FH160 ->  | FI161: =FI159*FI160 ->  | FJ161: =FJ159*FJ160 ->  | FK161: =FK159*FK160 ->  | FL161: =FL159*FL160 ->  | FM161: =FM159*FM160 ->  | FN161: =FN159*FN160 ->  | FO161: =FO159*FO160 ->  | FP161: =FP159*FP160 ->  | FQ161: =FQ159*FQ160 ->  | FR161: =FR159*FR160 ->  | FS161: =FS159*FS160 ->  | FT161: =FT159*FT160 ->  | FU161: =FU159*FU160 ->  | FV161: =FV159*FV160 ->  | FW161: =FW159*FW160 ->  | FX161: =FX159*FX160 ->  | FY161: =FY159*FY160 ->  | FZ161: =FZ159*FZ160 ->  | GA161: =GA159*GA160 ->  | GB161: =GB159*GB160 ->  | GC161: =GC159*GC160 ->  | GD161: =GD159*GD160 ->  | GE161: =GE159*GE160 ->  | GF161: =GF159*GF160 ->  | GG161: =GG159*GG160 ->  | GH161: =GH159*GH160 ->  | GI161: =GI159*GI160 ->  | GJ161: =GJ159*GJ160 ->  | GK161: =GK159*GK160 ->  | GL161: =GL159*GL160 ->  | GM161: =GM159*GM160 ->  | GN161: =GN159*GN160 ->  | GO161: =GO159*GO160 ->  | GP161: =GP159*GP160 ->  | GQ161: =GQ159*GQ160 ->  | GR161: =GR159*GR160 ->  | GS161: =GS159*GS160 ->  | GT161: =GT159*GT160 ->  | GU161: =GU159*GU160 ->  | GV161: =GV159*GV160 ->  | GW161: =GW159*GW160 ->  | GX161: =GX159*GX160 ->  | GY161: =GY159*GY160 ->  | GZ161: =GZ159*GZ160 ->  | HA161: =HA159*HA160 ->  | HB161: =HB159*HB160 ->  | HC161: =HC159*HC160 ->  | HD161: =HD159*HD160 ->  | HE161: =HE159*HE160 ->  | HF161: =HF159*HF160 ->  | HG161: =HG159*HG160 ->  | HH161: =HH159*HH160 ->  | HI161: =HI159*HI160 ->  | HJ161: =HJ159*HJ160 ->  | HK161: =HK159*HK160 ->  | HL161: =HL159*HL160 ->  | HM161: =HM159*HM160 ->  | HN161: =HN159*HN160 ->  | HO161: =HO159*HO160 ->  | HP161: =HP159*HP160 ->  | HQ161: =HQ159*HQ160 ->  | HR161: =HR159*HR160 ->  | HS161: =HS159*HS160 ->  | HT161: =HT159*HT160 ->  | HU161: =HU159*HU160 ->  | HV161: =HV159*HV160 ->  | HW161: =HW159*HW160 ->  | HX161: =HX159*HX160 ->  | HY161: =HY159*HY160 ->  | HZ161: =HZ159*HZ160 ->  | IA161: =IA159*IA160 ->  | IB161: =IB159*IB160 ->  | IC161: =IC159*IC160 ->  | ID161: =ID159*ID160 ->  | IE161: =IE159*IE160 ->  | IF161: =IF159*IF160 ->  | IG161: =IG159*IG160 ->  | IH161: =IH159*IH160 ->  | II161: =II159*II160 ->  | IJ161: =IJ159*IJ160 ->  | IK161: =IK159*IK160 ->  | IL161: =IL159*IL160 ->  | IM161: =IM159*IM160 ->  | IN161: =IN159*IN160 ->  | IO161: =IO159*IO160 ->  | IP161: =IP159*IP160 ->  | IQ161: =IQ159*IQ160 ->  | IR161: =IR159*IR160 ->  | IS161: =IS159*IS160 -> 
E162: Adjustment | J162: =J161-I176 ->  | K162: =K161-J176 ->  | BW162: =BW161-BV176 ->  | EI162: =EI161-EH176 ->  | GU162: =GU161-GT176 -> 
E163: Implied Historic Purchases | I163: =I160+I162 ->  | J163: =J160+J162 ->  | BV163: =BV160+BV162 ->  | CT163: =CT160+CT162 ->  | CU163: =CU160+CU162 ->  | CV163: =CV160+CV162 ->  | CW163: =CW160+CW162 ->  | CX163: =CX160+CX162 ->  | CY163: =CY160+CY162 ->  | CZ163: =CZ160+CZ162 ->  | DA163: =DA160+DA162 ->  | DB163: =DB160+DB162 ->  | DC163: =DC160+DC162 ->  | DD163: =DD160+DD162 ->  | DE163: =DE160+DE162 ->  | DF163: =DF160+DF162 ->  | DG163: =DG160+DG162 ->  | DH163: =DH160+DH162 ->  | DI163: =DI160+DI162 ->  | DJ163: =DJ160+DJ162 ->  | DK163: =DK160+DK162 ->  | DL163: =DL160+DL162 ->  | DM163: =DM160+DM162 ->  | DN163: =DN160+DN162 ->  | DO163: =DO160+DO162 ->  | DP163: =DP160+DP162 ->  | DQ163: =DQ160+DQ162 ->  | DR163: =DR160+DR162 ->  | DS163: =DS160+DS162 ->  | DT163: =DT160+DT162 ->  | DU163: =DU160+DU162 ->  | DV163: =DV160+DV162 ->  | DW163: =DW160+DW162 ->  | DX163: =DX160+DX162 ->  | DY163: =DY160+DY162 ->  | DZ163: =DZ160+DZ162 ->  | EA163: =EA160+EA162 ->  | EB163: =EB160+EB162 ->  | EC163: =EC160+EC162 ->  | ED163: =ED160+ED162 ->  | EE163: =EE160+EE162 ->  | EF163: =EF160+EF162 ->  | EG163: =EG160+EG162 ->  | EH163: =EH160+EH162 ->  | EI163: =EI160+EI162 ->  | EJ163: =EJ160+EJ162 ->  | EK163: =EK160+EK162 ->  | EL163: =EL160+EL162 ->  | EM163: =EM160+EM162 ->  | EN163: =EN160+EN162 ->  | EO163: =EO160+EO162 ->  | EP163: =EP160+EP162 ->  | EQ163: =EQ160+EQ162 ->  | ER163: =ER160+ER162 ->  | ES163: =ES160+ES162 ->  | ET163: =ET160+ET162 ->  | EU163: =EU160+EU162 ->  | EV163: =EV160+EV162 ->  | EW163: =EW160+EW162 ->  | EX163: =EX160+EX162 ->  | EY163: =EY160+EY162 ->  | EZ163: =EZ160+EZ162 ->  | FA163: =FA160+FA162 ->  | FB163: =FB160+FB162 ->  | FC163: =FC160+FC162 ->  | FD163: =FD160+FD162 ->  | FE163: =FE160+FE162 ->  | FF163: =FF160+FF162 ->  | FG163: =FG160+FG162 ->  | FH163: =FH160+FH162 ->  | FI163: =FI160+FI162 ->  | FJ163: =FJ160+FJ162 ->  | FK163: =FK160+FK162 ->  | FL163: =FL160+FL162 ->  | FM163: =FM160+FM162 ->  | FN163: =FN160+FN162 ->  | FO163: =FO160+FO162 ->  | FP163: =FP160+FP162 ->  | FQ163: =FQ160+FQ162 ->  | FR163: =FR160+FR162 ->  | FS163: =FS160+FS162 ->  | FT163: =FT160+FT162 ->  | FU163: =FU160+FU162 ->  | FV163: =FV160+FV162 ->  | FW163: =FW160+FW162 ->  | FX163: =FX160+FX162 ->  | FY163: =FY160+FY162 ->  | FZ163: =FZ160+FZ162 ->  | GA163: =GA160+GA162 ->  | GB163: =GB160+GB162 ->  | GC163: =GC160+GC162 ->  | GD163: =GD160+GD162 ->  | GE163: =GE160+GE162 ->  | GF163: =GF160+GF162 ->  | GG163: =GG160+GG162 ->  | GH163: =GH160+GH162 ->  | GI163: =GI160+GI162 ->  | GJ163: =GJ160+GJ162 ->  | GK163: =GK160+GK162 ->  | GL163: =GL160+GL162 ->  | GM163: =GM160+GM162 ->  | GN163: =GN160+GN162 ->  | GO163: =GO160+GO162 ->  | GP163: =GP160+GP162 ->  | GQ163: =GQ160+GQ162 ->  | GR163: =GR160+GR162 ->  | GS163: =GS160+GS162 ->  | GT163: =GT160+GT162 ->  | GU163: =GU160+GU162 ->  | GV163: =GV160+GV162 ->  | GW163: =GW160+GW162 ->  | GX163: =GX160+GX162 ->  | GY163: =GY160+GY162 ->  | GZ163: =GZ160+GZ162 ->  | HA163: =HA160+HA162 ->  | HB163: =HB160+HB162 ->  | HC163: =HC160+HC162 ->  | HD163: =HD160+HD162 ->  | HE163: =HE160+HE162 ->  | HF163: =HF160+HF162 ->  | HG163: =HG160+HG162 ->  | HH163: =HH160+HH162 ->  | HI163: =HI160+HI162 ->  | HJ163: =HJ160+HJ162 ->  | HK163: =HK160+HK162 ->  | HL163: =HL160+HL162 ->  | HM163: =HM160+HM162 ->  | HN163: =HN160+HN162 ->  | HO163: =HO160+HO162 ->  | HP163: =HP160+HP162 ->  | HQ163: =HQ160+HQ162 ->  | HR163: =HR160+HR162 ->  | HS163: =HS160+HS162 ->  | HT163: =HT160+HT162 ->  | HU163: =HU160+HU162 ->  | HV163: =HV160+HV162 ->  | HW163: =HW160+HW162 ->  | HX163: =HX160+HX162 ->  | HY163: =HY160+HY162 ->  | HZ163: =HZ160+HZ162 ->  | IA163: =IA160+IA162 ->  | IB163: =IB160+IB162 ->  | IC163: =IC160+IC162 ->  | ID163: =ID160+ID162 ->  | IE163: =IE160+IE162 ->  | IF163: =IF160+IF162 ->  | IG163: =IG160+IG162 ->  | IH163: =IH160+IH162 ->  | II163: =II160+II162 ->  | IJ163: =IJ160+IJ162 ->  | IK163: =IK160+IK162 ->  | IL163: =IL160+IL162 ->  | IM163: =IM160+IM162 ->  | IN163: =IN160+IN162 ->  | IO163: =IO160+IO162 ->  | IP163: =IP160+IP162 ->  | IQ163: =IQ160+IQ162 ->  | IR163: =IR160+IR162 ->  | IS163: =IS160+IS162 -> 
E165: Minimum Purchase Percent | F165: % | G165: ='Model Parameters'!G17 -> 0.3 | I165: =$G$165 -> 0.3 | J165: =$G$165 -> 0.3 | K165: 0.3 | L165: 0.3 | M165: 0.3 | N165: 0.3 | O165: 0.3 | P165: 0.3 | Q165: 0.3 | R165: 0.3 | S165: 0.3 | T165: 0.3 | U165: 0.3 | V165: 0.3 | W165: 0.3 | X165: 0.3 | Y165: 0.3 | Z165: 0.3 | AA165: 0.3 | AB165: 0.3 | AC165: 0.3 | AD165: 0.3 | AE165: 0.3 | AF165: 0.3 | AG165: 0.3 | AH165: 0.3 | AI165: 0.3 | AJ165: 0.3 | AK165: 0.3 | AL165: 0.3 | AM165: 0.3 | AN165: 0.3 | AO165: 0.3 | AP165: 0.3 | AQ165: 0.3 | AR165: 0.3 | AS165: 0.3 | AT165: 0.3 | AU165: 0.3 | AV165: 0.3 | AW165: 0.3 | AX165: 0.3 | AY165: 0.3 | AZ165: 0.3 | BA165: 0.3 | BB165: 0.3 | BC165: 0.3 | BD165: 0.3 | BE165: 0.3 | BF165: 0.3 | BG165: 0.3 | BH165: 0.3 | BI165: 0.3 | BJ165: 0.3 | BK165: 0.3 | BL165: 0.3 | BM165: 0.3 | BN165: 0.3 | BO165: 0.3 | BP165: 0.3 | BQ165: 0.3 | BR165: 0.3 | BS165: 0.3 | BT165: 0.3 | BU165: 0.3 | BV165: =$G$165 -> 0.3 | BW165: 0.3 | BX165: 0.3 | BY165: 0.3 | BZ165: 0.3 | CA165: 0.3 | CB165: 0.3 | CC165: 0.3 | CD165: 0.3 | CE165: 0.3 | CF165: 0.3 | CG165: 0.3 | CH165: 0.3 | CI165: 0.3 | CJ165: 0.3 | CK165: 0.3 | CL165: 0.3 | CM165: 0.3 | CN165: 0.3 | CO165: 0.3 | CP165: 0.3 | CQ165: 0.3 | CR165: 0.3 | CS165: 0.3 | CT165: 0.3 | CU165: 0.3 | CV165: 0.3 | CW165: 0.3 | CX165: 0.3 | CY165: 0.3 | CZ165: 0.3 | DA165: 0.3 | DB165: 0.3 | DC165: 0.3 | DD165: 0.3 | DE165: 0.3 | DF165: 0.3 | DG165: 0.3 | DH165: 0.3 | DI165: 0.3 | DJ165: 0.3 | DK165: 0.3 | DL165: 0.3 | DM165: 0.3 | DN165: 0.3 | DO165: 0.3 | DP165: 0.3 | DQ165: 0.3 | DR165: 0.3 | DS165: 0.3 | DT165: 0.3 | DU165: 0.3 | DV165: 0.3 | DW165: 0.3 | DX165: 0.3 | DY165: 0.3 | DZ165: 0.3 | EA165: 0.3 | EB165: 0.3 | EC165: 0.3 | ED165: 0.3 | EE165: 0.3 | EF165: 0.3 | EG165: 0.3 | EH165: =$G$165 -> 0.3 | EI165: 0.3 | EJ165: 0.3 | EK165: 0.3 | EL165: 0.3 | EM165: 0.3 | EN165: 0.3 | EO165: 0.3 | EP165: 0.3 | EQ165: 0.3 | ER165: 0.3 | ES165: 0.3 | ET165: 0.3 | EU165: 0.3 | EV165: 0.3 | EW165: 0.3 | EX165: 0.3 | EY165: 0.3 | EZ165: 0.3 | FA165: 0.3 | FB165: 0.3 | FC165: 0.3 | FD165: 0.3 | FE165: 0.3 | FF165: 0.3 | FG165: 0.3 | FH165: 0.3 | FI165: 0.3 | FJ165: 0.3 | FK165: 0.3 | FL165: 0.3 | FM165: 0.3 | FN165: 0.3 | FO165: 0.3 | FP165: 0.3 | FQ165: 0.3 | FR165: 0.3 | FS165: 0.3 | FT165: 0.3 | FU165: 0.3 | FV165: 0.3 | FW165: 0.3 | FX165: 0.3 | FY165: 0.3 | FZ165: 0.3 | GA165: 0.3 | GB165: 0.3 | GC165: 0.3 | GD165: 0.3 | GE165: 0.3 | GF165: 0.3 | GG165: 0.3 | GH165: 0.3 | GI165: 0.3 | GJ165: 0.3 | GK165: 0.3 | GL165: 0.3 | GM165: 0.3 | GN165: 0.3 | GO165: 0.3 | GP165: 0.3 | GQ165: 0.3 | GR165: 0.3 | GS165: 0.3 | GT165: =$G$165 -> 0.3 | GU165: 0.3 | GV165: 0.3 | GW165: 0.3 | GX165: 0.3 | GY165: 0.3 | GZ165: 0.3 | HA165: 0.3 | HB165: 0.3 | HC165: 0.3 | HD165: 0.3 | HE165: 0.3 | HF165: 0.3 | HG165: 0.3 | HH165: 0.3 | HI165: 0.3 | HJ165: 0.3 | HK165: 0.3 | HL165: 0.3 | HM165: 0.3 | HN165: 0.3 | HO165: 0.3 | HP165: 0.3 | HQ165: 0.3 | HR165: 0.3 | HS165: 0.3 | HT165: 0.3 | HU165: 0.3 | HV165: 0.3 | HW165: 0.3 | HX165: 0.3 | HY165: 0.3 | HZ165: 0.3 | IA165: 0.3 | IB165: 0.3 | IC165: 0.3 | ID165: 0.3 | IE165: 0.3 | IF165: 0.3 | IG165: 0.3 | IH165: 0.3 | II165: 0.3 | IJ165: 0.3 | IK165: 0.3 | IL165: 0.3 | IM165: 0.3 | IN165: 0.3 | IO165: 0.3 | IP165: 0.3 | IQ165: 0.3 | IR165: 0.3 | IS165: 0.3
E166: Minimum Purchases | F166: Units | I166: =IF(NOT(I3),I165*I410) ->  | J166: =IF(NOT(J3),J165*J410) ->  | K166: =IF(NOT(K3),K165*K410) ->  | L166: =IF(NOT(L3),L165*L410) ->  | M166: =IF(NOT(M3),M165*M410) -> 0 | N166: =IF(NOT(N3),N165*N137) ->  | O166: =IF(NOT(O3),O165*O137) ->  | P166: =IF(NOT(P3),P165*P137) ->  | Q166: =IF(NOT(Q3),Q165*Q137) ->  | R166: =IF(NOT(R3),R165*R137) ->  | S166: =IF(NOT(S3),S165*S137) ->  | T166: =IF(NOT(T3),T165*T137) ->  | U166: =IF(NOT(U3),U165*U137) ->  | V166: =IF(NOT(V3),V165*V137) ->  | W166: =IF(NOT(W3),W165*W137) ->  | X166: =IF(NOT(X3),X165*X137) ->  | Y166: =IF(NOT(Y3),Y165*Y137) ->  | Z166: =IF(NOT(Z3),Z165*Z137) ->  | AA166: =IF(NOT(AA3),AA165*AA137) ->  | AB166: =IF(NOT(AB3),AB165*AB137) ->  | AC166: =IF(NOT(AC3),AC165*AC137) ->  | AD166: =IF(NOT(AD3),AD165*AD137) ->  | AE166: =IF(NOT(AE3),AE165*AE137) ->  | AF166: =IF(NOT(AF3),AF165*AF137) ->  | AG166: =IF(NOT(AG3),AG165*AG137) ->  | AH166: =IF(NOT(AH3),AH165*AH137) ->  | AI166: =IF(NOT(AI3),AI165*AI137) ->  | AJ166: =IF(NOT(AJ3),AJ165*AJ137) ->  | AK166: =IF(NOT(AK3),AK165*AK137) ->  | AL166: =IF(NOT(AL3),AL165*AL137) ->  | AM166: =IF(NOT(AM3),AM165*AM137) ->  | AN166: =IF(NOT(AN3),AN165*AN137) ->  | AO166: =IF(NOT(AO3),AO165*AO137) ->  | AP166: =IF(NOT(AP3),AP165*AP137) ->  | AQ166: =IF(NOT(AQ3),AQ165*AQ137) ->  | AR166: =IF(NOT(AR3),AR165*AR137) ->  | AS166: =IF(NOT(AS3),AS165*AS137) ->  | AT166: =IF(NOT(AT3),AT165*AT137) ->  | AU166: =IF(NOT(AU3),AU165*AU137) ->  | AV166: =IF(NOT(AV3),AV165*AV137) ->  | AW166: =IF(NOT(AW3),AW165*AW137) ->  | AX166: =IF(NOT(AX3),AX165*AX137) ->  | AY166: =IF(NOT(AY3),AY165*AY137) ->  | AZ166: =IF(NOT(AZ3),AZ165*AZ137) ->  | BA166: =IF(NOT(BA3),BA165*BA137) ->  | BB166: =IF(NOT(BB3),BB165*BB137) ->  | BC166: =IF(NOT(BC3),BC165*BC137) ->  | BD166: =IF(NOT(BD3),BD165*BD137) ->  | BE166: =IF(NOT(BE3),BE165*BE137) ->  | BF166: =IF(NOT(BF3),BF165*BF137) ->  | BG166: =IF(NOT(BG3),BG165*BG137) ->  | BH166: =IF(NOT(BH3),BH165*BH137) ->  | BI166: =IF(NOT(BI3),BI165*BI137) ->  | BJ166: =IF(NOT(BJ3),BJ165*BJ137) ->  | BK166: =IF(NOT(BK3),BK165*BK137) ->  | BL166: =IF(NOT(BL3),BL165*BL137) ->  | BM166: =IF(NOT(BM3),BM165*BM137) ->  | BN166: =IF(NOT(BN3),BN165*BN137) ->  | BO166: =IF(NOT(BO3),BO165*BO137) ->  | BP166: =IF(NOT(BP3),BP165*BP137) ->  | BQ166: =IF(NOT(BQ3),BQ165*BQ137) ->  | BR166: =IF(NOT(BR3),BR165*BR137) ->  | BS166: =IF(NOT(BS3),BS165*BS137) ->  | BT166: =IF(NOT(BT3),BT165*BT137) ->  | BU166: =IF(NOT(BU3),BU165*BU137) ->  | BV166: =IF(NOT(BV3),BV165*BV137) ->  | BW166: =IF(NOT(BW3),BW165*BW137) ->  | BX166: =IF(NOT(BX3),BX165*BX137) ->  | BY166: =IF(NOT(BY3),BY165*BY137) ->  | BZ166: =IF(NOT(BZ3),BZ165*BZ137) ->  | CA166: =IF(NOT(CA3),CA165*CA137) ->  | CB166: =IF(NOT(CB3),CB165*CB137) ->  | CC166: =IF(NOT(CC3),CC165*CC137) ->  | CD166: =IF(NOT(CD3),CD165*CD137) ->  | CE166: =IF(NOT(CE3),CE165*CE137) ->  | CF166: =IF(NOT(CF3),CF165*CF137) ->  | CG166: =IF(NOT(CG3),CG165*CG137) ->  | CH166: =IF(NOT(CH3),CH165*CH137) ->  | CI166: =IF(NOT(CI3),CI165*CI137) ->  | CJ166: =IF(NOT(CJ3),CJ165*CJ137) ->  | CK166: =IF(NOT(CK3),CK165*CK137) ->  | CL166: =IF(NOT(CL3),CL165*CL137) ->  | CM166: =IF(NOT(CM3),CM165*CM137) ->  | CN166: =IF(NOT(CN3),CN165*CN137) ->  | CO166: =IF(NOT(CO3),CO165*CO137) ->  | CP166: =IF(NOT(CP3),CP165*CP137) ->  | CQ166: =IF(NOT(CQ3),CQ165*CQ137) ->  | CR166: =IF(NOT(CR3),CR165*CR137) ->  | CS166: =IF(NOT(CS3),CS165*CS137) ->  | CT166: =IF(NOT(CT3),CT165*CT137) ->  | CU166: =IF(NOT(CU3),CU165*CU137) ->  | CV166: =IF(NOT(CV3),CV165*CV137) ->  | CW166: =IF(NOT(CW3),CW165*CW137) ->  | CX166: =IF(NOT(CX3),CX165*CX137) ->  | CY166: =IF(NOT(CY3),CY165*CY137) ->  | CZ166: =IF(NOT(CZ3),CZ165*CZ137) ->  | DA166: =IF(NOT(DA3),DA165*DA137) ->  | DB166: =IF(NOT(DB3),DB165*DB137) ->  | DC166: =IF(NOT(DC3),DC165*DC137) ->  | DD166: =IF(NOT(DD3),DD165*DD137) ->  | DE166: =IF(NOT(DE3),DE165*DE137) ->  | DF166: =IF(NOT(DF3),DF165*DF137) ->  | DG166: =IF(NOT(DG3),DG165*DG137) ->  | DH166: =IF(NOT(DH3),DH165*DH137) ->  | DI166: =IF(NOT(DI3),DI165*DI137) ->  | DJ166: =IF(NOT(DJ3),DJ165*DJ137) ->  | DK166: =IF(NOT(DK3),DK165*DK137) ->  | DL166: =IF(NOT(DL3),DL165*DL137) ->  | DM166: =IF(NOT(DM3),DM165*DM137) ->  | DN166: =IF(NOT(DN3),DN165*DN137) ->  | DO166: =IF(NOT(DO3),DO165*DO137) ->  | DP166: =IF(NOT(DP3),DP165*DP137) ->  | DQ166: =IF(NOT(DQ3),DQ165*DQ137) ->  | DR166: =IF(NOT(DR3),DR165*DR137) ->  | DS166: =IF(NOT(DS3),DS165*DS137) ->  | DT166: =IF(NOT(DT3),DT165*DT137) ->  | DU166: =IF(NOT(DU3),DU165*DU137) ->  | DV166: =IF(NOT(DV3),DV165*DV137) ->  | DW166: =IF(NOT(DW3),DW165*DW137) ->  | DX166: =IF(NOT(DX3),DX165*DX137) ->  | DY166: =IF(NOT(DY3),DY165*DY137) ->  | DZ166: =IF(NOT(DZ3),DZ165*DZ137) ->  | EA166: =IF(NOT(EA3),EA165*EA137) ->  | EB166: =IF(NOT(EB3),EB165*EB137) ->  | EC166: =IF(NOT(EC3),EC165*EC137) ->  | ED166: =IF(NOT(ED3),ED165*ED137) ->  | EE166: =IF(NOT(EE3),EE165*EE137) ->  | EF166: =IF(NOT(EF3),EF165*EF137) ->  | EG166: =IF(NOT(EG3),EG165*EG137) ->  | EH166: =IF(NOT(EH3),EH165*EH137) ->  | EI166: =IF(NOT(EI3),EI165*EI137) ->  | EJ166: =IF(NOT(EJ3),EJ165*EJ137) ->  | EK166: =IF(NOT(EK3),EK165*EK137) ->  | EL166: =IF(NOT(EL3),EL165*EL137) ->  | EM166: =IF(NOT(EM3),EM165*EM137) ->  | EN166: =IF(NOT(EN3),EN165*EN137) ->  | EO166: =IF(NOT(EO3),EO165*EO137) ->  | EP166: =IF(NOT(EP3),EP165*EP137) ->  | EQ166: =IF(NOT(EQ3),EQ165*EQ137) ->  | ER166: =IF(NOT(ER3),ER165*ER137) ->  | ES166: =IF(NOT(ES3),ES165*ES137) ->  | ET166: =IF(NOT(ET3),ET165*ET137) ->  | EU166: =IF(NOT(EU3),EU165*EU137) ->  | EV166: =IF(NOT(EV3),EV165*EV137) ->  | EW166: =IF(NOT(EW3),EW165*EW137) ->  | EX166: =IF(NOT(EX3),EX165*EX137) ->  | EY166: =IF(NOT(EY3),EY165*EY137) ->  | EZ166: =IF(NOT(EZ3),EZ165*EZ137) ->  | FA166: =IF(NOT(FA3),FA165*FA137) ->  | FB166: =IF(NOT(FB3),FB165*FB137) ->  | FC166: =IF(NOT(FC3),FC165*FC137) ->  | FD166: =IF(NOT(FD3),FD165*FD137) ->  | FE166: =IF(NOT(FE3),FE165*FE137) ->  | FF166: =IF(NOT(FF3),FF165*FF137) ->  | FG166: =IF(NOT(FG3),FG165*FG137) ->  | FH166: =IF(NOT(FH3),FH165*FH137) ->  | FI166: =IF(NOT(FI3),FI165*FI137) ->  | FJ166: =IF(NOT(FJ3),FJ165*FJ137) ->  | FK166: =IF(NOT(FK3),FK165*FK137) ->  | FL166: =IF(NOT(FL3),FL165*FL137) ->  | FM166: =IF(NOT(FM3),FM165*FM137) ->  | FN166: =IF(NOT(FN3),FN165*FN137) ->  | FO166: =IF(NOT(FO3),FO165*FO137) ->  | FP166: =IF(NOT(FP3),FP165*FP137) ->  | FQ166: =IF(NOT(FQ3),FQ165*FQ137) ->  | FR166: =IF(NOT(FR3),FR165*FR137) ->  | FS166: =IF(NOT(FS3),FS165*FS137) ->  | FT166: =IF(NOT(FT3),FT165*FT137) ->  | FU166: =IF(NOT(FU3),FU165*FU137) ->  | FV166: =IF(NOT(FV3),FV165*FV137) ->  | FW166: =IF(NOT(FW3),FW165*FW137) ->  | FX166: =IF(NOT(FX3),FX165*FX137) ->  | FY166: =IF(NOT(FY3),FY165*FY137) ->  | FZ166: =IF(NOT(FZ3),FZ165*FZ137) ->  | GA166: =IF(NOT(GA3),GA165*GA137) ->  | GB166: =IF(NOT(GB3),GB165*GB137) ->  | GC166: =IF(NOT(GC3),GC165*GC137) ->  | GD166: =IF(NOT(GD3),GD165*GD137) ->  | GE166: =IF(NOT(GE3),GE165*GE137) ->  | GF166: =IF(NOT(GF3),GF165*GF137) ->  | GG166: =IF(NOT(GG3),GG165*GG137) ->  | GH166: =IF(NOT(GH3),GH165*GH137) ->  | GI166: =IF(NOT(GI3),GI165*GI137) ->  | GJ166: =IF(NOT(GJ3),GJ165*GJ137) ->  | GK166: =IF(NOT(GK3),GK165*GK137) ->  | GL166: =IF(NOT(GL3),GL165*GL137) ->  | GM166: =IF(NOT(GM3),GM165*GM137) ->  | GN166: =IF(NOT(GN3),GN165*GN137) ->  | GO166: =IF(NOT(GO3),GO165*GO137) ->  | GP166: =IF(NOT(GP3),GP165*GP137) ->  | GQ166: =IF(NOT(GQ3),GQ165*GQ137) ->  | GR166: =IF(NOT(GR3),GR165*GR137) ->  | GS166: =IF(NOT(GS3),GS165*GS137) ->  | GT166: =IF(NOT(GT3),GT165*GT137) ->  | GU166: =IF(NOT(GU3),GU165*GU137) ->  | GV166: =IF(NOT(GV3),GV165*GV137) ->  | GW166: =IF(NOT(GW3),GW165*GW137) ->  | GX166: =IF(NOT(GX3),GX165*GX137) ->  | GY166: =IF(NOT(GY3),GY165*GY137) ->  | GZ166: =IF(NOT(GZ3),GZ165*GZ137) ->  | HA166: =IF(NOT(HA3),HA165*HA137) ->  | HB166: =IF(NOT(HB3),HB165*HB137) ->  | HC166: =IF(NOT(HC3),HC165*HC137) ->  | HD166: =IF(NOT(HD3),HD165*HD137) ->  | HE166: =IF(NOT(HE3),HE165*HE137) ->  | HF166: =IF(NOT(HF3),HF165*HF137) ->  | HG166: =IF(NOT(HG3),HG165*HG137) ->  | HH166: =IF(NOT(HH3),HH165*HH137) ->  | HI166: =IF(NOT(HI3),HI165*HI137) ->  | HJ166: =IF(NOT(HJ3),HJ165*HJ137) ->  | HK166: =IF(NOT(HK3),HK165*HK137) ->  | HL166: =IF(NOT(HL3),HL165*HL137) ->  | HM166: =IF(NOT(HM3),HM165*HM137) ->  | HN166: =IF(NOT(HN3),HN165*HN137) ->  | HO166: =IF(NOT(HO3),HO165*HO137) ->  | HP166: =IF(NOT(HP3),HP165*HP137) ->  | HQ166: =IF(NOT(HQ3),HQ165*HQ137) ->  | HR166: =IF(NOT(HR3),HR165*HR137) ->  | HS166: =IF(NOT(HS3),HS165*HS137) ->  | HT166: =IF(NOT(HT3),HT165*HT137) ->  | HU166: =IF(NOT(HU3),HU165*HU137) ->  | HV166: =IF(NOT(HV3),HV165*HV137) ->  | HW166: =IF(NOT(HW3),HW165*HW137) ->  | HX166: =IF(NOT(HX3),HX165*HX137) ->  | HY166: =IF(NOT(HY3),HY165*HY137) ->  | HZ166: =IF(NOT(HZ3),HZ165*HZ137) ->  | IA166: =IF(NOT(IA3),IA165*IA137) ->  | IB166: =IF(NOT(IB3),IB165*IB137) ->  | IC166: =IF(NOT(IC3),IC165*IC137) ->  | ID166: =IF(NOT(ID3),ID165*ID137) ->  | IE166: =IF(NOT(IE3),IE165*IE137) ->  | IF166: =IF(NOT(IF3),IF165*IF137) ->  | IG166: =IF(NOT(IG3),IG165*IG137) ->  | IH166: =IF(NOT(IH3),IH165*IH137) ->  | II166: =IF(NOT(II3),II165*II137) ->  | IJ166: =IF(NOT(IJ3),IJ165*IJ137) ->  | IK166: =IF(NOT(IK3),IK165*IK137) ->  | IL166: =IF(NOT(IL3),IL165*IL137) ->  | IM166: =IF(NOT(IM3),IM165*IM137) ->  | IN166: =IF(NOT(IN3),IN165*IN137) ->  | IO166: =IF(NOT(IO3),IO165*IO137) ->  | IP166: =IF(NOT(IP3),IP165*IP137) ->  | IQ166: =IF(NOT(IQ3),IQ165*IQ137) ->  | IR166: =IF(NOT(IR3),IR165*IR137) ->  | IS166: =IF(NOT(IS3),IS165*IS137) -> 
E167: Shock Period | F167: Flag | G167: ='Model Parameters'!G9 -> 2020-03-31 | I167: =$G$167=I5 -> FALSE | J167: =$G$167=J5 -> FALSE | K167: =$G$167=K5 -> FALSE | L167: =$G$167=L5 -> FALSE | M167: =$G$167=M5 -> FALSE | N167: =$G$167=N5 -> FALSE | O167: =$G$167=O5 -> FALSE | P167: =$G$167=P5 -> FALSE | Q167: =$G$167=Q5 -> FALSE | R167: =$G$167=R5 -> FALSE | S167: =$G$167=S5 -> FALSE | T167: =$G$167=T5 -> FALSE | U167: =$G$167=U5 -> FALSE | V167: =$G$167=V5 -> FALSE | W167: =$G$167=W5 -> FALSE | X167: =$G$167=X5 -> FALSE | Y167: =$G$167=Y5 -> FALSE | Z167: =$G$167=Z5 -> FALSE | AA167: =$G$167=AA5 -> FALSE | AB167: =$G$167=AB5 -> FALSE | AC167: =$G$167=AC5 -> FALSE | AD167: =$G$167=AD5 -> FALSE | AE167: =$G$167=AE5 -> FALSE | AF167: =$G$167=AF5 -> FALSE | AG167: =$G$167=AG5 -> FALSE | AH167: =$G$167=AH5 -> FALSE | AI167: =$G$167=AI5 -> FALSE | AJ167: =$G$167=AJ5 -> FALSE | AK167: =$G$167=AK5 -> FALSE | AL167: =$G$167=AL5 -> FALSE | AM167: =$G$167=AM5 -> FALSE | AN167: =$G$167=AN5 -> FALSE | AO167: =$G$167=AO5 -> FALSE | AP167: =$G$167=AP5 -> FALSE | AQ167: =$G$167=AQ5 -> FALSE | AR167: =$G$167=AR5 -> FALSE | AS167: =$G$167=AS5 -> FALSE | AT167: =$G$167=AT5 -> FALSE | AU167: =$G$167=AU5 -> FALSE | AV167: =$G$167=AV5 -> FALSE | AW167: =$G$167=AW5 -> FALSE | AX167: =$G$167=AX5 -> FALSE | AY167: =$G$167=AY5 -> FALSE | AZ167: =$G$167=AZ5 -> FALSE | BA167: =$G$167=BA5 -> FALSE | BB167: =$G$167=BB5 -> FALSE | BC167: =$G$167=BC5 -> FALSE | BD167: =$G$167=BD5 -> FALSE | BE167: =$G$167=BE5 -> FALSE | BF167: =$G$167=BF5 -> FALSE | BG167: =$G$167=BG5 -> FALSE | BH167: =$G$167=BH5 -> FALSE | BI167: =$G$167=BI5 -> FALSE | BJ167: =$G$167=BJ5 -> FALSE | BK167: =$G$167=BK5 -> FALSE | BL167: =$G$167=BL5 -> FALSE | BM167: =$G$167=BM5 -> FALSE | BN167: =$G$167=BN5 -> FALSE | BO167: =$G$167=BO5 -> FALSE | BP167: =$G$167=BP5 -> FALSE | BQ167: =$G$167=BQ5 -> FALSE | BR167: =$G$167=BR5 -> FALSE | BS167: =$G$167=BS5 -> FALSE | BT167: =$G$167=BT5 -> FALSE | BU167: =$G$167=BU5 -> FALSE | BV167: =$G$167=BV5 -> FALSE | BW167: =$G$167=BW5 -> FALSE | BX167: =$G$167=BX5 -> FALSE | BY167: =$G$167=BY5 -> FALSE | BZ167: =$G$167=BZ5 -> FALSE | CA167: =$G$167=CA5 -> FALSE | CB167: =$G$167=CB5 -> FALSE | CC167: =$G$167=CC5 -> FALSE | CD167: =$G$167=CD5 -> FALSE | CE167: =$G$167=CE5 -> FALSE | CF167: =$G$167=CF5 -> FALSE | CG167: =$G$167=CG5 -> FALSE | CH167: =$G$167=CH5 -> FALSE | CI167: =$G$167=CI5 -> FALSE | CJ167: =$G$167=CJ5 -> FALSE | CK167: =$G$167=CK5 -> FALSE | CL167: =$G$167=CL5 -> FALSE | CM167: =$G$167=CM5 -> FALSE | CN167: =$G$167=CN5 -> FALSE | CO167: =$G$167=CO5 -> FALSE | CP167: =$G$167=CP5 -> FALSE | CQ167: =$G$167=CQ5 -> FALSE | CR167: =$G$167=CR5 -> FALSE | CS167: =$G$167=CS5 -> FALSE | CT167: =$G$167=CT5 -> FALSE | CU167: =$G$167=CU5 -> FALSE | CV167: =$G$167=CV5 -> FALSE | CW167: =$G$167=CW5 -> FALSE | CX167: =$G$167=CX5 -> FALSE | CY167: =$G$167=CY5 -> FALSE | CZ167: =$G$167=CZ5 -> FALSE | DA167: =$G$167=DA5 -> FALSE | DB167: =$G$167=DB5 -> FALSE | DC167: =$G$167=DC5 -> FALSE | DD167: =$G$167=DD5 -> FALSE | DE167: =$G$167=DE5 -> FALSE | DF167: =$G$167=DF5 -> FALSE | DG167: =$G$167=DG5 -> FALSE | DH167: =$G$167=DH5 -> FALSE | DI167: =$G$167=DI5 -> FALSE | DJ167: =$G$167=DJ5 -> FALSE | DK167: =$G$167=DK5 -> FALSE | DL167: =$G$167=DL5 -> FALSE | DM167: =$G$167=DM5 -> FALSE | DN167: =$G$167=DN5 -> FALSE | DO167: =$G$167=DO5 -> FALSE | DP167: =$G$167=DP5 -> FALSE | DQ167: =$G$167=DQ5 -> FALSE | DR167: =$G$167=DR5 -> FALSE | DS167: =$G$167=DS5 -> FALSE | DT167: =$G$167=DT5 -> FALSE | DU167: =$G$167=DU5 -> FALSE | DV167: =$G$167=DV5 -> FALSE | DW167: =$G$167=DW5 -> FALSE | DX167: =$G$167=DX5 -> FALSE | DY167: =$G$167=DY5 -> FALSE | DZ167: =$G$167=DZ5 -> FALSE | EA167: =$G$167=EA5 -> FALSE | EB167: =$G$167=EB5 -> FALSE | EC167: =$G$167=EC5 -> FALSE | ED167: =$G$167=ED5 -> FALSE | EE167: =$G$167=EE5 -> FALSE | EF167: =$G$167=EF5 -> FALSE | EG167: =$G$167=EG5 -> FALSE | EH167: =$G$167=EH5 -> FALSE | EI167: =$G$167=EI5 -> FALSE | EJ167: =$G$167=EJ5 -> FALSE | EK167: =$G$167=EK5 -> FALSE | EL167: =$G$167=EL5 -> FALSE | EM167: =$G$167=EM5 -> FALSE | EN167: =$G$167=EN5 -> FALSE | EO167: =$G$167=EO5 -> FALSE | EP167: =$G$167=EP5 -> FALSE | EQ167: =$G$167=EQ5 -> FALSE | ER167: =$G$167=ER5 -> FALSE | ES167: =$G$167=ES5 -> FALSE | ET167: =$G$167=ET5 -> FALSE | EU167: =$G$167=EU5 -> FALSE | EV167: =$G$167=EV5 -> FALSE | EW167: =$G$167=EW5 -> FALSE | EX167: =$G$167=EX5 -> FALSE | EY167: =$G$167=EY5 -> FALSE | EZ167: =$G$167=EZ5 -> FALSE | FA167: =$G$167=FA5 -> FALSE | FB167: =$G$167=FB5 -> FALSE | FC167: =$G$167=FC5 -> FALSE | FD167: =$G$167=FD5 -> FALSE | FE167: =$G$167=FE5 -> FALSE | FF167: =$G$167=FF5 -> FALSE | FG167: =$G$167=FG5 -> FALSE | FH167: =$G$167=FH5 -> FALSE | FI167: =$G$167=FI5 -> FALSE | FJ167: =$G$167=FJ5 -> FALSE | FK167: =$G$167=FK5 -> FALSE | FL167: =$G$167=FL5 -> FALSE | FM167: =$G$167=FM5 -> FALSE | FN167: =$G$167=FN5 -> FALSE | FO167: =$G$167=FO5 -> FALSE | FP167: =$G$167=FP5 -> FALSE | FQ167: =$G$167=FQ5 -> FALSE | FR167: =$G$167=FR5 -> FALSE | FS167: =$G$167=FS5 -> FALSE | FT167: =$G$167=FT5 -> FALSE | FU167: =$G$167=FU5 -> FALSE | FV167: =$G$167=FV5 -> FALSE | FW167: =$G$167=FW5 -> FALSE | FX167: =$G$167=FX5 -> FALSE | FY167: =$G$167=FY5 -> FALSE | FZ167: =$G$167=FZ5 -> FALSE | GA167: =$G$167=GA5 -> FALSE | GB167: =$G$167=GB5 -> FALSE | GC167: =$G$167=GC5 -> FALSE | GD167: =$G$167=GD5 -> FALSE | GE167: =$G$167=GE5 -> FALSE | GF167: =$G$167=GF5 -> FALSE | GG167: =$G$167=GG5 -> FALSE | GH167: =$G$167=GH5 -> FALSE | GI167: =$G$167=GI5 -> FALSE | GJ167: =$G$167=GJ5 -> FALSE | GK167: =$G$167=GK5 -> FALSE | GL167: =$G$167=GL5 -> FALSE | GM167: =$G$167=GM5 -> FALSE | GN167: =$G$167=GN5 -> FALSE | GO167: =$G$167=GO5 -> FALSE | GP167: =$G$167=GP5 -> FALSE | GQ167: =$G$167=GQ5 -> FALSE | GR167: =$G$167=GR5 -> FALSE | GS167: =$G$167=GS5 -> FALSE | GT167: =$G$167=GT5 -> FALSE | GU167: =$G$167=GU5 -> FALSE | GV167: =$G$167=GV5 -> FALSE | GW167: =$G$167=GW5 -> FALSE | GX167: =$G$167=GX5 -> FALSE | GY167: =$G$167=GY5 -> FALSE | GZ167: =$G$167=GZ5 -> FALSE | HA167: =$G$167=HA5 -> FALSE | HB167: =$G$167=HB5 -> FALSE | HC167: =$G$167=HC5 -> FALSE | HD167: =$G$167=HD5 -> FALSE | HE167: =$G$167=HE5 -> FALSE | HF167: =$G$167=HF5 -> FALSE | HG167: =$G$167=HG5 -> FALSE | HH167: =$G$167=HH5 -> FALSE | HI167: =$G$167=HI5 -> FALSE | HJ167: =$G$167=HJ5 -> FALSE | HK167: =$G$167=HK5 -> FALSE | HL167: =$G$167=HL5 -> FALSE | HM167: =$G$167=HM5 -> FALSE | HN167: =$G$167=HN5 -> FALSE | HO167: =$G$167=HO5 -> FALSE | HP167: =$G$167=HP5 -> FALSE | HQ167: =$G$167=HQ5 -> FALSE | HR167: =$G$167=HR5 -> FALSE | HS167: =$G$167=HS5 -> FALSE | HT167: =$G$167=HT5 -> FALSE | HU167: =$G$167=HU5 -> FALSE | HV167: =$G$167=HV5 -> FALSE | HW167: =$G$167=HW5 -> FALSE | HX167: =$G$167=HX5 -> FALSE | HY167: =$G$167=HY5 -> FALSE | HZ167: =$G$167=HZ5 -> FALSE | IA167: =$G$167=IA5 -> FALSE | IB167: =$G$167=IB5 -> FALSE | IC167: =$G$167=IC5 -> FALSE | ID167: =$G$167=ID5 -> FALSE | IE167: =$G$167=IE5 -> FALSE | IF167: =$G$167=IF5 -> FALSE | IG167: =$G$167=IG5 -> FALSE | IH167: =$G$167=IH5 -> FALSE | II167: =$G$167=II5 -> FALSE | IJ167: =$G$167=IJ5 -> FALSE | IK167: =$G$167=IK5 -> FALSE | IL167: =$G$167=IL5 -> FALSE | IM167: =$G$167=IM5 -> FALSE | IN167: =$G$167=IN5 -> FALSE | IO167: =$G$167=IO5 -> FALSE | IP167: =$G$167=IP5 -> FALSE | IQ167: =$G$167=IQ5 -> FALSE | IR167: =$G$167=IR5 -> FALSE | IS167: =$G$167=IS5 -> FALSE
E168: Shock Period Purchases | F168: Units | I168: =G160/12*I167 -> 0 | J168: =I160/12*J167 ->  | BV168: =BU160/12*BV167 ->  | CT168: =CS160/12*CT167 ->  | CU168: =CT160/12*CU167 ->  | CV168: =CU160/12*CV167 ->  | CW168: =CV160/12*CW167 ->  | CX168: =CW160/12*CX167 ->  | CY168: =CX160/12*CY167 ->  | CZ168: =CY160/12*CZ167 ->  | DA168: =CZ160/12*DA167 ->  | DB168: =DA160/12*DB167 ->  | DC168: =DB160/12*DC167 ->  | DD168: =DC160/12*DD167 ->  | DE168: =DD160/12*DE167 ->  | DF168: =DE160/12*DF167 ->  | DG168: =DF160/12*DG167 ->  | DH168: =DG160/12*DH167 ->  | DI168: =DH160/12*DI167 ->  | DJ168: =DI160/12*DJ167 ->  | DK168: =DJ160/12*DK167 ->  | DL168: =DK160/12*DL167 ->  | DM168: =DL160/12*DM167 ->  | DN168: =DM160/12*DN167 ->  | DO168: =DN160/12*DO167 ->  | DP168: =DO160/12*DP167 ->  | DQ168: =DP160/12*DQ167 ->  | DR168: =DQ160/12*DR167 ->  | DS168: =DR160/12*DS167 ->  | DT168: =DS160/12*DT167 ->  | DU168: =DT160/12*DU167 ->  | DV168: =DU160/12*DV167 ->  | DW168: =DV160/12*DW167 ->  | DX168: =DW160/12*DX167 ->  | DY168: =DX160/12*DY167 ->  | DZ168: =DY160/12*DZ167 ->  | EA168: =DZ160/12*EA167 ->  | EB168: =EA160/12*EB167 ->  | EC168: =EB160/12*EC167 ->  | ED168: =EC160/12*ED167 ->  | EE168: =ED160/12*EE167 ->  | EF168: =EE160/12*EF167 ->  | EG168: =EF160/12*EG167 ->  | EH168: =EG160/12*EH167 ->  | EI168: =EH160/12*EI167 ->  | EJ168: =EI160/12*EJ167 ->  | EK168: =EJ160/12*EK167 ->  | EL168: =EK160/12*EL167 ->  | EM168: =EL160/12*EM167 ->  | EN168: =EM160/12*EN167 ->  | EO168: =EN160/12*EO167 ->  | EP168: =EO160/12*EP167 ->  | EQ168: =EP160/12*EQ167 ->  | ER168: =EQ160/12*ER167 ->  | ES168: =ER160/12*ES167 ->  | ET168: =ES160/12*ET167 ->  | EU168: =ET160/12*EU167 ->  | EV168: =EU160/12*EV167 ->  | EW168: =EV160/12*EW167 ->  | EX168: =EW160/12*EX167 ->  | EY168: =EX160/12*EY167 ->  | EZ168: =EY160/12*EZ167 ->  | FA168: =EZ160/12*FA167 ->  | FB168: =FA160/12*FB167 ->  | FC168: =FB160/12*FC167 ->  | FD168: =FC160/12*FD167 ->  | FE168: =FD160/12*FE167 ->  | FF168: =FE160/12*FF167 ->  | FG168: =FF160/12*FG167 ->  | FH168: =FG160/12*FH167 ->  | FI168: =FH160/12*FI167 ->  | FJ168: =FI160/12*FJ167 ->  | FK168: =FJ160/12*FK167 ->  | FL168: =FK160/12*FL167 ->  | FM168: =FL160/12*FM167 ->  | FN168: =FM160/12*FN167 ->  | FO168: =FN160/12*FO167 ->  | FP168: =FO160/12*FP167 ->  | FQ168: =FP160/12*FQ167 ->  | FR168: =FQ160/12*FR167 ->  | FS168: =FR160/12*FS167 ->  | FT168: =FS160/12*FT167 ->  | FU168: =FT160/12*FU167 ->  | FV168: =FU160/12*FV167 ->  | FW168: =FV160/12*FW167 ->  | FX168: =FW160/12*FX167 ->  | FY168: =FX160/12*FY167 ->  | FZ168: =FY160/12*FZ167 ->  | GA168: =FZ160/12*GA167 ->  | GB168: =GA160/12*GB167 ->  | GC168: =GB160/12*GC167 ->  | GD168: =GC160/12*GD167 ->  | GE168: =GD160/12*GE167 ->  | GF168: =GE160/12*GF167 ->  | GG168: =GF160/12*GG167 ->  | GH168: =GG160/12*GH167 ->  | GI168: =GH160/12*GI167 ->  | GJ168: =GI160/12*GJ167 ->  | GK168: =GJ160/12*GK167 ->  | GL168: =GK160/12*GL167 ->  | GM168: =GL160/12*GM167 ->  | GN168: =GM160/12*GN167 ->  | GO168: =GN160/12*GO167 ->  | GP168: =GO160/12*GP167 ->  | GQ168: =GP160/12*GQ167 ->  | GR168: =GQ160/12*GR167 ->  | GS168: =GR160/12*GS167 ->  | GT168: =GS160/12*GT167 ->  | GU168: =GT160/12*GU167 ->  | GV168: =GU160/12*GV167 ->  | GW168: =GV160/12*GW167 ->  | GX168: =GW160/12*GX167 ->  | GY168: =GX160/12*GY167 ->  | GZ168: =GY160/12*GZ167 ->  | HA168: =GZ160/12*HA167 ->  | HB168: =HA160/12*HB167 ->  | HC168: =HB160/12*HC167 ->  | HD168: =HC160/12*HD167 ->  | HE168: =HD160/12*HE167 ->  | HF168: =HE160/12*HF167 ->  | HG168: =HF160/12*HG167 ->  | HH168: =HG160/12*HH167 ->  | HI168: =HH160/12*HI167 ->  | HJ168: =HI160/12*HJ167 ->  | HK168: =HJ160/12*HK167 ->  | HL168: =HK160/12*HL167 ->  | HM168: =HL160/12*HM167 ->  | HN168: =HM160/12*HN167 ->  | HO168: =HN160/12*HO167 ->  | HP168: =HO160/12*HP167 ->  | HQ168: =HP160/12*HQ167 ->  | HR168: =HQ160/12*HR167 ->  | HS168: =HR160/12*HS167 ->  | HT168: =HS160/12*HT167 ->  | HU168: =HT160/12*HU167 ->  | HV168: =HU160/12*HV167 ->  | HW168: =HV160/12*HW167 ->  | HX168: =HW160/12*HX167 ->  | HY168: =HX160/12*HY167 ->  | HZ168: =HY160/12*HZ167 ->  | IA168: =HZ160/12*IA167 ->  | IB168: =IA160/12*IB167 ->  | IC168: =IB160/12*IC167 ->  | ID168: =IC160/12*ID167 ->  | IE168: =ID160/12*IE167 ->  | IF168: =IE160/12*IF167 ->  | IG168: =IF160/12*IG167 ->  | IH168: =IG160/12*IH167 ->  | II168: =IH160/12*II167 ->  | IJ168: =II160/12*IJ167 ->  | IK168: =IJ160/12*IK167 ->  | IL168: =IK160/12*IL167 ->  | IM168: =IL160/12*IM167 ->  | IN168: =IM160/12*IN167 ->  | IO168: =IN160/12*IO167 ->  | IP168: =IO160/12*IP167 ->  | IQ168: =IP160/12*IQ167 ->  | IR168: =IQ160/12*IR167 ->  | IS168: =IR160/12*IS167 -> 
E169: Sub-total Applied Purchases | F169: Units | I169: =IF(I167,I168,I166) ->  | J169: =IF(J167,J168,J166) ->  | M169: 0 | BV169: =IF(BV167,BV168,BV166) ->  | CT169: =IF(CT167,CT168,CT166) ->  | CU169: =IF(CU167,CU168,CU166) ->  | CV169: =IF(CV167,CV168,CV166) ->  | CW169: =IF(CW167,CW168,CW166) ->  | CX169: =IF(CX167,CX168,CX166) ->  | CY169: =IF(CY167,CY168,CY166) ->  | CZ169: =IF(CZ167,CZ168,CZ166) ->  | DA169: =IF(DA167,DA168,DA166) ->  | DB169: =IF(DB167,DB168,DB166) ->  | DC169: =IF(DC167,DC168,DC166) ->  | DD169: =IF(DD167,DD168,DD166) ->  | DE169: =IF(DE167,DE168,DE166) ->  | DF169: =IF(DF167,DF168,DF166) ->  | DG169: =IF(DG167,DG168,DG166) ->  | DH169: =IF(DH167,DH168,DH166) ->  | DI169: =IF(DI167,DI168,DI166) ->  | DJ169: =IF(DJ167,DJ168,DJ166) ->  | DK169: =IF(DK167,DK168,DK166) ->  | DL169: =IF(DL167,DL168,DL166) ->  | DM169: =IF(DM167,DM168,DM166) ->  | DN169: =IF(DN167,DN168,DN166) ->  | DO169: =IF(DO167,DO168,DO166) ->  | DP169: =IF(DP167,DP168,DP166) ->  | DQ169: =IF(DQ167,DQ168,DQ166) ->  | DR169: =IF(DR167,DR168,DR166) ->  | DS169: =IF(DS167,DS168,DS166) ->  | DT169: =IF(DT167,DT168,DT166) ->  | DU169: =IF(DU167,DU168,DU166) ->  | DV169: =IF(DV167,DV168,DV166) ->  | DW169: =IF(DW167,DW168,DW166) ->  | DX169: =IF(DX167,DX168,DX166) ->  | DY169: =IF(DY167,DY168,DY166) ->  | DZ169: =IF(DZ167,DZ168,DZ166) ->  | EA169: =IF(EA167,EA168,EA166) ->  | EB169: =IF(EB167,EB168,EB166) ->  | EC169: =IF(EC167,EC168,EC166) ->  | ED169: =IF(ED167,ED168,ED166) ->  | EE169: =IF(EE167,EE168,EE166) ->  | EF169: =IF(EF167,EF168,EF166) ->  | EG169: =IF(EG167,EG168,EG166) ->  | EH169: =IF(EH167,EH168,EH166) ->  | EI169: =IF(EI167,EI168,EI166) ->  | EJ169: =IF(EJ167,EJ168,EJ166) ->  | EK169: =IF(EK167,EK168,EK166) ->  | EL169: =IF(EL167,EL168,EL166) ->  | EM169: =IF(EM167,EM168,EM166) ->  | EN169: =IF(EN167,EN168,EN166) ->  | EO169: =IF(EO167,EO168,EO166) ->  | EP169: =IF(EP167,EP168,EP166) ->  | EQ169: =IF(EQ167,EQ168,EQ166) ->  | ER169: =IF(ER167,ER168,ER166) ->  | ES169: =IF(ES167,ES168,ES166) ->  | ET169: =IF(ET167,ET168,ET166) ->  | EU169: =IF(EU167,EU168,EU166) ->  | EV169: =IF(EV167,EV168,EV166) ->  | EW169: =IF(EW167,EW168,EW166) ->  | EX169: =IF(EX167,EX168,EX166) ->  | EY169: =IF(EY167,EY168,EY166) ->  | EZ169: =IF(EZ167,EZ168,EZ166) ->  | FA169: =IF(FA167,FA168,FA166) ->  | FB169: =IF(FB167,FB168,FB166) ->  | FC169: =IF(FC167,FC168,FC166) ->  | FD169: =IF(FD167,FD168,FD166) ->  | FE169: =IF(FE167,FE168,FE166) ->  | FF169: =IF(FF167,FF168,FF166) ->  | FG169: =IF(FG167,FG168,FG166) ->  | FH169: =IF(FH167,FH168,FH166) ->  | FI169: =IF(FI167,FI168,FI166) ->  | FJ169: =IF(FJ167,FJ168,FJ166) ->  | FK169: =IF(FK167,FK168,FK166) ->  | FL169: =IF(FL167,FL168,FL166) ->  | FM169: =IF(FM167,FM168,FM166) ->  | FN169: =IF(FN167,FN168,FN166) ->  | FO169: =IF(FO167,FO168,FO166) ->  | FP169: =IF(FP167,FP168,FP166) ->  | FQ169: =IF(FQ167,FQ168,FQ166) ->  | FR169: =IF(FR167,FR168,FR166) ->  | FS169: =IF(FS167,FS168,FS166) ->  | FT169: =IF(FT167,FT168,FT166) ->  | FU169: =IF(FU167,FU168,FU166) ->  | FV169: =IF(FV167,FV168,FV166) ->  | FW169: =IF(FW167,FW168,FW166) ->  | FX169: =IF(FX167,FX168,FX166) ->  | FY169: =IF(FY167,FY168,FY166) ->  | FZ169: =IF(FZ167,FZ168,FZ166) ->  | GA169: =IF(GA167,GA168,GA166) ->  | GB169: =IF(GB167,GB168,GB166) ->  | GC169: =IF(GC167,GC168,GC166) ->  | GD169: =IF(GD167,GD168,GD166) ->  | GE169: =IF(GE167,GE168,GE166) ->  | GF169: =IF(GF167,GF168,GF166) ->  | GG169: =IF(GG167,GG168,GG166) ->  | GH169: =IF(GH167,GH168,GH166) ->  | GI169: =IF(GI167,GI168,GI166) ->  | GJ169: =IF(GJ167,GJ168,GJ166) ->  | GK169: =IF(GK167,GK168,GK166) ->  | GL169: =IF(GL167,GL168,GL166) ->  | GM169: =IF(GM167,GM168,GM166) ->  | GN169: =IF(GN167,GN168,GN166) ->  | GO169: =IF(GO167,GO168,GO166) ->  | GP169: =IF(GP167,GP168,GP166) ->  | GQ169: =IF(GQ167,GQ168,GQ166) ->  | GR169: =IF(GR167,GR168,GR166) ->  | GS169: =IF(GS167,GS168,GS166) ->  | GT169: =IF(GT167,GT168,GT166) ->  | GU169: =IF(GU167,GU168,GU166) ->  | GV169: =IF(GV167,GV168,GV166) ->  | GW169: =IF(GW167,GW168,GW166) ->  | GX169: =IF(GX167,GX168,GX166) ->  | GY169: =IF(GY167,GY168,GY166) ->  | GZ169: =IF(GZ167,GZ168,GZ166) ->  | HA169: =IF(HA167,HA168,HA166) ->  | HB169: =IF(HB167,HB168,HB166) ->  | HC169: =IF(HC167,HC168,HC166) ->  | HD169: =IF(HD167,HD168,HD166) ->  | HE169: =IF(HE167,HE168,HE166) ->  | HF169: =IF(HF167,HF168,HF166) ->  | HG169: =IF(HG167,HG168,HG166) ->  | HH169: =IF(HH167,HH168,HH166) ->  | HI169: =IF(HI167,HI168,HI166) ->  | HJ169: =IF(HJ167,HJ168,HJ166) ->  | HK169: =IF(HK167,HK168,HK166) ->  | HL169: =IF(HL167,HL168,HL166) ->  | HM169: =IF(HM167,HM168,HM166) ->  | HN169: =IF(HN167,HN168,HN166) ->  | HO169: =IF(HO167,HO168,HO166) ->  | HP169: =IF(HP167,HP168,HP166) ->  | HQ169: =IF(HQ167,HQ168,HQ166) ->  | HR169: =IF(HR167,HR168,HR166) ->  | HS169: =IF(HS167,HS168,HS166) ->  | HT169: =IF(HT167,HT168,HT166) ->  | HU169: =IF(HU167,HU168,HU166) ->  | HV169: =IF(HV167,HV168,HV166) ->  | HW169: =IF(HW167,HW168,HW166) ->  | HX169: =IF(HX167,HX168,HX166) ->  | HY169: =IF(HY167,HY168,HY166) ->  | HZ169: =IF(HZ167,HZ168,HZ166) ->  | IA169: =IF(IA167,IA168,IA166) ->  | IB169: =IF(IB167,IB168,IB166) ->  | IC169: =IF(IC167,IC168,IC166) ->  | ID169: =IF(ID167,ID168,ID166) ->  | IE169: =IF(IE167,IE168,IE166) ->  | IF169: =IF(IF167,IF168,IF166) ->  | IG169: =IF(IG167,IG168,IG166) ->  | IH169: =IF(IH167,IH168,IH166) ->  | II169: =IF(II167,II168,II166) ->  | IJ169: =IF(IJ167,IJ168,IJ166) ->  | IK169: =IF(IK167,IK168,IK166) ->  | IL169: =IF(IL167,IL168,IL166) ->  | IM169: =IF(IM167,IM168,IM166) ->  | IN169: =IF(IN167,IN168,IN166) ->  | IO169: =IF(IO167,IO168,IO166) ->  | IP169: =IF(IP167,IP168,IP166) ->  | IQ169: =IF(IQ167,IQ168,IQ166) ->  | IR169: =IF(IR167,IR168,IR166) ->  | IS169: =IF(IS167,IS168,IS166) -> 
